Workbook

Sheet Pre Delta
A1: Frequency | B1: Delta DUTL Left | C1: Delta DUTL Right | E1: Frequency | F1: ='Pre-GS'!B2 -> DUTL Left - Means | G1: ='Pre-VM'!B2 -> VML Left - Means | H1: Pre Delta DUTL Left | I1: ='Pre-GS'!O2 -> DUTL Right - Means | J1: ='Pre-VM'!O2 -> VML Right - Means | K1: Pre Delta DUTL Right | M1: Frequecy | N1: post Delta DUTL Left | O1: NTX2B16CP00374 | P1: NTX3209CP02597 | Q1: Post Delta DUTL Right | R1: NTX2B16CP00374 | S1: NTX3209CP02597
A2: 50 | B2: =N2-H2 -> -0.5276 | C2: =Q2-K2 -> 0.4535 | E2: 50 | F2: ='Pre-GS'!B3 -> 84.4643 | G2: ='Pre-VM'!B3 -> 84.7487 | H2: =F2-G2 -> -0.2844 | I2: ='Pre-GS'!O3 -> 85.5642 | J2: ='Pre-VM'!O3 -> 85.9567 | K2: =I2-J2 -> -0.3925 | M2: 50 | N2: =O2-P2 -> -0.812 | O2: 84.554 | P2: 85.366 | Q2: =R2-S2 -> 0.061 | R2: 86.309 | S2: 86.248
A3: 53 | B3: =N3-H3 -> 0.0217 | C3: =Q3-K3 -> 0.3191 | E3: 53 | F3: ='Pre-GS'!B4 -> 87.6791 | G3: ='Pre-VM'!B4 -> 88.0578 | H3: =F3-G3 -> -0.3787 | I3: ='Pre-GS'!O4 -> 88.7796 | J3: ='Pre-VM'!O4 -> 89.1637 | K3: =I3-J3 -> -0.3841 | M3: 53 | N3: =O3-P3 -> -0.357 | O3: 88.313 | P3: 88.67 | Q3: =R3-S3 -> -0.065 | R3: 89.469 | S3: 89.534
A4: 56 | B4: 0.0664 | C4: 0.2239 | E4: 56 | F4: ='Pre-GS'!B5 -> 89.6507 | G4: ='Pre-VM'!B5 -> 89.9511 | H4: -0.3004 | I4: ='Pre-GS'!O5 -> 90.6193 | J4: ='Pre-VM'!O5 -> 90.9082 | K4: -0.2889 | M4: 56 | N4: -0.234 | O4: 90.164 | P4: 90.398 | Q4: -0.065 | R4: 91.089 | S4: 91.154
A5: 60 | B5: 0.0877 | C5: 0.1673 | E5: 60 | F5: ='Pre-GS'!B6 -> 90.7093 | G5: ='Pre-VM'!B6 -> 90.9790 | H5: -0.2697 | I5: ='Pre-GS'!O6 -> 91.7622 | J5: ='Pre-VM'!O6 -> 92.0075 | K5: -0.2453 | M5: 60 | N5: -0.182 | O5: 91.108 | P5: 91.29 | Q5: -0.078 | R5: 92.071 | S5: 92.149
A6: 63 | B6: 0.0882 | C6: 0.1387 | E6: 63 | F6: ='Pre-GS'!B7 -> 91.3187 | G6: ='Pre-VM'!B7 -> 91.5509 | H6: -0.2322 | I6: ='Pre-GS'!O7 -> 92.6333 | J6: ='Pre-VM'!O7 -> 92.8420 | K6: -0.2087 | M6: 63 | N6: -0.144 | O6: 91.569 | P6: 91.713 | Q6: -0.07 | R6: 92.806 | S6: 92.876
A7: 67 | B7: 0.0927 | C7: 0.1200 | E7: 67 | F7: ='Pre-GS'!B8 -> 91.6277 | G7: ='Pre-VM'!B8 -> 91.8294 | H7: -0.2017 | I7: ='Pre-GS'!O8 -> 93.3845 | J7: ='Pre-VM'!O8 -> 93.5755 | K7: -0.1910 | M7: 67 | N7: -0.109 | O7: 91.731 | P7: 91.84 | Q7: -0.071 | R7: 93.479 | S7: 93.55
A8: 71 | B8: 0.1035 | C8: 0.1156 | E8: 71 | F8: ='Pre-GS'!B9 -> 91.8333 | G8: ='Pre-VM'!B9 -> 92.0138 | H8: -0.1805 | I8: ='Pre-GS'!O9 -> 94.0646 | J8: ='Pre-VM'!O9 -> 94.2512 | K8: -0.1866 | M8: 71 | N8: -0.077 | O8: 91.826 | P8: 91.903 | Q8: -0.071 | R8: 94.162 | S8: 94.233
A9: 75 | B9: 0.1167 | C9: 0.1282 | E9: 75 | F9: ='Pre-GS'!B10 -> 92.0723 | G9: ='Pre-VM'!B10 -> 92.2370 | H9: -0.1647 | I9: ='Pre-GS'!O10 -> 94.6396 | J9: ='Pre-VM'!O10 -> 94.8288 | K9: -0.1892 | M9: 75 | N9: -0.048 | O9: 92.004 | P9: 92.052 | Q9: -0.061 | R9: 94.779 | S9: 94.84
A10: 80 | B10: 0.1318 | C10: 0.1367 | E10: 80 | F10: ='Pre-GS'!B11 -> 92.3223 | G10: ='Pre-VM'!B11 -> 92.4841 | H10: -0.1618 | I10: ='Pre-GS'!O11 -> 95.0403 | J10: ='Pre-VM'!O11 -> 95.2330 | K10: -0.1927 | M10: 80 | N10: -0.03 | O10: 92.233 | P10: 92.263 | Q10: -0.056 | R10: 95.218 | S10: 95.274
A11: 85 | B11: 0.1289 | C11: 0.1313 | E11: 85 | F11: ='Pre-GS'!B12 -> 92.4889 | G11: ='Pre-VM'!B12 -> 92.6578 | H11: -0.1689 | I11: ='Pre-GS'!O12 -> 95.2338 | J11: ='Pre-VM'!O12 -> 95.4241 | K11: -0.1903 | M11: 85 | N11: -0.04 | O11: 92.39 | P11: 92.43 | Q11: -0.059 | R11: 95.417 | S11: 95.476
A12: 90 | B12: 0.1315 | C12: 0.1330 | E12: 90 | F12: ='Pre-GS'!B13 -> 92.5189 | G12: ='Pre-VM'!B13 -> 92.6914 | H12: -0.1725 | I12: ='Pre-GS'!O13 -> 95.2519 | J12: ='Pre-VM'!O13 -> 95.4299 | K12: -0.1780 | M12: 90 | N12: -0.041 | O12: 92.425 | P12: 92.466 | Q12: -0.045 | R12: 95.423 | S12: 95.468
A13: 95 | B13: 0.1562 | C13: 0.1452 | E13: 95 | F13: ='Pre-GS'!B14 -> 92.3488 | G13: ='Pre-VM'!B14 -> 92.5440 | H13: -0.1952 | I13: ='Pre-GS'!O14 -> 95.1032 | J13: ='Pre-VM'!O14 -> 95.2884 | K13: -0.1852 | M13: 95 | N13: -0.039 | O13: 92.278 | P13: 92.317 | Q13: -0.04 | R13: 95.272 | S13: 95.312
A14: 100 | B14: 0.2171 | C14: 0.1739 | E14: 100 | F14: ='Pre-GS'!B15 -> 92.0076 | G14: ='Pre-VM'!B15 -> 92.2777 | H14: -0.2701 | I14: ='Pre-GS'!O15 -> 94.8376 | J14: ='Pre-VM'!O15 -> 95.0825 | K14: -0.2449 | M14: 100 | N14: -0.053 | O14: 91.962 | P14: 92.015 | Q14: -0.071 | R14: 95.001 | S14: 95.072
A15: 106 | B15: 0.3388 | C15: 0.2522 | E15: 106 | F15: ='Pre-GS'!B16 -> 91.6741 | G15: ='Pre-VM'!B16 -> 92.0549 | H15: -0.3808 | I15: ='Pre-GS'!O16 -> 94.5758 | J15: ='Pre-VM'!O16 -> 94.9230 | K15: -0.3472 | M15: 106 | N15: -0.042 | O15: 91.637 | P15: 91.679 | Q15: -0.095 | R15: 94.722 | S15: 94.817
A16: 112 | B16: 0.4259 | C16: 0.3175 | E16: 112 | F16: ='Pre-GS'!B17 -> 91.3702 | G16: ='Pre-VM'!B17 -> 91.8461 | H16: -0.4759 | I16: ='Pre-GS'!O17 -> 94.3213 | J16: ='Pre-VM'!O17 -> 94.7678 | K16: -0.4465 | M16: 112 | N16: -0.05 | O16: 91.32 | P16: 91.37 | Q16: -0.129 | R16: 94.449 | S16: 94.578
A17: 118 | B17: 0.4159 | C17: 0.3227 | E17: 118 | F17: ='Pre-GS'!B18 -> 91.0049 | G17: ='Pre-VM'!B18 -> 91.5088 | H17: -0.5039 | I17: ='Pre-GS'!O18 -> 94.0244 | J17: ='Pre-VM'!O18 -> 94.5161 | K17: -0.4917 | M17: 118 | N17: -0.088 | O17: 90.926 | P17: 91.014 | Q17: -0.169 | R17: 94.138 | S17: 94.307
A18: 125 | B18: 0.3070 | C18: 0.2803 | E18: 125 | F18: ='Pre-GS'!B19 -> 90.5104 | G18: ='Pre-VM'!B19 -> 90.9444 | H18: -0.4340 | I18: ='Pre-GS'!O19 -> 93.6454 | J18: ='Pre-VM'!O19 -> 94.1027 | K18: -0.4573 | M18: 125 | N18: -0.127 | O18: 90.399 | P18: 90.526 | Q18: -0.177 | R18: 93.76 | S18: 93.937
A19: 132 | B19: 0.0949 | C19: 0.1593 | E19: 132 | F19: ='Pre-GS'!B20 -> 89.7304 | G19: ='Pre-VM'!B20 -> 90.0243 | H19: -0.2939 | I19: ='Pre-GS'!O20 -> 93.0848 | J19: ='Pre-VM'!O20 -> 93.4621 | K19: -0.3773 | M19: 132 | N19: -0.199 | O19: 89.582 | P19: 89.781 | Q19: -0.218 | R19: 93.213 | S19: 93.431
A20: 140 | B20: -0.0950 | C20: 0.0186 | E20: 140 | F20: ='Pre-GS'!B21 -> 88.6399 | G20: ='Pre-VM'!B21 -> 88.8309 | H20: -0.1910 | I20: ='Pre-GS'!O21 -> 92.3078 | J20: ='Pre-VM'!O21 -> 92.6364 | K20: -0.3286 | M20: 140 | N20: -0.286 | O20: 88.473 | P20: 88.759 | Q20: -0.31 | R20: 92.442 | S20: 92.752
A21: 150 | B21: -0.0977 | C21: -0.0392 | E21: 150 | F21: ='Pre-GS'!B22 -> 87.5698 | G21: ='Pre-VM'!B22 -> 87.8021 | H21: -0.2323 | I21: ='Pre-GS'!O22 -> 91.4486 | J21: ='Pre-VM'!O22 -> 91.8054 | K21: -0.3568 | M21: 150 | N21: -0.33 | O21: 87.401 | P21: 87.731 | Q21: -0.396 | R21: 91.546 | S21: 91.942
A22: 160 | B22: 0.1080 | C22: -0.0080 | E22: 160 | F22: ='Pre-GS'!B23 -> 86.9212 | G22: ='Pre-VM'!B23 -> 87.3212 | H22: -0.4000 | I22: ='Pre-GS'!O23 -> 90.7002 | J22: ='Pre-VM'!O23 -> 91.1472 | K22: -0.4470 | M22: 160 | N22: -0.292 | O22: 86.73 | P22: 87.022 | Q22: -0.455 | R22: 90.722 | S22: 91.177
A23: 170 | B23: 0.3339 | C23: 0.0967 | E23: 170 | F23: ='Pre-GS'!B24 -> 86.7807 | G23: ='Pre-VM'!B24 -> 87.3556 | H23: -0.5749 | I23: ='Pre-GS'!O24 -> 90.1220 | J23: ='Pre-VM'!O24 -> 90.6717 | K23: -0.5497 | M23: 170 | N23: -0.241 | O23: 86.607 | P23: 86.848 | Q23: -0.453 | R23: 90.136 | S23: 90.589
A24: 180 | B24: 0.3850 | C24: 0.1842 | E24: 180 | F24: ='Pre-GS'!B25 -> 87.0334 | G24: ='Pre-VM'!B25 -> 87.6634 | H24: -0.6300 | I24: ='Pre-GS'!O25 -> 89.7485 | J24: ='Pre-VM'!O25 -> 90.3487 | K24: -0.6002 | M24: 180 | N24: -0.245 | O24: 86.895 | P24: 87.14 | Q24: -0.416 | R24: 89.82 | S24: 90.236
A25: 190 | B25: 0.3253 | C25: 0.1900 | E25: 190 | F25: ='Pre-GS'!B26 -> 87.3882 | G25: ='Pre-VM'!B26 -> 87.9885 | H25: -0.6003 | I25: ='Pre-GS'!O26 -> 89.5156 | J25: ='Pre-VM'!O26 -> 90.1096 | K25: -0.5940 | M25: 190 | N25: -0.275 | O25: 87.246 | P25: 87.521 | Q25: -0.404 | R25: 89.651 | S25: 90.055
A26: 200 | B26: 0.2721 | C26: 0.1623 | E26: 200 | F26: ='Pre-GS'!B27 -> 87.7098 | G26: ='Pre-VM'!B27 -> 88.2789 | H26: -0.5691 | I26: ='Pre-GS'!O27 -> 89.2448 | J26: ='Pre-VM'!O27 -> 89.8181 | K26: -0.5733 | M26: 200 | N26: -0.297 | O26: 87.553 | P26: 87.85 | Q26: -0.411 | R26: 89.433 | S26: 89.844
A27: 212 | B27: 0.2402 | C27: 0.1700 | E27: 212 | F27: ='Pre-GS'!B28 -> 88.1129 | G27: ='Pre-VM'!B28 -> 88.6621 | H27: -0.5492 | I27: ='Pre-GS'!O28 -> 88.9456 | J27: ='Pre-VM'!O28 -> 89.5016 | K27: -0.5560 | M27: 212 | N27: -0.309 | O27: 87.958 | P27: 88.267 | Q27: -0.386 | R27: 89.177 | S27: 89.563
A28: 224 | B28: 0.2733 | C28: 0.2266 | E28: 224 | F28: ='Pre-GS'!B29 -> 88.6563 | G28: ='Pre-VM'!B29 -> 89.1996 | H28: -0.5433 | I28: ='Pre-GS'!O29 -> 88.7494 | J28: ='Pre-VM'!O29 -> 89.3000 | K28: -0.5506 | M28: 224 | N28: -0.27 | O28: 88.537 | P28: 88.807 | Q28: -0.324 | R28: 89.036 | S28: 89.36
A29: 236 | B29: 0.3531 | C29: 0.2933 | E29: 236 | F29: ='Pre-GS'!B30 -> 89.3103 | G29: ='Pre-VM'!B30 -> 89.8554 | H29: -0.5451 | I29: ='Pre-GS'!O30 -> 88.7644 | J29: ='Pre-VM'!O30 -> 89.3127 | K29: -0.5483 | M29: 236 | N29: -0.192 | O29: 89.258 | P29: 89.45 | Q29: -0.255 | R29: 89.1 | S29: 89.355
A30: 250 | B30: 0.4199 | C30: 0.3424 | E30: 250 | F30: ='Pre-GS'!B31 -> 89.9557 | G30: ='Pre-VM'!B31 -> 90.5066 | H30: -0.5509 | I30: ='Pre-GS'!O31 -> 88.9091 | J30: ='Pre-VM'!O31 -> 89.4555 | K30: -0.5464 | M30: 250 | N30: -0.131 | O30: 89.971 | P30: 90.102 | Q30: -0.204 | R30: 89.28 | S30: 89.484
A31: 265 | B31: 0.4758 | C31: 0.3596 | E31: 265 | F31: ='Pre-GS'!B32 -> 90.4944 | G31: ='Pre-VM'!B32 -> 91.0522 | H31: -0.5578 | I31: ='Pre-GS'!O32 -> 89.0402 | J31: ='Pre-VM'!O32 -> 89.5888 | K31: -0.5486 | M31: 265 | N31: -0.082 | O31: 90.572 | P31: 90.654 | Q31: -0.189 | R31: 89.424 | S31: 89.613
A32: 280 | B32: 0.4966 | C32: 0.3910 | E32: 280 | F32: ='Pre-GS'!B33 -> 90.9156 | G32: ='Pre-VM'!B33 -> 91.4762 | H32: -0.5606 | I32: ='Pre-GS'!O33 -> 89.1083 | J32: ='Pre-VM'!O33 -> 89.6633 | K32: -0.5550 | M32: 280 | N32: -0.064 | O32: 91.037 | P32: 91.101 | Q32: -0.164 | R32: 89.502 | S32: 89.666
A33: 300 | B33: 0.4840 | C33: 0.4147 | E33: 300 | F33: ='Pre-GS'!B34 -> 91.2223 | G33: ='Pre-VM'!B34 -> 91.7833 | H33: -0.5610 | I33: ='Pre-GS'!O34 -> 89.1153 | J33: ='Pre-VM'!O34 -> 89.6780 | K33: -0.5627 | M33: 300 | N33: -0.077 | O33: 91.361 | P33: 91.438 | Q33: -0.148 | R33: 89.51 | S33: 89.658
A34: 315 | B34: 0.4509 | C34: 0.4073 | E34: 315 | F34: ='Pre-GS'!B35 -> 91.4425 | G34: ='Pre-VM'!B35 -> 92.0014 | H34: -0.5589 | I34: ='Pre-GS'!O35 -> 89.1232 | J34: ='Pre-VM'!O35 -> 89.6955 | K34: -0.5723 | M34: 315 | N34: -0.108 | O34: 91.577 | P34: 91.685 | Q34: -0.165 | R34: 89.507 | S34: 89.672
A35: 335 | B35: 0.3944 | C35: 0.3744 | E35: 335 | F35: ='Pre-GS'!B36 -> 91.6616 | G35: ='Pre-VM'!B36 -> 92.2190 | H35: -0.5574 | I35: ='Pre-GS'!O36 -> 89.2662 | J35: ='Pre-VM'!O36 -> 89.8486 | K35: -0.5824 | M35: 335 | N35: -0.163 | O35: 91.771 | P35: 91.934 | Q35: -0.208 | R35: 89.64 | S35: 89.848
A36: 355 | B36: 0.3394 | C36: 0.3100 | E36: 355 | F36: ='Pre-GS'!B37 -> 91.9764 | G36: ='Pre-VM'!B37 -> 92.5358 | H36: -0.5594 | I36: ='Pre-GS'!O37 -> 89.6929 | J36: ='Pre-VM'!O37 -> 90.2829 | K36: -0.5900 | M36: 355 | N36: -0.22 | O36: 92.044 | P36: 92.264 | Q36: -0.28 | R36: 90.035 | S36: 90.315
A37: 375 | B37: 0.2839 | C37: 0.2421 | E37: 375 | F37: ='Pre-GS'!B38 -> 92.4247 | G37: ='Pre-VM'!B38 -> 92.9836 | H37: -0.5589 | I37: ='Pre-GS'!O38 -> 90.3439 | J37: ='Pre-VM'!O38 -> 90.9340 | K37: -0.5901 | M37: 375 | N37: -0.275 | O37: 92.431 | P37: 92.706 | Q37: -0.348 | R37: 90.628 | S37: 90.976
A38: 400 | B38: 0.2375 | C38: 0.1916 | E38: 400 | F38: ='Pre-GS'!B39 -> 92.8675 | G38: ='Pre-VM'!B39 -> 93.4240 | H38: -0.5565 | I38: ='Pre-GS'!O39 -> 90.9900 | J38: ='Pre-VM'!O39 -> 91.5796 | K38: -0.5896 | M38: 400 | N38: -0.319 | O38: 92.812 | P38: 93.131 | Q38: -0.398 | R38: 91.213 | S38: 91.611
A39: 425 | B39: 0.2015 | C39: 0.1540 | E39: 425 | F39: ='Pre-GS'!B40 -> 93.1285 | G39: ='Pre-VM'!B40 -> 93.6890 | H39: -0.5605 | I39: ='Pre-GS'!O40 -> 91.4647 | J39: ='Pre-VM'!O40 -> 92.0617 | K39: -0.5970 | M39: 425 | N39: -0.359 | O39: 93.021 | P39: 93.38 | Q39: -0.443 | R39: 91.637 | S39: 92.08
A40: 450 | B40: 0.1615 | C40: 0.1145 | E40: 450 | F40: ='Pre-GS'!B41 -> 93.1252 | G40: ='Pre-VM'!B41 -> 93.6937 | H40: -0.5685 | I40: ='Pre-GS'!O41 -> 91.6861 | J40: ='Pre-VM'!O41 -> 92.2856 | K40: -0.5995 | M40: 450 | N40: -0.407 | O40: 92.978 | P40: 93.385 | Q40: -0.485 | R40: 91.817 | S40: 92.302
A41: 475 | B41: 0.1139 | C41: 0.0809 | E41: 475 | F41: ='Pre-GS'!B42 -> 92.8184 | G41: ='Pre-VM'!B42 -> 93.3853 | H41: -0.5669 | I41: ='Pre-GS'!O42 -> 91.6752 | J41: ='Pre-VM'!O42 -> 92.2751 | K41: -0.5999 | M41: 475 | N41: -0.453 | O41: 92.666 | P41: 93.119 | Q41: -0.519 | R41: 91.788 | S41: 92.307
A42: 500 | B42: 0.0943 | C42: 0.0854 | E42: 500 | F42: ='Pre-GS'!B43 -> 92.3620 | G42: ='Pre-VM'!B43 -> 92.9463 | H42: -0.5843 | I42: ='Pre-GS'!O43 -> 91.5966 | J42: ='Pre-VM'!O43 -> 92.2180 | K42: -0.6214 | M42: 500 | N42: -0.49 | O42: 92.25 | P42: 92.74 | Q42: -0.536 | R42: 91.705 | S42: 92.241
A43: 530 | B43: 0.1188 | C43: 0.1044 | E43: 530 | F43: ='Pre-GS'!B44 -> 92.0216 | G43: ='Pre-VM'!B44 -> 92.6464 | H43: -0.6248 | I43: ='Pre-GS'!O44 -> 91.6135 | J43: ='Pre-VM'!O44 -> 92.2569 | K43: -0.6434 | M43: 530 | N43: -0.506 | O43: 91.968 | P43: 92.474 | Q43: -0.539 | R43: 91.702 | S43: 92.241
A44: 560 | B44: 0.1580 | C44: 0.1178 | E44: 560 | F44: ='Pre-GS'!B45 -> 91.8441 | G44: ='Pre-VM'!B45 -> 92.4881 | H44: -0.6440 | I44: ='Pre-GS'!O45 -> 91.7071 | J44: ='Pre-VM'!O45 -> 92.3559 | K44: -0.6488 | M44: 560 | N44: -0.486 | O44: 91.869 | P44: 92.355 | Q44: -0.531 | R44: 91.775 | S44: 92.306
A45: 600 | B45: 0.1975 | C45: 0.1300 | E45: 600 | F45: ='Pre-GS'!B46 -> 91.6809 | G45: ='Pre-VM'!B46 -> 92.3394 | H45: -0.6585 | I45: ='Pre-GS'!O46 -> 91.7595 | J45: ='Pre-VM'!O46 -> 92.4075 | K45: -0.6480 | M45: 600 | N45: -0.461 | O45: 91.777 | P45: 92.238 | Q45: -0.518 | R45: 91.815 | S45: 92.333
A46: 630 | B46: 0.2028 | C46: 0.1138 | E46: 630 | F46: ='Pre-GS'!B47 -> 91.2522 | G46: ='Pre-VM'!B47 -> 91.9050 | H46: -0.6528 | I46: ='Pre-GS'!O47 -> 91.6686 | J46: ='Pre-VM'!O47 -> 92.2924 | K46: -0.6238 | M46: 630 | N46: -0.45 | O46: 91.393 | P46: 91.843 | Q46: -0.51 | R46: 91.727 | S46: 92.237
A47: 670 | B47: 0.1713 | C47: 0.0856 | E47: 670 | F47: ='Pre-GS'!B48 -> 90.3177 | G47: ='Pre-VM'!B48 -> 90.9260 | H47: -0.6083 | I47: ='Pre-GS'!O48 -> 91.3929 | J47: ='Pre-VM'!O48 -> 91.9835 | K47: -0.5906 | M47: 670 | N47: -0.437 | O47: 90.512 | P47: 90.949 | Q47: -0.505 | R47: 91.484 | S47: 91.989
A48: 710 | B48: 0.1354 | C48: 0.0771 | E48: 710 | F48: ='Pre-GS'!B49 -> 88.7843 | G48: ='Pre-VM'!B49 -> 89.3507 | H48: -0.5664 | I48: ='Pre-GS'!O49 -> 90.9510 | J48: ='Pre-VM'!O49 -> 91.5291 | K48: -0.5781 | M48: 710 | N48: -0.431 | O48: 89.029 | P48: 89.46 | Q48: -0.501 | R48: 91.078 | S48: 91.579
A49: 750 | B49: 0.0933 | C49: 0.0701 | E49: 750 | F49: ='Pre-GS'!B50 -> 86.7425 | G49: ='Pre-VM'!B50 -> 87.2918 | H49: -0.5493 | I49: ='Pre-GS'!O50 -> 90.4647 | J49: ='Pre-VM'!O50 -> 91.0458 | K49: -0.5811 | M49: 750 | N49: -0.456 | O49: 86.977 | P49: 87.433 | Q49: -0.511 | R49: 90.621 | S49: 91.132
A50: 800 | B50: 0.0349 | C50: 0.0632 | E50: 800 | F50: ='Pre-GS'!B51 -> 85.4072 | G50: ='Pre-VM'!B51 -> 85.9731 | H50: -0.5659 | I50: ='Pre-GS'!O51 -> 90.2389 | J50: ='Pre-VM'!O51 -> 90.8321 | K50: -0.5932 | M50: 800 | N50: -0.531 | O50: 85.484 | P50: 86.015 | Q50: -0.53 | R50: 90.437 | S50: 90.967
A51: 850 | B51: 0.0819 | C51: 0.1295 | E51: 850 | F51: ='Pre-GS'!B52 -> 86.6724 | G51: ='Pre-VM'!B52 -> 87.2833 | H51: -0.6109 | I51: ='Pre-GS'!O52 -> 90.4130 | J51: ='Pre-VM'!O52 -> 91.0315 | K51: -0.6185 | M51: 850 | N51: -0.529 | O51: 86.533 | P51: 87.062 | Q51: -0.489 | R51: 90.683 | S51: 91.172
A52: 900 | B52: 0.2374 | C52: 0.2572 | E52: 900 | F52: ='Pre-GS'!B53 -> 88.6309 | G52: ='Pre-VM'!B53 -> 89.2753 | H52: -0.6444 | I52: ='Pre-GS'!O53 -> 90.7413 | J52: ='Pre-VM'!O53 -> 91.3895 | K52: -0.6482 | M52: 900 | N52: -0.407 | O52: 88.461 | P52: 88.868 | Q52: -0.391 | R52: 91.114 | S52: 91.505
A53: 950 | B53: 0.3475 | C53: 0.3771 | E53: 950 | F53: ='Pre-GS'!B54 -> 89.8204 | G53: ='Pre-VM'!B54 -> 90.4749 | H53: -0.6545 | I53: ='Pre-GS'!O54 -> 90.9078 | J53: ='Pre-VM'!O54 -> 91.5919 | K53: -0.6841 | M53: 950 | N53: -0.307 | O53: 89.736 | P53: 90.043 | Q53: -0.307 | R53: 91.398 | S53: 91.705
A54: 1000 | B54: 0.4206 | C54: 0.4612 | E54: 1000 | F54: ='Pre-GS'!B55 -> 90.2019 | G54: ='Pre-VM'!B55 -> 90.8615 | H54: -0.6596 | I54: ='Pre-GS'!O55 -> 90.7433 | J54: ='Pre-VM'!O55 -> 91.4445 | K54: -0.7012 | M54: 1000 | N54: -0.239 | O54: 90.282 | P54: 90.521 | Q54: -0.24 | R54: 91.331 | S54: 91.571
A55: 1060 | B55: 0.4821 | C55: 0.4892 | E55: 1060 | F55: ='Pre-GS'!B56 -> 89.8241 | G55: ='Pre-VM'!B56 -> 90.4882 | H55: -0.6641 | I55: ='Pre-GS'!O56 -> 90.1648 | J55: ='Pre-VM'!O56 -> 90.8590 | K55: -0.6942 | M55: 1060 | N55: -0.182 | O55: 90.156 | P55: 90.338 | Q55: -0.205 | R55: 90.808 | S55: 91.013
A56: 1120 | B56: 0.5051 | C56: 0.4937 | E56: 1120 | F56: ='Pre-GS'!B57 -> 88.8919 | G56: ='Pre-VM'!B57 -> 89.5620 | H56: -0.6701 | I56: ='Pre-GS'!O57 -> 89.3594 | J56: ='Pre-VM'!O57 -> 90.0631 | K56: -0.7037 | M56: 1120 | N56: -0.165 | O56: 89.527 | P56: 89.692 | Q56: -0.21 | R56: 90.016 | S56: 90.226
A57: 1180 | B57: 0.5103 | C57: 0.5257 | E57: 1180 | F57: ='Pre-GS'!B58 -> 87.9880 | G57: ='Pre-VM'!B58 -> 88.7013 | H57: -0.7133 | I57: ='Pre-GS'!O58 -> 88.8043 | J57: ='Pre-VM'!O58 -> 89.5230 | K57: -0.7187 | M57: 1180 | N57: -0.203 | O57: 88.816 | P57: 89.019 | Q57: -0.193 | R57: 89.41 | S57: 89.603
A58: 1250 | B58: 0.5546 | C58: 0.6691 | E58: 1250 | F58: ='Pre-GS'!B59 -> 87.6145 | G58: ='Pre-VM'!B59 -> 88.3581 | H58: -0.7436 | I58: ='Pre-GS'!O59 -> 88.9604 | J58: ='Pre-VM'!O59 -> 89.7255 | K58: -0.7651 | M58: 1250 | N58: -0.189 | O58: 88.349 | P58: 88.538 | Q58: -0.096 | R58: 89.527 | S58: 89.623
A59: 1320 | B59: 0.7304 | C59: 0.9188 | E59: 1320 | F59: ='Pre-GS'!B60 -> 87.5311 | G59: ='Pre-VM'!B60 -> 88.3325 | H59: -0.8014 | I59: ='Pre-GS'!O60 -> 90.0562 | J59: ='Pre-VM'!O60 -> 90.8860 | K59: -0.8298 | M59: 1320 | N59: -0.071 | O59: 88.042 | P59: 88.113 | Q59: 0.089 | R59: 90.67 | S59: 90.581
A60: 1400 | B60: 0.9646 | C60: 1.0617 | E60: 1400 | F60: ='Pre-GS'!B61 -> 87.4201 | G60: ='Pre-VM'!B61 -> 88.3197 | H60: -0.8996 | I60: ='Pre-GS'!O61 -> 91.2497 | J60: ='Pre-VM'!O61 -> 92.0644 | K60: -0.8147 | M60: 1400 | N60: 0.065 | O60: 87.837 | P60: 87.772 | Q60: 0.247 | R60: 91.875 | S60: 91.628
A61: 1500 | B61: 1.1143 | C61: 1.0916 | E61: 1500 | F61: ='Pre-GS'!B62 -> 87.1139 | G61: ='Pre-VM'!B62 -> 88.0652 | H61: -0.9513 | I61: ='Pre-GS'!O62 -> 91.9567 | J61: ='Pre-VM'!O62 -> 92.6753 | K61: -0.7186 | M61: 1500 | N61: 0.163 | O61: 87.609 | P61: 87.446 | Q61: 0.373 | R61: 92.533 | S61: 92.16
A62: 1600 | B62: 1.2322 | C62: 1.0936 | E62: 1600 | F62: ='Pre-GS'!B63 -> 86.4228 | G62: ='Pre-VM'!B63 -> 87.4470 | H62: -1.0242 | I62: ='Pre-GS'!O63 -> 92.0809 | J62: ='Pre-VM'!O63 -> 92.6655 | K62: -0.5846 | M62: 1600 | N62: 0.208 | O62: 87.079 | P62: 86.871 | Q62: 0.509 | R62: 92.582 | S62: 92.073
A63: 1700 | B63: 1.2256 | C63: 1.0559 | E63: 1700 | F63: ='Pre-GS'!B64 -> 85.4899 | G63: ='Pre-VM'!B64 -> 86.5525 | H63: -1.0626 | I63: ='Pre-GS'!O64 -> 91.6678 | J63: ='Pre-VM'!O64 -> 92.0417 | K63: -0.3739 | M63: 1700 | N63: 0.163 | O63: 86.2 | P63: 86.037 | Q63: 0.682 | R63: 92.097 | S63: 91.415
A64: 1800 | B64: 0.9808 | C64: 0.9692 | E64: 1800 | F64: ='Pre-GS'!B65 -> 85.0018 | G64: ='Pre-VM'!B65 -> 85.9676 | H64: -0.9658 | I64: ='Pre-GS'!O65 -> 91.0963 | J64: ='Pre-VM'!O65 -> 91.1735 | K64: -0.0772 | M64: 1800 | N64: 0.015 | O64: 85.461 | P64: 85.446 | Q64: 0.892 | R64: 91.525 | S64: 90.633
A65: 1900 | B65: 0.7505 | C65: 0.8824 | E65: 1900 | F65: ='Pre-GS'!B66 -> 84.9346 | G65: ='Pre-VM'!B66 -> 85.8031 | H65: -0.8685 | I65: ='Pre-GS'!O66 -> 90.5235 | J65: ='Pre-VM'!O66 -> 90.3699 | K65: 0.1536 | M65: 1900 | N65: -0.118 | O65: 85.157 | P65: 85.275 | Q65: 1.036 | R65: 91.038 | S65: 90.002
A66: 2000 | B66: 0.6401 | C66: 0.8581 | E66: 2000 | F66: ='Pre-GS'!B67 -> 84.5532 | G66: ='Pre-VM'!B67 -> 85.3773 | H66: -0.8241 | I66: ='Pre-GS'!O67 -> 89.8950 | J66: ='Pre-VM'!O67 -> 89.6481 | K66: 0.2469 | M66: 2000 | N66: -0.184 | O66: 84.773 | P66: 84.957 | Q66: 1.105 | R66: 90.542 | S66: 89.437
A67: 2120 | B67: =N67-H67 -> 0.6046 | C67: =Q67-K67 -> 0.8813 | E67: 2120 | F67: ='Pre-GS'!B68 -> 83.5933 | G67: ='Pre-VM'!B68 -> 84.4289 | H67: =F67-G67 -> -0.8356 | I67: ='Pre-GS'!O68 -> 88.9879 | J67: ='Pre-VM'!O68 -> 88.7082 | K67: =I67-J67 -> 0.2797 | M67: 2120 | N67: =O67-P67 -> -0.231 | O67: 83.921 | P67: 84.152 | Q67: =R67-S67 -> 1.161 | R67: 89.75 | S67: 88.589
A68: 2240 | B68: 0.6590 | C68: 0.8306 | E68: 2240 | F68: ='Pre-GS'!B69 -> 81.1842 | G68: ='Pre-VM'!B69 -> 82.1092 | H68: -0.9250 | I68: ='Pre-GS'!O69 -> 87.3618 | J68: ='Pre-VM'!O69 -> 86.9974 | K68: 0.3644 | M68: 2240 | N68: -0.266 | O68: 81.958 | P68: 82.224 | Q68: 1.195 | R68: 88.129 | S68: 86.934
A69: 2360 | B69: 0.8582 | C69: 0.7043 | E69: 2360 | F69: ='Pre-GS'!B70 -> 76.2118 | G69: ='Pre-VM'!B70 -> 77.3830 | H69: -1.1712 | I69: ='Pre-GS'!O70 -> 85.3296 | J69: ='Pre-VM'!O70 -> 84.8989 | K69: 0.4307 | M69: 2360 | N69: -0.313 | O69: 77.88 | P69: 78.193 | Q69: 1.135 | R69: 85.976 | S69: 84.841
A70: 2500 | B70: 1.1031 | C70: 0.4331 | E70: 2500 | F70: ='Pre-GS'!B71 -> 69.6834 | G70: ='Pre-VM'!B71 -> 71.1215 | H70: -1.4381 | I70: ='Pre-GS'!O71 -> 83.8481 | J70: ='Pre-VM'!O71 -> 83.4742 | K70: 0.3739 | M70: 2500 | N70: -0.335 | O70: 71.679 | P70: 72.014 | Q70: 0.807 | R70: 84.336 | S70: 83.529
A71: 2650 | B71: 0.4481 | C71: 0.0158 | E71: 2650 | F71: ='Pre-GS'!B72 -> 68.5813 | G71: ='Pre-VM'!B72 -> 68.6104 | H71: -0.0291 | I71: ='Pre-GS'!O72 -> 83.1893 | J71: ='Pre-VM'!O72 -> 82.8941 | K71: 0.2952 | M71: 2650 | N71: 0.419 | O71: 70.143 | P71: 69.724 | Q71: 0.311 | R71: 83.506 | S71: 83.195
A72: 2800 | B72: 0.4158 | C72: -0.0714 | E72: 2800 | F72: ='Pre-GS'!B73 -> 69.7932 | G72: ='Pre-VM'!B73 -> 69.2550 | H72: 0.5382 | I72: ='Pre-GS'!O73 -> 82.7916 | J72: ='Pre-VM'!O73 -> 82.6482 | K72: 0.1434 | M72: 2800 | N72: 0.954 | O72: 71.05 | P72: 70.096 | Q72: 0.072 | R72: 83.128 | S72: 83.056
A73: 3000 | B73: 0.7512 | C73: 0.0552 | E73: 3000 | F73: ='Pre-GS'!B74 -> 71.4488 | G73: ='Pre-VM'!B74 -> 70.9050 | H73: 0.5438 | I73: ='Pre-GS'!O74 -> 82.3952 | J73: ='Pre-VM'!O74 -> 82.4374 | K73: -0.0422 | M73: 3000 | N73: 1.295 | O73: 71.883 | P73: 70.588 | Q73: 0.013 | R73: 82.983 | S73: 82.97
A74: 3150 | B74: 0.8030 | C74: 0.1658 | E74: 3150 | F74: ='Pre-GS'!B75 -> 73.6767 | G74: ='Pre-VM'!B75 -> 73.1927 | H74: 0.4840 | I74: ='Pre-GS'!O75 -> 82.4357 | J74: ='Pre-VM'!O75 -> 82.6625 | K74: -0.2268 | M74: 3150 | N74: 1.287 | O74: 73.422 | P74: 72.135 | Q74: -0.061 | R74: 83.24 | S74: 83.301
A75: 3350 | B75: 0.5940 | C75: 0.2830 | E75: 3350 | F75: ='Pre-GS'!B76 -> 75.1769 | G75: ='Pre-VM'!B76 -> 74.7959 | H75: 0.3810 | I75: ='Pre-GS'!O76 -> 82.5429 | J75: ='Pre-VM'!O76 -> 82.9699 | K75: -0.4270 | M75: 3350 | N75: 0.975 | O75: 74.614 | P75: 73.639 | Q75: -0.144 | R75: 83.375 | S75: 83.519
A76: 3550 | B76: 0.3139 | C76: 0.3233 | E76: 3550 | F76: ='Pre-GS'!B77 -> 76.5703 | G76: ='Pre-VM'!B77 -> 76.1552 | H76: 0.4151 | I76: ='Pre-GS'!O77 -> 82.2261 | J76: ='Pre-VM'!O77 -> 82.8454 | K76: -0.6193 | M76: 3550 | N76: 0.729 | O76: 76.402 | P76: 75.673 | Q76: -0.296 | R76: 83.12 | S76: 83.416
A77: 3750 | B77: 0.3347 | C77: 0.3772 | E77: 3750 | F77: ='Pre-GS'!B78 -> 77.6894 | G77: ='Pre-VM'!B78 -> 77.3051 | H77: 0.3843 | I77: ='Pre-GS'!O78 -> 82.4068 | J77: ='Pre-VM'!O78 -> 83.1200 | K77: -0.7132 | M77: 3750 | N77: 0.719 | O77: 77.942 | P77: 77.223 | Q77: -0.336 | R77: 83.374 | S77: 83.71
A78: 4000 | B78: 0.3719 | C78: 0.4440 | E78: 4000 | F78: ='Pre-GS'!B79 -> 79.0138 | G78: ='Pre-VM'!B79 -> 78.7647 | H78: 0.2491 | I78: ='Pre-GS'!O79 -> 83.5931 | J78: ='Pre-VM'!O79 -> 84.2651 | K78: -0.6720 | M78: 4000 | N78: 0.621 | O78: 79.373 | P78: 78.752 | Q78: -0.228 | R78: 84.482 | S78: 84.71
A79: 4250 | B79: 0.5629 | C79: 0.4815 | E79: 4250 | F79: ='Pre-GS'!B80 -> 81.5096 | G79: ='Pre-VM'!B80 -> 81.4275 | H79: 0.0821 | I79: ='Pre-GS'!O80 -> 84.6986 | J79: ='Pre-VM'!O80 -> 85.3401 | K79: -0.6415 | M79: 4250 | N79: 0.645 | O79: 82.123 | P79: 81.478 | Q79: -0.16 | R79: 85.604 | S79: 85.764
A80: 4500 | B80: 0.6660 | C80: 0.4995 | E80: 4500 | F80: ='Pre-GS'!B81 -> 83.6470 | G80: ='Pre-VM'!B81 -> 83.6390 | H80: 0.0080 | I80: ='Pre-GS'!O81 -> 85.4600 | J80: ='Pre-VM'!O81 -> 86.1015 | K80: -0.6415 | M80: 4500 | N80: 0.674 | O80: 84.553 | P80: 83.879 | Q80: -0.142 | R80: 86.374 | S80: 86.516
A81: 4750 | B81: 0.6821 | C81: 0.4725 | E81: 4750 | F81: ='Pre-GS'!B82 -> 84.5080 | G81: ='Pre-VM'!B82 -> 84.5211 | H81: -0.0131 | I81: ='Pre-GS'!O82 -> 86.1007 | J81: ='Pre-VM'!O82 -> 86.6802 | K81: -0.5795 | M81: 4750 | N81: 0.669 | O81: 85.664 | P81: 84.995 | Q81: -0.107 | R81: 86.893 | S81: 87
A82: 5000 | B82: 0.6835 | C82: 0.4766 | E82: 5000 | F82: ='Pre-GS'!B83 -> 85.1039 | G82: ='Pre-VM'!B83 -> 85.1004 | H82: 0.0035 | I82: ='Pre-GS'!O83 -> 86.1712 | J82: ='Pre-VM'!O83 -> 86.7078 | K82: -0.5366 | M82: 5000 | N82: 0.687 | O82: 86.487 | P82: 85.8 | Q82: -0.06 | R82: 86.947 | S82: 87.007
A83: 5300 | B83: 0.5849 | C83: 0.5198 | E83: 5300 | F83: ='Pre-GS'!B84 -> 85.8038 | G83: ='Pre-VM'!B84 -> 85.7067 | H83: 0.0971 | I83: ='Pre-GS'!O84 -> 86.0148 | J83: ='Pre-VM'!O84 -> 86.5836 | K83: -0.5688 | M83: 5300 | N83: 0.682 | O83: 87.09 | P83: 86.408 | Q83: -0.049 | R83: 86.876 | S83: 86.925
A84: 5600 | B84: 0.4338 | C84: 0.5307 | E84: 5600 | F84: ='Pre-GS'!B85 -> 85.9753 | G84: ='Pre-VM'!B85 -> 85.7481 | H84: 0.2272 | I84: ='Pre-GS'!O85 -> 86.3291 | J84: ='Pre-VM'!O85 -> 86.9108 | K84: -0.5817 | M84: 5600 | N84: 0.661 | O84: 86.873 | P84: 86.212 | Q84: -0.051 | R84: 87.175 | S84: 87.226
A85: 6000 | B85: 0.3253 | C85: 0.5275 | E85: 6000 | F85: ='Pre-GS'!B86 -> 86.2725 | G85: ='Pre-VM'!B86 -> 85.9328 | H85: 0.3397 | I85: ='Pre-GS'!O86 -> 86.5776 | J85: ='Pre-VM'!O86 -> 87.1521 | K85: -0.5745 | M85: 6000 | N85: 0.665 | O85: 86.889 | P85: 86.224 | Q85: -0.047 | R85: 87.405 | S85: 87.452
A86: 6300 | B86: 0.2545 | C86: 0.4659 | E86: 6300 | F86: ='Pre-GS'!B87 -> 86.6737 | G86: ='Pre-VM'!B87 -> 86.2492 | H86: 0.4245 | I86: ='Pre-GS'!O87 -> 86.7027 | J86: ='Pre-VM'!O87 -> 87.1806 | K86: -0.4779 | M86: 6300 | N86: 0.679 | O86: 87.239 | P86: 86.56 | Q86: -0.012 | R86: 87.433 | S86: 87.445
A87: 6700 | B87: 0.1647 | C87: 0.3572 | E87: 6700 | F87: ='Pre-GS'!B88 -> 86.7543 | G87: ='Pre-VM'!B88 -> 86.2390 | H87: 0.5153 | I87: ='Pre-GS'!O88 -> 86.7615 | J87: ='Pre-VM'!O88 -> 87.0567 | K87: -0.2952 | M87: 6700 | N87: 0.68 | O87: 87.39 | P87: 86.71 | Q87: 0.062 | R87: 87.315 | S87: 87.253
A88: 7100 | B88: 0.1805 | C88: 0.2982 | E88: 7100 | F88: ='Pre-GS'!B89 -> 86.9005 | G88: ='Pre-VM'!B89 -> 86.3630 | H88: 0.5375 | I88: ='Pre-GS'!O89 -> 86.9408 | J88: ='Pre-VM'!O89 -> 87.0560 | K88: -0.1152 | M88: 7100 | N88: 0.718 | O88: 87.71 | P88: 86.992 | Q88: 0.183 | R88: 87.477 | S88: 87.294
A89: 7500 | B89: 0.2235 | C89: 0.2867 | E89: 7500 | F89: ='Pre-GS'!B90 -> 87.2925 | G89: ='Pre-VM'!B90 -> 86.7850 | H89: 0.5075 | I89: ='Pre-GS'!O90 -> 87.2103 | J89: ='Pre-VM'!O90 -> 87.2220 | K89: -0.0117 | M89: 7500 | N89: 0.731 | O89: 87.847 | P89: 87.116 | Q89: 0.275 | R89: 87.807 | S89: 87.532
A90: 8000 | B90: 0.1790 | C90: 0.2980 | E90: 8000 | F90: ='Pre-GS'!B91 -> 87.6743 | G90: ='Pre-VM'!B91 -> 87.1793 | H90: 0.4950 | I90: ='Pre-GS'!O91 -> 87.3498 | J90: ='Pre-VM'!O91 -> 87.4058 | K90: -0.0560 | M90: 8000 | N90: 0.674 | O90: 87.739 | P90: 87.065 | Q90: 0.242 | R90: 88.009 | S90: 87.767
A91: 8500 | B91: 0.2090 | C91: 0.2829 | E91: 8500 | F91: ='Pre-GS'!B92 -> 87.6115 | G91: ='Pre-VM'!B92 -> 87.1305 | H91: 0.4810 | I91: ='Pre-GS'!O92 -> 87.4837 | J91: ='Pre-VM'!O92 -> 87.6196 | K91: -0.1359 | M91: 8500 | N91: 0.69 | O91: 87.682 | P91: 86.992 | Q91: 0.147 | R91: 88.183 | S91: 88.036
A92: 9000 | B92: 0.2201 | C92: 0.2242 | E92: 9000 | F92: ='Pre-GS'!B93 -> 87.5286 | G92: ='Pre-VM'!B93 -> 87.0557 | H92: 0.4729 | I92: ='Pre-GS'!O93 -> 87.5105 | J92: ='Pre-VM'!O93 -> 87.5807 | K92: -0.0702 | M92: 9000 | N92: 0.693 | O92: 87.734 | P92: 87.041 | Q92: 0.154 | R92: 88.081 | S92: 87.927
A93: 9500 | B93: 0.2003 | C93: 0.2046 | E93: 9500 | F93: ='Pre-GS'!B94 -> 88.0952 | G93: ='Pre-VM'!B94 -> 87.5735 | H93: 0.5217 | I93: ='Pre-GS'!O94 -> 87.7368 | J93: ='Pre-VM'!O94 -> 87.7154 | K93: 0.0214 | M93: 9500 | N93: 0.722 | O93: 88.204 | P93: 87.482 | Q93: 0.226 | R93: 88.292 | S93: 88.066
A94: 10000 | B94: 0.3056 | C94: 0.2632 | E94: 10000 | F94: ='Pre-GS'!B95 -> 88.6411 | G94: ='Pre-VM'!B95 -> 88.1797 | H94: 0.4614 | I94: ='Pre-GS'!O95 -> 88.3798 | J94: ='Pre-VM'!O95 -> 88.3850 | K94: -0.0052 | M94: 10000 | N94: 0.767 | O94: 88.797 | P94: 88.03 | Q94: 0.258 | R94: 89.089 | S94: 88.831
A95: 10600 | B95: 0.3292 | C95: 0.3963 | E95: 10600 | F95: ='Pre-GS'!B96 -> 89.2867 | G95: ='Pre-VM'!B96 -> 88.9849 | H95: 0.3018 | I95: ='Pre-GS'!O96 -> 89.1747 | J95: ='Pre-VM'!O96 -> 89.2980 | K95: -0.1233 | M95: 10600 | N95: 0.631 | O95: 89.538 | P95: 88.907 | Q95: 0.273 | R95: 89.997 | S95: 89.724
A96: 11200 | B96: 0.2890 | C96: 0.4910 | E96: 11200 | F96: ='Pre-GS'!B97 -> 90.4254 | G96: ='Pre-VM'!B97 -> 90.2084 | H96: 0.2170 | I96: ='Pre-GS'!O97 -> 90.0276 | J96: ='Pre-VM'!O97 -> 90.2846 | K96: -0.2570 | M96: 11200 | N96: 0.506 | O96: 90.584 | P96: 90.078 | Q96: 0.234 | R96: 90.891 | S96: 90.657
A97: 11800 | B97: 0.2460 | C97: 0.5704 | E97: 11800 | F97: ='Pre-GS'!B98 -> 91.4066 | G97: ='Pre-VM'!B98 -> 91.2446 | H97: 0.1620 | I97: ='Pre-GS'!O98 -> 90.8621 | J97: ='Pre-VM'!O98 -> 91.3245 | K97: -0.4624 | M97: 11800 | N97: 0.408 | O97: 91.402 | P97: 90.994 | Q97: 0.108 | R97: 91.778 | S97: 91.67
A98: 12500 | B98: 0.1794 | C98: 0.5757 | E98: 12500 | F98: ='Pre-GS'!B99 -> 91.7794 | G98: ='Pre-VM'!B99 -> 91.5778 | H98: 0.2016 | I98: ='Pre-GS'!O99 -> 91.1410 | J98: ='Pre-VM'!O99 -> 91.6977 | K98: -0.5567 | M98: 12500 | N98: 0.381 | O98: 91.744 | P98: 91.363 | Q98: 0.019 | R98: 92.063 | S98: 92.044
A99: 13200 | B99: 0.1136 | C99: 0.4261 | E99: 13200 | F99: ='Pre-GS'!B100 -> 91.9771 | G99: ='Pre-VM'!B100 -> 91.6847 | H99: 0.2924 | I99: ='Pre-GS'!O100 -> 91.3514 | J99: ='Pre-VM'!O100 -> 91.8175 | K99: -0.4661 | M99: 13200 | N99: 0.406 | O99: 91.924 | P99: 91.518 | Q99: -0.04 | R99: 92.188 | S99: 92.228
A100: 14000 | B100: 0.1904 | C100: 0.3930 | E100: 14000 | F100: ='Pre-GS'!B101 -> 92.1942 | G100: ='Pre-VM'!B101 -> 91.8976 | H100: 0.2966 | I100: ='Pre-GS'!O101 -> 91.8647 | J100: ='Pre-VM'!O101 -> 92.2607 | K100: -0.3960 | M100: 14000 | N100: 0.487 | O100: 92.388 | P100: 91.901 | Q100: -0.003 | R100: 92.887 | S100: 92.89
A101: 15000 | B101: 0.3780 | C101: 0.4751 | E101: 15000 | F101: ='Pre-GS'!B102 -> 92.7706 | G101: ='Pre-VM'!B102 -> 92.5706 | H101: 0.2000 | I101: ='Pre-GS'!O102 -> 92.9443 | J101: ='Pre-VM'!O102 -> 93.2164 | K101: -0.2721 | M101: 15000 | N101: 0.578 | O101: 93.548 | P101: 92.97 | Q101: 0.203 | R101: 94.283 | S101: 94.08
A102: 16000 | B102: 0.3236 | C102: 0.3821 | E102: 16000 | F102: ='Pre-GS'!B103 -> 94.0352 | G102: ='Pre-VM'!B103 -> 93.8308 | H102: 0.2044 | I102: ='Pre-GS'!O103 -> 94.2597 | J102: ='Pre-VM'!O103 -> 94.5008 | K102: -0.2411 | M102: 16000 | N102: 0.528 | O102: 94.898 | P102: 94.37 | Q102: 0.141 | R102: 95.618 | S102: 95.477
A103: 17000 | B103: 0.2370 | C103: 0.3031 | E103: 17000 | F103: ='Pre-GS'!B104 -> 94.7120 | G103: ='Pre-VM'!B104 -> 94.3940 | H103: 0.3180 | I103: ='Pre-GS'!O104 -> 94.7937 | J103: ='Pre-VM'!O104 -> 95.0468 | K103: -0.2531 | M103: 17000 | N103: 0.555 | O103: 95.464 | P103: 94.909 | Q103: 0.05 | R103: 96.116 | S103: 96.066
A104: 18000 | B104: 0.1337 | C104: 0.2044 | E104: 18000 | F104: ='Pre-GS'!B105 -> 94.4295 | G104: ='Pre-VM'!B105 -> 94.0052 | H104: 0.4243 | I104: ='Pre-GS'!O105 -> 94.5118 | J104: ='Pre-VM'!O105 -> 94.7552 | K104: -0.2434 | M104: 18000 | N104: 0.558 | O104: 95.05 | P104: 94.492 | Q104: -0.039 | R104: 95.742 | S104: 95.781
A105: 19000 | B105: -0.1552 | C105: -0.1321 | E105: 19000 | F105: ='Pre-GS'!B106 -> 93.2140 | G105: ='Pre-VM'!B106 -> 92.6218 | H105: 0.5922 | I105: ='Pre-GS'!O106 -> 93.1646 | J105: ='Pre-VM'!O106 -> 93.4285 | K105: -0.2639 | M105: 19000 | N105: 0.437 | O105: 93.548 | P105: 93.111 | Q105: -0.396 | R105: 94.086 | S105: 94.482
A106: 20000 | B106: -0.4908 | C106: -0.5743 | E106: 20000 | F106: ='Pre-GS'!B107 -> 90.3738 | G106: ='Pre-VM'!B107 -> 89.5020 | H106: 0.8718 | I106: ='Pre-GS'!O107 -> 90.3011 | J106: ='Pre-VM'!O107 -> 90.5328 | K106: -0.2317 | M106: 20000 | N106: 0.381 | O106: 90.388 | P106: 90.007 | Q106: -0.806 | R106: 90.797 | S106: 91.603
A107: 21200 | B107: -5.2728 | C107: -4.9306 | E107: 21200 | F107: ='Pre-GS'!B108 -> 81.2513 | G107: ='Pre-VM'!B108 -> 80.7275 | H107: 0.5238 | I107: ='Pre-GS'!O108 -> 82.1762 | J107: ='Pre-VM'!O108 -> 83.0876 | K107: -0.9114 | M107: 21200 | N107: -4.749 | O107: 77.296 | P107: 82.045 | Q107: -5.842 | R107: 78.943 | S107: 84.785
A108: 22400 | B108: 4.1288 | C108: -11.0784 | E108: 22400 | F108: ='Pre-GS'!B109 -> 61.2731 | G108: ='Pre-VM'!B109 -> 65.4019 | H108: -4.1288 | I108: ='Pre-GS'!O109 -> 60.1518 | J108: ='Pre-VM'!O109 -> 64.4464 | K108: -4.2946 | M108: 22400 | O108: 53.087 | P108: 67.812 | Q108: -15.373 | R108: 52.947 | S108: 68.32

Sheet Pre-GS
A1: GS | C1: GS | D1: GS | E1: GS | F1: GS | G1: GS | H1: GS | I1: GS | J1: GS | K1: GS | L1: GS | N1: GS | P1: GS | Q1: GS | R1: GS | S1: GS | T1: GS | U1: GS | V1: GS | W1: GS | X1: GS | Y1: GS
A2: Frequency | B2: DUTL Left - Means | C2: FR - Smoothed DUTL Left | D2: FR - Smoothed DUTL Left | E2: FR - Smoothed DUTL Left | F2: FR - Smoothed DUTL Left | G2: FR - Smoothed DUTL Left | H2: FR - Smoothed DUTL Left | I2: FR - Smoothed DUTL Left | J2: FR - Smoothed DUTL Left | K2: FR - Smoothed DUTL Left | L2: FR - Smoothed DUTL Left | N2: Frequency | O2: DUTL Right - Means | P2: FR - Smoothed DUTL Right | Q2: FR - Smoothed DUTL Right | R2: FR - Smoothed DUTL Right | S2: FR - Smoothed DUTL Right | T2: FR - Smoothed DUTL Right | U2: FR - Smoothed DUTL Right | V2: FR - Smoothed DUTL Right | W2: FR - Smoothed DUTL Right | X2: FR - Smoothed DUTL Right | Y2: FR - Smoothed DUTL Right
A3: 50 | B3: =AVERAGE(C3:L3) -> 84.4643 | C3: 84.395 | D3: 84.596 | E3: 84.34 | F3: 84.536 | G3: 84.323 | H3: 84.466 | I3: 84.337 | J3: 84.282 | K3: 84.498 | L3: 84.87 | N3: 50 | O3: =AVERAGE(P3:Y3) -> 85.5642 | P3: 85.437 | Q3: 85.724 | R3: 85.543 | S3: 85.661 | T3: 85.403 | U3: 85.606 | V3: 85.477 | W3: 85.399 | X3: 85.525 | Y3: 85.867
A4: 53 | B4: =AVERAGE(C4:L4) -> 87.6791 | C4: 87.552 | D4: 87.64 | E4: 87.686 | F4: 87.676 | G4: 87.577 | H4: 87.715 | I4: 87.605 | J4: 87.717 | K4: 87.811 | L4: 87.812 | N4: 53 | O4: =AVERAGE(P4:Y4) -> 88.7796 | P4: 88.64 | Q4: 88.763 | R4: 88.794 | S4: 88.812 | T4: 88.684 | U4: 88.825 | V4: 88.739 | W4: 88.804 | X4: 88.876 | Y4: 88.859
A5: 56 | B5: 89.6507 | C5: 89.58 | D5: 89.62 | E5: 89.636 | F5: 89.662 | G5: 89.626 | H5: 89.669 | I5: 89.615 | J5: 89.703 | K5: 89.732 | L5: 89.664 | N5: 56 | O5: 90.6193 | P5: 90.535 | Q5: 90.607 | R5: 90.616 | S5: 90.648 | T5: 90.603 | U5: 90.642 | V5: 90.598 | W5: 90.658 | X5: 90.68 | Y5: 90.606
A6: 60 | B6: 90.7093 | C6: 90.656 | D6: 90.682 | E6: 90.705 | F6: 90.724 | G6: 90.702 | H6: 90.714 | I6: 90.703 | J6: 90.771 | K6: 90.763 | L6: 90.673 | N6: 60 | O6: 91.7622 | P6: 91.708 | Q6: 91.749 | R6: 91.76 | S6: 91.788 | T6: 91.765 | U6: 91.766 | V6: 91.763 | W6: 91.81 | X6: 91.804 | Y6: 91.709
A7: 63 | B7: 91.3187 | C7: 91.278 | D7: 91.299 | E7: 91.321 | F7: 91.341 | G7: 91.315 | H7: 91.321 | I7: 91.326 | J7: 91.379 | K7: 91.343 | L7: 91.264 | N7: 63 | O7: 92.6333 | P7: 92.604 | Q7: 92.623 | R7: 92.63 | S7: 92.658 | T7: 92.639 | U7: 92.63 | V7: 92.643 | W7: 92.679 | X7: 92.654 | Y7: 92.573
A8: 67 | B8: 91.6277 | C8: 91.596 | D8: 91.611 | E8: 91.64 | F8: 91.654 | G8: 91.618 | H8: 91.631 | I8: 91.642 | J8: 91.682 | K8: 91.632 | L8: 91.571 | N8: 67 | O8: 93.3845 | P8: 93.373 | Q8: 93.372 | R8: 93.382 | S8: 93.407 | T8: 93.385 | U8: 93.379 | V8: 93.398 | W8: 93.426 | X8: 93.392 | Y8: 93.331
A9: 71 | B9: 91.8333 | C9: 91.808 | D9: 91.822 | E9: 91.848 | F9: 91.862 | G9: 91.824 | H9: 91.835 | I9: 91.851 | J9: 91.87 | K9: 91.825 | L9: 91.788 | N9: 71 | O9: 94.0646 | P9: 94.065 | Q9: 94.057 | R9: 94.058 | S9: 94.082 | T9: 94.066 | U9: 94.058 | V9: 94.081 | W9: 94.094 | X9: 94.061 | Y9: 94.024
A10: 75 | B10: 92.0723 | C10: 92.055 | D10: 92.066 | E10: 92.084 | F10: 92.099 | G10: 92.072 | H10: 92.072 | I10: 92.083 | J10: 92.092 | K10: 92.056 | L10: 92.044 | N10: 75 | O10: 94.6396 | P10: 94.645 | Q10: 94.637 | R10: 94.63 | S10: 94.653 | T10: 94.646 | U10: 94.636 | V10: 94.655 | W10: 94.66 | X10: 94.626 | Y10: 94.608
A11: 80 | B11: 92.3223 | C11: 92.317 | D11: 92.32 | E11: 92.328 | F11: 92.345 | G11: 92.331 | H11: 92.316 | I11: 92.328 | J11: 92.331 | K11: 92.305 | L11: 92.302 | N11: 80 | O11: 95.0403 | P11: 95.052 | Q11: 95.043 | R11: 95.028 | S11: 95.055 | T11: 95.052 | U11: 95.037 | V11: 95.061 | W11: 95.053 | X11: 95.02 | Y11: 95.002
A12: 85 | B12: 92.4889 | C12: 92.492 | D12: 92.494 | E12: 92.494 | F12: 92.503 | G12: 92.51 | H12: 92.476 | I12: 92.5 | J12: 92.485 | K12: 92.476 | L12: 92.459 | N12: 85 | O12: 95.2338 | P12: 95.25 | Q12: 95.25 | R12: 95.223 | S12: 95.249 | T12: 95.256 | U12: 95.23 | V12: 95.268 | W12: 95.231 | X12: 95.209 | Y12: 95.172
A13: 90 | B13: 92.5189 | C13: 92.522 | D13: 92.535 | E13: 92.529 | F13: 92.51 | G13: 92.553 | H13: 92.509 | I13: 92.537 | J13: 92.5 | K13: 92.511 | L13: 92.483 | N13: 90 | O13: 95.2519 | P13: 95.26 | Q13: 95.281 | R13: 95.251 | S13: 95.252 | T13: 95.285 | U13: 95.254 | V13: 95.299 | W13: 95.233 | X13: 95.228 | Y13: 95.176
A14: 95 | B14: 92.3488 | C14: 92.364 | D14: 92.362 | E14: 92.349 | F14: 92.324 | G14: 92.377 | H14: 92.341 | I14: 92.361 | J14: 92.331 | K14: 92.343 | L14: 92.336 | N14: 95 | O14: 95.1032 | P14: 95.105 | Q14: 95.133 | R14: 95.102 | S14: 95.088 | T14: 95.131 | U14: 95.106 | V14: 95.148 | W14: 95.089 | X14: 95.08 | Y14: 95.05
A15: 100 | B15: 92.0076 | C15: 92.064 | D15: 92.008 | E15: 91.987 | F15: 91.986 | G15: 92.022 | H15: 91.986 | I15: 92 | J15: 91.983 | K15: 92.002 | L15: 92.038 | N15: 100 | O15: 94.8376 | P15: 94.857 | Q15: 94.856 | R15: 94.827 | S15: 94.82 | T15: 94.849 | U15: 94.829 | V15: 94.86 | W15: 94.83 | X15: 94.816 | Y15: 94.832
A16: 106 | B16: 91.6741 | C16: 91.779 | D16: 91.666 | E16: 91.625 | F16: 91.636 | G16: 91.681 | H16: 91.631 | I16: 91.643 | J16: 91.63 | K16: 91.675 | L16: 91.775 | N16: 106 | O16: 94.5758 | P16: 94.627 | Q16: 94.581 | R16: 94.546 | S16: 94.544 | T16: 94.571 | U16: 94.551 | V16: 94.566 | W16: 94.568 | X16: 94.566 | Y16: 94.638
A17: 112 | B17: 91.3702 | C17: 91.512 | D17: 91.357 | E17: 91.294 | F17: 91.315 | G17: 91.366 | H17: 91.31 | I17: 91.32 | J17: 91.326 | K17: 91.381 | L17: 91.521 | N17: 112 | O17: 94.3213 | P17: 94.413 | Q17: 94.313 | R17: 94.27 | S17: 94.281 | T17: 94.3 | U17: 94.285 | V17: 94.283 | W17: 94.317 | X17: 94.327 | Y17: 94.424
A18: 118 | B18: 91.0049 | C18: 91.153 | D18: 91 | E18: 90.931 | F18: 90.947 | G18: 91.01 | H18: 90.95 | I18: 90.957 | J18: 90.947 | K18: 91.024 | L18: 91.13 | N18: 118 | O18: 94.0244 | P18: 94.137 | Q18: 94.019 | R18: 93.974 | S18: 93.986 | T18: 94.01 | U18: 93.994 | V18: 93.979 | W18: 93.999 | X18: 94.042 | Y18: 94.104
A19: 125 | B19: 90.5104 | C19: 90.589 | D19: 90.529 | E19: 90.467 | F19: 90.447 | G19: 90.54 | H19: 90.483 | I19: 90.487 | J19: 90.453 | K19: 90.535 | L19: 90.574 | N19: 125 | O19: 93.6454 | P19: 93.719 | Q19: 93.652 | R19: 93.619 | S19: 93.603 | T19: 93.655 | U19: 93.638 | V19: 93.62 | W19: 93.605 | X19: 93.667 | Y19: 93.676
A20: 132 | B20: 89.7304 | C20: 89.671 | D20: 89.76 | E20: 89.741 | F20: 89.713 | G20: 89.751 | H20: 89.749 | I20: 89.727 | J20: 89.728 | K20: 89.754 | L20: 89.71 | N20: 132 | O20: 93.0848 | P20: 93.063 | Q20: 93.096 | R20: 93.096 | S20: 93.068 | T20: 93.1 | U20: 93.109 | V20: 93.086 | W20: 93.072 | X20: 93.097 | Y20: 93.061
A21: 140 | B21: 88.6399 | C21: 88.45 | D21: 88.662 | E21: 88.717 | F21: 88.705 | G21: 88.629 | H21: 88.698 | I21: 88.64 | J21: 88.692 | K21: 88.661 | L21: 88.545 | N21: 140 | O21: 92.3078 | P21: 92.177 | Q21: 92.313 | R21: 92.362 | S21: 92.344 | T21: 92.307 | U21: 92.358 | V21: 92.321 | W21: 92.337 | X21: 92.312 | Y21: 92.247
A22: 150 | B22: 87.5698 | C22: 87.339 | D22: 87.574 | E22: 87.672 | F22: 87.67 | G22: 87.53 | H22: 87.623 | I22: 87.565 | J22: 87.644 | K22: 87.592 | L22: 87.489 | N22: 150 | O22: 91.4486 | P22: 91.264 | Q22: 91.439 | R22: 91.518 | S22: 91.524 | T22: 91.424 | U22: 91.497 | V22: 91.461 | W22: 91.512 | X22: 91.454 | Y22: 91.393
A23: 160 | B23: 86.9212 | C23: 86.805 | D23: 86.914 | E23: 86.985 | F23: 86.977 | G23: 86.874 | H23: 86.938 | I23: 86.91 | J23: 86.969 | K23: 86.941 | L23: 86.899 | N23: 160 | O23: 90.7002 | P23: 90.571 | Q23: 90.688 | R23: 90.747 | S23: 90.766 | T23: 90.666 | U23: 90.731 | V23: 90.706 | W23: 90.758 | X23: 90.708 | Y23: 90.661
A24: 170 | B24: 86.7807 | C24: 86.869 | D24: 86.777 | E24: 86.777 | F24: 86.746 | G24: 86.776 | H24: 86.756 | I24: 86.761 | J24: 86.752 | K24: 86.78 | L24: 86.813 | N24: 170 | O24: 90.122 | P24: 90.13 | Q24: 90.123 | R24: 90.133 | S24: 90.134 | T24: 90.107 | U24: 90.133 | V24: 90.116 | W24: 90.126 | X24: 90.123 | Y24: 90.095
A25: 180 | B25: 87.0334 | C25: 87.191 | D25: 87.035 | E25: 86.988 | F25: 86.963 | G25: 87.066 | H25: 86.989 | I25: 87.015 | J25: 86.968 | K25: 87.021 | L25: 87.098 | N25: 180 | O25: 89.7485 | P25: 89.86 | Q25: 89.761 | R25: 89.723 | S25: 89.713 | T25: 89.77 | U25: 89.74 | V25: 89.748 | W25: 89.705 | X25: 89.732 | Y25: 89.733
A26: 190 | B26: 87.3882 | C26: 87.484 | D26: 87.392 | E26: 87.357 | F26: 87.335 | G26: 87.418 | H26: 87.358 | I26: 87.372 | J26: 87.339 | K26: 87.38 | L26: 87.447 | N26: 190 | O26: 89.5156 | P26: 89.632 | Q26: 89.536 | R26: 89.479 | S26: 89.464 | T26: 89.557 | U26: 89.504 | V26: 89.53 | W26: 89.464 | X26: 89.489 | Y26: 89.501
A27: 200 | B27: 87.7098 | C27: 87.738 | D27: 87.709 | E27: 87.709 | F27: 87.68 | G27: 87.728 | H27: 87.696 | I27: 87.696 | J27: 87.684 | K27: 87.704 | L27: 87.754 | N27: 200 | O27: 89.2448 | P27: 89.301 | Q27: 89.263 | R27: 89.226 | S27: 89.21 | T27: 89.277 | U27: 89.242 | V27: 89.264 | W27: 89.215 | X27: 89.224 | Y27: 89.226
A28: 212 | B28: 88.1129 | C28: 88.109 | D28: 88.11 | E28: 88.131 | F28: 88.101 | G28: 88.116 | H28: 88.109 | I28: 88.103 | J28: 88.102 | K28: 88.104 | L28: 88.144 | N28: 212 | O28: 88.9456 | P28: 88.944 | Q28: 88.954 | R28: 88.946 | S28: 88.943 | T28: 88.955 | U28: 88.945 | V28: 88.965 | W28: 88.945 | X28: 88.932 | Y28: 88.927
A29: 224 | B29: 88.6563 | C29: 88.655 | D29: 88.658 | E29: 88.684 | F29: 88.648 | G29: 88.651 | H29: 88.659 | I29: 88.642 | J29: 88.646 | K29: 88.648 | L29: 88.672 | N29: 224 | O29: 88.7494 | P29: 88.74 | Q29: 88.757 | R29: 88.759 | S29: 88.763 | T29: 88.749 | U29: 88.748 | V29: 88.765 | W29: 88.758 | X29: 88.731 | Y29: 88.724
A30: 236 | B30: 89.3103 | C30: 89.312 | D30: 89.316 | E30: 89.342 | F30: 89.303 | G30: 89.301 | H30: 89.313 | I30: 89.286 | J30: 89.301 | K30: 89.307 | L30: 89.322 | N30: 236 | O30: 88.7644 | P30: 88.766 | Q30: 88.778 | R30: 88.778 | S30: 88.775 | T30: 88.767 | U30: 88.766 | V30: 88.776 | W30: 88.769 | X30: 88.739 | Y30: 88.73
A31: 250 | B31: 89.9557 | C31: 89.952 | D31: 89.958 | E31: 89.99 | F31: 89.956 | G31: 89.937 | H31: 89.957 | I31: 89.919 | J31: 89.95 | K31: 89.961 | L31: 89.977 | N31: 250 | O31: 88.9091 | P31: 88.915 | Q31: 88.926 | R31: 88.925 | S31: 88.915 | T31: 88.914 | U31: 88.915 | V31: 88.918 | W31: 88.914 | X31: 88.882 | Y31: 88.867
A32: 265 | B32: 90.4944 | C32: 90.488 | D32: 90.494 | E32: 90.53 | F32: 90.5 | G32: 90.472 | H32: 90.492 | I32: 90.454 | J32: 90.489 | K32: 90.503 | L32: 90.522 | N32: 265 | O32: 89.0402 | P32: 89.049 | Q32: 89.056 | R32: 89.054 | S32: 89.044 | T32: 89.046 | U32: 89.049 | V32: 89.049 | W32: 89.047 | X32: 89.014 | Y32: 88.994
A33: 280 | B33: 90.9156 | C33: 90.916 | D33: 90.916 | E33: 90.947 | F33: 90.919 | G33: 90.899 | H33: 90.91 | I33: 90.881 | J33: 90.91 | K33: 90.917 | L33: 90.941 | N33: 280 | O33: 89.1083 | P33: 89.122 | Q33: 89.126 | R33: 89.118 | S33: 89.107 | T33: 89.119 | U33: 89.116 | V33: 89.119 | W33: 89.113 | X33: 89.081 | Y33: 89.062
A34: 300 | B34: 91.2223 | C34: 91.231 | D34: 91.227 | E34: 91.249 | F34: 91.22 | G34: 91.217 | H34: 91.214 | I34: 91.195 | J34: 91.216 | K34: 91.214 | L34: 91.24 | N34: 300 | O34: 89.1153 | P34: 89.133 | Q34: 89.138 | R34: 89.123 | S34: 89.112 | T34: 89.128 | U34: 89.122 | V34: 89.127 | W34: 89.111 | X34: 89.09 | Y34: 89.069
A35: 315 | B35: 91.4425 | C35: 91.454 | D35: 91.453 | E35: 91.466 | F35: 91.436 | G35: 91.446 | H35: 91.435 | I35: 91.42 | J35: 91.437 | K35: 91.43 | L35: 91.448 | N35: 315 | O35: 89.1232 | P35: 89.142 | Q35: 89.147 | R35: 89.132 | S35: 89.123 | T35: 89.133 | U35: 89.128 | V35: 89.133 | W35: 89.115 | X35: 89.102 | Y35: 89.077
A36: 335 | B36: 91.6616 | C36: 91.675 | D36: 91.674 | E36: 91.684 | F36: 91.658 | G36: 91.668 | H36: 91.656 | I36: 91.64 | J36: 91.658 | K36: 91.648 | L36: 91.655 | N36: 335 | O36: 89.2662 | P36: 89.285 | Q36: 89.288 | R36: 89.278 | S36: 89.271 | T36: 89.271 | U36: 89.269 | V36: 89.271 | W36: 89.26 | X36: 89.248 | Y36: 89.221
A37: 355 | B37: 91.9764 | C37: 91.99 | D37: 91.989 | E37: 92 | F37: 91.979 | G37: 91.983 | H37: 91.971 | I37: 91.952 | J37: 91.974 | K37: 91.963 | L37: 91.963 | N37: 355 | O37: 89.6929 | P37: 89.71 | Q37: 89.713 | R37: 89.709 | S37: 89.701 | T37: 89.694 | U37: 89.696 | V37: 89.693 | W37: 89.689 | X37: 89.673 | Y37: 89.651
A38: 375 | B38: 92.4247 | C38: 92.441 | D38: 92.438 | E38: 92.447 | F38: 92.435 | G38: 92.431 | H38: 92.421 | I38: 92.401 | J38: 92.418 | K38: 92.408 | L38: 92.407 | N38: 375 | O38: 90.3439 | P38: 90.364 | Q38: 90.363 | R38: 90.36 | S38: 90.35 | T38: 90.347 | U38: 90.347 | V38: 90.344 | W38: 90.336 | X38: 90.318 | Y38: 90.31
A39: 400 | B39: 92.8675 | C39: 92.89 | D39: 92.885 | E39: 92.883 | F39: 92.875 | G39: 92.876 | H39: 92.865 | I39: 92.85 | J39: 92.852 | K39: 92.847 | L39: 92.852 | N39: 400 | O39: 90.99 | P39: 91.012 | Q39: 91.01 | R39: 91.001 | S39: 90.989 | T39: 90.997 | U39: 90.993 | V39: 90.991 | W39: 90.977 | X39: 90.962 | Y39: 90.968
A40: 425 | B40: 93.1285 | C40: 93.153 | D40: 93.15 | E40: 93.14 | F40: 93.126 | G40: 93.136 | H40: 93.125 | I40: 93.119 | J40: 93.105 | K40: 93.11 | L40: 93.121 | N40: 425 | O40: 91.4647 | P40: 91.482 | Q40: 91.482 | R40: 91.478 | S40: 91.46 | T40: 91.467 | U40: 91.467 | V40: 91.465 | W40: 91.448 | X40: 91.443 | Y40: 91.455
A41: 450 | B41: 93.1252 | C41: 93.142 | D41: 93.144 | E41: 93.139 | F41: 93.118 | G41: 93.124 | H41: 93.121 | I41: 93.121 | J41: 93.102 | K41: 93.115 | L41: 93.126 | N41: 450 | O41: 91.6861 | P41: 91.691 | Q41: 91.699 | R41: 91.709 | S41: 91.686 | T41: 91.678 | U41: 91.686 | V41: 91.685 | W41: 91.671 | X41: 91.676 | Y41: 91.68
A42: 475 | B42: 92.8184 | C42: 92.823 | D42: 92.835 | E42: 92.843 | F42: 92.818 | G42: 92.809 | H42: 92.815 | I42: 92.811 | J42: 92.801 | K42: 92.815 | L42: 92.814 | N42: 475 | O42: 91.6752 | P42: 91.672 | Q42: 91.687 | R42: 91.712 | S42: 91.69 | T42: 91.662 | U42: 91.676 | V42: 91.666 | W42: 91.666 | X42: 91.668 | Y42: 91.653
A43: 500 | B43: 92.362 | C43: 92.359 | D43: 92.378 | E43: 92.4 | F43: 92.38 | G43: 92.351 | H43: 92.362 | I43: 92.343 | J43: 92.353 | K43: 92.356 | L43: 92.338 | N43: 500 | O43: 91.5966 | P43: 91.593 | Q43: 91.609 | R43: 91.639 | S43: 91.626 | T43: 91.59 | U43: 91.601 | V43: 91.582 | W43: 91.592 | X43: 91.582 | Y43: 91.552
A44: 530 | B44: 92.0216 | C44: 92.017 | D44: 92.032 | E44: 92.065 | F44: 92.052 | G44: 92.015 | H44: 92.023 | I44: 91.994 | J44: 92.021 | K44: 92.01 | L44: 91.987 | N44: 530 | O44: 91.6135 | P44: 91.618 | Q44: 91.626 | R44: 91.646 | S44: 91.642 | T44: 91.618 | U44: 91.619 | V44: 91.605 | W44: 91.608 | X44: 91.59 | Y44: 91.563
A45: 560 | B45: 91.8441 | C45: 91.846 | D45: 91.854 | E45: 91.88 | F45: 91.871 | G45: 91.845 | H45: 91.843 | I45: 91.818 | J45: 91.842 | K45: 91.827 | L45: 91.815 | N45: 560 | O45: 91.7071 | P45: 91.724 | Q45: 91.723 | R45: 91.722 | S45: 91.725 | T45: 91.724 | U45: 91.714 | V45: 91.71 | W45: 91.699 | X45: 91.673 | Y45: 91.657
A46: 600 | B46: 91.6809 | C46: 91.691 | D46: 91.691 | E46: 91.7 | F46: 91.693 | G46: 91.689 | H46: 91.676 | I46: 91.664 | J46: 91.672 | K46: 91.663 | L46: 91.67 | N46: 600 | O46: 91.7595 | P46: 91.781 | Q46: 91.775 | R46: 91.759 | S46: 91.762 | T46: 91.779 | U46: 91.765 | V46: 91.776 | W46: 91.749 | X46: 91.728 | Y46: 91.721
A47: 630 | B47: 91.2522 | C47: 91.262 | D47: 91.257 | E47: 91.261 | F47: 91.248 | G47: 91.256 | H47: 91.242 | I47: 91.247 | J47: 91.239 | K47: 91.243 | L47: 91.267 | N47: 630 | O47: 91.6686 | P47: 91.686 | Q47: 91.682 | R47: 91.665 | S47: 91.663 | T47: 91.68 | U47: 91.672 | V47: 91.693 | W47: 91.659 | X47: 91.645 | Y47: 91.641
A48: 670 | B48: 90.3177 | C48: 90.323 | D48: 90.32 | E48: 90.328 | F48: 90.313 | G48: 90.314 | H48: 90.307 | I48: 90.314 | J48: 90.303 | K48: 90.314 | L48: 90.341 | N48: 670 | O48: 91.3929 | P48: 91.404 | Q48: 91.407 | R48: 91.397 | S48: 91.392 | T48: 91.399 | U48: 91.396 | V48: 91.413 | W48: 91.387 | X48: 91.372 | Y48: 91.362
A49: 710 | B49: 88.7843 | C49: 88.791 | D49: 88.788 | E49: 88.799 | F49: 88.791 | G49: 88.781 | H49: 88.778 | I49: 88.771 | J49: 88.769 | K49: 88.775 | L49: 88.8 | N49: 710 | O49: 90.951 | P49: 90.959 | Q49: 90.966 | R49: 90.961 | S49: 90.956 | T49: 90.955 | U49: 90.955 | V49: 90.963 | W49: 90.947 | X49: 90.931 | Y49: 90.917
A50: 750 | B50: 86.7425 | C50: 86.755 | D50: 86.745 | E50: 86.765 | F50: 86.753 | G50: 86.737 | H50: 86.741 | I50: 86.718 | J50: 86.729 | K50: 86.727 | L50: 86.755 | N50: 750 | O50: 90.4647 | P50: 90.474 | Q50: 90.48 | R50: 90.476 | S50: 90.471 | T50: 90.469 | U50: 90.469 | V50: 90.471 | W50: 90.46 | X50: 90.445 | Y50: 90.432
A51: 800 | B51: 85.4072 | C51: 85.429 | D51: 85.411 | E51: 85.437 | F51: 85.406 | G51: 85.396 | H51: 85.407 | I51: 85.376 | J51: 85.402 | K51: 85.391 | L51: 85.417 | N51: 800 | O51: 90.2389 | P51: 90.253 | Q51: 90.256 | R51: 90.247 | S51: 90.242 | T51: 90.243 | U51: 90.242 | V51: 90.243 | W51: 90.234 | X51: 90.221 | Y51: 90.208
A52: 850 | B52: 86.6724 | C52: 86.698 | D52: 86.684 | E52: 86.691 | F52: 86.661 | G52: 86.669 | H52: 86.671 | I52: 86.644 | J52: 86.671 | K52: 86.662 | L52: 86.673 | N52: 850 | O52: 90.413 | P52: 90.432 | Q52: 90.431 | R52: 90.414 | S52: 90.412 | T52: 90.418 | U52: 90.416 | V52: 90.417 | W52: 90.408 | X52: 90.398 | Y52: 90.384
A53: 900 | B53: 88.6309 | C53: 88.655 | D53: 88.648 | E53: 88.642 | F53: 88.62 | G53: 88.634 | H53: 88.627 | I53: 88.61 | J53: 88.626 | K53: 88.621 | L53: 88.626 | N53: 900 | O53: 90.7413 | P53: 90.761 | Q53: 90.759 | R53: 90.738 | S53: 90.737 | T53: 90.748 | U53: 90.743 | V53: 90.747 | W53: 90.736 | X53: 90.729 | Y53: 90.715
A54: 950 | B54: 89.8204 | C54: 89.841 | D54: 89.839 | E54: 89.828 | F54: 89.813 | G54: 89.826 | H54: 89.816 | I54: 89.804 | J54: 89.813 | K54: 89.81 | L54: 89.814 | N54: 950 | O54: 90.9078 | P54: 90.926 | Q54: 90.923 | R54: 90.904 | S54: 90.903 | T54: 90.913 | U54: 90.909 | V54: 90.912 | W54: 90.903 | X54: 90.899 | Y54: 90.886
A55: 1000 | B55: 90.2019 | C55: 90.217 | D55: 90.219 | E55: 90.207 | F55: 90.198 | G55: 90.208 | H55: 90.198 | I55: 90.19 | J55: 90.194 | K55: 90.192 | L55: 90.196 | N55: 1000 | O55: 90.7433 | P55: 90.757 | Q55: 90.755 | R55: 90.739 | S55: 90.738 | T55: 90.747 | U55: 90.744 | V55: 90.747 | W55: 90.739 | X55: 90.738 | Y55: 90.729
A56: 1060 | B56: 89.8241 | C56: 89.831 | D56: 89.838 | E56: 89.829 | F56: 89.823 | G56: 89.829 | H56: 89.82 | I56: 89.816 | J56: 89.817 | K56: 89.814 | L56: 89.824 | N56: 1060 | O56: 90.1648 | P56: 90.171 | Q56: 90.172 | R56: 90.16 | S56: 90.16 | T56: 90.167 | U56: 90.166 | V56: 90.17 | W56: 90.162 | X56: 90.162 | Y56: 90.158
A57: 1120 | B57: 88.8919 | C57: 88.889 | D57: 88.899 | E57: 88.896 | F57: 88.894 | G57: 88.894 | H57: 88.887 | I57: 88.886 | J57: 88.886 | K57: 88.885 | L57: 88.903 | N57: 1120 | O57: 89.3594 | P57: 89.36 | Q57: 89.363 | R57: 89.352 | S57: 89.353 | T57: 89.362 | U57: 89.363 | V57: 89.368 | W57: 89.36 | X57: 89.357 | Y57: 89.356
A58: 1180 | B58: 87.988 | C58: 87.975 | D58: 87.983 | E58: 87.994 | F58: 87.986 | G58: 87.984 | H58: 87.983 | I58: 87.978 | J58: 87.988 | K58: 87.992 | L58: 88.017 | N58: 1180 | O58: 88.8043 | P58: 88.799 | Q58: 88.803 | R58: 88.791 | S58: 88.794 | T58: 88.81 | U58: 88.81 | V58: 88.821 | W58: 88.81 | X58: 88.802 | Y58: 88.803
A59: 1250 | B59: 87.6145 | C59: 87.591 | D59: 87.596 | E59: 87.619 | F59: 87.604 | G59: 87.603 | H59: 87.612 | I59: 87.596 | J59: 87.622 | K59: 87.631 | L59: 87.671 | N59: 1250 | O59: 88.9604 | P59: 88.958 | Q59: 88.962 | R59: 88.94 | S59: 88.945 | T59: 88.97 | U59: 88.967 | V59: 88.982 | W59: 88.969 | X59: 88.957 | Y59: 88.954
A60: 1320 | B60: 87.5311 | C60: 87.512 | D60: 87.509 | E60: 87.529 | F60: 87.516 | G60: 87.515 | H60: 87.533 | I60: 87.505 | J60: 87.537 | K60: 87.552 | L60: 87.603 | N60: 1320 | O60: 90.0562 | P60: 90.06 | Q60: 90.059 | R60: 90.033 | S60: 90.039 | T60: 90.064 | U60: 90.061 | V60: 90.076 | W60: 90.065 | X60: 90.056 | Y60: 90.049
A61: 1400 | B61: 87.4201 | C61: 87.411 | D61: 87.402 | E61: 87.412 | F61: 87.403 | G61: 87.404 | H61: 87.426 | I61: 87.389 | J61: 87.42 | K61: 87.439 | L61: 87.495 | N61: 1400 | O61: 91.2497 | P61: 91.251 | Q61: 91.249 | R61: 91.223 | S61: 91.232 | T61: 91.256 | U61: 91.254 | V61: 91.269 | W61: 91.26 | X61: 91.254 | Y61: 91.249
A62: 1500 | B62: 87.1139 | C62: 87.111 | D62: 87.098 | E62: 87.091 | F62: 87.102 | G62: 87.101 | H62: 87.123 | I62: 87.085 | J62: 87.106 | K62: 87.131 | L62: 87.191 | N62: 1500 | O62: 91.9567 | P62: 91.954 | Q62: 91.954 | R62: 91.926 | S62: 91.938 | T62: 91.964 | U62: 91.962 | V62: 91.979 | W62: 91.969 | X62: 91.962 | Y62: 91.959
A63: 1600 | B63: 86.4228 | C63: 86.431 | D63: 86.413 | E63: 86.392 | F63: 86.417 | G63: 86.411 | H63: 86.431 | I63: 86.395 | J63: 86.403 | K63: 86.436 | L63: 86.499 | N63: 1600 | O63: 92.0809 | P63: 92.074 | Q63: 92.076 | R63: 92.046 | S63: 92.061 | T63: 92.09 | U63: 92.087 | V63: 92.11 | W63: 92.097 | X63: 92.086 | Y63: 92.082
A64: 1700 | B64: 85.4899 | C64: 85.499 | D64: 85.48 | E64: 85.462 | F64: 85.481 | G64: 85.471 | H64: 85.495 | I64: 85.458 | J64: 85.469 | K64: 85.51 | L64: 85.574 | N64: 1700 | O64: 91.6678 | P64: 91.658 | Q64: 91.663 | R64: 91.628 | S64: 91.648 | T64: 91.681 | U64: 91.676 | V64: 91.708 | W64: 91.688 | X64: 91.669 | Y64: 91.659
A65: 1800 | B65: 85.0018 | C65: 85 | D65: 84.984 | E65: 84.987 | F65: 84.98 | G65: 84.966 | H65: 84.998 | I65: 84.957 | J65: 84.991 | K65: 85.041 | L65: 85.114 | N65: 1800 | O65: 91.0963 | P65: 91.092 | Q65: 91.099 | R65: 91.056 | S65: 91.079 | T65: 91.115 | U65: 91.106 | V65: 91.149 | W65: 91.118 | X65: 91.086 | Y65: 91.063
A66: 1900 | B66: 84.9346 | C66: 84.929 | D66: 84.919 | E66: 84.94 | F66: 84.907 | G66: 84.886 | H66: 84.923 | I66: 84.873 | J66: 84.927 | K66: 84.981 | L66: 85.061 | N66: 1900 | O66: 90.5235 | P66: 90.53 | Q66: 90.537 | R66: 90.488 | S66: 90.513 | T66: 90.546 | U66: 90.533 | V66: 90.583 | W66: 90.543 | X66: 90.501 | Y66: 90.461
A67: 2000 | B67: 84.5532 | C67: 84.546 | D67: 84.541 | E67: 84.573 | F67: 84.525 | G67: 84.501 | H67: 84.54 | I67: 84.481 | J67: 84.549 | K67: 84.599 | L67: 84.677 | N67: 2000 | O67: 89.895 | P67: 89.912 | Q67: 89.919 | R67: 89.867 | S67: 89.893 | T67: 89.923 | U67: 89.905 | V67: 89.956 | W67: 89.91 | X67: 89.861 | Y67: 89.804
A68: 2120 | B68: =AVERAGE(C68:L68) -> 83.5933 | C68: 83.589 | D68: 83.584 | E68: 83.616 | F68: 83.57 | G68: 83.544 | H68: 83.581 | I68: 83.517 | J68: 83.587 | K68: 83.634 | L68: 83.711 | N68: 2120 | O68: =AVERAGE(P68:Y68) -> 88.9879 | P68: 89.018 | Q68: 89.024 | R68: 88.966 | S68: 88.992 | T68: 89.022 | U68: 88.998 | V68: 89.052 | W68: 88.997 | X68: 88.941 | Y68: 88.869
A69: 2240 | B69: 81.1842 | C69: 81.184 | D69: 81.177 | E69: 81.214 | F69: 81.171 | G69: 81.136 | H69: 81.175 | I69: 81.096 | J69: 81.171 | K69: 81.22 | L69: 81.298 | N69: 2240 | O69: 87.3618 | P69: 87.408 | Q69: 87.413 | R69: 87.34 | S69: 87.369 | T69: 87.407 | U69: 87.376 | V69: 87.44 | W69: 87.369 | X69: 87.295 | Y69: 87.201
A70: 2360 | B70: 76.2118 | C70: 76.223 | D70: 76.202 | E70: 76.267 | F70: 76.209 | G70: 76.152 | H70: 76.211 | I70: 76.073 | J70: 76.186 | K70: 76.254 | L70: 76.341 | N70: 2360 | O70: 85.3296 | P70: 85.397 | Q70: 85.397 | R70: 85.299 | S70: 85.337 | T70: 85.395 | U70: 85.349 | V70: 85.435 | W70: 85.339 | X70: 85.237 | Y70: 85.111
A71: 2500 | B71: 69.6834 | C71: 69.77 | D71: 69.682 | E71: 69.741 | F71: 69.676 | G71: 69.633 | H71: 69.692 | I71: 69.442 | J71: 69.618 | K71: 69.722 | L71: 69.858 | N71: 2500 | O71: 83.8481 | P71: 83.926 | Q71: 83.919 | R71: 83.812 | S71: 83.85 | T71: 83.923 | U71: 83.869 | V71: 83.975 | W71: 83.865 | X71: 83.745 | Y71: 83.597
A72: 2650 | B72: 68.5813 | C72: 68.689 | D72: 68.664 | E72: 68.678 | F72: 68.541 | G72: 68.551 | H72: 68.563 | I72: 68.453 | J72: 68.544 | K72: 68.562 | L72: 68.568 | N72: 2650 | O72: 83.1893 | P72: 83.257 | Q72: 83.251 | R72: 83.153 | S72: 83.19 | T72: 83.264 | U72: 83.214 | V72: 83.327 | W72: 83.213 | X72: 83.088 | Y72: 82.936
A73: 2800 | B73: 69.7932 | C73: 69.881 | D73: 69.931 | E73: 69.943 | F73: 69.723 | G73: 69.728 | H73: 69.743 | I73: 69.718 | J73: 69.775 | K73: 69.799 | L73: 69.691 | N73: 2800 | O73: 82.7916 | P73: 82.845 | Q73: 82.844 | R73: 82.758 | S73: 82.801 | T73: 82.868 | U73: 82.822 | V73: 82.931 | W73: 82.82 | X73: 82.689 | Y73: 82.538
A74: 3000 | B74: 71.4488 | C74: 71.51 | D74: 71.584 | E74: 71.588 | F74: 71.35 | G74: 71.355 | H74: 71.367 | I74: 71.394 | J74: 71.445 | K74: 71.534 | L74: 71.361 | N74: 3000 | O74: 82.3952 | P74: 82.438 | Q74: 82.443 | R74: 82.37 | S74: 82.411 | T74: 82.467 | U74: 82.429 | V74: 82.525 | W74: 82.42 | X74: 82.294 | Y74: 82.155
A75: 3150 | B75: 73.6767 | C75: 73.716 | D75: 73.775 | E75: 73.755 | F75: 73.599 | G75: 73.618 | H75: 73.615 | I75: 73.668 | J75: 73.684 | K75: 73.752 | L75: 73.585 | N75: 3150 | O75: 82.4357 | P75: 82.471 | Q75: 82.475 | R75: 82.43 | S75: 82.457 | T75: 82.493 | U75: 82.47 | V75: 82.537 | W75: 82.448 | X75: 82.339 | Y75: 82.237
A76: 3350 | B76: 75.1769 | C76: 75.202 | D76: 75.244 | E76: 75.208 | F76: 75.133 | G76: 75.156 | H76: 75.145 | I76: 75.189 | J76: 75.186 | K76: 75.222 | L76: 75.084 | N76: 3350 | O76: 82.5429 | P76: 82.57 | Q76: 82.571 | R76: 82.547 | S76: 82.56 | T76: 82.585 | U76: 82.569 | V76: 82.609 | W76: 82.547 | X76: 82.468 | Y76: 82.403
A77: 3550 | B77: 76.5703 | C77: 76.585 | D77: 76.608 | E77: 76.567 | F77: 76.546 | G77: 76.572 | H77: 76.557 | I77: 76.596 | J77: 76.586 | K77: 76.603 | L77: 76.483 | N77: 3550 | O77: 82.2261 | P77: 82.246 | Q77: 82.242 | R77: 82.233 | S77: 82.232 | T77: 82.25 | U77: 82.24 | V77: 82.259 | W77: 82.219 | X77: 82.188 | Y77: 82.152
A78: 3750 | B78: 77.6894 | C78: 77.72 | D78: 77.734 | E78: 77.696 | F78: 77.697 | G78: 77.718 | H78: 77.699 | I78: 77.745 | J78: 77.698 | K78: 77.656 | L78: 77.531 | N78: 3750 | O78: 82.4068 | P78: 82.423 | Q78: 82.412 | R78: 82.426 | S78: 82.406 | T78: 82.409 | U78: 82.407 | V78: 82.395 | W78: 82.388 | X78: 82.401 | Y78: 82.401
A79: 4000 | B79: 79.0138 | C79: 79.072 | D79: 79.075 | E79: 79.059 | F79: 79.05 | G79: 79.049 | H79: 79.041 | I79: 79.071 | J79: 79.012 | K79: 78.906 | L79: 78.803 | N79: 4000 | O79: 83.5931 | P79: 83.604 | Q79: 83.592 | R79: 83.618 | S79: 83.588 | T79: 83.584 | U79: 83.584 | V79: 83.554 | W79: 83.573 | X79: 83.609 | Y79: 83.625
A80: 4250 | B80: 81.5096 | C80: 81.565 | D80: 81.552 | E80: 81.554 | F80: 81.527 | G80: 81.526 | H80: 81.521 | I80: 81.513 | J80: 81.503 | K80: 81.445 | L80: 81.39 | N80: 4250 | O80: 84.6986 | P80: 84.71 | Q80: 84.701 | R80: 84.722 | S80: 84.692 | T80: 84.689 | U80: 84.688 | V80: 84.659 | W80: 84.68 | X80: 84.715 | Y80: 84.73
A81: 4500 | B81: 83.647 | C81: 83.696 | D81: 83.674 | E81: 83.673 | F81: 83.654 | G81: 83.664 | H81: 83.65 | I81: 83.63 | J81: 83.639 | K81: 83.608 | L81: 83.582 | N81: 4500 | O81: 85.46 | P81: 85.471 | Q81: 85.463 | R81: 85.486 | S81: 85.455 | T81: 85.447 | U81: 85.451 | V81: 85.411 | W81: 85.439 | X81: 85.474 | Y81: 85.503
A82: 4750 | B82: 84.508 | C82: 84.549 | D82: 84.529 | E82: 84.527 | F82: 84.51 | G82: 84.52 | H82: 84.504 | I82: 84.478 | J82: 84.504 | K82: 84.486 | L82: 84.473 | N82: 4750 | O82: 86.1007 | P82: 86.11 | Q82: 86.104 | R82: 86.128 | S82: 86.098 | T82: 86.086 | U82: 86.093 | V82: 86.05 | W82: 86.078 | X82: 86.109 | Y82: 86.151
A83: 5000 | B83: 85.1039 | C83: 85.13 | D83: 85.118 | E83: 85.124 | F83: 85.105 | G83: 85.109 | H83: 85.092 | I83: 85.062 | J83: 85.098 | K83: 85.1 | L83: 85.101 | N83: 5000 | O83: 86.1712 | P83: 86.178 | Q83: 86.176 | R83: 86.207 | S83: 86.171 | T83: 86.152 | U83: 86.16 | V83: 86.114 | W83: 86.145 | X83: 86.178 | Y83: 86.231
A84: 5300 | B84: 85.8038 | C84: 85.821 | D84: 85.812 | E84: 85.817 | F84: 85.81 | G84: 85.815 | H84: 85.795 | I84: 85.764 | J84: 85.785 | K84: 85.808 | L84: 85.811 | N84: 5300 | O84: 86.0148 | P84: 86.01 | Q84: 86.01 | R84: 86.071 | S84: 86.016 | T84: 85.978 | U84: 85.996 | V84: 85.921 | W84: 85.983 | X84: 86.041 | Y84: 86.122
A85: 5600 | B85: 85.9753 | C85: 85.994 | D85: 85.985 | E85: 85.986 | F85: 85.988 | G85: 85.997 | H85: 85.974 | I85: 85.941 | J85: 85.945 | K85: 85.974 | L85: 85.969 | N85: 5600 | O85: 86.3291 | P85: 86.318 | Q85: 86.322 | R85: 86.389 | S85: 86.331 | T85: 86.292 | U85: 86.31 | V85: 86.239 | W85: 86.302 | X85: 86.359 | Y85: 86.429
A86: 6000 | B86: 86.2725 | C86: 86.295 | D86: 86.286 | E86: 86.28 | F86: 86.294 | G86: 86.312 | H86: 86.279 | I86: 86.256 | J86: 86.241 | K86: 86.248 | L86: 86.234 | N86: 6000 | O86: 86.5776 | P86: 86.566 | Q86: 86.579 | R86: 86.624 | S86: 86.577 | T86: 86.557 | U86: 86.566 | V86: 86.526 | W86: 86.563 | X86: 86.595 | Y86: 86.623
A87: 6300 | B87: 86.6737 | C87: 86.7 | D87: 86.689 | E87: 86.671 | F87: 86.699 | G87: 86.731 | H87: 86.687 | I87: 86.682 | J87: 86.661 | K87: 86.62 | L87: 86.597 | N87: 6300 | O87: 86.7027 | P87: 86.697 | Q87: 86.716 | R87: 86.734 | S87: 86.698 | T87: 86.701 | U87: 86.703 | V87: 86.695 | W87: 86.697 | X87: 86.699 | Y87: 86.687
A88: 6700 | B88: 86.7543 | C88: 86.792 | D88: 86.779 | E88: 86.753 | F88: 86.789 | G88: 86.829 | H88: 86.778 | I88: 86.797 | J88: 86.767 | K88: 86.649 | L88: 86.61 | N88: 6700 | O88: 86.7615 | P88: 86.764 | Q88: 86.787 | R88: 86.775 | S88: 86.755 | T88: 86.78 | U88: 86.771 | V88: 86.803 | W88: 86.762 | X88: 86.735 | Y88: 86.683
A89: 7100 | B89: 86.9005 | C89: 86.943 | D89: 86.924 | E89: 86.907 | F89: 86.939 | G89: 86.975 | H89: 86.929 | I89: 86.947 | J89: 86.912 | K89: 86.783 | L89: 86.746 | N89: 7100 | O89: 86.9408 | P89: 86.949 | Q89: 86.974 | R89: 86.944 | S89: 86.927 | T89: 86.967 | U89: 86.949 | V89: 87.001 | W89: 86.943 | X89: 86.91 | Y89: 86.844
A90: 7500 | B90: 87.2925 | C90: 87.332 | D90: 87.308 | E90: 87.303 | F90: 87.319 | G90: 87.35 | H90: 87.318 | I90: 87.314 | J90: 87.295 | K90: 87.204 | L90: 87.182 | N90: 7500 | O90: 87.2103 | P90: 87.225 | Q90: 87.245 | R90: 87.212 | S90: 87.192 | T90: 87.236 | U90: 87.215 | V90: 87.266 | W90: 87.207 | X90: 87.183 | Y90: 87.122
A91: 8000 | B91: 87.6743 | C91: 87.713 | D91: 87.687 | E91: 87.685 | F91: 87.692 | G91: 87.718 | H91: 87.699 | I91: 87.682 | J91: 87.67 | K91: 87.606 | L91: 87.591 | N91: 8000 | O91: 87.3498 | P91: 87.363 | Q91: 87.378 | R91: 87.355 | S91: 87.329 | T91: 87.368 | U91: 87.35 | V91: 87.383 | W91: 87.341 | X91: 87.333 | Y91: 87.298
A92: 8500 | B92: 87.6115 | C92: 87.647 | D92: 87.618 | E92: 87.62 | F92: 87.617 | G92: 87.642 | H92: 87.633 | I92: 87.597 | J92: 87.598 | K92: 87.573 | L92: 87.57 | N92: 8500 | O92: 87.4837 | P92: 87.492 | Q92: 87.505 | R92: 87.497 | S92: 87.466 | T92: 87.491 | U92: 87.482 | V92: 87.494 | W92: 87.468 | X92: 87.475 | Y92: 87.467
A93: 9000 | B93: 87.5286 | C93: 87.558 | D93: 87.534 | E93: 87.539 | F93: 87.526 | G93: 87.544 | H93: 87.546 | I93: 87.507 | J93: 87.522 | K93: 87.502 | L93: 87.508 | N93: 9000 | O93: 87.5105 | P93: 87.519 | Q93: 87.533 | R93: 87.53 | S93: 87.498 | T93: 87.518 | U93: 87.514 | V93: 87.517 | W93: 87.492 | X93: 87.494 | Y93: 87.49
A94: 9500 | B94: 88.0952 | C94: 88.125 | D94: 88.098 | E94: 88.098 | F94: 88.092 | G94: 88.106 | H94: 88.11 | I94: 88.081 | J94: 88.094 | K94: 88.072 | L94: 88.076 | N94: 9500 | O94: 87.7368 | P94: 87.741 | Q94: 87.751 | R94: 87.769 | S94: 87.728 | T94: 87.735 | U94: 87.736 | V94: 87.713 | W94: 87.712 | X94: 87.731 | Y94: 87.752
A95: 10000 | B95: 88.6411 | C95: 88.669 | D95: 88.638 | E95: 88.64 | F95: 88.637 | G95: 88.646 | H95: 88.656 | I95: 88.624 | J95: 88.641 | K95: 88.628 | L95: 88.632 | N95: 10000 | O95: 88.3798 | P95: 88.379 | Q95: 88.388 | R95: 88.421 | S95: 88.375 | T95: 88.37 | U95: 88.374 | V95: 88.338 | W95: 88.357 | X95: 88.382 | Y95: 88.414
A96: 10600 | B96: 89.2867 | C96: 89.305 | D96: 89.284 | E96: 89.29 | F96: 89.284 | G96: 89.284 | H96: 89.299 | I96: 89.274 | J96: 89.291 | K96: 89.275 | L96: 89.281 | N96: 10600 | O96: 89.1747 | P96: 89.174 | Q96: 89.181 | R96: 89.216 | S96: 89.171 | T96: 89.164 | U96: 89.171 | V96: 89.136 | W96: 89.158 | X96: 89.174 | Y96: 89.202
A97: 11200 | B97: 90.4254 | C97: 90.442 | D97: 90.42 | E97: 90.423 | F97: 90.42 | G97: 90.423 | H97: 90.434 | I97: 90.405 | J97: 90.436 | K97: 90.419 | L97: 90.432 | N97: 11200 | O97: 90.0276 | P97: 90.032 | Q97: 90.034 | R97: 90.065 | S97: 90.023 | T97: 90.018 | U97: 90.023 | V97: 89.989 | W97: 90.013 | X97: 90.027 | Y97: 90.052
A98: 11800 | B98: 91.4066 | C98: 91.417 | D98: 91.401 | E98: 91.411 | F98: 91.406 | G98: 91.406 | H98: 91.415 | I98: 91.394 | J98: 91.424 | K98: 91.389 | L98: 91.403 | N98: 11800 | O98: 90.8621 | P98: 90.865 | Q98: 90.867 | R98: 90.899 | S98: 90.86 | T98: 90.85 | U98: 90.858 | V98: 90.823 | W98: 90.851 | X98: 90.861 | Y98: 90.887
A99: 12500 | B99: 91.7794 | C99: 91.787 | D99: 91.779 | E99: 91.793 | F99: 91.783 | G99: 91.781 | H99: 91.785 | I99: 91.776 | J99: 91.797 | K99: 91.749 | L99: 91.764 | N99: 12500 | O99: 91.141 | P99: 91.139 | Q99: 91.141 | R99: 91.18 | S99: 91.143 | T99: 91.124 | U99: 91.137 | V99: 91.099 | W99: 91.128 | X99: 91.142 | Y99: 91.177
A100: 13200 | B100: 91.9771 | C100: 91.998 | D100: 91.982 | E100: 91.987 | F100: 91.978 | G100: 91.979 | H100: 91.976 | I100: 91.964 | J100: 91.992 | K100: 91.949 | L100: 91.966 | N100: 13200 | O100: 91.3514 | P100: 91.359 | Q100: 91.357 | R100: 91.385 | S100: 91.358 | T100: 91.34 | U100: 91.347 | V100: 91.312 | W100: 91.338 | X100: 91.349 | Y100: 91.369
A101: 14000 | B101: 92.1942 | C101: 92.225 | D101: 92.211 | E101: 92.211 | F101: 92.197 | G101: 92.2 | H101: 92.187 | I101: 92.187 | J101: 92.208 | K101: 92.154 | L101: 92.162 | N101: 14000 | O101: 91.8647 | P101: 91.883 | Q101: 91.877 | R101: 91.897 | S101: 91.88 | T101: 91.859 | U101: 91.861 | V101: 91.828 | W101: 91.852 | X101: 91.854 | Y101: 91.856
A102: 15000 | B102: 92.7706 | C102: 92.816 | D102: 92.801 | E102: 92.794 | F102: 92.774 | G102: 92.782 | H102: 92.756 | I102: 92.762 | J102: 92.783 | K102: 92.72 | L102: 92.718 | N102: 15000 | O102: 92.9443 | P102: 92.975 | Q102: 92.964 | R102: 92.978 | S102: 92.966 | T102: 92.948 | U102: 92.939 | V102: 92.905 | W102: 92.929 | X102: 92.925 | Y102: 92.914
A103: 16000 | B103: 94.0352 | C103: 94.084 | D103: 94.063 | E103: 94.05 | F103: 94.033 | G103: 94.047 | H103: 94.016 | I103: 94.017 | J103: 94.048 | K103: 93.995 | L103: 93.999 | N103: 16000 | O103: 94.2597 | P103: 94.288 | Q103: 94.274 | R103: 94.296 | S103: 94.276 | T103: 94.263 | U103: 94.25 | V103: 94.202 | W103: 94.243 | X103: 94.248 | Y103: 94.257
A104: 17000 | B104: 94.712 | C104: 94.756 | D104: 94.74 | E104: 94.718 | F104: 94.712 | G104: 94.72 | H104: 94.693 | I104: 94.695 | J104: 94.727 | K104: 94.672 | L104: 94.687 | N104: 17000 | O104: 94.7937 | P104: 94.813 | Q104: 94.804 | R104: 94.829 | S104: 94.807 | T104: 94.784 | U104: 94.779 | V104: 94.712 | W104: 94.778 | X104: 94.793 | Y104: 94.838
A105: 18000 | B105: 94.4295 | C105: 94.481 | D105: 94.48 | E105: 94.42 | F105: 94.439 | G105: 94.427 | H105: 94.406 | I105: 94.404 | J105: 94.444 | K105: 94.378 | L105: 94.416 | N105: 18000 | O105: 94.5118 | P105: 94.536 | Q105: 94.547 | R105: 94.533 | S105: 94.533 | T105: 94.484 | U105: 94.486 | V105: 94.4 | W105: 94.496 | X105: 94.507 | Y105: 94.596
A106: 19000 | B106: 93.214 | C106: 93.279 | D106: 93.311 | E106: 93.169 | F106: 93.235 | G106: 93.193 | H106: 93.176 | I106: 93.162 | J106: 93.225 | K106: 93.148 | L106: 93.242 | N106: 19000 | O106: 93.1646 | P106: 93.201 | Q106: 93.256 | R106: 93.154 | S106: 93.199 | T106: 93.106 | U106: 93.119 | V106: 93.004 | W106: 93.145 | X106: 93.145 | Y106: 93.317
A107: 20000 | B107: 90.3738 | C107: 90.47 | D107: 90.583 | E107: 90.266 | F107: 90.429 | G107: 90.316 | H107: 90.305 | I107: 90.277 | J107: 90.374 | K107: 90.257 | L107: 90.461 | N107: 20000 | O107: 90.3011 | P107: 90.376 | Q107: 90.524 | R107: 90.217 | S107: 90.371 | T107: 90.192 | U107: 90.218 | V107: 90.062 | W107: 90.277 | X107: 90.232 | Y107: 90.542
A108: 21200 | B108: 81.2513 | C108: 81.915 | D108: 82.968 | E108: 80.314 | F108: 81.759 | G108: 80.865 | H108: 80.726 | I108: 80.358 | J108: 81.104 | K108: 80.348 | L108: 82.156 | N108: 21200 | O108: 82.1762 | P108: 82.79 | Q108: 83.794 | R108: 81.333 | S108: 82.686 | T108: 81.772 | U108: 81.691 | V108: 81.22 | W108: 82.036 | X108: 81.361 | Y108: 83.079
A109: 22400 | B109: 61.2731 | C109: 63.898 | D109: 68.776 | E109: 57.038 | F109: 63.65 | G109: 63.221 | H109: 56.234 | I109: 56.566 | J109: 60.388 | K109: 54.864 | L109: 68.096 | N109: 22400 | O109: 60.1518 | P109: 62.799 | Q109: 67.356 | R109: 56.357 | S109: 62.405 | T109: 61.896 | U109: 55.128 | V109: 55.279 | W109: 59.05 | X109: 54.195 | Y109: 67.053

Sheet Pre-VM
A1: VM | C1: VM | D1: VM | E1: VM | F1: VM | G1: VM | H1: VM | I1: VM | J1: VM | K1: VM | L1: VM | N1: VM | P1: VM | Q1: VM | R1: VM | S1: VM | T1: VM | U1: VM | V1: VM | W1: VM | X1: VM | Y1: VM
A2: Frequency | B2: VML Left - Means | C2: FR - Smoothed DUTL Left | D2: FR - Smoothed DUTL Left | E2: FR - Smoothed DUTL Left | F2: FR - Smoothed DUTL Left | G2: FR - Smoothed DUTL Left | H2: FR - Smoothed DUTL Left | I2: FR - Smoothed DUTL Left | J2: FR - Smoothed DUTL Left | K2: FR - Smoothed DUTL Left | L2: FR - Smoothed DUTL Left | N2: Frequency | O2: VML Right - Means | P2: FR - Smoothed DUTL Right | Q2: FR - Smoothed DUTL Right | R2: FR - Smoothed DUTL Right | S2: FR - Smoothed DUTL Right | T2: FR - Smoothed DUTL Right | U2: FR - Smoothed DUTL Right | V2: FR - Smoothed DUTL Right | W2: FR - Smoothed DUTL Right | X2: FR - Smoothed DUTL Right | Y2: FR - Smoothed DUTL Right
A3: 50 | B3: =AVERAGE(C3:L3) -> 84.7487 | C3: 84.864 | D3: 85.006 | E3: 84.71 | F3: 84.732 | G3: 84.678 | H3: 84.706 | I3: 84.58 | J3: 84.829 | K3: 84.668 | L3: 84.714 | N3: 50 | O3: =AVERAGE(P3:Y3) -> 85.9567 | P3: 86.024 | Q3: 86.283 | R3: 85.863 | S3: 85.95 | T3: 85.876 | U3: 86.005 | V3: 85.916 | W3: 85.998 | X3: 85.822 | Y3: 85.83
A4: 53 | B4: =AVERAGE(C4:L4) -> 88.0578 | C4: 88.016 | D4: 88.105 | E4: 88.016 | F4: 88.107 | G4: 87.929 | H4: 88.197 | I4: 88.164 | J4: 88.073 | K4: 87.944 | L4: 88.027 | N4: 53 | O4: =AVERAGE(P4:Y4) -> 89.1637 | P4: 89.105 | Q4: 89.234 | R4: 89.107 | S4: 89.2 | T4: 89.053 | U4: 89.286 | V4: 89.285 | W4: 89.184 | X4: 89.052 | Y4: 89.131
A5: 56 | B5: 89.9511 | C5: 89.918 | D5: 89.966 | E5: 89.9 | F5: 90.002 | G5: 89.871 | H5: 90.081 | I5: 90.045 | J5: 89.901 | K5: 89.893 | L5: 89.934 | N5: 56 | O5: 90.9082 | P5: 90.86 | Q5: 90.939 | R5: 90.853 | S5: 90.944 | T5: 90.841 | U5: 91.025 | V5: 91.008 | W5: 90.87 | X5: 90.857 | Y5: 90.885
A6: 60 | B6: 90.979 | C6: 90.959 | D6: 90.976 | E6: 90.925 | F6: 91.039 | G6: 90.929 | H6: 91.092 | I6: 91.072 | J6: 90.905 | K6: 90.933 | L6: 90.96 | N6: 60 | O6: 92.0075 | P6: 91.969 | Q6: 92.016 | R6: 91.955 | S6: 92.052 | T6: 91.97 | U6: 92.107 | V6: 92.096 | W6: 91.951 | X6: 91.973 | Y6: 91.986
A7: 63 | B7: 91.5509 | C7: 91.535 | D7: 91.546 | E7: 91.503 | F7: 91.613 | G7: 91.525 | H7: 91.636 | I7: 91.636 | J7: 91.464 | K7: 91.519 | L7: 91.532 | N7: 63 | O7: 92.842 | P7: 92.815 | Q7: 92.846 | R7: 92.797 | S7: 92.887 | T7: 92.826 | U7: 92.91 | V7: 92.913 | W7: 92.785 | X7: 92.817 | Y7: 92.824
A8: 67 | B8: 91.8294 | C8: 91.82 | D8: 91.821 | E8: 91.792 | F8: 91.891 | G8: 91.818 | H8: 91.889 | I8: 91.902 | J8: 91.747 | K8: 91.806 | L8: 91.808 | N8: 67 | O8: 93.5755 | P8: 93.563 | Q8: 93.574 | R8: 93.54 | S8: 93.62 | T8: 93.568 | U8: 93.616 | V8: 93.627 | W8: 93.535 | X8: 93.552 | Y8: 93.56
A9: 71 | B9: 92.0138 | C9: 91.995 | D9: 92.002 | E9: 91.99 | F9: 92.067 | G9: 92.011 | H9: 92.045 | I9: 92.077 | J9: 91.948 | K9: 92.001 | L9: 92.002 | N9: 71 | O9: 94.2512 | P9: 94.241 | Q9: 94.247 | R9: 94.227 | S9: 94.287 | T9: 94.249 | U9: 94.266 | V9: 94.29 | W9: 94.229 | X9: 94.231 | Y9: 94.245
A10: 75 | B10: 92.237 | C10: 92.212 | D10: 92.225 | E10: 92.228 | F10: 92.275 | G10: 92.235 | H10: 92.251 | I10: 92.286 | J10: 92.191 | K10: 92.239 | L10: 92.228 | N10: 75 | O10: 94.8288 | P10: 94.824 | Q10: 94.824 | R10: 94.813 | S10: 94.852 | T10: 94.827 | U10: 94.829 | V10: 94.859 | W10: 94.819 | X10: 94.816 | Y10: 94.825
A11: 80 | B11: 92.4841 | C11: 92.47 | D11: 92.473 | E11: 92.484 | F11: 92.505 | G11: 92.482 | H11: 92.487 | I11: 92.514 | J11: 92.457 | K11: 92.492 | L11: 92.477 | N11: 80 | O11: 95.233 | P11: 95.24 | Q11: 95.231 | R11: 95.222 | S11: 95.246 | T11: 95.231 | U11: 95.225 | V11: 95.259 | W11: 95.225 | X11: 95.226 | Y11: 95.225
A12: 85 | B12: 92.6578 | C12: 92.635 | D12: 92.65 | E12: 92.66 | F12: 92.669 | G12: 92.662 | H12: 92.652 | I12: 92.666 | J12: 92.65 | K12: 92.675 | L12: 92.659 | N12: 85 | O12: 95.4241 | P12: 95.419 | Q12: 95.432 | R12: 95.417 | S12: 95.431 | T12: 95.428 | U12: 95.413 | V12: 95.445 | W12: 95.413 | X12: 95.43 | Y12: 95.413
A13: 90 | B13: 92.6914 | C13: 92.654 | D13: 92.685 | E13: 92.693 | F13: 92.695 | G13: 92.711 | H13: 92.68 | I13: 92.667 | J13: 92.702 | K13: 92.731 | L13: 92.696 | N13: 90 | O13: 95.4299 | P13: 95.405 | Q13: 95.448 | R13: 95.423 | S13: 95.435 | T13: 95.445 | U13: 95.414 | V13: 95.428 | W13: 95.423 | X13: 95.461 | Y13: 95.417
A14: 95 | B14: 92.544 | C14: 92.523 | D14: 92.521 | E14: 92.549 | F14: 92.523 | G14: 92.574 | H14: 92.51 | I14: 92.489 | J14: 92.583 | K14: 92.604 | L14: 92.564 | N14: 95 | O14: 95.2884 | P14: 95.276 | Q14: 95.303 | R14: 95.283 | S14: 95.281 | T14: 95.308 | U14: 95.252 | V14: 95.262 | W14: 95.3 | X14: 95.335 | Y14: 95.284
A15: 100 | B15: 92.2777 | C15: 92.282 | D15: 92.208 | E15: 92.304 | F15: 92.203 | G15: 92.315 | H15: 92.205 | I15: 92.191 | J15: 92.377 | K15: 92.365 | L15: 92.327 | N15: 100 | O15: 95.0825 | P15: 95.094 | Q15: 95.066 | R15: 95.093 | S15: 95.041 | T15: 95.102 | U15: 95.013 | V15: 95.03 | W15: 95.14 | X15: 95.147 | Y15: 95.099
A16: 106 | B16: 92.0549 | C16: 92.094 | D16: 91.918 | E16: 92.116 | F16: 91.919 | G16: 92.102 | H16: 91.95 | I16: 91.922 | J16: 92.219 | K16: 92.173 | L16: 92.136 | N16: 106 | O16: 94.923 | P16: 94.959 | Q16: 94.858 | R16: 94.956 | S16: 94.846 | T16: 94.947 | U16: 94.828 | V16: 94.831 | W16: 95.038 | X16: 95.001 | Y16: 94.966
A17: 112 | B17: 91.8461 | C17: 91.912 | D17: 91.677 | E17: 91.922 | F17: 91.682 | G17: 91.895 | H17: 91.737 | I17: 91.704 | J17: 92.031 | K17: 91.961 | L17: 91.94 | N17: 112 | O17: 94.7678 | P17: 94.813 | Q17: 94.683 | R17: 94.809 | S17: 94.681 | T17: 94.791 | U17: 94.679 | V17: 94.665 | W17: 94.905 | X17: 94.83 | Y17: 94.822
A18: 118 | B18: 91.5088 | C18: 91.552 | D18: 91.38 | E18: 91.569 | F18: 91.368 | G18: 91.555 | H18: 91.441 | I18: 91.392 | J18: 91.655 | K18: 91.59 | L18: 91.586 | N18: 118 | O18: 94.5161 | P18: 94.528 | Q18: 94.467 | R18: 94.547 | S18: 94.451 | T18: 94.536 | U18: 94.472 | V18: 94.428 | W18: 94.627 | X18: 94.545 | Y18: 94.56
A19: 125 | B19: 90.9444 | C19: 90.954 | D19: 90.91 | E19: 90.959 | F19: 90.881 | G19: 90.981 | H19: 90.95 | I19: 90.88 | J19: 90.987 | K19: 90.964 | L19: 90.978 | N19: 125 | O19: 94.1027 | P19: 94.075 | Q19: 94.122 | R19: 94.106 | S19: 94.086 | T19: 94.115 | U19: 94.122 | V19: 94.052 | W19: 94.141 | X19: 94.088 | Y19: 94.12
A20: 132 | B20: 90.0243 | C20: 90.005 | D20: 90.125 | E20: 89.96 | F20: 90.093 | G20: 90.03 | H20: 90.109 | I20: 90.074 | J20: 89.916 | K20: 89.949 | L20: 89.982 | N20: 132 | O20: 93.4621 | P20: 93.424 | Q20: 93.56 | R20: 93.424 | S20: 93.511 | T20: 93.45 | U20: 93.535 | V20: 93.489 | W20: 93.401 | X20: 93.39 | Y20: 93.437
A21: 140 | B21: 88.8309 | C21: 88.788 | D21: 89.028 | E21: 88.711 | F21: 89.014 | G21: 88.796 | H21: 88.954 | I21: 88.983 | J21: 88.622 | K21: 88.684 | L21: 88.729 | N21: 140 | O21: 92.6364 | P21: 92.613 | Q21: 92.778 | R21: 92.573 | S21: 92.741 | T21: 92.592 | U21: 92.722 | V21: 92.74 | W21: 92.507 | X21: 92.521 | Y21: 92.577
A22: 150 | B22: 87.8021 | C22: 87.762 | D22: 87.946 | E22: 87.71 | F22: 87.988 | G22: 87.754 | H22: 87.88 | I22: 87.949 | J22: 87.631 | K22: 87.685 | L22: 87.716 | N22: 150 | O22: 91.8054 | P22: 91.802 | Q22: 91.914 | R22: 91.757 | S22: 91.923 | T22: 91.743 | U22: 91.857 | V22: 91.935 | W22: 91.676 | X22: 91.699 | Y22: 91.748
A23: 160 | B23: 87.3212 | C23: 87.289 | D23: 87.325 | E23: 87.296 | F23: 87.413 | G23: 87.311 | H23: 87.316 | I23: 87.351 | J23: 87.297 | K23: 87.321 | L23: 87.293 | N23: 160 | O23: 91.1472 | P23: 91.147 | Q23: 91.197 | R23: 91.12 | S23: 91.241 | T23: 91.099 | U23: 91.158 | V23: 91.223 | W23: 91.082 | X23: 91.096 | Y23: 91.109
A24: 170 | B24: 87.3556 | C24: 87.357 | D24: 87.264 | E24: 87.405 | F24: 87.307 | G24: 87.397 | H24: 87.29 | I24: 87.251 | J24: 87.451 | K24: 87.452 | L24: 87.382 | N24: 170 | O24: 90.6717 | P24: 90.673 | Q24: 90.694 | R24: 90.667 | S24: 90.711 | T24: 90.654 | U24: 90.653 | V24: 90.648 | W24: 90.682 | X24: 90.676 | Y24: 90.659
A25: 180 | B25: 87.6634 | C25: 87.699 | D25: 87.566 | E25: 87.75 | F25: 87.551 | G25: 87.719 | H25: 87.595 | I25: 87.531 | J25: 87.759 | K25: 87.762 | L25: 87.702 | N25: 180 | O25: 90.3487 | P25: 90.368 | Q25: 90.367 | R25: 90.368 | S25: 90.32 | T25: 90.352 | U25: 90.321 | V25: 90.271 | W25: 90.391 | X25: 90.376 | Y25: 90.353
A26: 190 | B26: 87.9885 | C26: 88.018 | D26: 87.937 | E26: 88.056 | F26: 87.924 | G26: 88.026 | H26: 87.952 | I26: 87.902 | J26: 88.03 | K26: 88.04 | L26: 88 | N26: 190 | O26: 90.1096 | P26: 90.142 | Q26: 90.139 | R26: 90.13 | S26: 90.059 | T26: 90.117 | U26: 90.092 | V26: 90.037 | W26: 90.146 | X26: 90.128 | Y26: 90.106
A27: 200 | B27: 88.2789 | C27: 88.299 | D27: 88.255 | E27: 88.328 | F27: 88.262 | G27: 88.3 | H27: 88.26 | I27: 88.235 | J27: 88.282 | K27: 88.295 | L27: 88.273 | N27: 200 | O27: 89.8181 | P27: 89.852 | Q27: 89.858 | R27: 89.837 | S27: 89.792 | T27: 89.818 | U27: 89.808 | V27: 89.778 | W27: 89.831 | X27: 89.811 | Y27: 89.796
A28: 212 | B28: 88.6621 | C28: 88.681 | D28: 88.637 | E28: 88.704 | F28: 88.661 | G28: 88.678 | H28: 88.647 | I28: 88.641 | J28: 88.649 | K28: 88.666 | L28: 88.657 | N28: 212 | O28: 89.5016 | P28: 89.533 | Q28: 89.537 | R28: 89.524 | S28: 89.504 | T28: 89.494 | U28: 89.493 | V28: 89.501 | W28: 89.487 | X28: 89.473 | Y28: 89.47
A29: 224 | B29: 89.1996 | C29: 89.218 | D29: 89.174 | E29: 89.235 | F29: 89.202 | G29: 89.215 | H29: 89.186 | I29: 89.184 | J29: 89.184 | K29: 89.205 | L29: 89.193 | N29: 224 | O29: 89.3 | P29: 89.327 | Q29: 89.333 | R29: 89.318 | S29: 89.317 | T29: 89.289 | U29: 89.292 | V29: 89.317 | W29: 89.274 | X29: 89.27 | Y29: 89.263
A30: 236 | B30: 89.8554 | C30: 89.876 | D30: 89.835 | E30: 89.89 | F30: 89.857 | G30: 89.872 | H30: 89.84 | I30: 89.837 | J30: 89.837 | K30: 89.864 | L30: 89.846 | N30: 236 | O30: 89.3127 | P30: 89.345 | Q30: 89.352 | R30: 89.324 | S30: 89.331 | T30: 89.301 | U30: 89.306 | V30: 89.32 | W30: 89.286 | X30: 89.286 | Y30: 89.276
A31: 250 | B31: 90.5066 | C31: 90.522 | D31: 90.491 | E31: 90.544 | F31: 90.511 | G31: 90.523 | H31: 90.492 | I31: 90.489 | J31: 90.485 | K31: 90.517 | L31: 90.492 | N31: 250 | O31: 89.4555 | P31: 89.493 | Q31: 89.503 | R31: 89.462 | S31: 89.475 | T31: 89.44 | U31: 89.451 | V31: 89.457 | W31: 89.428 | X31: 89.425 | Y31: 89.421
A32: 265 | B32: 91.0522 | C32: 91.059 | D32: 91.039 | E32: 91.092 | F32: 91.061 | G32: 91.067 | H32: 91.041 | I32: 91.036 | J32: 91.031 | K32: 91.063 | L32: 91.033 | N32: 265 | O32: 89.5888 | P32: 89.625 | Q32: 89.64 | R32: 89.595 | S32: 89.607 | T32: 89.572 | U32: 89.584 | V32: 89.591 | W32: 89.563 | X32: 89.556 | Y32: 89.555
A33: 280 | B33: 91.4762 | C33: 91.486 | D33: 91.462 | E33: 91.514 | F33: 91.482 | G33: 91.49 | H33: 91.466 | I33: 91.462 | J33: 91.459 | K33: 91.488 | L33: 91.453 | N33: 280 | O33: 89.6633 | P33: 89.699 | Q33: 89.711 | R33: 89.674 | S33: 89.673 | T33: 89.649 | U33: 89.653 | V33: 89.662 | W33: 89.644 | X33: 89.636 | Y33: 89.632
A34: 300 | B34: 91.7833 | C34: 91.803 | D34: 91.768 | E34: 91.818 | F34: 91.782 | G34: 91.796 | H34: 91.774 | I34: 91.771 | J34: 91.77 | K34: 91.795 | L34: 91.756 | N34: 300 | O34: 89.678 | P34: 89.712 | Q34: 89.722 | R34: 89.693 | S34: 89.68 | T34: 89.668 | U34: 89.665 | V34: 89.671 | W34: 89.663 | X34: 89.657 | Y34: 89.649
A35: 315 | B35: 92.0014 | C35: 92.031 | D35: 91.987 | E35: 92.032 | F35: 92.002 | G35: 92.012 | H35: 91.993 | I35: 91.991 | J35: 91.987 | K35: 92.008 | L35: 91.971 | N35: 315 | O35: 89.6955 | P35: 89.727 | Q35: 89.738 | R35: 89.711 | S35: 89.698 | T35: 89.688 | U35: 89.685 | V35: 89.688 | W35: 89.679 | X35: 89.676 | Y35: 89.665
A36: 335 | B36: 92.219 | C36: 92.257 | D36: 92.21 | E36: 92.245 | F36: 92.224 | G36: 92.225 | H36: 92.21 | I36: 92.213 | J36: 92.202 | K36: 92.218 | L36: 92.186 | N36: 335 | O36: 89.8486 | P36: 89.878 | Q36: 89.889 | R36: 89.864 | S36: 89.855 | T36: 89.839 | U36: 89.844 | V36: 89.842 | W36: 89.829 | X36: 89.828 | Y36: 89.818
A37: 355 | B37: 92.5358 | C37: 92.575 | D37: 92.532 | E37: 92.56 | F37: 92.544 | G37: 92.538 | H37: 92.527 | I37: 92.531 | J37: 92.516 | K37: 92.53 | L37: 92.505 | N37: 355 | O37: 90.2829 | P37: 90.313 | Q37: 90.32 | R37: 90.298 | S37: 90.293 | T37: 90.27 | U37: 90.284 | V37: 90.28 | W37: 90.26 | X37: 90.257 | Y37: 90.254
A38: 375 | B38: 92.9836 | C38: 93.015 | D38: 92.984 | E38: 93.01 | F38: 92.995 | G38: 92.986 | H38: 92.974 | I38: 92.979 | J38: 92.961 | K38: 92.976 | L38: 92.956 | N38: 375 | O38: 90.934 | P38: 90.963 | Q38: 90.966 | R38: 90.952 | S38: 90.944 | T38: 90.923 | U38: 90.935 | V38: 90.93 | W38: 90.912 | X38: 90.908 | Y38: 90.907
A39: 400 | B39: 93.424 | C39: 93.441 | D39: 93.426 | E39: 93.453 | F39: 93.432 | G39: 93.433 | H39: 93.412 | I39: 93.415 | J39: 93.407 | K39: 93.422 | L39: 93.399 | N39: 400 | O39: 91.5796 | P39: 91.606 | Q39: 91.605 | R39: 91.604 | S39: 91.584 | T39: 91.574 | U39: 91.574 | V39: 91.57 | W39: 91.563 | X39: 91.561 | Y39: 91.555
A40: 425 | B40: 93.689 | C40: 93.693 | D40: 93.684 | E40: 93.726 | F40: 93.691 | G40: 93.708 | H40: 93.671 | I40: 93.672 | J40: 93.684 | K40: 93.694 | L40: 93.667 | N40: 425 | O40: 92.0617 | P40: 92.085 | Q40: 92.077 | R40: 92.091 | S40: 92.065 | T40: 92.062 | U40: 92.048 | V40: 92.048 | W40: 92.053 | X40: 92.049 | Y40: 92.039
A41: 450 | B41: 93.6937 | C41: 93.69 | D41: 93.676 | E41: 93.737 | F41: 93.698 | G41: 93.72 | H41: 93.67 | I41: 93.672 | J41: 93.699 | K41: 93.701 | L41: 93.674 | N41: 450 | O41: 92.2856 | P41: 92.305 | Q41: 92.299 | R41: 92.316 | S41: 92.297 | T41: 92.287 | U41: 92.268 | V41: 92.27 | W41: 92.281 | X41: 92.272 | Y41: 92.261
A42: 475 | B42: 93.3853 | C42: 93.385 | D42: 93.379 | E42: 93.416 | F42: 93.401 | G42: 93.401 | H42: 93.365 | I42: 93.368 | J42: 93.384 | K42: 93.386 | L42: 93.368 | N42: 475 | O42: 92.2751 | P42: 92.298 | Q42: 92.305 | R42: 92.289 | S42: 92.299 | T42: 92.264 | U42: 92.265 | V42: 92.267 | W42: 92.26 | X42: 92.253 | Y42: 92.251
A43: 500 | B43: 92.9463 | C43: 92.962 | D43: 92.964 | E43: 92.95 | F43: 92.976 | G43: 92.941 | H43: 92.941 | I43: 92.941 | J43: 92.924 | K43: 92.933 | L43: 92.931 | N43: 500 | O43: 92.218 | P43: 92.251 | Q43: 92.261 | R43: 92.216 | S43: 92.246 | T43: 92.195 | U43: 92.221 | V43: 92.221 | W43: 92.19 | X43: 92.182 | Y43: 92.197
A44: 530 | B44: 92.6464 | C44: 92.683 | D44: 92.67 | E44: 92.638 | F44: 92.679 | G44: 92.634 | H44: 92.653 | I44: 92.651 | J44: 92.61 | K44: 92.617 | L44: 92.629 | N44: 530 | O44: 92.2569 | P44: 92.295 | Q44: 92.299 | R44: 92.256 | S44: 92.279 | T44: 92.237 | U44: 92.264 | V44: 92.264 | W44: 92.227 | X44: 92.214 | Y44: 92.234
A45: 560 | B45: 92.4881 | C45: 92.533 | D45: 92.511 | E45: 92.481 | F45: 92.51 | G45: 92.477 | H45: 92.496 | I45: 92.493 | J45: 92.451 | K45: 92.459 | L45: 92.47 | N45: 560 | O45: 92.3559 | P45: 92.393 | Q45: 92.397 | R45: 92.36 | S45: 92.365 | T45: 92.342 | U45: 92.36 | V45: 92.362 | W45: 92.33 | X45: 92.317 | Y45: 92.333
A46: 600 | B46: 92.3394 | C46: 92.378 | D46: 92.336 | E46: 92.356 | F46: 92.341 | G46: 92.347 | H46: 92.338 | I46: 92.331 | J46: 92.32 | K46: 92.327 | L46: 92.32 | N46: 600 | O46: 92.4075 | P46: 92.439 | Q46: 92.436 | R46: 92.426 | S46: 92.405 | T46: 92.405 | U46: 92.403 | V46: 92.407 | W46: 92.394 | X46: 92.378 | Y46: 92.382
A47: 630 | B47: 91.905 | C47: 91.932 | D47: 91.865 | E47: 91.953 | F47: 91.893 | G47: 91.934 | H47: 91.888 | I47: 91.882 | J47: 91.91 | K47: 91.908 | L47: 91.885 | N47: 630 | O47: 92.2924 | P47: 92.315 | Q47: 92.315 | R47: 92.321 | S47: 92.289 | T47: 92.296 | U47: 92.278 | V47: 92.286 | W47: 92.29 | X47: 92.27 | Y47: 92.264
A48: 670 | B48: 90.926 | C48: 90.94 | D48: 90.879 | E48: 90.98 | F48: 90.917 | G48: 90.956 | H48: 90.904 | I48: 90.896 | J48: 90.938 | K48: 90.943 | L48: 90.907 | N48: 670 | O48: 91.9835 | P48: 92.003 | Q48: 92.015 | R48: 92.005 | S48: 91.987 | T48: 91.981 | U48: 91.97 | V48: 91.976 | W48: 91.98 | X48: 91.963 | Y48: 91.955
A49: 710 | B49: 89.3507 | C49: 89.356 | D49: 89.312 | E49: 89.395 | F49: 89.349 | G49: 89.373 | H49: 89.335 | I49: 89.32 | J49: 89.356 | K49: 89.377 | L49: 89.334 | N49: 710 | O49: 91.5291 | P49: 91.549 | Q49: 91.565 | R49: 91.542 | S49: 91.538 | T49: 91.521 | U49: 91.522 | V49: 91.525 | W49: 91.519 | X49: 91.506 | Y49: 91.504
A50: 750 | B50: 87.2918 | C50: 87.295 | D50: 87.257 | E50: 87.325 | F50: 87.294 | G50: 87.312 | H50: 87.282 | I50: 87.263 | J50: 87.294 | K50: 87.317 | L50: 87.279 | N50: 750 | O50: 91.0458 | P50: 91.069 | Q50: 91.08 | R50: 91.056 | S50: 91.057 | T50: 91.037 | U50: 91.042 | V50: 91.044 | W50: 91.032 | X50: 91.02 | Y50: 91.021
A51: 800 | B51: 85.9731 | C51: 85.991 | D51: 85.95 | E51: 86 | F51: 85.972 | G51: 85.992 | H51: 85.96 | I51: 85.944 | J51: 85.974 | K51: 85.991 | L51: 85.957 | N51: 800 | O51: 90.8321 | P51: 90.86 | Q51: 90.867 | R51: 90.842 | S51: 90.843 | T51: 90.823 | U51: 90.827 | V51: 90.83 | W51: 90.817 | X51: 90.805 | Y51: 90.807
A52: 850 | B52: 87.2833 | C52: 87.314 | D52: 87.278 | E52: 87.309 | F52: 87.281 | G52: 87.293 | H52: 87.269 | I52: 87.256 | J52: 87.279 | K52: 87.294 | L52: 87.26 | N52: 850 | O52: 91.0315 | P52: 91.06 | Q52: 91.069 | R52: 91.042 | S52: 91.04 | T52: 91.023 | U52: 91.023 | V52: 91.03 | W52: 91.015 | X52: 91.007 | Y52: 91.006
A53: 900 | B53: 89.2753 | C53: 89.306 | D53: 89.281 | E53: 89.301 | F53: 89.273 | G53: 89.281 | H53: 89.261 | I53: 89.253 | J53: 89.267 | K53: 89.279 | L53: 89.251 | N53: 900 | O53: 91.3895 | P53: 91.416 | Q53: 91.427 | R53: 91.401 | S53: 91.395 | T53: 91.382 | U53: 91.379 | V53: 91.387 | W53: 91.374 | X53: 91.369 | Y53: 91.365
A54: 950 | B54: 90.4749 | C54: 90.502 | D54: 90.486 | E54: 90.499 | F54: 90.473 | G54: 90.478 | H54: 90.462 | I54: 90.456 | J54: 90.466 | K54: 90.475 | L54: 90.452 | N54: 950 | O54: 91.5919 | P54: 91.615 | Q54: 91.625 | R54: 91.603 | S54: 91.596 | T54: 91.585 | U54: 91.583 | V54: 91.588 | W54: 91.579 | X54: 91.575 | Y54: 91.57
A55: 1000 | B55: 90.8615 | C55: 90.885 | D55: 90.873 | E55: 90.884 | F55: 90.861 | G55: 90.863 | H55: 90.851 | I55: 90.846 | J55: 90.851 | K55: 90.861 | L55: 90.84 | N55: 1000 | O55: 91.4445 | P55: 91.459 | Q55: 91.472 | R55: 91.451 | S55: 91.45 | T55: 91.439 | U55: 91.439 | V55: 91.443 | W55: 91.434 | X55: 91.431 | Y55: 91.427
A56: 1060 | B56: 90.4882 | C56: 90.505 | D56: 90.498 | E56: 90.508 | F56: 90.489 | G56: 90.49 | H56: 90.478 | I56: 90.478 | J56: 90.476 | K56: 90.49 | L56: 90.47 | N56: 1060 | O56: 90.859 | P56: 90.863 | Q56: 90.879 | R56: 90.859 | S56: 90.864 | T56: 90.855 | U56: 90.857 | V56: 90.864 | W56: 90.851 | X56: 90.849 | Y56: 90.849
A57: 1120 | B57: 89.562 | C57: 89.568 | D57: 89.561 | E57: 89.576 | F57: 89.564 | G57: 89.565 | H57: 89.552 | I57: 89.558 | J57: 89.552 | K57: 89.573 | L57: 89.551 | N57: 1120 | O57: 90.0631 | P57: 90.06 | Q57: 90.08 | R57: 90.055 | S57: 90.067 | T57: 90.058 | U57: 90.065 | V57: 90.074 | W57: 90.059 | X57: 90.054 | Y57: 90.059
A58: 1180 | B58: 88.7013 | C58: 88.698 | D58: 88.677 | E58: 88.712 | F58: 88.699 | G58: 88.71 | H58: 88.689 | I58: 88.704 | J58: 88.697 | K58: 88.722 | L58: 88.705 | N58: 1180 | O58: 89.523 | P58: 89.506 | Q58: 89.538 | R58: 89.506 | S58: 89.522 | T58: 89.517 | U58: 89.527 | V58: 89.54 | W58: 89.527 | X58: 89.517 | Y58: 89.53
A59: 1250 | B59: 88.3581 | C59: 88.328 | D59: 88.307 | E59: 88.364 | F59: 88.344 | G59: 88.378 | H59: 88.346 | I59: 88.365 | J59: 88.367 | K59: 88.395 | L59: 88.387 | N59: 1250 | O59: 89.7255 | P59: 89.704 | Q59: 89.743 | R59: 89.708 | S59: 89.721 | T59: 89.718 | U59: 89.729 | V59: 89.745 | W59: 89.734 | X59: 89.717 | Y59: 89.736
A60: 1320 | B60: 88.3325 | C60: 88.281 | D60: 88.27 | E60: 88.336 | F60: 88.308 | G60: 88.361 | H60: 88.324 | I60: 88.338 | J60: 88.353 | K60: 88.379 | L60: 88.375 | N60: 1320 | O60: 90.886 | P60: 90.864 | Q60: 90.903 | R60: 90.87 | S60: 90.882 | T60: 90.878 | U60: 90.889 | V60: 90.903 | W60: 90.896 | X60: 90.879 | Y60: 90.896
A61: 1400 | B61: 88.3197 | C61: 88.262 | D61: 88.257 | E61: 88.324 | F61: 88.292 | G61: 88.353 | H61: 88.314 | I61: 88.323 | J61: 88.344 | K61: 88.368 | L61: 88.36 | N61: 1400 | O61: 92.0644 | P61: 92.034 | Q61: 92.078 | R61: 92.045 | S61: 92.061 | T61: 92.054 | U61: 92.069 | V61: 92.084 | W61: 92.077 | X61: 92.062 | Y61: 92.08
A62: 1500 | B62: 88.0652 | C62: 87.991 | D62: 88.003 | E62: 88.065 | F62: 88.042 | G62: 88.096 | H62: 88.07 | I62: 88.066 | J62: 88.094 | K62: 88.124 | L62: 88.101 | N62: 1500 | O62: 92.6753 | P62: 92.641 | Q62: 92.69 | R62: 92.652 | S62: 92.673 | T62: 92.662 | U62: 92.681 | V62: 92.698 | W62: 92.689 | X62: 92.672 | Y62: 92.695
A63: 1600 | B63: 87.447 | C63: 87.364 | D63: 87.385 | E63: 87.444 | F63: 87.43 | G63: 87.473 | H63: 87.459 | I63: 87.441 | J63: 87.479 | K63: 87.517 | L63: 87.478 | N63: 1600 | O63: 92.6655 | P63: 92.626 | Q63: 92.685 | R63: 92.636 | S63: 92.663 | T63: 92.648 | U63: 92.672 | V63: 92.692 | W63: 92.681 | X63: 92.661 | Y63: 92.691
A64: 1700 | B64: 86.5525 | C64: 86.463 | D64: 86.478 | E64: 86.553 | F64: 86.538 | G64: 86.58 | H64: 86.563 | I64: 86.542 | J64: 86.588 | K64: 86.634 | L64: 86.586 | N64: 1700 | O64: 92.0417 | P64: 92 | Q64: 92.073 | R64: 92.005 | S64: 92.041 | T64: 92.018 | U64: 92.05 | V64: 92.072 | W64: 92.057 | X64: 92.031 | Y64: 92.07
A65: 1800 | B65: 85.9676 | C65: 85.872 | D65: 85.869 | E65: 85.983 | F65: 85.952 | G65: 86.011 | H65: 85.974 | I65: 85.955 | J65: 85.998 | K65: 86.052 | L65: 86.01 | N65: 1800 | O65: 91.1735 | P65: 91.141 | Q65: 91.232 | R65: 91.131 | S65: 91.176 | T65: 91.139 | U65: 91.182 | V65: 91.206 | W65: 91.184 | X65: 91.147 | Y65: 91.197
A66: 1900 | B66: 85.8031 | C66: 85.723 | D66: 85.689 | E66: 85.84 | F66: 85.782 | G66: 85.862 | H66: 85.799 | I66: 85.785 | J66: 85.824 | K66: 85.882 | L66: 85.845 | N66: 1900 | O66: 90.3699 | P66: 90.357 | Q66: 90.459 | R66: 90.324 | S66: 90.377 | T66: 90.326 | U66: 90.378 | V66: 90.402 | W66: 90.373 | X66: 90.322 | Y66: 90.381
A67: 2000 | B67: 85.3773 | C67: 85.321 | D67: 85.257 | E67: 85.426 | F67: 85.351 | G67: 85.444 | H67: 85.364 | I67: 85.356 | J67: 85.392 | K67: 85.449 | L67: 85.413 | N67: 2000 | O67: 89.6481 | P67: 89.663 | Q67: 89.764 | R67: 89.605 | S67: 89.661 | T67: 89.599 | U67: 89.656 | V67: 89.678 | W67: 89.639 | X67: 89.577 | Y67: 89.639
A68: 2120 | B68: =AVERAGE(C68:L68) -> 84.4289 | C68: 84.39 | D68: 84.31 | E68: 84.482 | F68: 84.403 | G68: 84.496 | H68: 84.412 | I68: 84.403 | J68: 84.44 | K68: 84.497 | L68: 84.456 | N68: 2120 | O68: =AVERAGE(P68:Y68) -> 88.7082 | P68: 88.754 | Q68: 88.854 | R68: 88.67 | S68: 88.727 | T68: 88.652 | U68: 88.715 | V68: 88.734 | W68: 88.687 | X68: 88.612 | Y68: 88.677
A69: 2240 | B69: 82.1092 | C69: 82.088 | D69: 81.979 | E69: 82.165 | F69: 82.078 | G69: 82.168 | H69: 82.084 | I69: 82.067 | J69: 82.133 | K69: 82.192 | L69: 82.138 | N69: 2240 | O69: 86.9974 | P69: 87.083 | Q69: 87.194 | R69: 86.96 | S69: 87.025 | T69: 86.931 | U69: 87.005 | V69: 87.023 | W69: 86.958 | X69: 86.858 | Y69: 86.937
A70: 2360 | B70: 77.383 | C70: 77.404 | D70: 77.217 | E70: 77.449 | F70: 77.32 | G70: 77.431 | H70: 77.328 | I70: 77.313 | J70: 77.441 | K70: 77.495 | L70: 77.432 | N70: 2360 | O70: 84.8989 | P70: 85.031 | Q70: 85.16 | R70: 84.864 | S70: 84.937 | T70: 84.822 | U70: 84.907 | V70: 84.928 | W70: 84.833 | X70: 84.707 | Y70: 84.8
A71: 2500 | B71: 71.1215 | C71: 71.26 | D71: 71.013 | E71: 71.263 | F71: 71.033 | G71: 71.211 | H71: 71.008 | I71: 71.036 | J71: 71.156 | K71: 71.162 | L71: 71.073 | N71: 2500 | O71: 83.4742 | P71: 83.618 | Q71: 83.76 | R71: 83.443 | S71: 83.515 | T71: 83.393 | U71: 83.482 | V71: 83.502 | W71: 83.398 | X71: 83.269 | Y71: 83.362
A72: 2650 | B72: 68.6104 | C72: 68.924 | D72: 68.807 | E72: 68.736 | F72: 68.584 | G72: 68.663 | H72: 68.505 | I72: 68.608 | J72: 68.495 | K72: 68.415 | L72: 68.367 | N72: 2650 | O72: 82.8941 | P72: 83.019 | Q72: 83.158 | R72: 82.86 | S72: 82.933 | T72: 82.817 | U72: 82.902 | V72: 82.925 | W72: 82.826 | X72: 82.705 | Y72: 82.796
A73: 2800 | B73: 69.255 | C73: 69.56 | D73: 69.421 | E73: 69.223 | F73: 69.191 | G73: 69.235 | H73: 69.189 | I73: 69.282 | J73: 69.188 | K73: 69.121 | L73: 69.14 | N73: 2800 | O73: 82.6482 | P73: 82.766 | Q73: 82.893 | R73: 82.613 | S73: 82.687 | T73: 82.576 | U73: 82.655 | V73: 82.684 | W73: 82.581 | X73: 82.47 | Y73: 82.557
A74: 3000 | B74: 70.905 | C74: 71.187 | D74: 70.985 | E74: 70.835 | F74: 70.838 | G74: 70.87 | H74: 70.848 | I74: 70.908 | J74: 70.887 | K74: 70.831 | L74: 70.861 | N74: 3000 | O74: 82.4374 | P74: 82.554 | Q74: 82.658 | R74: 82.419 | S74: 82.481 | T74: 82.38 | U74: 82.438 | V74: 82.467 | W74: 82.365 | X74: 82.273 | Y74: 82.339
A75: 3150 | B75: 73.1927 | C75: 73.411 | D75: 73.272 | E75: 73.123 | F75: 73.158 | G75: 73.153 | H75: 73.161 | I75: 73.202 | J75: 73.177 | K75: 73.115 | L75: 73.155 | N75: 3150 | O75: 82.6625 | P75: 82.779 | Q75: 82.827 | R75: 82.666 | S75: 82.701 | T75: 82.629 | U75: 82.652 | V75: 82.675 | W75: 82.592 | X75: 82.537 | Y75: 82.567
A76: 3350 | B76: 74.7959 | C76: 74.958 | D76: 74.911 | E76: 74.745 | F76: 74.803 | G76: 74.761 | H76: 74.785 | I76: 74.814 | J76: 74.758 | K76: 74.687 | L76: 74.737 | N76: 3350 | O76: 82.9699 | P76: 83.073 | Q76: 83.078 | R76: 82.983 | S76: 82.995 | T76: 82.955 | U76: 82.956 | V76: 82.972 | W76: 82.909 | X76: 82.887 | Y76: 82.891
A77: 3550 | B77: 76.1552 | C77: 76.276 | D77: 76.306 | E77: 76.104 | F77: 76.18 | G77: 76.099 | H77: 76.15 | I77: 76.168 | J77: 76.125 | K77: 76.042 | L77: 76.102 | N77: 3550 | O77: 82.8454 | P77: 82.933 | Q77: 82.898 | R77: 82.869 | S77: 82.856 | T77: 82.847 | U77: 82.826 | V77: 82.838 | W77: 82.797 | X77: 82.807 | Y77: 82.783
A78: 3750 | B78: 77.3051 | C78: 77.406 | D78: 77.498 | E78: 77.258 | F78: 77.352 | G78: 77.239 | H78: 77.31 | I78: 77.324 | J78: 77.262 | K78: 77.165 | L78: 77.237 | N78: 3750 | O78: 83.12 | P78: 83.193 | Q78: 83.107 | R78: 83.155 | S78: 83.113 | T78: 83.146 | U78: 83.095 | V78: 83.095 | W78: 83.087 | X78: 83.133 | Y78: 83.076
A79: 4000 | B79: 78.7647 | C79: 78.848 | D79: 78.908 | E79: 78.743 | F79: 78.797 | G79: 78.706 | H79: 78.759 | I79: 78.761 | J79: 78.744 | K79: 78.667 | L79: 78.714 | N79: 4000 | O79: 84.2651 | P79: 84.326 | Q79: 84.225 | R79: 84.303 | S79: 84.256 | T79: 84.303 | U79: 84.243 | V79: 84.231 | W79: 84.241 | X79: 84.296 | Y79: 84.227
A80: 4250 | B80: 81.4275 | C80: 81.496 | D80: 81.485 | E80: 81.44 | F80: 81.441 | G80: 81.412 | H80: 81.415 | I80: 81.398 | J80: 81.416 | K80: 81.385 | L80: 81.387 | N80: 4250 | O80: 85.3401 | P80: 85.401 | Q80: 85.313 | R80: 85.374 | S80: 85.337 | T80: 85.37 | U80: 85.322 | V80: 85.306 | W80: 85.318 | X80: 85.36 | Y80: 85.3
A81: 4500 | B81: 83.639 | C81: 83.708 | D81: 83.68 | E81: 83.669 | F81: 83.652 | G81: 83.637 | H81: 83.624 | I81: 83.606 | J81: 83.621 | K81: 83.601 | L81: 83.592 | N81: 4500 | O81: 86.1015 | P81: 86.157 | Q81: 86.073 | R81: 86.135 | S81: 86.098 | T81: 86.129 | U81: 86.085 | V81: 86.065 | W81: 86.084 | X81: 86.123 | Y81: 86.066
A82: 4750 | B82: 84.5211 | C82: 84.592 | D82: 84.55 | E82: 84.554 | F82: 84.525 | G82: 84.511 | H82: 84.501 | I82: 84.481 | J82: 84.514 | K82: 84.499 | L82: 84.484 | N82: 4750 | O82: 86.6802 | P82: 86.73 | Q82: 86.659 | R82: 86.71 | S82: 86.678 | T82: 86.701 | U82: 86.668 | V82: 86.646 | W82: 86.666 | X82: 86.696 | Y82: 86.648
A83: 5000 | B83: 85.1004 | C83: 85.164 | D83: 85.132 | E83: 85.133 | F83: 85.105 | G83: 85.095 | H83: 85.088 | I83: 85.067 | J83: 85.089 | K83: 85.075 | L83: 85.056 | N83: 5000 | O83: 86.7078 | P83: 86.751 | Q83: 86.684 | R83: 86.734 | S83: 86.706 | T83: 86.726 | U83: 86.699 | V83: 86.676 | W83: 86.696 | X83: 86.726 | Y83: 86.68
A84: 5300 | B84: 85.7067 | C84: 85.759 | D84: 85.763 | E84: 85.743 | F84: 85.721 | G84: 85.713 | H84: 85.705 | I84: 85.697 | J84: 85.677 | K84: 85.652 | L84: 85.637 | N84: 5300 | O84: 86.5836 | P84: 86.611 | Q84: 86.506 | R84: 86.625 | S84: 86.575 | T84: 86.625 | U84: 86.57 | V84: 86.54 | W84: 86.582 | X84: 86.637 | Y84: 86.565
A85: 5600 | B85: 85.7481 | C85: 85.792 | D85: 85.823 | E85: 85.779 | F85: 85.758 | G85: 85.762 | H85: 85.75 | I85: 85.748 | J85: 85.714 | K85: 85.682 | L85: 85.673 | N85: 5600 | O85: 86.9108 | P85: 86.933 | Q85: 86.834 | R85: 86.953 | S85: 86.905 | T85: 86.957 | U85: 86.897 | V85: 86.871 | W85: 86.907 | X85: 86.963 | Y85: 86.888
A86: 6000 | B86: 85.9328 | C86: 85.978 | D86: 86.036 | E86: 85.939 | F86: 85.936 | G86: 85.945 | H86: 85.938 | I86: 85.938 | J86: 85.899 | K86: 85.858 | L86: 85.861 | N86: 6000 | O86: 87.1521 | P86: 87.181 | Q86: 87.124 | R86: 87.183 | S86: 87.154 | T86: 87.181 | U86: 87.142 | V86: 87.131 | W86: 87.137 | X86: 87.172 | Y86: 87.116
A87: 6300 | B87: 86.2492 | C87: 86.301 | D87: 86.382 | E87: 86.23 | F87: 86.258 | G87: 86.252 | H87: 86.258 | I87: 86.259 | J87: 86.215 | K87: 86.156 | L87: 86.181 | N87: 6300 | O87: 87.1806 | P87: 87.223 | Q87: 87.211 | R87: 87.196 | S87: 87.188 | T87: 87.186 | U87: 87.17 | V87: 87.175 | W87: 87.156 | X87: 87.166 | Y87: 87.135
A88: 6700 | B88: 86.239 | C88: 86.283 | D88: 86.388 | E88: 86.216 | F88: 86.265 | G88: 86.23 | H88: 86.256 | I88: 86.249 | J88: 86.203 | K88: 86.128 | L88: 86.172 | N88: 6700 | O88: 87.0567 | P88: 87.12 | Q88: 87.164 | R88: 87.049 | S88: 87.073 | T88: 87.028 | U88: 87.052 | V88: 87.071 | W88: 87.018 | X88: 86.992 | Y88: 87
A89: 7100 | B89: 86.363 | C89: 86.39 | D89: 86.484 | E89: 86.361 | F89: 86.41 | G89: 86.367 | H89: 86.387 | I89: 86.37 | J89: 86.322 | K89: 86.254 | L89: 86.285 | N89: 7100 | O89: 87.056 | P89: 87.131 | Q89: 87.2 | R89: 87.033 | S89: 87.076 | T89: 87.013 | U89: 87.054 | V89: 87.079 | W89: 87.009 | X89: 86.969 | Y89: 86.996
A90: 7500 | B90: 86.785 | C90: 86.799 | D90: 86.859 | E90: 86.808 | F90: 86.839 | G90: 86.812 | H90: 86.806 | I90: 86.787 | J90: 86.744 | K90: 86.694 | L90: 86.702 | N90: 7500 | O90: 87.222 | P90: 87.296 | Q90: 87.362 | R90: 87.197 | S90: 87.241 | T90: 87.181 | U90: 87.218 | V90: 87.241 | W90: 87.177 | X90: 87.141 | Y90: 87.166
A91: 8000 | B91: 87.1793 | C91: 87.194 | D91: 87.234 | E91: 87.217 | F91: 87.225 | G91: 87.207 | H91: 87.189 | I91: 87.175 | J91: 87.144 | K91: 87.104 | L91: 87.104 | N91: 8000 | O91: 87.4058 | P91: 87.466 | Q91: 87.506 | R91: 87.392 | S91: 87.422 | T91: 87.382 | U91: 87.401 | V91: 87.416 | W91: 87.367 | X91: 87.35 | Y91: 87.356
A92: 8500 | B92: 87.1305 | C92: 87.148 | D92: 87.164 | E92: 87.163 | F92: 87.152 | G92: 87.151 | H92: 87.125 | I92: 87.112 | J92: 87.118 | K92: 87.094 | L92: 87.078 | N92: 8500 | O92: 87.6196 | P92: 87.665 | Q92: 87.674 | R92: 87.618 | S92: 87.634 | T92: 87.614 | U92: 87.615 | V92: 87.621 | W92: 87.588 | X92: 87.592 | Y92: 87.575
A93: 9000 | B93: 87.0557 | C93: 87.081 | D93: 87.094 | E93: 87.074 | F93: 87.057 | G93: 87.06 | H93: 87.037 | I93: 87.033 | J93: 87.061 | K93: 87.037 | L93: 87.023 | N93: 9000 | O93: 87.5807 | P93: 87.624 | Q93: 87.627 | R93: 87.581 | S93: 87.596 | T93: 87.574 | U93: 87.576 | V93: 87.583 | W93: 87.552 | X93: 87.556 | Y93: 87.538
A94: 9500 | B94: 87.5735 | C94: 87.604 | D94: 87.628 | E94: 87.588 | F94: 87.568 | G94: 87.566 | H94: 87.552 | I94: 87.558 | J94: 87.579 | K94: 87.548 | L94: 87.544 | N94: 9500 | O94: 87.7154 | P94: 87.747 | Q94: 87.713 | R94: 87.728 | S94: 87.724 | T94: 87.725 | U94: 87.709 | V94: 87.707 | W94: 87.693 | X94: 87.722 | Y94: 87.686
A95: 10000 | B95: 88.1797 | C95: 88.208 | D95: 88.231 | E95: 88.193 | F95: 88.173 | G95: 88.171 | H95: 88.16 | I95: 88.171 | J95: 88.184 | K95: 88.154 | L95: 88.152 | N95: 10000 | O95: 88.385 | P95: 88.402 | Q95: 88.353 | R95: 88.398 | S95: 88.392 | T95: 88.403 | U95: 88.383 | V95: 88.371 | W95: 88.367 | X95: 88.411 | Y95: 88.37
A96: 10600 | B96: 88.9849 | C96: 89.017 | D96: 89.031 | E96: 88.991 | F96: 88.979 | G96: 88.975 | H96: 88.968 | I96: 88.984 | J96: 88.99 | K96: 88.954 | L96: 88.96 | N96: 10600 | O96: 89.298 | P96: 89.307 | Q96: 89.268 | R96: 89.306 | S96: 89.301 | T96: 89.312 | U96: 89.3 | V96: 89.284 | W96: 89.283 | X96: 89.327 | Y96: 89.292
A97: 11200 | B97: 90.2084 | C97: 90.241 | D97: 90.238 | E97: 90.215 | F97: 90.201 | G97: 90.202 | H97: 90.194 | I97: 90.209 | J97: 90.216 | K97: 90.183 | L97: 90.185 | N97: 11200 | O97: 90.2846 | P97: 90.298 | Q97: 90.268 | R97: 90.29 | S97: 90.285 | T97: 90.294 | U97: 90.288 | V97: 90.268 | W97: 90.268 | X97: 90.309 | Y97: 90.278
A98: 11800 | B98: 91.2446 | C98: 91.279 | D98: 91.279 | E98: 91.247 | F98: 91.241 | G98: 91.233 | H98: 91.229 | I98: 91.253 | J98: 91.25 | K98: 91.215 | L98: 91.22 | N98: 11800 | O98: 91.3245 | P98: 91.333 | Q98: 91.308 | R98: 91.327 | S98: 91.323 | T98: 91.331 | U98: 91.329 | V98: 91.309 | W98: 91.311 | X98: 91.352 | Y98: 91.322
A99: 12500 | B99: 91.5778 | C99: 91.613 | D99: 91.615 | E99: 91.576 | F99: 91.579 | G99: 91.563 | H99: 91.559 | I99: 91.591 | J99: 91.582 | K99: 91.547 | L99: 91.553 | N99: 12500 | O99: 91.6977 | P99: 91.699 | Q99: 91.669 | R99: 91.704 | S99: 91.692 | T99: 91.708 | U99: 91.701 | V99: 91.68 | W99: 91.689 | X99: 91.736 | Y99: 91.699
A100: 13200 | B100: 91.6847 | C100: 91.73 | D100: 91.715 | E100: 91.691 | F100: 91.689 | G100: 91.675 | H100: 91.661 | I100: 91.691 | J100: 91.687 | K100: 91.657 | L100: 91.651 | N100: 13200 | O100: 91.8175 | P100: 91.836 | Q100: 91.809 | R100: 91.83 | S100: 91.812 | T100: 91.825 | U100: 91.819 | V100: 91.798 | W100: 91.803 | X100: 91.839 | Y100: 91.804
A101: 14000 | B101: 91.8976 | C101: 91.973 | D101: 91.946 | E101: 91.909 | F101: 91.913 | G101: 91.884 | H101: 91.868 | I101: 91.9 | J101: 91.887 | K101: 91.852 | L101: 91.844 | N101: 14000 | O101: 92.2607 | P101: 92.299 | Q101: 92.272 | R101: 92.283 | S101: 92.255 | T101: 92.265 | U101: 92.263 | V101: 92.237 | W101: 92.241 | X101: 92.264 | Y101: 92.228
A102: 15000 | B102: 92.5706 | C102: 92.688 | D102: 92.634 | E102: 92.595 | F102: 92.593 | G102: 92.555 | H102: 92.533 | I102: 92.568 | J102: 92.548 | K102: 92.5 | L102: 92.492 | N102: 15000 | O102: 93.2164 | P102: 93.285 | Q102: 93.243 | R102: 93.25 | S102: 93.208 | T102: 93.224 | U102: 93.217 | V102: 93.18 | W102: 93.192 | X102: 93.208 | Y102: 93.157
A103: 16000 | B103: 93.8308 | C103: 93.953 | D103: 93.881 | E103: 93.858 | F103: 93.847 | G103: 93.816 | H103: 93.794 | I103: 93.826 | J103: 93.811 | K103: 93.765 | L103: 93.757 | N103: 16000 | O103: 94.5008 | P103: 94.565 | Q103: 94.497 | R103: 94.543 | S103: 94.484 | T103: 94.526 | U103: 94.494 | V103: 94.452 | W103: 94.485 | X103: 94.517 | Y103: 94.445
A104: 17000 | B104: 94.394 | C104: 94.499 | D104: 94.437 | E104: 94.415 | F104: 94.404 | G104: 94.374 | H104: 94.36 | I104: 94.394 | J104: 94.382 | K104: 94.332 | L104: 94.343 | N104: 17000 | O104: 95.0468 | P104: 95.079 | Q104: 94.998 | R104: 95.095 | S104: 95.022 | T104: 95.087 | U104: 95.031 | V104: 94.989 | W104: 95.051 | X104: 95.096 | Y104: 95.02
A105: 18000 | B105: 94.0052 | C105: 94.089 | D105: 94.048 | E105: 94.035 | F105: 94.018 | G105: 93.978 | H105: 93.965 | I105: 93.997 | J105: 93.999 | K105: 93.94 | L105: 93.983 | N105: 18000 | O105: 94.7552 | P105: 94.753 | Q105: 94.684 | R105: 94.824 | S105: 94.736 | T105: 94.798 | U105: 94.722 | V105: 94.677 | W105: 94.773 | X105: 94.818 | Y105: 94.767
A106: 19000 | B106: 92.6218 | C106: 92.662 | D106: 92.661 | E106: 92.673 | F106: 92.646 | G106: 92.574 | H106: 92.573 | I106: 92.59 | J106: 92.621 | K106: 92.566 | L106: 92.652 | N106: 19000 | O106: 93.4285 | P106: 93.371 | Q106: 93.34 | R106: 93.541 | S106: 93.431 | T106: 93.458 | U106: 93.369 | V106: 93.312 | W106: 93.454 | X106: 93.506 | Y106: 93.503
A107: 20000 | B107: 89.502 | C107: 89.463 | D107: 89.57 | E107: 89.615 | F107: 89.568 | G107: 89.397 | H107: 89.428 | I107: 89.415 | J107: 89.494 | K107: 89.441 | L107: 89.629 | N107: 20000 | O107: 90.5328 | P107: 90.38 | Q107: 90.476 | R107: 90.73 | S107: 90.594 | T107: 90.502 | U107: 90.426 | V107: 90.348 | W107: 90.555 | X107: 90.597 | Y107: 90.72
A108: 21200 | B108: 80.7275 | C108: 80.149 | D108: 81.485 | E108: 81.791 | F108: 81.543 | G108: 79.727 | H108: 80.352 | I108: 79.816 | J108: 80.285 | K108: 80.536 | L108: 81.591 | N108: 21200 | O108: 83.0876 | P108: 82.508 | Q108: 83.733 | R108: 84.121 | S108: 83.833 | T108: 82.241 | U108: 82.698 | V108: 82.178 | W108: 82.729 | X108: 82.916 | Y108: 83.919
A109: 22400 | B109: 65.4019 | C109: 64.898 | D109: 68.407 | E109: 68.43 | F109: 68.917 | G109: 57.179 | H109: 66.347 | I109: 65.189 | J109: 60.898 | K109: 67.32 | L109: 66.434 | N109: 22400 | O109: 64.4464 | P109: 63.995 | Q109: 67.1 | R109: 67.49 | S109: 67.767 | T109: 56.792 | U109: 65.499 | V109: 63.907 | W109: 59.864 | X109: 66.614 | Y109: 65.436

Sheet lvtemporary_87111
A1: Delta Before | B1: Delta Before | C1: Delta Before | D1: Delta Before | E1: Delta Before | F1: Delta Before | G1: Delta Before | H1: Delta Before | I1: Delta Before | J1: Delta Before | K1: Delta Before | L1: Delta Before | M1: Delta Before | N1: Delta Before | O1: Delta Before | P1: Delta Before | Q1: Delta Before | R1: Delta Before | S1: Delta Before | T1: Delta Before | U1: VM Means Before | V1: VM Means Before | W1: VM Means Before | X1: VM Means Before | Y1: VM Means Before | Z1: VM Means Before | AA1: VM Means Before | AB1: VM Means Before | AC1: VM Means Before | AD1: VM Means Before | AE1: VM Means Before | AF1: VM Means Before | AG1: VM Means Before | AH1: VM Means Before | AI1: VM Means Before | AJ1: VM Means Before | AK1: VM Means Before | AL1: VM Means Before | AM1: VM Means Before | AN1: VM Means Before | AO1: GS | AP1: GS | AQ1: GS | AR1: GS | AS1: GS | AT1: GS | AU1: GS | AV1: GS | AW1: GS | AX1: GS | AY1: GS | AZ1: GS | BA1: GS | BB1: GS | BC1: GS | BD1: GS | BE1: GS | BF1: GS | BG1: GS | BH1: GS | BI1: GS | BJ1: GS | BK1: GS | BL1: GS | BM1: GS | BN1: GS | BO1: GS | BP1: GS | BQ1: GS | BR1: GS | BS1: GS | BT1: GS | BU1: GS | BV1: GS | BW1: GS | BX1: GS | BY1: GS | BZ1: GS | CA1: GS | CB1: GS | CC1: GS | CD1: GS | CE1: GS | CF1: GS | CG1: GS | CH1: GS | CI1: GS | CJ1: GS | CK1: GS | CL1: GS | CM1: GS | CN1: GS | CO1: GS | CP1: GS | CQ1: GS | CR1: GS | CS1: GS | CT1: GS | CU1: GS | CV1: GS | CW1: GS | CX1: GS | CY1: GS | CZ1: GS | DA1: GS | DB1: GS | DC1: GS | DD1: GS | DE1: GS | DF1: GS | DG1: GS | DH1: GS | DI1: GS | DJ1: GS | DK1: GS | DL1: GS | DM1: GS | DN1: GS | DO1: GS | DP1: GS | DQ1: GS | DR1: GS | DS1: GS | DT1: GS | DU1: GS | DV1: GS | DW1: GS | DX1: GS | DY1: GS | DZ1: GS | EA1: GS | EB1: GS | EC1: GS | ED1: GS | EE1: GS | EF1: GS | EG1: GS | EH1: GS | EI1: GS | EJ1: GS | EK1: GS | EL1: GS | EM1: GS | EN1: GS | EO1: GS | EP1: GS | EQ1: GS | ER1: GS | ES1: GS | ET1: GS | EU1: GS | EV1: GS | EW1: GS | EX1: GS | EY1: GS | EZ1: GS | FA1: GS | FB1: GS | FC1: GS | FD1: GS | FE1: GS | FF1: GS | FG1: GS | FH1: GS | FI1: GS | FJ1: GS | FK1: GS | FL1: GS | FM1: GS | FN1: GS | FO1: GS | FP1: GS | FQ1: GS | FR1: GS | FS1: GS | FT1: GS | FU1: GS | FV1: GS | FW1: GS | FX1: GS | FY1: GS | FZ1: GS | GA1: GS | GB1: GS | GC1: GS | GD1: GS | GE1: GS | GF1: GS | GG1: GS | GH1: GS | GI1: GS | GJ1: GS | GK1: GS | GL1: GS | GM1: GS | GN1: GS | GO1: GS | GP1: GS | GQ1: GS | GR1: GS | GS1: GS | GT1: GS | GU1: GS | GV1: GS | GW1: GS | GX1: GS | GY1: GS | GZ1: GS | HA1: GS | HB1: GS | HC1: GS | HD1: GS | HE1: GS | HF1: GS | HG1: GS | HH1: GS | HI1: GS | HJ1: GS | HK1: GS | HL1: GS | HM1: GS | HN1: GS | HO1: GS | HP1: GS | HQ1: GS | HR1: GS | HS1: GS | HT1: GS | HU1: GS | HV1: GS | HW1: GS | HX1: GS | HY1: GS | HZ1: GS | IA1: GS | IB1: GS | IC1: GS | ID1: GS | IE1: GS | IF1: GS | IG1: VM | IH1: VM | II1: VM | IJ1: VM | IK1: VM | IL1: VM | IM1: VM | IN1: VM | IO1: VM | IP1: VM | IQ1: VM | IR1: VM | IS1: VM | IT1: VM | IU1: VM | IV1: VM | IW1: VM | IX1: VM | IY1: VM | IZ1: VM | JA1: VM | JB1: VM | JC1: VM | JD1: VM | JE1: VM | JF1: VM | JG1: VM | JH1: VM | JI1: VM | JJ1: VM | JK1: VM | JL1: VM | JM1: VM | JN1: VM | JO1: VM | JP1: VM | JQ1: VM | JR1: VM | JS1: VM | JT1: VM | JU1: VM | JV1: VM | JW1: VM | JX1: VM | JY1: VM | JZ1: VM | KA1: VM | KB1: VM | KC1: VM | KD1: VM | KE1: VM | KF1: VM | KG1: VM | KH1: VM | KI1: VM | KJ1: VM | KK1: VM | KL1: VM | KM1: VM | KN1: VM | KO1: VM | KP1: VM | KQ1: VM | KR1: VM | KS1: VM | KT1: VM | KU1: VM | KV1: VM | KW1: VM | KX1: VM | KY1: VM | KZ1: VM | LA1: VM | LB1: VM | LC1: VM | LD1: VM | LE1: VM | LF1: VM | LG1: VM | LH1: VM | LI1: VM | LJ1: VM | LK1: VM | LL1: VM | LM1: VM | LN1: VM | LO1: VM | LP1: VM | LQ1: VM | LR1: VM | LS1: VM | LT1: VM | LU1: VM | LV1: VM | LW1: VM | LX1: VM | LY1: VM | LZ1: VM | MA1: VM | MB1: VM | MC1: VM | MD1: VM | ME1: VM | MF1: VM | MG1: VM | MH1: VM | MI1: VM | MJ1: VM | MK1: VM | ML1: VM | MM1: VM | MN1: VM | MO1: VM | MP1: VM | MQ1: VM | MR1: VM | MS1: VM | MT1: VM | MU1: VM | MV1: VM | MW1: VM | MX1: VM | MY1: VM | MZ1: VM | NA1: VM | NB1: VM | NC1: VM | ND1: VM | NE1: VM | NF1: VM | NG1: VM | NH1: VM | NI1: VM | NJ1: VM | NK1: VM | NL1: VM | NM1: VM | NN1: VM | NO1: VM | NP1: VM | NQ1: VM | NR1: VM | NS1: VM | NT1: VM | NU1: VM | NV1: VM | NW1: VM | NX1: VM | NY1: VM | NZ1: VM | OA1: VM | OB1: VM | OC1: VM | OD1: VM | OE1: VM | OF1: VM | OG1: VM | OH1: VM | OI1: VM | OJ1: VM | OK1: VM | OL1: VM | OM1: VM | ON1: VM | OO1: VM | OP1: VM | OQ1: VM | OR1: VM | OS1: VM | OT1: VM | OU1: VM | OV1: VM | OW1: VM | OX1: VM | OY1: VM | OZ1: VM | PA1: VM | PB1: VM | PC1: VM | PD1: VM | PE1: VM | PF1: VM | PG1: VM | PH1: VM | PI1: VM | PJ1: VM | PK1: VM | PL1: VM | PM1: VM | PN1: VM | PO1: VM | PP1: VM | PQ1: VM | PR1: VM | PS1: VM | PT1: VM | PU1: VM | PV1: VM | PW1: VM | PX1: VM
A2: Frequency | B2: FR - Smoothed DUTL Left | C2: Frequency | D2: FR - Smoothed DUTL Right | E2: Frequency | F2: FR - Smoothed DUTL Mic1 | G2: Frequency | H2: FR - Smoothed DUTL Mic2 | I2: Frequency | J2: FR - Smoothed DUTL Mic3 | K2: Frequency | L2: FR - Smoothed DUTL Mic4 | M2: Frequency | N2: FR - Smoothed Self DUTL Mic1 | O2: Frequency | P2: FR - Smoothed Self DUTL Mic2 | Q2: Frequency | R2: FR - Smoothed Self DUTL Mic3 | S2: Frequency | T2: FR - Smoothed Self DUTL Mic4 | U2: Frequency | V2: FR - Smoothed DUTL Left | W2: Frequency | X2: FR - Smoothed DUTL Right | Y2: Frequency | Z2: FR - Smoothed DUTL Mic1 | AA2: Frequency | AB2: FR - Smoothed DUTL Mic2 | AC2: Frequency | AD2: FR - Smoothed DUTL Mic3 | AE2: Frequency | AF2: FR - Smoothed DUTL Mic4 | AG2: Frequency | AH2: FR - Smoothed Self DUTL Mic1 | AI2: Frequency | AJ2: FR - Smoothed Self DUTL Mic2 | AK2: Frequency | AL2: FR - Smoothed Self DUTL Mic3 | AM2: Frequency | AN2: FR - Smoothed Self DUTL Mic4 | AO2: Frequency | AP2: FR - Smoothed DUTL Left | AQ2: Frequency | AR2: FR - Smoothed DUTL Left | AS2: Frequency | AT2: FR - Smoothed DUTL Left | AU2: Frequency | AV2: FR - Smoothed DUTL Left | AW2: Frequency | AX2: FR - Smoothed DUTL Left | AY2: Frequency | AZ2: FR - Smoothed DUTL Left | BA2: Frequency | BB2: FR - Smoothed DUTL Left | BC2: Frequency | BD2: FR - Smoothed DUTL Left | BE2: Frequency | BF2: FR - Smoothed DUTL Left | BG2: Frequency | BH2: FR - Smoothed DUTL Left | BI2: Frequency | BJ2: FR - Smoothed DUTL Right | BK2: Frequency | BL2: FR - Smoothed DUTL Right | BM2: Frequency | BN2: FR - Smoothed DUTL Right | BO2: Frequency | BP2: FR - Smoothed DUTL Right | BQ2: Frequency | BR2: FR - Smoothed DUTL Right | BS2: Frequency | BT2: FR - Smoothed DUTL Right | BU2: Frequency | BV2: FR - Smoothed DUTL Right | BW2: Frequency | BX2: FR - Smoothed DUTL Right | BY2: Frequency | BZ2: FR - Smoothed DUTL Right | CA2: Frequency | CB2: FR - Smoothed DUTL Right | CC2: Frequency | CD2: FR - Smoothed DUTL Mic1 | CE2: Frequency | CF2: FR - Smoothed DUTL Mic1 | CG2: Frequency | CH2: FR - Smoothed DUTL Mic1 | CI2: Frequency | CJ2: FR - Smoothed DUTL Mic1 | CK2: Frequency | CL2: FR - Smoothed DUTL Mic1 | CM2: Frequency | CN2: FR - Smoothed DUTL Mic1 | CO2: Frequency | CP2: FR - Smoothed DUTL Mic1 | CQ2: Frequency | CR2: FR - Smoothed DUTL Mic1 | CS2: Frequency | CT2: FR - Smoothed DUTL Mic1 | CU2: Frequency | CV2: FR - Smoothed DUTL Mic1 | CW2: Frequency | CX2: FR - Smoothed DUTL Mic2 | CY2: Frequency | CZ2: FR - Smoothed DUTL Mic2 | DA2: Frequency | DB2: FR - Smoothed DUTL Mic2 | DC2: Frequency | DD2: FR - Smoothed DUTL Mic2 | DE2: Frequency | DF2: FR - Smoothed DUTL Mic2 | DG2: Frequency | DH2: FR - Smoothed DUTL Mic2 | DI2: Frequency | DJ2: FR - Smoothed DUTL Mic2 | DK2: Frequency | DL2: FR - Smoothed DUTL Mic2 | DM2: Frequency | DN2: FR - Smoothed DUTL Mic2 | DO2: Frequency | DP2: FR - Smoothed DUTL Mic2 | DQ2: Frequency | DR2: FR - Smoothed DUTL Mic3 | DS2: Frequency | DT2: FR - Smoothed DUTL Mic3 | DU2: Frequency | DV2: FR - Smoothed DUTL Mic3 | DW2: Frequency | DX2: FR - Smoothed DUTL Mic3 | DY2: Frequency | DZ2: FR - Smoothed DUTL Mic3 | EA2: Frequency | EB2: FR - Smoothed DUTL Mic3 | EC2: Frequency | ED2: FR - Smoothed DUTL Mic3 | EE2: Frequency | EF2: FR - Smoothed DUTL Mic3 | EG2: Frequency | EH2: FR - Smoothed DUTL Mic3 | EI2: Frequency | EJ2: FR - Smoothed DUTL Mic3 | EK2: Frequency | EL2: FR - Smoothed DUTL Mic4 | EM2: Frequency | EN2: FR - Smoothed DUTL Mic4 | EO2: Frequency | EP2: FR - Smoothed DUTL Mic4 | EQ2: Frequency | ER2: FR - Smoothed DUTL Mic4 | ES2: Frequency | ET2: FR - Smoothed DUTL Mic4 | EU2: Frequency | EV2: FR - Smoothed DUTL Mic4 | EW2: Frequency | EX2: FR - Smoothed DUTL Mic4 | EY2: Frequency | EZ2: FR - Smoothed DUTL Mic4 | FA2: Frequency | FB2: FR - Smoothed DUTL Mic4 | FC2: Frequency | FD2: FR - Smoothed DUTL Mic4 | FE2: Frequency | FF2: FR - Smoothed Self DUTL Mic1 | FG2: Frequency | FH2: FR - Smoothed Self DUTL Mic1 | FI2: Frequency | FJ2: FR - Smoothed Self DUTL Mic1 | FK2: Frequency | FL2: FR - Smoothed Self DUTL Mic1 | FM2: Frequency | FN2: FR - Smoothed Self DUTL Mic1 | FO2: Frequency | FP2: FR - Smoothed Self DUTL Mic1 | FQ2: Frequency | FR2: FR - Smoothed Self DUTL Mic1 | FS2: Frequency | FT2: FR - Smoothed Self DUTL Mic1 | FU2: Frequency | FV2: FR - Smoothed Self DUTL Mic1 | FW2: Frequency | FX2: FR - Smoothed Self DUTL Mic1 | FY2: Frequency | FZ2: FR - Smoothed Self DUTL Mic2 | GA2: Frequency | GB2: FR - Smoothed Self DUTL Mic2 | GC2: Frequency | GD2: FR - Smoothed Self DUTL Mic2 | GE2: Frequency | GF2: FR - Smoothed Self DUTL Mic2 | GG2: Frequency | GH2: FR - Smoothed Self DUTL Mic2 | GI2: Frequency | GJ2: FR - Smoothed Self DUTL Mic2 | GK2: Frequency | GL2: FR - Smoothed Self DUTL Mic2 | GM2: Frequency | GN2: FR - Smoothed Self DUTL Mic2 | GO2: Frequency | GP2: FR - Smoothed Self DUTL Mic2 | GQ2: Frequency | GR2: FR - Smoothed Self DUTL Mic2 | GS2: Frequency | GT2: FR - Smoothed Self DUTL Mic3 | GU2: Frequency | GV2: FR - Smoothed Self DUTL Mic3 | GW2: Frequency | GX2: FR - Smoothed Self DUTL Mic3 | GY2: Frequency | GZ2: FR - Smoothed Self DUTL Mic3 | HA2: Frequency | HB2: FR - Smoothed Self DUTL Mic3 | HC2: Frequency | HD2: FR - Smoothed Self DUTL Mic3 | HE2: Frequency | HF2: FR - Smoothed Self DUTL Mic3 | HG2: Frequency | HH2: FR - Smoothed Self DUTL Mic3 | HI2: Frequency | HJ2: FR - Smoothed Self DUTL Mic3 | HK2: Frequency | HL2: FR - Smoothed Self DUTL Mic3 | HM2: Frequency | HN2: FR - Smoothed Self DUTL Mic4 | HO2: Frequency | HP2: FR - Smoothed Self DUTL Mic4 | HQ2: Frequency | HR2: FR - Smoothed Self DUTL Mic4 | HS2: Frequency | HT2: FR - Smoothed Self DUTL Mic4 | HU2: Frequency | HV2: FR - Smoothed Self DUTL Mic4 | HW2: Frequency | HX2: FR - Smoothed Self DUTL Mic4 | HY2: Frequency | HZ2: FR - Smoothed Self DUTL Mic4 | IA2: Frequency | IB2: FR - Smoothed Self DUTL Mic4 | IC2: Frequency | ID2: FR - Smoothed Self DUTL Mic4 | IE2: Frequency | IF2: FR - Smoothed Self DUTL Mic4 | IG2: Frequency | IH2: FR - Smoothed DUTL Left | II2: Frequency | IJ2: FR - Smoothed DUTL Left | IK2: Frequency | IL2: FR - Smoothed DUTL Left | IM2: Frequency | IN2: FR - Smoothed DUTL Left | IO2: Frequency | IP2: FR - Smoothed DUTL Left | IQ2: Frequency | IR2: FR - Smoothed DUTL Left | IS2: Frequency | IT2: FR - Smoothed DUTL Left | IU2: Frequency | IV2: FR - Smoothed DUTL Left | IW2: Frequency | IX2: FR - Smoothed DUTL Left | IY2: Frequency | IZ2: FR - Smoothed DUTL Left | JA2: Frequency | JB2: FR - Smoothed DUTL Right | JC2: Frequency | JD2: FR - Smoothed DUTL Right | JE2: Frequency | JF2: FR - Smoothed DUTL Right | JG2: Frequency | JH2: FR - Smoothed DUTL Right | JI2: Frequency | JJ2: FR - Smoothed DUTL Right | JK2: Frequency | JL2: FR - Smoothed DUTL Right | JM2: Frequency | JN2: FR - Smoothed DUTL Right | JO2: Frequency | JP2: FR - Smoothed DUTL Right | JQ2: Frequency | JR2: FR - Smoothed DUTL Right | JS2: Frequency | JT2: FR - Smoothed DUTL Right | JU2: Frequency | JV2: FR - Smoothed DUTL Mic1 | JW2: Frequency | JX2: FR - Smoothed DUTL Mic1 | JY2: Frequency | JZ2: FR - Smoothed DUTL Mic1 | KA2: Frequency | KB2: FR - Smoothed DUTL Mic1 | KC2: Frequency | KD2: FR - Smoothed DUTL Mic1 | KE2: Frequency | KF2: FR - Smoothed DUTL Mic1 | KG2: Frequency | KH2: FR - Smoothed DUTL Mic1 | KI2: Frequency | KJ2: FR - Smoothed DUTL Mic1 | KK2: Frequency | KL2: FR - Smoothed DUTL Mic1 | KM2: Frequency | KN2: FR - Smoothed DUTL Mic1 | KO2: Frequency | KP2: FR - Smoothed DUTL Mic2 | KQ2: Frequency | KR2: FR - Smoothed DUTL Mic2 | KS2: Frequency | KT2: FR - Smoothed DUTL Mic2 | KU2: Frequency | KV2: FR - Smoothed DUTL Mic2 | KW2: Frequency | KX2: FR - Smoothed DUTL Mic2 | KY2: Frequency | KZ2: FR - Smoothed DUTL Mic2 | LA2: Frequency | LB2: FR - Smoothed DUTL Mic2 | LC2: Frequency | LD2: FR - Smoothed DUTL Mic2 | LE2: Frequency | LF2: FR - Smoothed DUTL Mic2 | LG2: Frequency | LH2: FR - Smoothed DUTL Mic2 | LI2: Frequency | LJ2: FR - Smoothed DUTL Mic3 | LK2: Frequency | LL2: FR - Smoothed DUTL Mic3 | LM2: Frequency | LN2: FR - Smoothed DUTL Mic3 | LO2: Frequency | LP2: FR - Smoothed DUTL Mic3 | LQ2: Frequency | LR2: FR - Smoothed DUTL Mic3 | LS2: Frequency | LT2: FR - Smoothed DUTL Mic3 | LU2: Frequency | LV2: FR - Smoothed DUTL Mic3 | LW2: Frequency | LX2: FR - Smoothed DUTL Mic3 | LY2: Frequency | LZ2: FR - Smoothed DUTL Mic3 | MA2: Frequency | MB2: FR - Smoothed DUTL Mic3 | MC2: Frequency | MD2: FR - Smoothed DUTL Mic4 | ME2: Frequency | MF2: FR - Smoothed DUTL Mic4 | MG2: Frequency | MH2: FR - Smoothed DUTL Mic4 | MI2: Frequency | MJ2: FR - Smoothed DUTL Mic4 | MK2: Frequency | ML2: FR - Smoothed DUTL Mic4 | MM2: Frequency | MN2: FR - Smoothed DUTL Mic4 | MO2: Frequency | MP2: FR - Smoothed DUTL Mic4 | MQ2: Frequency | MR2: FR - Smoothed DUTL Mic4 | MS2: Frequency | MT2: FR - Smoothed DUTL Mic4 | MU2: Frequency | MV2: FR - Smoothed DUTL Mic4 | MW2: Frequency | MX2: FR - Smoothed Self DUTL Mic1 | MY2: Frequency | MZ2: FR - Smoothed Self DUTL Mic1 | NA2: Frequency | NB2: FR - Smoothed Self DUTL Mic1 | NC2: Frequency | ND2: FR - Smoothed Self DUTL Mic1 | NE2: Frequency | NF2: FR - Smoothed Self DUTL Mic1 | NG2: Frequency | NH2: FR - Smoothed Self DUTL Mic1 | NI2: Frequency | NJ2: FR - Smoothed Self DUTL Mic1 | NK2: Frequency | NL2: FR - Smoothed Self DUTL Mic1 | NM2: Frequency | NN2: FR - Smoothed Self DUTL Mic1 | NO2: Frequency | NP2: FR - Smoothed Self DUTL Mic1 | NQ2: Frequency | NR2: FR - Smoothed Self DUTL Mic2 | NS2: Frequency | NT2: FR - Smoothed Self DUTL Mic2 | NU2: Frequency | NV2: FR - Smoothed Self DUTL Mic2 | NW2: Frequency | NX2: FR - Smoothed Self DUTL Mic2 | NY2: Frequency | NZ2: FR - Smoothed Self DUTL Mic2 | OA2: Frequency | OB2: FR - Smoothed Self DUTL Mic2 | OC2: Frequency | OD2: FR - Smoothed Self DUTL Mic2 | OE2: Frequency | OF2: FR - Smoothed Self DUTL Mic2 | OG2: Frequency | OH2: FR - Smoothed Self DUTL Mic2 | OI2: Frequency | OJ2: FR - Smoothed Self DUTL Mic2 | OK2: Frequency | OL2: FR - Smoothed Self DUTL Mic3 | OM2: Frequency | ON2: FR - Smoothed Self DUTL Mic3 | OO2: Frequency | OP2: FR - Smoothed Self DUTL Mic3 | OQ2: Frequency | OR2: FR - Smoothed Self DUTL Mic3 | OS2: Frequency | OT2: FR - Smoothed Self DUTL Mic3 | OU2: Frequency | OV2: FR - Smoothed Self DUTL Mic3 | OW2: Frequency | OX2: FR - Smoothed Self DUTL Mic3 | OY2: Frequency | OZ2: FR - Smoothed Self DUTL Mic3 | PA2: Frequency | PB2: FR - Smoothed Self DUTL Mic3 | PC2: Frequency | PD2: FR - Smoothed Self DUTL Mic3 | PE2: Frequency | PF2: FR - Smoothed Self DUTL Mic4 | PG2: Frequency | PH2: FR - Smoothed Self DUTL Mic4 | PI2: Frequency | PJ2: FR - Smoothed Self DUTL Mic4 | PK2: Frequency | PL2: FR - Smoothed Self DUTL Mic4 | PM2: Frequency | PN2: FR - Smoothed Self DUTL Mic4 | PO2: Frequency | PP2: FR - Smoothed Self DUTL Mic4 | PQ2: Frequency | PR2: FR - Smoothed Self DUTL Mic4 | PS2: Frequency | PT2: FR - Smoothed Self DUTL Mic4 | PU2: Frequency | PV2: FR - Smoothed Self DUTL Mic4 | PW2: Frequency | PX2: FR - Smoothed Self DUTL Mic4
A3: 50 | B3: -0.284 | C3: 50 | D3: -0.392 | E3: 0 | F3: 0 | G3: 0 | H3: 0 | I3: 0 | J3: 0 | K3: 0 | L3: 0 | M3: 50 | N3: -0.204 | O3: 50 | P3: -0.378 | Q3: 50 | R3: -0.679 | S3: 50 | T3: -0.357 | U3: 50 | V3: 84.749 | W3: 50 | X3: 85.957 | Y3: 0 | Z3: 93.979 | AA3: 0 | AB3: 93.979 | AC3: 0 | AD3: 93.979 | AE3: 0 | AF3: 93.979 | AG3: 50 | AH3: 71.678 | AI3: 50 | AJ3: 69.91 | AK3: 50 | AL3: 72.179 | AM3: 50 | AN3: 70.61 | AO3: 50 | AP3: 84.395 | AQ3: 50 | AR3: 84.596 | AS3: 50 | AT3: 84.34 | AU3: 50 | AV3: 84.536 | AW3: 50 | AX3: 84.323 | AY3: 50 | AZ3: 84.466 | BA3: 50 | BB3: 84.337 | BC3: 50 | BD3: 84.282 | BE3: 50 | BF3: 84.498 | BG3: 50 | BH3: 84.87 | BI3: 50 | BJ3: 85.437 | BK3: 50 | BL3: 85.724 | BM3: 50 | BN3: 85.543 | BO3: 50 | BP3: 85.661 | BQ3: 50 | BR3: 85.403 | BS3: 50 | BT3: 85.606 | BU3: 50 | BV3: 85.477 | BW3: 50 | BX3: 85.399 | BY3: 50 | BZ3: 85.525 | CA3: 50 | CB3: 85.867 | CC3: 0 | CD3: 93.979 | CE3: 0 | CF3: 93.979 | CG3: 0 | CH3: 93.979 | CI3: 0 | CJ3: 93.979 | CK3: 0 | CL3: 93.979 | CM3: 0 | CN3: 93.979 | CO3: 0 | CP3: 93.979 | CQ3: 0 | CR3: 93.979 | CS3: 0 | CT3: 93.979 | CU3: 0 | CV3: 93.979 | CW3: 0 | CX3: 93.979 | CY3: 0 | CZ3: 93.979 | DA3: 0 | DB3: 93.979 | DC3: 0 | DD3: 93.979 | DE3: 0 | DF3: 93.979 | DG3: 0 | DH3: 93.979 | DI3: 0 | DJ3: 93.979 | DK3: 0 | DL3: 93.979 | DM3: 0 | DN3: 93.979 | DO3: 0 | DP3: 93.979 | DQ3: 0 | DR3: 93.979 | DS3: 0 | DT3: 93.979 | DU3: 0 | DV3: 93.979 | DW3: 0 | DX3: 93.979 | DY3: 0 | DZ3: 93.979 | EA3: 0 | EB3: 93.979 | EC3: 0 | ED3: 93.979 | EE3: 0 | EF3: 93.979 | EG3: 0 | EH3: 93.979 | EI3: 0 | EJ3: 93.979 | EK3: 0 | EL3: 93.979 | EM3: 0 | EN3: 93.979 | EO3: 0 | EP3: 93.979 | EQ3: 0 | ER3: 93.979 | ES3: 0 | ET3: 93.979 | EU3: 0 | EV3: 93.979 | EW3: 0 | EX3: 93.979 | EY3: 0 | EZ3: 93.979 | FA3: 0 | FB3: 93.979 | FC3: 0 | FD3: 93.979 | FE3: 50 | FF3: 71.321 | FG3: 50 | FH3: 71.591 | FI3: 50 | FJ3: 71.502 | FK3: 50 | FL3: 71.531 | FM3: 50 | FN3: 71.332 | FO3: 50 | FP3: 71.56 | FQ3: 50 | FR3: 71.356 | FS3: 50 | FT3: 71.339 | FU3: 50 | FV3: 71.495 | FW3: 50 | FX3: 71.707 | FY3: 50 | FZ3: 69.355 | GA3: 50 | GB3: 69.64 | GC3: 50 | GD3: 69.56 | GE3: 50 | GF3: 69.637 | GG3: 50 | GH3: 69.316 | GI3: 50 | GJ3: 69.629 | GK3: 50 | GL3: 69.378 | GM3: 50 | GN3: 69.347 | GO3: 50 | GP3: 69.574 | GQ3: 50 | GR3: 69.885 | GS3: 50 | GT3: 71.326 | GU3: 50 | GV3: 71.604 | GW3: 50 | GX3: 71.565 | GY3: 50 | GZ3: 71.569 | HA3: 50 | HB3: 71.345 | HC3: 50 | HD3: 71.597 | HE3: 50 | HF3: 71.379 | HG3: 50 | HH3: 71.359 | HI3: 50 | HJ3: 71.516 | HK3: 50 | HL3: 71.738 | HM3: 50 | HN3: 70.058 | HO3: 50 | HP3: 70.351 | HQ3: 50 | HR3: 70.334 | HS3: 50 | HT3: 70.35 | HU3: 50 | HV3: 70.049 | HW3: 50 | HX3: 70.351 | HY3: 50 | HZ3: 70.102 | IA3: 50 | IB3: 70.081 | IC3: 50 | ID3: 70.291 | IE3: 50 | IF3: 70.562 | IG3: 50 | IH3: 84.864 | II3: 50 | IJ3: 85.006 | IK3: 50 | IL3: 84.71 | IM3: 50 | IN3: 84.732 | IO3: 50 | IP3: 84.678 | IQ3: 50 | IR3: 84.706 | IS3: 50 | IT3: 84.58 | IU3: 50 | IV3: 84.829 | IW3: 50 | IX3: 84.668 | IY3: 50 | IZ3: 84.714 | JA3: 50 | JB3: 86.024 | JC3: 50 | JD3: 86.283 | JE3: 50 | JF3: 85.863 | JG3: 50 | JH3: 85.95 | JI3: 50 | JJ3: 85.876 | JK3: 50 | JL3: 86.005 | JM3: 50 | JN3: 85.916 | JO3: 50 | JP3: 85.998 | JQ3: 50 | JR3: 85.822 | JS3: 50 | JT3: 85.83 | JU3: 0 | JV3: 93.979 | JW3: 0 | JX3: 93.979 | JY3: 0 | JZ3: 93.979 | KA3: 0 | KB3: 93.979 | KC3: 0 | KD3: 93.979 | KE3: 0 | KF3: 93.979 | KG3: 0 | KH3: 93.979 | KI3: 0 | KJ3: 93.979 | KK3: 0 | KL3: 93.979 | KM3: 0 | KN3: 93.979 | KO3: 0 | KP3: 93.979 | KQ3: 0 | KR3: 93.979 | KS3: 0 | KT3: 93.979 | KU3: 0 | KV3: 93.979 | KW3: 0 | KX3: 93.979 | KY3: 0 | KZ3: 93.979 | LA3: 0 | LB3: 93.979 | LC3: 0 | LD3: 93.979 | LE3: 0 | LF3: 93.979 | LG3: 0 | LH3: 93.979 | LI3: 0 | LJ3: 93.979 | LK3: 0 | LL3: 93.979 | LM3: 0 | LN3: 93.979 | LO3: 0 | LP3: 93.979 | LQ3: 0 | LR3: 93.979 | LS3: 0 | LT3: 93.979 | LU3: 0 | LV3: 93.979 | LW3: 0 | LX3: 93.979 | LY3: 0 | LZ3: 93.979 | MA3: 0 | MB3: 93.979 | MC3: 0 | MD3: 93.979 | ME3: 0 | MF3: 93.979 | MG3: 0 | MH3: 93.979 | MI3: 0 | MJ3: 93.979 | MK3: 0 | ML3: 93.979 | MM3: 0 | MN3: 93.979 | MO3: 0 | MP3: 93.979 | MQ3: 0 | MR3: 93.979 | MS3: 0 | MT3: 93.979 | MU3: 0 | MV3: 93.979 | MW3: 50 | MX3: 71.68 | MY3: 50 | MZ3: 71.914 | NA3: 50 | NB3: 71.608 | NC3: 50 | ND3: 71.784 | NE3: 50 | NF3: 71.667 | NG3: 50 | NH3: 71.94 | NI3: 50 | NJ3: 71.809 | NK3: 50 | NL3: 71.69 | NM3: 50 | NN3: 71.104 | NO3: 50 | NP3: 71.58 | NQ3: 50 | NR3: 69.914 | NS3: 50 | NT3: 70.201 | NU3: 50 | NV3: 69.827 | NW3: 50 | NX3: 70.014 | NY3: 50 | NZ3: 69.85 | OA3: 50 | OB3: 70.157 | OC3: 50 | OD3: 70.024 | OE3: 50 | OF3: 69.993 | OG3: 50 | OH3: 69.299 | OI3: 50 | OJ3: 69.82 | OK3: 50 | OL3: 72.165 | OM3: 50 | ON3: 72.426 | OO3: 50 | OP3: 72.098 | OQ3: 50 | OR3: 72.296 | OS3: 50 | OT3: 72.155 | OU3: 50 | OV3: 72.429 | OW3: 50 | OX3: 72.336 | OY3: 50 | OZ3: 72.189 | PA3: 50 | PB3: 71.607 | PC3: 50 | PD3: 72.085 | PE3: 50 | PF3: 70.609 | PG3: 50 | PH3: 70.901 | PI3: 50 | PJ3: 70.522 | PK3: 50 | PL3: 70.727 | PM3: 50 | PN3: 70.553 | PO3: 50 | PP3: 70.855 | PQ3: 50 | PR3: 70.753 | PS3: 50 | PT3: 70.679 | PU3: 50 | PV3: 69.991 | PW3: 50 | PX3: 70.506
A4: 53 | B4: -0.379 | C4: 53 | D4: -0.384 | E4: 0 | F4: 0 | G4: 0 | H4: 0 | I4: 0 | J4: 0 | K4: 0 | L4: 0 | M4: 53 | N4: -0.144 | O4: 53 | P4: -0.275 | Q4: 53 | R4: -0.526 | S4: 53 | T4: -0.27 | U4: 53 | V4: 88.058 | W4: 53 | X4: 89.164 | Y4: 0 | Z4: 93.979 | AA4: 0 | AB4: 93.979 | AC4: 0 | AD4: 93.979 | AE4: 0 | AF4: 93.979 | AG4: 53 | AH4: 74.491 | AI4: 53 | AJ4: 73.024 | AK4: 53 | AL4: 74.951 | AM4: 53 | AN4: 73.577 | AO4: 53 | AP4: 87.552 | AQ4: 53 | AR4: 87.64 | AS4: 53 | AT4: 87.686 | AU4: 53 | AV4: 87.676 | AW4: 53 | AX4: 87.577 | AY4: 53 | AZ4: 87.715 | BA4: 53 | BB4: 87.605 | BC4: 53 | BD4: 87.717 | BE4: 53 | BF4: 87.811 | BG4: 53 | BH4: 87.812 | BI4: 53 | BJ4: 88.64 | BK4: 53 | BL4: 88.763 | BM4: 53 | BN4: 88.794 | BO4: 53 | BP4: 88.812 | BQ4: 53 | BR4: 88.684 | BS4: 53 | BT4: 88.825 | BU4: 53 | BV4: 88.739 | BW4: 53 | BX4: 88.804 | BY4: 53 | BZ4: 88.876 | CA4: 53 | CB4: 88.859 | CC4: 0 | CD4: 93.979 | CE4: 0 | CF4: 93.979 | CG4: 0 | CH4: 93.979 | CI4: 0 | CJ4: 93.979 | CK4: 0 | CL4: 93.979 | CM4: 0 | CN4: 93.979 | CO4: 0 | CP4: 93.979 | CQ4: 0 | CR4: 93.979 | CS4: 0 | CT4: 93.979 | CU4: 0 | CV4: 93.979 | CW4: 0 | CX4: 93.979 | CY4: 0 | CZ4: 93.979 | DA4: 0 | DB4: 93.979 | DC4: 0 | DD4: 93.979 | DE4: 0 | DF4: 93.979 | DG4: 0 | DH4: 93.979 | DI4: 0 | DJ4: 93.979 | DK4: 0 | DL4: 93.979 | DM4: 0 | DN4: 93.979 | DO4: 0 | DP4: 93.979 | DQ4: 0 | DR4: 93.979 | DS4: 0 | DT4: 93.979 | DU4: 0 | DV4: 93.979 | DW4: 0 | DX4: 93.979 | DY4: 0 | DZ4: 93.979 | EA4: 0 | EB4: 93.979 | EC4: 0 | ED4: 93.979 | EE4: 0 | EF4: 93.979 | EG4: 0 | EH4: 93.979 | EI4: 0 | EJ4: 93.979 | EK4: 0 | EL4: 93.979 | EM4: 0 | EN4: 93.979 | EO4: 0 | EP4: 93.979 | EQ4: 0 | ER4: 93.979 | ES4: 0 | ET4: 93.979 | EU4: 0 | EV4: 93.979 | EW4: 0 | EX4: 93.979 | EY4: 0 | EZ4: 93.979 | FA4: 0 | FB4: 93.979 | FC4: 0 | FD4: 93.979 | FE4: 53 | FF4: 74.286 | FG4: 53 | FH4: 74.326 | FI4: 53 | FJ4: 74.33 | FK4: 53 | FL4: 74.364 | FM4: 53 | FN4: 74.266 | FO4: 53 | FP4: 74.421 | FQ4: 53 | FR4: 74.295 | FS4: 53 | FT4: 74.361 | FU4: 53 | FV4: 74.439 | FW4: 53 | FX4: 74.381 | FY4: 53 | FZ4: 72.636 | GA4: 53 | GB4: 72.706 | GC4: 53 | GD4: 72.752 | GE4: 53 | GF4: 72.778 | GG4: 53 | GH4: 72.632 | GI4: 53 | GJ4: 72.826 | GK4: 53 | GL4: 72.682 | GM4: 53 | GN4: 72.768 | GO4: 53 | GP4: 72.877 | GQ4: 53 | GR4: 72.828 | GS4: 53 | GT4: 74.348 | GU4: 53 | GV4: 74.4 | GW4: 53 | GX4: 74.427 | GY4: 53 | GZ4: 74.45 | HA4: 53 | HB4: 74.338 | HC4: 53 | HD4: 74.503 | HE4: 53 | HF4: 74.383 | HG4: 53 | HH4: 74.427 | HI4: 53 | HJ4: 74.515 | HK4: 53 | HL4: 74.459 | HM4: 53 | HN4: 73.203 | HO4: 53 | HP4: 73.266 | HQ4: 53 | HR4: 73.334 | HS4: 53 | HT4: 73.337 | HU4: 53 | HV4: 73.199 | HW4: 53 | HX4: 73.385 | HY4: 53 | HZ4: 73.239 | IA4: 53 | IB4: 73.311 | IC4: 53 | ID4: 73.423 | IE4: 53 | IF4: 73.369 | IG4: 53 | IH4: 88.016 | II4: 53 | IJ4: 88.105 | IK4: 53 | IL4: 88.016 | IM4: 53 | IN4: 88.107 | IO4: 53 | IP4: 87.929 | IQ4: 53 | IR4: 88.197 | IS4: 53 | IT4: 88.164 | IU4: 53 | IV4: 88.073 | IW4: 53 | IX4: 87.944 | IY4: 53 | IZ4: 88.027 | JA4: 53 | JB4: 89.105 | JC4: 53 | JD4: 89.234 | JE4: 53 | JF4: 89.107 | JG4: 53 | JH4: 89.2 | JI4: 53 | JJ4: 89.053 | JK4: 53 | JL4: 89.286 | JM4: 53 | JN4: 89.285 | JO4: 53 | JP4: 89.184 | JQ4: 53 | JR4: 89.052 | JS4: 53 | JT4: 89.131 | JU4: 0 | JV4: 93.979 | JW4: 0 | JX4: 93.979 | JY4: 0 | JZ4: 93.979 | KA4: 0 | KB4: 93.979 | KC4: 0 | KD4: 93.979 | KE4: 0 | KF4: 93.979 | KG4: 0 | KH4: 93.979 | KI4: 0 | KJ4: 93.979 | KK4: 0 | KL4: 93.979 | KM4: 0 | KN4: 93.979 | KO4: 0 | KP4: 93.979 | KQ4: 0 | KR4: 93.979 | KS4: 0 | KT4: 93.979 | KU4: 0 | KV4: 93.979 | KW4: 0 | KX4: 93.979 | KY4: 0 | KZ4: 93.979 | LA4: 0 | LB4: 93.979 | LC4: 0 | LD4: 93.979 | LE4: 0 | LF4: 93.979 | LG4: 0 | LH4: 93.979 | LI4: 0 | LJ4: 93.979 | LK4: 0 | LL4: 93.979 | LM4: 0 | LN4: 93.979 | LO4: 0 | LP4: 93.979 | LQ4: 0 | LR4: 93.979 | LS4: 0 | LT4: 93.979 | LU4: 0 | LV4: 93.979 | LW4: 0 | LX4: 93.979 | LY4: 0 | LZ4: 93.979 | MA4: 0 | MB4: 93.979 | MC4: 0 | MD4: 93.979 | ME4: 0 | MF4: 93.979 | MG4: 0 | MH4: 93.979 | MI4: 0 | MJ4: 93.979 | MK4: 0 | ML4: 93.979 | MM4: 0 | MN4: 93.979 | MO4: 0 | MP4: 93.979 | MQ4: 0 | MR4: 93.979 | MS4: 0 | MT4: 93.979 | MU4: 0 | MV4: 93.979 | MW4: 53 | MX4: 74.441 | MY4: 53 | MZ4: 74.497 | NA4: 53 | NB4: 74.429 | NC4: 53 | ND4: 74.554 | NE4: 53 | NF4: 74.421 | NG4: 53 | NH4: 74.669 | NI4: 53 | NJ4: 74.629 | NK4: 53 | NL4: 74.495 | NM4: 53 | NN4: 74.316 | NO4: 53 | NP4: 74.46 | NQ4: 53 | NR4: 72.938 | NS4: 53 | NT4: 73.043 | NU4: 53 | NV4: 72.958 | NW4: 53 | NX4: 73.092 | NY4: 53 | NZ4: 72.914 | OA4: 53 | OB4: 73.232 | OC4: 53 | OD4: 73.195 | OE4: 53 | OF4: 73.044 | OG4: 53 | OH4: 72.837 | OI4: 53 | OJ4: 72.985 | OK4: 53 | OL4: 74.885 | OM4: 53 | ON4: 74.964 | OO4: 53 | OP4: 74.889 | OQ4: 53 | OR4: 75.014 | OS4: 53 | OT4: 74.882 | OU4: 53 | OV4: 75.123 | OW4: 53 | OX4: 75.101 | OY4: 53 | OZ4: 74.957 | PA4: 53 | PB4: 74.772 | PC4: 53 | PD4: 74.923 | PE4: 53 | PF4: 73.488 | PG4: 53 | PH4: 73.599 | PI4: 53 | PJ4: 73.515 | PK4: 53 | PL4: 73.65 | PM4: 53 | PN4: 73.475 | PO4: 53 | PP4: 73.771 | PQ4: 53 | PR4: 73.752 | PS4: 53 | PT4: 73.591 | PU4: 53 | PV4: 73.386 | PW4: 53 | PX4: 73.543
A5: 56 | B5: -0.3 | C5: 56 | D5: -0.289 | E5: 0 | F5: 0 | G5: 0 | H5: 0 | I5: 0 | J5: 0 | K5: 0 | L5: 0 | M5: 56 | N5: -0.074 | O5: 56 | P5: -0.184 | Q5: 56 | R5: -0.416 | S5: 56 | T5: -0.19 | U5: 56 | V5: 89.951 | W5: 56 | X5: 90.908 | Y5: 0 | Z5: 93.979 | AA5: 0 | AB5: 93.979 | AC5: 0 | AD5: 93.979 | AE5: 0 | AF5: 93.979 | AG5: 56 | AH5: 75.961 | AI5: 56 | AJ5: 74.574 | AK5: 56 | AL5: 76.427 | AM5: 56 | AN5: 75.088 | AO5: 56 | AP5: 89.58 | AQ5: 56 | AR5: 89.62 | AS5: 56 | AT5: 89.636 | AU5: 56 | AV5: 89.662 | AW5: 56 | AX5: 89.626 | AY5: 56 | AZ5: 89.669 | BA5: 56 | BB5: 89.615 | BC5: 56 | BD5: 89.703 | BE5: 56 | BF5: 89.732 | BG5: 56 | BH5: 89.664 | BI5: 56 | BJ5: 90.535 | BK5: 56 | BL5: 90.607 | BM5: 56 | BN5: 90.616 | BO5: 56 | BP5: 90.648 | BQ5: 56 | BR5: 90.603 | BS5: 56 | BT5: 90.642 | BU5: 56 | BV5: 90.598 | BW5: 56 | BX5: 90.658 | BY5: 56 | BZ5: 90.68 | CA5: 56 | CB5: 90.606 | CC5: 0 | CD5: 93.979 | CE5: 0 | CF5: 93.979 | CG5: 0 | CH5: 93.979 | CI5: 0 | CJ5: 93.979 | CK5: 0 | CL5: 93.979 | CM5: 0 | CN5: 93.979 | CO5: 0 | CP5: 93.979 | CQ5: 0 | CR5: 93.979 | CS5: 0 | CT5: 93.979 | CU5: 0 | CV5: 93.979 | CW5: 0 | CX5: 93.979 | CY5: 0 | CZ5: 93.979 | DA5: 0 | DB5: 93.979 | DC5: 0 | DD5: 93.979 | DE5: 0 | DF5: 93.979 | DG5: 0 | DH5: 93.979 | DI5: 0 | DJ5: 93.979 | DK5: 0 | DL5: 93.979 | DM5: 0 | DN5: 93.979 | DO5: 0 | DP5: 93.979 | DQ5: 0 | DR5: 93.979 | DS5: 0 | DT5: 93.979 | DU5: 0 | DV5: 93.979 | DW5: 0 | DX5: 93.979 | DY5: 0 | DZ5: 93.979 | EA5: 0 | EB5: 93.979 | EC5: 0 | ED5: 93.979 | EE5: 0 | EF5: 93.979 | EG5: 0 | EH5: 93.979 | EI5: 0 | EJ5: 93.979 | EK5: 0 | EL5: 93.979 | EM5: 0 | EN5: 93.979 | EO5: 0 | EP5: 93.979 | EQ5: 0 | ER5: 93.979 | ES5: 0 | ET5: 93.979 | EU5: 0 | EV5: 93.979 | EW5: 0 | EX5: 93.979 | EY5: 0 | EZ5: 93.979 | FA5: 0 | FB5: 93.979 | FC5: 0 | FD5: 93.979 | FE5: 56 | FF5: 75.903 | FG5: 56 | FH5: 75.867 | FI5: 56 | FJ5: 75.834 | FK5: 56 | FL5: 75.888 | FM5: 56 | FN5: 75.883 | FO5: 56 | FP5: 75.937 | FQ5: 56 | FR5: 75.846 | FS5: 56 | FT5: 75.912 | FU5: 56 | FV5: 75.947 | FW5: 56 | FX5: 75.859 | FY5: 56 | FZ5: 74.365 | GA5: 56 | GB5: 74.351 | GC5: 56 | GD5: 74.35 | GE5: 56 | GF5: 74.4 | GG5: 56 | GH5: 74.372 | GI5: 56 | GJ5: 74.438 | GK5: 56 | GL5: 74.329 | GM5: 56 | GN5: 74.428 | GO5: 56 | GP5: 74.484 | GQ5: 56 | GR5: 74.388 | GS5: 56 | GT5: 76.011 | GU5: 56 | GV5: 75.987 | GW5: 56 | GX5: 75.971 | GY5: 56 | GZ5: 76.013 | HA5: 56 | HB5: 76.002 | HC5: 56 | HD5: 76.06 | HE5: 56 | HF5: 75.977 | HG5: 56 | HH5: 76.024 | HI5: 56 | HJ5: 76.072 | HK5: 56 | HL5: 75.988 | HM5: 56 | HN5: 74.88 | HO5: 56 | HP5: 74.866 | HQ5: 56 | HR5: 74.876 | HS5: 56 | HT5: 74.906 | HU5: 56 | HV5: 74.883 | HW5: 56 | HX5: 74.948 | HY5: 56 | HZ5: 74.839 | IA5: 56 | IB5: 74.92 | IC5: 56 | ID5: 74.982 | IE5: 56 | IF5: 74.884 | IG5: 56 | IH5: 89.918 | II5: 56 | IJ5: 89.966 | IK5: 56 | IL5: 89.9 | IM5: 56 | IN5: 90.002 | IO5: 56 | IP5: 89.871 | IQ5: 56 | IR5: 90.081 | IS5: 56 | IT5: 90.045 | IU5: 56 | IV5: 89.901 | IW5: 56 | IX5: 89.893 | IY5: 56 | IZ5: 89.934 | JA5: 56 | JB5: 90.86 | JC5: 56 | JD5: 90.939 | JE5: 56 | JF5: 90.853 | JG5: 56 | JH5: 90.944 | JI5: 56 | JJ5: 90.841 | JK5: 56 | JL5: 91.025 | JM5: 56 | JN5: 91.008 | JO5: 56 | JP5: 90.87 | JQ5: 56 | JR5: 90.857 | JS5: 56 | JT5: 90.885 | JU5: 0 | JV5: 93.979 | JW5: 0 | JX5: 93.979 | JY5: 0 | JZ5: 93.979 | KA5: 0 | KB5: 93.979 | KC5: 0 | KD5: 93.979 | KE5: 0 | KF5: 93.979 | KG5: 0 | KH5: 93.979 | KI5: 0 | KJ5: 93.979 | KK5: 0 | KL5: 93.979 | KM5: 0 | KN5: 93.979 | KO5: 0 | KP5: 93.979 | KQ5: 0 | KR5: 93.979 | KS5: 0 | KT5: 93.979 | KU5: 0 | KV5: 93.979 | KW5: 0 | KX5: 93.979 | KY5: 0 | KZ5: 93.979 | LA5: 0 | LB5: 93.979 | LC5: 0 | LD5: 93.979 | LE5: 0 | LF5: 93.979 | LG5: 0 | LH5: 93.979 | LI5: 0 | LJ5: 93.979 | LK5: 0 | LL5: 93.979 | LM5: 0 | LN5: 93.979 | LO5: 0 | LP5: 93.979 | LQ5: 0 | LR5: 93.979 | LS5: 0 | LT5: 93.979 | LU5: 0 | LV5: 93.979 | LW5: 0 | LX5: 93.979 | LY5: 0 | LZ5: 93.979 | MA5: 0 | MB5: 93.979 | MC5: 0 | MD5: 93.979 | ME5: 0 | MF5: 93.979 | MG5: 0 | MH5: 93.979 | MI5: 0 | MJ5: 93.979 | MK5: 0 | ML5: 93.979 | MM5: 0 | MN5: 93.979 | MO5: 0 | MP5: 93.979 | MQ5: 0 | MR5: 93.979 | MS5: 0 | MT5: 93.979 | MU5: 0 | MV5: 93.979 | MW5: 56 | MX5: 75.957 | MY5: 56 | MZ5: 75.928 | NA5: 56 | NB5: 75.915 | NC5: 56 | ND5: 75.986 | NE5: 56 | NF5: 75.909 | NG5: 56 | NH5: 76.08 | NI5: 56 | NJ5: 76.046 | NK5: 56 | NL5: 75.939 | NM5: 56 | NN5: 75.868 | NO5: 56 | NP5: 75.985 | NQ5: 56 | NR5: 74.529 | NS5: 56 | NT5: 74.55 | NU5: 56 | NV5: 74.518 | NW5: 56 | NX5: 74.614 | NY5: 56 | NZ5: 74.491 | OA5: 56 | OB5: 74.733 | OC5: 56 | OD5: 74.693 | OE5: 56 | OF5: 74.543 | OG5: 56 | OH5: 74.479 | OI5: 56 | OJ5: 74.591 | OK5: 56 | OL5: 76.406 | OM5: 56 | ON5: 76.397 | OO5: 56 | OP5: 76.383 | OQ5: 56 | OR5: 76.451 | OS5: 56 | OT5: 76.378 | OU5: 56 | OV5: 76.542 | OW5: 56 | OX5: 76.52 | OY5: 56 | OZ5: 76.407 | PA5: 56 | PB5: 76.333 | PC5: 56 | PD5: 76.452 | PE5: 56 | PF5: 75.04 | PG5: 56 | PH5: 75.061 | PI5: 56 | PJ5: 75.039 | PK5: 56 | PL5: 75.127 | PM5: 56 | PN5: 75.015 | PO5: 56 | PP5: 75.232 | PQ5: 56 | PR5: 75.207 | PS5: 56 | PT5: 75.061 | PU5: 56 | PV5: 74.992 | PW5: 56 | PX5: 75.108
A6: 60 | B6: -0.27 | C6: 60 | D6: -0.245 | E6: 0 | F6: 0 | G6: 0 | H6: 0 | I6: 0 | J6: 0 | K6: 0 | L6: 0 | M6: 60 | N6: -0.025 | O6: 60 | P6: -0.125 | Q6: 60 | R6: -0.347 | S6: 60 | T6: -0.134 | U6: 60 | V6: 90.979 | W6: 60 | X6: 92.007 | Y6: 0 | Z6: 93.979 | AA6: 0 | AB6: 93.979 | AC6: 0 | AD6: 93.979 | AE6: 0 | AF6: 93.979 | AG6: 60 | AH6: 77.103 | AI6: 60 | AJ6: 75.614 | AK6: 60 | AL6: 77.599 | AM6: 60 | AN6: 76.154 | AO6: 60 | AP6: 90.656 | AQ6: 60 | AR6: 90.682 | AS6: 60 | AT6: 90.705 | AU6: 60 | AV6: 90.724 | AW6: 60 | AX6: 90.702 | AY6: 60 | AZ6: 90.714 | BA6: 60 | BB6: 90.703 | BC6: 60 | BD6: 90.771 | BE6: 60 | BF6: 90.763 | BG6: 60 | BH6: 90.673 | BI6: 60 | BJ6: 91.708 | BK6: 60 | BL6: 91.749 | BM6: 60 | BN6: 91.76 | BO6: 60 | BP6: 91.788 | BQ6: 60 | BR6: 91.765 | BS6: 60 | BT6: 91.766 | BU6: 60 | BV6: 91.763 | BW6: 60 | BX6: 91.81 | BY6: 60 | BZ6: 91.804 | CA6: 60 | CB6: 91.709 | CC6: 0 | CD6: 93.979 | CE6: 0 | CF6: 93.979 | CG6: 0 | CH6: 93.979 | CI6: 0 | CJ6: 93.979 | CK6: 0 | CL6: 93.979 | CM6: 0 | CN6: 93.979 | CO6: 0 | CP6: 93.979 | CQ6: 0 | CR6: 93.979 | CS6: 0 | CT6: 93.979 | CU6: 0 | CV6: 93.979 | CW6: 0 | CX6: 93.979 | CY6: 0 | CZ6: 93.979 | DA6: 0 | DB6: 93.979 | DC6: 0 | DD6: 93.979 | DE6: 0 | DF6: 93.979 | DG6: 0 | DH6: 93.979 | DI6: 0 | DJ6: 93.979 | DK6: 0 | DL6: 93.979 | DM6: 0 | DN6: 93.979 | DO6: 0 | DP6: 93.979 | DQ6: 0 | DR6: 93.979 | DS6: 0 | DT6: 93.979 | DU6: 0 | DV6: 93.979 | DW6: 0 | DX6: 93.979 | DY6: 0 | DZ6: 93.979 | EA6: 0 | EB6: 93.979 | EC6: 0 | ED6: 93.979 | EE6: 0 | EF6: 93.979 | EG6: 0 | EH6: 93.979 | EI6: 0 | EJ6: 93.979 | EK6: 0 | EL6: 93.979 | EM6: 0 | EN6: 93.979 | EO6: 0 | EP6: 93.979 | EQ6: 0 | ER6: 93.979 | ES6: 0 | ET6: 93.979 | EU6: 0 | EV6: 93.979 | EW6: 0 | EX6: 93.979 | EY6: 0 | EZ6: 93.979 | FA6: 0 | FB6: 93.979 | FC6: 0 | FD6: 93.979 | FE6: 60 | FF6: 77.144 | FG6: 60 | FH6: 77.067 | FI6: 60 | FJ6: 77.005 | FK6: 60 | FL6: 77.071 | FM6: 60 | FN6: 77.102 | FO6: 60 | FP6: 77.103 | FQ6: 60 | FR6: 77.054 | FS6: 60 | FT6: 77.103 | FU6: 60 | FV6: 77.11 | FW6: 60 | FX6: 77.027 | FY6: 60 | FZ6: 75.528 | GA6: 60 | GB6: 75.459 | GC6: 60 | GD6: 75.424 | GE6: 60 | GF6: 75.489 | GG6: 60 | GH6: 75.504 | GI6: 60 | GJ6: 75.508 | GK6: 60 | GL6: 75.444 | GM6: 60 | GN6: 75.531 | GO6: 60 | GP6: 75.554 | GQ6: 60 | GR6: 75.456 | GS6: 60 | GT6: 77.306 | GU6: 60 | GV6: 77.238 | GW6: 60 | GX6: 77.189 | GY6: 60 | GZ6: 77.245 | HA6: 60 | HB6: 77.271 | HC6: 60 | HD6: 77.276 | HE6: 60 | HF6: 77.232 | HG6: 60 | HH6: 77.267 | HI6: 60 | HJ6: 77.287 | HK6: 60 | HL6: 77.209 | HM6: 60 | HN6: 76.064 | HO6: 60 | HP6: 75.998 | HQ6: 60 | HR6: 75.969 | HS6: 60 | HT6: 76.017 | HU6: 60 | HV6: 76.036 | HW6: 60 | HX6: 76.042 | HY6: 60 | HZ6: 75.978 | IA6: 60 | IB6: 76.046 | IC6: 60 | ID6: 76.075 | IE6: 60 | IF6: 75.975 | IG6: 60 | IH6: 90.959 | II6: 60 | IJ6: 90.976 | IK6: 60 | IL6: 90.925 | IM6: 60 | IN6: 91.039 | IO6: 60 | IP6: 90.929 | IQ6: 60 | IR6: 91.092 | IS6: 60 | IT6: 91.072 | IU6: 60 | IV6: 90.905 | IW6: 60 | IX6: 90.933 | IY6: 60 | IZ6: 90.96 | JA6: 60 | JB6: 91.969 | JC6: 60 | JD6: 92.016 | JE6: 60 | JF6: 91.955 | JG6: 60 | JH6: 92.052 | JI6: 60 | JJ6: 91.97 | JK6: 60 | JL6: 92.107 | JM6: 60 | JN6: 92.096 | JO6: 60 | JP6: 91.951 | JQ6: 60 | JR6: 91.973 | JS6: 60 | JT6: 91.986 | JU6: 0 | JV6: 93.979 | JW6: 0 | JX6: 93.979 | JY6: 0 | JZ6: 93.979 | KA6: 0 | KB6: 93.979 | KC6: 0 | KD6: 93.979 | KE6: 0 | KF6: 93.979 | KG6: 0 | KH6: 93.979 | KI6: 0 | KJ6: 93.979 | KK6: 0 | KL6: 93.979 | KM6: 0 | KN6: 93.979 | KO6: 0 | KP6: 93.979 | KQ6: 0 | KR6: 93.979 | KS6: 0 | KT6: 93.979 | KU6: 0 | KV6: 93.979 | KW6: 0 | KX6: 93.979 | KY6: 0 | KZ6: 93.979 | LA6: 0 | LB6: 93.979 | LC6: 0 | LD6: 93.979 | LE6: 0 | LF6: 93.979 | LG6: 0 | LH6: 93.979 | LI6: 0 | LJ6: 93.979 | LK6: 0 | LL6: 93.979 | LM6: 0 | LN6: 93.979 | LO6: 0 | LP6: 93.979 | LQ6: 0 | LR6: 93.979 | LS6: 0 | LT6: 93.979 | LU6: 0 | LV6: 93.979 | LW6: 0 | LX6: 93.979 | LY6: 0 | LZ6: 93.979 | MA6: 0 | MB6: 93.979 | MC6: 0 | MD6: 93.979 | ME6: 0 | MF6: 93.979 | MG6: 0 | MH6: 93.979 | MI6: 0 | MJ6: 93.979 | MK6: 0 | ML6: 93.979 | MM6: 0 | MN6: 93.979 | MO6: 0 | MP6: 93.979 | MQ6: 0 | MR6: 93.979 | MS6: 0 | MT6: 93.979 | MU6: 0 | MV6: 93.979 | MW6: 60 | MX6: 77.136 | MY6: 60 | MZ6: 77.047 | NA6: 60 | NB6: 77.064 | NC6: 60 | ND6: 77.119 | NE6: 60 | NF6: 77.079 | NG6: 60 | NH6: 77.181 | NI6: 60 | NJ6: 77.133 | NK6: 60 | NL6: 77.093 | NM6: 60 | NN6: 77.03 | NO6: 60 | NP6: 77.151 | NQ6: 60 | NR6: 75.62 | NS6: 60 | NT6: 75.559 | NU6: 60 | NV6: 75.56 | NW6: 60 | NX6: 75.653 | NY6: 60 | NZ6: 75.565 | OA6: 60 | OB6: 75.736 | OC6: 60 | OD6: 75.673 | OE6: 60 | OF6: 75.587 | OG6: 60 | OH6: 75.535 | OI6: 60 | OJ6: 75.656 | OK6: 60 | OL6: 77.615 | OM6: 60 | ON6: 77.544 | OO6: 60 | OP6: 77.563 | OQ6: 60 | OR6: 77.613 | OS6: 60 | OT6: 77.579 | OU6: 60 | OV6: 77.673 | OW6: 60 | OX6: 77.636 | OY6: 60 | OZ6: 77.59 | PA6: 60 | PB6: 77.528 | PC6: 60 | PD6: 77.646 | PE6: 60 | PF6: 76.156 | PG6: 60 | PH6: 76.096 | PI6: 60 | PJ6: 76.108 | PK6: 60 | PL6: 76.188 | PM6: 60 | PN6: 76.114 | PO6: 60 | PP6: 76.26 | PQ6: 60 | PR6: 76.212 | PS6: 60 | PT6: 76.134 | PU6: 60 | PV6: 76.076 | PW6: 60 | PX6: 76.197
A7: 63 | B7: -0.232 | C7: 63 | D7: -0.209 | E7: 0 | F7: 0 | G7: 0 | H7: 0 | I7: 0 | J7: 0 | K7: 0 | L7: 0 | M7: 63 | N7: 0.021 | O7: 63 | P7: -0.059 | Q7: 63 | R7: -0.288 | S7: 63 | T7: -0.074 | U7: 63 | V7: 91.551 | W7: 63 | X7: 92.842 | Y7: 0 | Z7: 93.979 | AA7: 0 | AB7: 93.979 | AC7: 0 | AD7: 93.979 | AE7: 0 | AF7: 93.979 | AG7: 63 | AH7: 78.382 | AI7: 63 | AJ7: 76.651 | AK7: 63 | AL7: 78.921 | AM7: 63 | AN7: 77.263 | AO7: 63 | AP7: 91.278 | AQ7: 63 | AR7: 91.299 | AS7: 63 | AT7: 91.321 | AU7: 63 | AV7: 91.341 | AW7: 63 | AX7: 91.315 | AY7: 63 | AZ7: 91.321 | BA7: 63 | BB7: 91.326 | BC7: 63 | BD7: 91.379 | BE7: 63 | BF7: 91.343 | BG7: 63 | BH7: 91.264 | BI7: 63 | BJ7: 92.604 | BK7: 63 | BL7: 92.623 | BM7: 63 | BN7: 92.63 | BO7: 63 | BP7: 92.658 | BQ7: 63 | BR7: 92.639 | BS7: 63 | BT7: 92.63 | BU7: 63 | BV7: 92.643 | BW7: 63 | BX7: 92.679 | BY7: 63 | BZ7: 92.654 | CA7: 63 | CB7: 92.573 | CC7: 0 | CD7: 93.979 | CE7: 0 | CF7: 93.979 | CG7: 0 | CH7: 93.979 | CI7: 0 | CJ7: 93.979 | CK7: 0 | CL7: 93.979 | CM7: 0 | CN7: 93.979 | CO7: 0 | CP7: 93.979 | CQ7: 0 | CR7: 93.979 | CS7: 0 | CT7: 93.979 | CU7: 0 | CV7: 93.979 | CW7: 0 | CX7: 93.979 | CY7: 0 | CZ7: 93.979 | DA7: 0 | DB7: 93.979 | DC7: 0 | DD7: 93.979 | DE7: 0 | DF7: 93.979 | DG7: 0 | DH7: 93.979 | DI7: 0 | DJ7: 93.979 | DK7: 0 | DL7: 93.979 | DM7: 0 | DN7: 93.979 | DO7: 0 | DP7: 93.979 | DQ7: 0 | DR7: 93.979 | DS7: 0 | DT7: 93.979 | DU7: 0 | DV7: 93.979 | DW7: 0 | DX7: 93.979 | DY7: 0 | DZ7: 93.979 | EA7: 0 | EB7: 93.979 | EC7: 0 | ED7: 93.979 | EE7: 0 | EF7: 93.979 | EG7: 0 | EH7: 93.979 | EI7: 0 | EJ7: 93.979 | EK7: 0 | EL7: 93.979 | EM7: 0 | EN7: 93.979 | EO7: 0 | EP7: 93.979 | EQ7: 0 | ER7: 93.979 | ES7: 0 | ET7: 93.979 | EU7: 0 | EV7: 93.979 | EW7: 0 | EX7: 93.979 | EY7: 0 | EZ7: 93.979 | FA7: 0 | FB7: 93.979 | FC7: 0 | FD7: 93.979 | FE7: 63 | FF7: 78.488 | FG7: 63 | FH7: 78.407 | FI7: 63 | FJ7: 78.329 | FK7: 63 | FL7: 78.391 | FM7: 63 | FN7: 78.429 | FO7: 63 | FP7: 78.407 | FQ7: 63 | FR7: 78.402 | FS7: 63 | FT7: 78.416 | FU7: 63 | FV7: 78.409 | FW7: 63 | FX7: 78.345 | FY7: 63 | FZ7: 76.667 | GA7: 63 | GB7: 76.581 | GC7: 63 | GD7: 76.52 | GE7: 63 | GF7: 76.584 | GG7: 63 | GH7: 76.611 | GI7: 63 | GJ7: 76.588 | GK7: 63 | GL7: 76.576 | GM7: 63 | GN7: 76.623 | GO7: 63 | GP7: 76.626 | GQ7: 63 | GR7: 76.544 | GS7: 63 | GT7: 78.71 | GU7: 63 | GV7: 78.633 | GW7: 63 | GX7: 78.569 | GY7: 63 | GZ7: 78.621 | HA7: 63 | HB7: 78.656 | HC7: 63 | HD7: 78.635 | HE7: 63 | HF7: 78.635 | HG7: 63 | HH7: 78.639 | HI7: 63 | HJ7: 78.645 | HK7: 63 | HL7: 78.584 | HM7: 63 | HN7: 77.267 | HO7: 63 | HP7: 77.184 | HQ7: 63 | HR7: 77.129 | HS7: 63 | HT7: 77.181 | HU7: 63 | HV7: 77.21 | HW7: 63 | HX7: 77.19 | HY7: 63 | HZ7: 77.175 | IA7: 63 | IB7: 77.207 | IC7: 63 | ID7: 77.215 | IE7: 63 | IF7: 77.129 | IG7: 63 | IH7: 91.535 | II7: 63 | IJ7: 91.546 | IK7: 63 | IL7: 91.503 | IM7: 63 | IN7: 91.613 | IO7: 63 | IP7: 91.525 | IQ7: 63 | IR7: 91.636 | IS7: 63 | IT7: 91.636 | IU7: 63 | IV7: 91.464 | IW7: 63 | IX7: 91.519 | IY7: 63 | IZ7: 91.532 | JA7: 63 | JB7: 92.815 | JC7: 63 | JD7: 92.846 | JE7: 63 | JF7: 92.797 | JG7: 63 | JH7: 92.887 | JI7: 63 | JJ7: 92.826 | JK7: 63 | JL7: 92.91 | JM7: 63 | JN7: 92.913 | JO7: 63 | JP7: 92.785 | JQ7: 63 | JR7: 92.817 | JS7: 63 | JT7: 92.824 | JU7: 0 | JV7: 93.979 | JW7: 0 | JX7: 93.979 | JY7: 0 | JZ7: 93.979 | KA7: 0 | KB7: 93.979 | KC7: 0 | KD7: 93.979 | KE7: 0 | KF7: 93.979 | KG7: 0 | KH7: 93.979 | KI7: 0 | KJ7: 93.979 | KK7: 0 | KL7: 93.979 | KM7: 0 | KN7: 93.979 | KO7: 0 | KP7: 93.979 | KQ7: 0 | KR7: 93.979 | KS7: 0 | KT7: 93.979 | KU7: 0 | KV7: 93.979 | KW7: 0 | KX7: 93.979 | KY7: 0 | KZ7: 93.979 | LA7: 0 | LB7: 93.979 | LC7: 0 | LD7: 93.979 | LE7: 0 | LF7: 93.979 | LG7: 0 | LH7: 93.979 | LI7: 0 | LJ7: 93.979 | LK7: 0 | LL7: 93.979 | LM7: 0 | LN7: 93.979 | LO7: 0 | LP7: 93.979 | LQ7: 0 | LR7: 93.979 | LS7: 0 | LT7: 93.979 | LU7: 0 | LV7: 93.979 | LW7: 0 | LX7: 93.979 | LY7: 0 | LZ7: 93.979 | MA7: 0 | MB7: 93.979 | MC7: 0 | MD7: 93.979 | ME7: 0 | MF7: 93.979 | MG7: 0 | MH7: 93.979 | MI7: 0 | MJ7: 93.979 | MK7: 0 | ML7: 93.979 | MM7: 0 | MN7: 93.979 | MO7: 0 | MP7: 93.979 | MQ7: 0 | MR7: 93.979 | MS7: 0 | MT7: 93.979 | MU7: 0 | MV7: 93.979 | MW7: 63 | MX7: 78.434 | MY7: 63 | MZ7: 78.317 | NA7: 63 | NB7: 78.353 | NC7: 63 | ND7: 78.394 | NE7: 63 | NF7: 78.39 | NG7: 63 | NH7: 78.413 | NI7: 63 | NJ7: 78.371 | NK7: 63 | NL7: 78.398 | NM7: 63 | NN7: 78.322 | NO7: 63 | NP7: 78.424 | NQ7: 63 | NR7: 76.698 | NS7: 63 | NT7: 76.578 | NU7: 63 | NV7: 76.605 | NW7: 63 | NX7: 76.69 | NY7: 63 | NZ7: 76.642 | OA7: 63 | OB7: 76.721 | OC7: 63 | OD7: 76.659 | OE7: 63 | OF7: 76.653 | OG7: 63 | OH7: 76.574 | OI7: 63 | OJ7: 76.693 | OK7: 63 | OL7: 78.958 | OM7: 63 | ON7: 78.858 | OO7: 63 | OP7: 78.896 | OQ7: 63 | OR7: 78.931 | OS7: 63 | OT7: 78.932 | OU7: 63 | OV7: 78.951 | OW7: 63 | OX7: 78.917 | OY7: 63 | OZ7: 78.939 | PA7: 63 | PB7: 78.864 | PC7: 63 | PD7: 78.963 | PE7: 63 | PF7: 77.305 | PG7: 63 | PH7: 77.189 | PI7: 63 | PJ7: 77.226 | PK7: 63 | PL7: 77.296 | PM7: 63 | PN7: 77.26 | PO7: 63 | PP7: 77.319 | PQ7: 63 | PR7: 77.27 | PS7: 63 | PT7: 77.272 | PU7: 63 | PV7: 77.188 | PW7: 63 | PX7: 77.304
A8: 67 | B8: -0.202 | C8: 67 | D8: -0.191 | E8: 0 | F8: 0 | G8: 0 | H8: 0 | I8: 0 | J8: 0 | K8: 0 | L8: 0 | M8: 67 | N8: 0.05 | O8: 67 | P8: 0.005 | Q8: 67 | R8: -0.246 | S8: 67 | T8: -0.023 | U8: 67 | V8: 91.829 | W8: 67 | X8: 93.575 | Y8: 0 | Z8: 93.979 | AA8: 0 | AB8: 93.979 | AC8: 0 | AD8: 93.979 | AE8: 0 | AF8: 93.979 | AG8: 67 | AH8: 79.931 | AI8: 67 | AJ8: 77.979 | AK8: 67 | AL8: 80.497 | AM8: 67 | AN8: 78.651 | AO8: 67 | AP8: 91.596 | AQ8: 67 | AR8: 91.611 | AS8: 67 | AT8: 91.64 | AU8: 67 | AV8: 91.654 | AW8: 67 | AX8: 91.618 | AY8: 67 | AZ8: 91.631 | BA8: 67 | BB8: 91.642 | BC8: 67 | BD8: 91.682 | BE8: 67 | BF8: 91.632 | BG8: 67 | BH8: 91.571 | BI8: 67 | BJ8: 93.373 | BK8: 67 | BL8: 93.372 | BM8: 67 | BN8: 93.382 | BO8: 67 | BP8: 93.407 | BQ8: 67 | BR8: 93.385 | BS8: 67 | BT8: 93.379 | BU8: 67 | BV8: 93.398 | BW8: 67 | BX8: 93.426 | BY8: 67 | BZ8: 93.392 | CA8: 67 | CB8: 93.331 | CC8: 0 | CD8: 93.979 | CE8: 0 | CF8: 93.979 | CG8: 0 | CH8: 93.979 | CI8: 0 | CJ8: 93.979 | CK8: 0 | CL8: 93.979 | CM8: 0 | CN8: 93.979 | CO8: 0 | CP8: 93.979 | CQ8: 0 | CR8: 93.979 | CS8: 0 | CT8: 93.979 | CU8: 0 | CV8: 93.979 | CW8: 0 | CX8: 93.979 | CY8: 0 | CZ8: 93.979 | DA8: 0 | DB8: 93.979 | DC8: 0 | DD8: 93.979 | DE8: 0 | DF8: 93.979 | DG8: 0 | DH8: 93.979 | DI8: 0 | DJ8: 93.979 | DK8: 0 | DL8: 93.979 | DM8: 0 | DN8: 93.979 | DO8: 0 | DP8: 93.979 | DQ8: 0 | DR8: 93.979 | DS8: 0 | DT8: 93.979 | DU8: 0 | DV8: 93.979 | DW8: 0 | DX8: 93.979 | DY8: 0 | DZ8: 93.979 | EA8: 0 | EB8: 93.979 | EC8: 0 | ED8: 93.979 | EE8: 0 | EF8: 93.979 | EG8: 0 | EH8: 93.979 | EI8: 0 | EJ8: 93.979 | EK8: 0 | EL8: 93.979 | EM8: 0 | EN8: 93.979 | EO8: 0 | EP8: 93.979 | EQ8: 0 | ER8: 93.979 | ES8: 0 | ET8: 93.979 | EU8: 0 | EV8: 93.979 | EW8: 0 | EX8: 93.979 | EY8: 0 | EZ8: 93.979 | FA8: 0 | FB8: 93.979 | FC8: 0 | FD8: 93.979 | FE8: 67 | FF8: 80.053 | FG8: 67 | FH8: 79.995 | FI8: 67 | FJ8: 79.928 | FK8: 67 | FL8: 79.974 | FM8: 67 | FN8: 80.003 | FO8: 67 | FP8: 79.979 | FQ8: 67 | FR8: 79.999 | FS8: 67 | FT8: 79.982 | FU8: 67 | FV8: 79.974 | FW8: 67 | FX8: 79.923 | FY8: 67 | FZ8: 78.052 | GA8: 67 | GB8: 77.989 | GC8: 67 | GD8: 77.928 | GE8: 67 | GF8: 77.978 | GG8: 67 | GH8: 77.998 | GI8: 67 | GJ8: 77.976 | GK8: 67 | GL8: 77.997 | GM8: 67 | GN8: 77.998 | GO8: 67 | GP8: 77.994 | GQ8: 67 | GR8: 77.924 | GS8: 67 | GT8: 80.316 | GU8: 67 | GV8: 80.26 | GW8: 67 | GX8: 80.206 | GY8: 67 | GZ8: 80.243 | HA8: 67 | HB8: 80.269 | HC8: 67 | HD8: 80.247 | HE8: 67 | HF8: 80.271 | HG8: 67 | HH8: 80.247 | HI8: 67 | HJ8: 80.249 | HK8: 67 | HL8: 80.201 | HM8: 67 | HN8: 78.698 | HO8: 67 | HP8: 78.638 | HQ8: 67 | HR8: 78.584 | HS8: 67 | HT8: 78.626 | HU8: 67 | HV8: 78.644 | HW8: 67 | HX8: 78.626 | HY8: 67 | HZ8: 78.64 | IA8: 67 | IB8: 78.634 | IC8: 67 | ID8: 78.633 | IE8: 67 | IF8: 78.559 | IG8: 67 | IH8: 91.82 | II8: 67 | IJ8: 91.821 | IK8: 67 | IL8: 91.792 | IM8: 67 | IN8: 91.891 | IO8: 67 | IP8: 91.818 | IQ8: 67 | IR8: 91.889 | IS8: 67 | IT8: 91.902 | IU8: 67 | IV8: 91.747 | IW8: 67 | IX8: 91.806 | IY8: 67 | IZ8: 91.808 | JA8: 67 | JB8: 93.563 | JC8: 67 | JD8: 93.574 | JE8: 67 | JF8: 93.54 | JG8: 67 | JH8: 93.62 | JI8: 67 | JJ8: 93.568 | JK8: 67 | JL8: 93.616 | JM8: 67 | JN8: 93.627 | JO8: 67 | JP8: 93.535 | JQ8: 67 | JR8: 93.552 | JS8: 67 | JT8: 93.56 | JU8: 0 | JV8: 93.979 | JW8: 0 | JX8: 93.979 | JY8: 0 | JZ8: 93.979 | KA8: 0 | KB8: 93.979 | KC8: 0 | KD8: 93.979 | KE8: 0 | KF8: 93.979 | KG8: 0 | KH8: 93.979 | KI8: 0 | KJ8: 93.979 | KK8: 0 | KL8: 93.979 | KM8: 0 | KN8: 93.979 | KO8: 0 | KP8: 93.979 | KQ8: 0 | KR8: 93.979 | KS8: 0 | KT8: 93.979 | KU8: 0 | KV8: 93.979 | KW8: 0 | KX8: 93.979 | KY8: 0 | KZ8: 93.979 | LA8: 0 | LB8: 93.979 | LC8: 0 | LD8: 93.979 | LE8: 0 | LF8: 93.979 | LG8: 0 | LH8: 93.979 | LI8: 0 | LJ8: 93.979 | LK8: 0 | LL8: 93.979 | LM8: 0 | LN8: 93.979 | LO8: 0 | LP8: 93.979 | LQ8: 0 | LR8: 93.979 | LS8: 0 | LT8: 93.979 | LU8: 0 | LV8: 93.979 | LW8: 0 | LX8: 93.979 | LY8: 0 | LZ8: 93.979 | MA8: 0 | MB8: 93.979 | MC8: 0 | MD8: 93.979 | ME8: 0 | MF8: 93.979 | MG8: 0 | MH8: 93.979 | MI8: 0 | MJ8: 93.979 | MK8: 0 | ML8: 93.979 | MM8: 0 | MN8: 93.979 | MO8: 0 | MP8: 93.979 | MQ8: 0 | MR8: 93.979 | MS8: 0 | MT8: 93.979 | MU8: 0 | MV8: 93.979 | MW8: 67 | MX8: 79.975 | MY8: 67 | MZ8: 79.876 | NA8: 67 | NB8: 79.917 | NC8: 67 | ND8: 79.931 | NE8: 67 | NF8: 79.955 | NG8: 67 | NH8: 79.928 | NI8: 67 | NJ8: 79.91 | NK8: 67 | NL8: 79.962 | NM8: 67 | NN8: 79.904 | NO8: 67 | NP8: 79.956 | NQ8: 67 | NR8: 78.027 | NS8: 67 | NT8: 77.91 | NU8: 67 | NV8: 77.949 | NW8: 67 | NX8: 78.004 | NY8: 67 | NZ8: 77.992 | OA8: 67 | OB8: 78 | OC8: 67 | OD8: 77.971 | OE8: 67 | OF8: 77.998 | OG8: 67 | OH8: 77.93 | OI8: 67 | OJ8: 78.005 | OK8: 67 | OL8: 80.53 | OM8: 67 | ON8: 80.442 | OO8: 67 | OP8: 80.485 | OQ8: 67 | OR8: 80.496 | OS8: 67 | OT8: 80.521 | OU8: 67 | OV8: 80.492 | OW8: 67 | OX8: 80.481 | OY8: 67 | OZ8: 80.53 | PA8: 67 | PB8: 80.47 | PC8: 67 | PD8: 80.523 | PE8: 67 | PF8: 78.696 | PG8: 67 | PH8: 78.585 | PI8: 67 | PJ8: 78.63 | PK8: 67 | PL8: 78.672 | PM8: 67 | PN8: 78.668 | PO8: 67 | PP8: 78.664 | PQ8: 67 | PR8: 78.643 | PS8: 67 | PT8: 78.676 | PU8: 67 | PV8: 78.602 | PW8: 67 | PX8: 78.677
A9: 71 | B9: -0.18 | C9: 71 | D9: -0.187 | E9: 0 | F9: 0 | G9: 0 | H9: 0 | I9: 0 | J9: 0 | K9: 0 | L9: 0 | M9: 71 | N9: 0.059 | O9: 71 | P9: 0.05 | Q9: 71 | R9: -0.223 | S9: 71 | T9: 0.006 | U9: 71 | V9: 92.014 | W9: 71 | X9: 94.251 | Y9: 0 | Z9: 93.979 | AA9: 0 | AB9: 93.979 | AC9: 0 | AD9: 93.979 | AE9: 0 | AF9: 93.979 | AG9: 71 | AH9: 81.437 | AI9: 71 | AJ9: 79.388 | AK9: 71 | AL9: 81.998 | AM9: 71 | AN9: 80.067 | AO9: 71 | AP9: 91.808 | AQ9: 71 | AR9: 91.822 | AS9: 71 | AT9: 91.848 | AU9: 71 | AV9: 91.862 | AW9: 71 | AX9: 91.824 | AY9: 71 | AZ9: 91.835 | BA9: 71 | BB9: 91.851 | BC9: 71 | BD9: 91.87 | BE9: 71 | BF9: 91.825 | BG9: 71 | BH9: 91.788 | BI9: 71 | BJ9: 94.065 | BK9: 71 | BL9: 94.057 | BM9: 71 | BN9: 94.058 | BO9: 71 | BP9: 94.082 | BQ9: 71 | BR9: 94.066 | BS9: 71 | BT9: 94.058 | BU9: 71 | BV9: 94.081 | BW9: 71 | BX9: 94.094 | BY9: 71 | BZ9: 94.061 | CA9: 71 | CB9: 94.024 | CC9: 0 | CD9: 93.979 | CE9: 0 | CF9: 93.979 | CG9: 0 | CH9: 93.979 | CI9: 0 | CJ9: 93.979 | CK9: 0 | CL9: 93.979 | CM9: 0 | CN9: 93.979 | CO9: 0 | CP9: 93.979 | CQ9: 0 | CR9: 93.979 | CS9: 0 | CT9: 93.979 | CU9: 0 | CV9: 93.979 | CW9: 0 | CX9: 93.979 | CY9: 0 | CZ9: 93.979 | DA9: 0 | DB9: 93.979 | DC9: 0 | DD9: 93.979 | DE9: 0 | DF9: 93.979 | DG9: 0 | DH9: 93.979 | DI9: 0 | DJ9: 93.979 | DK9: 0 | DL9: 93.979 | DM9: 0 | DN9: 93.979 | DO9: 0 | DP9: 93.979 | DQ9: 0 | DR9: 93.979 | DS9: 0 | DT9: 93.979 | DU9: 0 | DV9: 93.979 | DW9: 0 | DX9: 93.979 | DY9: 0 | DZ9: 93.979 | EA9: 0 | EB9: 93.979 | EC9: 0 | ED9: 93.979 | EE9: 0 | EF9: 93.979 | EG9: 0 | EH9: 93.979 | EI9: 0 | EJ9: 93.979 | EK9: 0 | EL9: 93.979 | EM9: 0 | EN9: 93.979 | EO9: 0 | EP9: 93.979 | EQ9: 0 | ER9: 93.979 | ES9: 0 | ET9: 93.979 | EU9: 0 | EV9: 93.979 | EW9: 0 | EX9: 93.979 | EY9: 0 | EZ9: 93.979 | FA9: 0 | FB9: 93.979 | FC9: 0 | FD9: 93.979 | FE9: 71 | FF9: 81.548 | FG9: 71 | FH9: 81.514 | FI9: 71 | FJ9: 81.464 | FK9: 71 | FL9: 81.494 | FM9: 71 | FN9: 81.517 | FO9: 71 | FP9: 81.494 | FQ9: 71 | FR9: 81.519 | FS9: 71 | FT9: 81.487 | FU9: 71 | FV9: 81.482 | FW9: 71 | FX9: 81.441 | FY9: 71 | FZ9: 79.484 | GA9: 71 | GB9: 79.455 | GC9: 71 | GD9: 79.404 | GE9: 71 | GF9: 79.441 | GG9: 71 | GH9: 79.456 | GI9: 71 | GJ9: 79.434 | GK9: 71 | GL9: 79.465 | GM9: 71 | GN9: 79.437 | GO9: 71 | GP9: 79.432 | GQ9: 71 | GR9: 79.372 | GS9: 71 | GT9: 81.822 | GU9: 71 | GV9: 81.788 | GW9: 71 | GX9: 81.75 | GY9: 71 | GZ9: 81.773 | HA9: 71 | HB9: 81.793 | HC9: 71 | HD9: 81.772 | HE9: 71 | HF9: 81.801 | HG9: 71 | HH9: 81.763 | HI9: 71 | HJ9: 81.766 | HK9: 71 | HL9: 81.727 | HM9: 71 | HN9: 80.121 | HO9: 71 | HP9: 80.093 | HQ9: 71 | HR9: 80.049 | HS9: 71 | HT9: 80.08 | HU9: 71 | HV9: 80.091 | HW9: 71 | HX9: 80.074 | HY9: 71 | HZ9: 80.095 | IA9: 71 | IB9: 80.068 | IC9: 71 | ID9: 80.064 | IE9: 71 | IF9: 79.999 | IG9: 71 | IH9: 91.995 | II9: 71 | IJ9: 92.002 | IK9: 71 | IL9: 91.99 | IM9: 71 | IN9: 92.067 | IO9: 71 | IP9: 92.011 | IQ9: 71 | IR9: 92.045 | IS9: 71 | IT9: 92.077 | IU9: 71 | IV9: 91.948 | IW9: 71 | IX9: 92.001 | IY9: 71 | IZ9: 92.002 | JA9: 71 | JB9: 94.241 | JC9: 71 | JD9: 94.247 | JE9: 71 | JF9: 94.227 | JG9: 71 | JH9: 94.287 | JI9: 71 | JJ9: 94.249 | JK9: 71 | JL9: 94.266 | JM9: 71 | JN9: 94.29 | JO9: 71 | JP9: 94.229 | JQ9: 71 | JR9: 94.231 | JS9: 71 | JT9: 94.245 | JU9: 0 | JV9: 93.979 | JW9: 0 | JX9: 93.979 | JY9: 0 | JZ9: 93.979 | KA9: 0 | KB9: 93.979 | KC9: 0 | KD9: 93.979 | KE9: 0 | KF9: 93.979 | KG9: 0 | KH9: 93.979 | KI9: 0 | KJ9: 93.979 | KK9: 0 | KL9: 93.979 | KM9: 0 | KN9: 93.979 | KO9: 0 | KP9: 93.979 | KQ9: 0 | KR9: 93.979 | KS9: 0 | KT9: 93.979 | KU9: 0 | KV9: 93.979 | KW9: 0 | KX9: 93.979 | KY9: 0 | KZ9: 93.979 | LA9: 0 | LB9: 93.979 | LC9: 0 | LD9: 93.979 | LE9: 0 | LF9: 93.979 | LG9: 0 | LH9: 93.979 | LI9: 0 | LJ9: 93.979 | LK9: 0 | LL9: 93.979 | LM9: 0 | LN9: 93.979 | LO9: 0 | LP9: 93.979 | LQ9: 0 | LR9: 93.979 | LS9: 0 | LT9: 93.979 | LU9: 0 | LV9: 93.979 | LW9: 0 | LX9: 93.979 | LY9: 0 | LZ9: 93.979 | MA9: 0 | MB9: 93.979 | MC9: 0 | MD9: 93.979 | ME9: 0 | MF9: 93.979 | MG9: 0 | MH9: 93.979 | MI9: 0 | MJ9: 93.979 | MK9: 0 | ML9: 93.979 | MM9: 0 | MN9: 93.979 | MO9: 0 | MP9: 93.979 | MQ9: 0 | MR9: 93.979 | MS9: 0 | MT9: 93.979 | MU9: 0 | MV9: 93.979 | MW9: 71 | MX9: 81.462 | MY9: 71 | MZ9: 81.401 | NA9: 71 | NB9: 81.433 | NC9: 71 | ND9: 81.421 | NE9: 71 | NF9: 81.46 | NG9: 71 | NH9: 81.416 | NI9: 71 | NJ9: 81.419 | NK9: 71 | NL9: 81.463 | NM9: 71 | NN9: 81.445 | NO9: 71 | NP9: 81.453 | NQ9: 71 | NR9: 79.414 | NS9: 71 | NT9: 79.346 | NU9: 71 | NV9: 79.373 | NW9: 71 | NX9: 79.394 | NY9: 71 | NZ9: 79.405 | OA9: 71 | OB9: 79.384 | OC9: 71 | OD9: 79.383 | OE9: 71 | OF9: 79.4 | OG9: 71 | OH9: 79.381 | OI9: 71 | OJ9: 79.403 | OK9: 71 | OL9: 82.016 | OM9: 71 | ON9: 81.959 | OO9: 71 | OP9: 81.997 | OQ9: 71 | OR9: 81.982 | OS9: 71 | OT9: 82.021 | OU9: 71 | OV9: 81.976 | OW9: 71 | OX9: 81.983 | OY9: 71 | OZ9: 82.028 | PA9: 71 | PB9: 82.006 | PC9: 71 | PD9: 82.016 | PE9: 71 | PF9: 80.091 | PG9: 71 | PH9: 80.025 | PI9: 71 | PJ9: 80.058 | PK9: 71 | PL9: 80.069 | PM9: 71 | PN9: 80.085 | PO9: 71 | PP9: 80.057 | PQ9: 71 | PR9: 80.061 | PS9: 71 | PT9: 80.085 | PU9: 71 | PV9: 80.057 | PW9: 71 | PX9: 80.084
A10: 75 | B10: -0.165 | C10: 75 | D10: -0.189 | E10: 0 | F10: 0 | G10: 0 | H10: 0 | I10: 0 | J10: 0 | K10: 0 | L10: 0 | M10: 75 | N10: 0.054 | O10: 75 | P10: 0.073 | Q10: 75 | R10: -0.213 | S10: 75 | T10: 0.015 | U10: 75 | V10: 92.237 | W10: 75 | X10: 94.829 | Y10: 0 | Z10: 93.979 | AA10: 0 | AB10: 93.979 | AC10: 0 | AD10: 93.979 | AE10: 0 | AF10: 93.979 | AG10: 75 | AH10: 82.601 | AI10: 75 | AJ10: 80.552 | AK10: 75 | AL10: 83.138 | AM10: 75 | AN10: 81.193 | AO10: 75 | AP10: 92.055 | AQ10: 75 | AR10: 92.066 | AS10: 75 | AT10: 92.084 | AU10: 75 | AV10: 92.099 | AW10: 75 | AX10: 92.072 | AY10: 75 | AZ10: 92.072 | BA10: 75 | BB10: 92.083 | BC10: 75 | BD10: 92.092 | BE10: 75 | BF10: 92.056 | BG10: 75 | BH10: 92.044 | BI10: 75 | BJ10: 94.645 | BK10: 75 | BL10: 94.637 | BM10: 75 | BN10: 94.63 | BO10: 75 | BP10: 94.653 | BQ10: 75 | BR10: 94.646 | BS10: 75 | BT10: 94.636 | BU10: 75 | BV10: 94.655 | BW10: 75 | BX10: 94.66 | BY10: 75 | BZ10: 94.626 | CA10: 75 | CB10: 94.608 | CC10: 0 | CD10: 93.979 | CE10: 0 | CF10: 93.979 | CG10: 0 | CH10: 93.979 | CI10: 0 | CJ10: 93.979 | CK10: 0 | CL10: 93.979 | CM10: 0 | CN10: 93.979 | CO10: 0 | CP10: 93.979 | CQ10: 0 | CR10: 93.979 | CS10: 0 | CT10: 93.979 | CU10: 0 | CV10: 93.979 | CW10: 0 | CX10: 93.979 | CY10: 0 | CZ10: 93.979 | DA10: 0 | DB10: 93.979 | DC10: 0 | DD10: 93.979 | DE10: 0 | DF10: 93.979 | DG10: 0 | DH10: 93.979 | DI10: 0 | DJ10: 93.979 | DK10: 0 | DL10: 93.979 | DM10: 0 | DN10: 93.979 | DO10: 0 | DP10: 93.979 | DQ10: 0 | DR10: 93.979 | DS10: 0 | DT10: 93.979 | DU10: 0 | DV10: 93.979 | DW10: 0 | DX10: 93.979 | DY10: 0 | DZ10: 93.979 | EA10: 0 | EB10: 93.979 | EC10: 0 | ED10: 93.979 | EE10: 0 | EF10: 93.979 | EG10: 0 | EH10: 93.979 | EI10: 0 | EJ10: 93.979 | EK10: 0 | EL10: 93.979 | EM10: 0 | EN10: 93.979 | EO10: 0 | EP10: 93.979 | EQ10: 0 | ER10: 93.979 | ES10: 0 | ET10: 93.979 | EU10: 0 | EV10: 93.979 | EW10: 0 | EX10: 93.979 | EY10: 0 | EZ10: 93.979 | FA10: 0 | FB10: 93.979 | FC10: 0 | FD10: 93.979 | FE10: 75 | FF10: 82.699 | FG10: 75 | FH10: 82.675 | FI10: 75 | FJ10: 82.635 | FK10: 75 | FL10: 82.655 | FM10: 75 | FN10: 82.68 | FO10: 75 | FP10: 82.651 | FQ10: 75 | FR10: 82.677 | FS10: 75 | FT10: 82.641 | FU10: 75 | FV10: 82.635 | FW10: 75 | FX10: 82.606 | FY10: 75 | FZ10: 80.657 | GA10: 75 | GB10: 80.648 | GC10: 75 | GD10: 80.605 | GE10: 75 | GF10: 80.632 | GG10: 75 | GH10: 80.652 | GI10: 75 | GJ10: 80.621 | GK10: 75 | GL10: 80.655 | GM10: 75 | GN10: 80.614 | GO10: 75 | GP10: 80.606 | GQ10: 75 | GR10: 80.559 | GS10: 75 | GT10: 82.963 | GU10: 75 | GV10: 82.939 | GW10: 75 | GX10: 82.912 | GY10: 75 | GZ10: 82.923 | HA10: 75 | HB10: 82.946 | HC10: 75 | HD10: 82.92 | HE10: 75 | HF10: 82.949 | HG10: 75 | HH10: 82.907 | HI10: 75 | HJ10: 82.907 | HK10: 75 | HL10: 82.881 | HM10: 75 | HN10: 81.242 | HO10: 75 | HP10: 81.233 | HQ10: 75 | HR10: 81.199 | HS10: 75 | HT10: 81.218 | HU10: 75 | HV10: 81.233 | HW10: 75 | HX10: 81.207 | HY10: 75 | HZ10: 81.232 | IA10: 75 | IB10: 81.196 | IC10: 75 | ID10: 81.188 | IE10: 75 | IF10: 81.135 | IG10: 75 | IH10: 92.212 | II10: 75 | IJ10: 92.225 | IK10: 75 | IL10: 92.228 | IM10: 75 | IN10: 92.275 | IO10: 75 | IP10: 92.235 | IQ10: 75 | IR10: 92.251 | IS10: 75 | IT10: 92.286 | IU10: 75 | IV10: 92.191 | IW10: 75 | IX10: 92.239 | IY10: 75 | IZ10: 92.228 | JA10: 75 | JB10: 94.824 | JC10: 75 | JD10: 94.824 | JE10: 75 | JF10: 94.813 | JG10: 75 | JH10: 94.852 | JI10: 75 | JJ10: 94.827 | JK10: 75 | JL10: 94.829 | JM10: 75 | JN10: 94.859 | JO10: 75 | JP10: 94.819 | JQ10: 75 | JR10: 94.816 | JS10: 75 | JT10: 94.825 | JU10: 0 | JV10: 93.979 | JW10: 0 | JX10: 93.979 | JY10: 0 | JZ10: 93.979 | KA10: 0 | KB10: 93.979 | KC10: 0 | KD10: 93.979 | KE10: 0 | KF10: 93.979 | KG10: 0 | KH10: 93.979 | KI10: 0 | KJ10: 93.979 | KK10: 0 | KL10: 93.979 | KM10: 0 | KN10: 93.979 | KO10: 0 | KP10: 93.979 | KQ10: 0 | KR10: 93.979 | KS10: 0 | KT10: 93.979 | KU10: 0 | KV10: 93.979 | KW10: 0 | KX10: 93.979 | KY10: 0 | KZ10: 93.979 | LA10: 0 | LB10: 93.979 | LC10: 0 | LD10: 93.979 | LE10: 0 | LF10: 93.979 | LG10: 0 | LH10: 93.979 | LI10: 0 | LJ10: 93.979 | LK10: 0 | LL10: 93.979 | LM10: 0 | LN10: 93.979 | LO10: 0 | LP10: 93.979 | LQ10: 0 | LR10: 93.979 | LS10: 0 | LT10: 93.979 | LU10: 0 | LV10: 93.979 | LW10: 0 | LX10: 93.979 | LY10: 0 | LZ10: 93.979 | MA10: 0 | MB10: 93.979 | MC10: 0 | MD10: 93.979 | ME10: 0 | MF10: 93.979 | MG10: 0 | MH10: 93.979 | MI10: 0 | MJ10: 93.979 | MK10: 0 | ML10: 93.979 | MM10: 0 | MN10: 93.979 | MO10: 0 | MP10: 93.979 | MQ10: 0 | MR10: 93.979 | MS10: 0 | MT10: 93.979 | MU10: 0 | MV10: 93.979 | MW10: 75 | MX10: 82.613 | MY10: 75 | MZ10: 82.581 | NA10: 75 | NB10: 82.603 | NC10: 75 | ND10: 82.572 | NE10: 75 | NF10: 82.619 | NG10: 75 | NH10: 82.573 | NI10: 75 | NJ10: 82.584 | NK10: 75 | NL10: 82.618 | NM10: 75 | NN10: 82.634 | NO10: 75 | NP10: 82.614 | NQ10: 75 | NR10: 80.558 | NS10: 75 | NT10: 80.537 | NU10: 75 | NV10: 80.545 | NW10: 75 | NX10: 80.544 | NY10: 75 | NZ10: 80.566 | OA10: 75 | OB10: 80.538 | OC10: 75 | OD10: 80.55 | OE10: 75 | OF10: 80.548 | OG10: 75 | OH10: 80.578 | OI10: 75 | OJ10: 80.56 | OK10: 75 | OL10: 83.145 | OM10: 75 | ON10: 83.111 | OO10: 75 | OP10: 83.142 | OQ10: 75 | OR10: 83.109 | OS10: 75 | OT10: 83.155 | OU10: 75 | OV10: 83.109 | OW10: 75 | OX10: 83.122 | OY10: 75 | OZ10: 83.16 | PA10: 75 | PB10: 83.169 | PC10: 75 | PD10: 83.153 | PE10: 75 | PF10: 81.198 | PG10: 75 | PH10: 81.174 | PI10: 75 | PJ10: 81.192 | PK10: 75 | PL10: 81.182 | PM10: 75 | PN10: 81.207 | PO10: 75 | PP10: 81.175 | PQ10: 75 | PR10: 81.188 | PS10: 75 | PT10: 81.196 | PU10: 75 | PV10: 81.213 | PW10: 75 | PX10: 81.204
A11: 80 | B11: -0.162 | C11: 80 | D11: -0.193 | E11: 0 | F11: 0 | G11: 0 | H11: 0 | I11: 0 | J11: 0 | K11: 0 | L11: 0 | M11: 80 | N11: 0.044 | O11: 80 | P11: 0.084 | Q11: 80 | R11: -0.209 | S11: 80 | T11: 0.015 | U11: 80 | V11: 92.484 | W11: 80 | X11: 95.233 | Y11: 0 | Z11: 93.979 | AA11: 0 | AB11: 93.979 | AC11: 0 | AD11: 93.979 | AE11: 0 | AF11: 93.979 | AG11: 80 | AH11: 83.347 | AI11: 80 | AJ11: 81.338 | AK11: 80 | AL11: 83.853 | AM11: 80 | AN11: 81.925 | AO11: 80 | AP11: 92.317 | AQ11: 80 | AR11: 92.32 | AS11: 80 | AT11: 92.328 | AU11: 80 | AV11: 92.345 | AW11: 80 | AX11: 92.331 | AY11: 80 | AZ11: 92.316 | BA11: 80 | BB11: 92.328 | BC11: 80 | BD11: 92.331 | BE11: 80 | BF11: 92.305 | BG11: 80 | BH11: 92.302 | BI11: 80 | BJ11: 95.052 | BK11: 80 | BL11: 95.043 | BM11: 80 | BN11: 95.028 | BO11: 80 | BP11: 95.055 | BQ11: 80 | BR11: 95.052 | BS11: 80 | BT11: 95.037 | BU11: 80 | BV11: 95.061 | BW11: 80 | BX11: 95.053 | BY11: 80 | BZ11: 95.02 | CA11: 80 | CB11: 95.002 | CC11: 0 | CD11: 93.979 | CE11: 0 | CF11: 93.979 | CG11: 0 | CH11: 93.979 | CI11: 0 | CJ11: 93.979 | CK11: 0 | CL11: 93.979 | CM11: 0 | CN11: 93.979 | CO11: 0 | CP11: 93.979 | CQ11: 0 | CR11: 93.979 | CS11: 0 | CT11: 93.979 | CU11: 0 | CV11: 93.979 | CW11: 0 | CX11: 93.979 | CY11: 0 | CZ11: 93.979 | DA11: 0 | DB11: 93.979 | DC11: 0 | DD11: 93.979 | DE11: 0 | DF11: 93.979 | DG11: 0 | DH11: 93.979 | DI11: 0 | DJ11: 93.979 | DK11: 0 | DL11: 93.979 | DM11: 0 | DN11: 93.979 | DO11: 0 | DP11: 93.979 | DQ11: 0 | DR11: 93.979 | DS11: 0 | DT11: 93.979 | DU11: 0 | DV11: 93.979 | DW11: 0 | DX11: 93.979 | DY11: 0 | DZ11: 93.979 | EA11: 0 | EB11: 93.979 | EC11: 0 | ED11: 93.979 | EE11: 0 | EF11: 93.979 | EG11: 0 | EH11: 93.979 | EI11: 0 | EJ11: 93.979 | EK11: 0 | EL11: 93.979 | EM11: 0 | EN11: 93.979 | EO11: 0 | EP11: 93.979 | EQ11: 0 | ER11: 93.979 | ES11: 0 | ET11: 93.979 | EU11: 0 | EV11: 93.979 | EW11: 0 | EX11: 93.979 | EY11: 0 | EZ11: 93.979 | FA11: 0 | FB11: 93.979 | FC11: 0 | FD11: 93.979 | FE11: 80 | FF11: 83.437 | FG11: 80 | FH11: 83.413 | FI11: 80 | FJ11: 83.375 | FK11: 80 | FL11: 83.386 | FM11: 80 | FN11: 83.421 | FO11: 80 | FP11: 83.382 | FQ11: 80 | FR11: 83.411 | FS11: 80 | FT11: 83.372 | FU11: 80 | FV11: 83.364 | FW11: 80 | FX11: 83.346 | FY11: 80 | FZ11: 81.452 | GA11: 80 | GB11: 81.45 | GC11: 80 | GD11: 81.409 | GE11: 80 | GF11: 81.427 | GG11: 80 | GH11: 81.457 | GI11: 80 | GJ11: 81.415 | GK11: 80 | GL11: 81.455 | GM11: 80 | GN11: 81.406 | GO11: 80 | GP11: 81.393 | GQ11: 80 | GR11: 81.355 | GS11: 80 | GT11: 83.683 | GU11: 80 | GV11: 83.661 | GW11: 80 | GX11: 83.636 | GY11: 80 | GZ11: 83.639 | HA11: 80 | HB11: 83.67 | HC11: 80 | HD11: 83.635 | HE11: 80 | HF11: 83.668 | HG11: 80 | HH11: 83.622 | HI11: 80 | HJ11: 83.619 | HK11: 80 | HL11: 83.604 | HM11: 80 | HN11: 81.972 | HO11: 80 | HP11: 81.97 | HQ11: 80 | HR11: 81.939 | HS11: 80 | HT11: 81.949 | HU11: 80 | HV11: 81.972 | HW11: 80 | HX11: 81.935 | HY11: 80 | HZ11: 81.967 | IA11: 80 | IB11: 81.923 | IC11: 80 | ID11: 81.909 | IE11: 80 | IF11: 81.867 | IG11: 80 | IH11: 92.47 | II11: 80 | IJ11: 92.473 | IK11: 80 | IL11: 92.484 | IM11: 80 | IN11: 92.505 | IO11: 80 | IP11: 92.482 | IQ11: 80 | IR11: 92.487 | IS11: 80 | IT11: 92.514 | IU11: 80 | IV11: 92.457 | IW11: 80 | IX11: 92.492 | IY11: 80 | IZ11: 92.477 | JA11: 80 | JB11: 95.24 | JC11: 80 | JD11: 95.231 | JE11: 80 | JF11: 95.222 | JG11: 80 | JH11: 95.246 | JI11: 80 | JJ11: 95.231 | JK11: 80 | JL11: 95.225 | JM11: 80 | JN11: 95.259 | JO11: 80 | JP11: 95.225 | JQ11: 80 | JR11: 95.226 | JS11: 80 | JT11: 95.225 | JU11: 0 | JV11: 93.979 | JW11: 0 | JX11: 93.979 | JY11: 0 | JZ11: 93.979 | KA11: 0 | KB11: 93.979 | KC11: 0 | KD11: 93.979 | KE11: 0 | KF11: 93.979 | KG11: 0 | KH11: 93.979 | KI11: 0 | KJ11: 93.979 | KK11: 0 | KL11: 93.979 | KM11: 0 | KN11: 93.979 | KO11: 0 | KP11: 93.979 | KQ11: 0 | KR11: 93.979 | KS11: 0 | KT11: 93.979 | KU11: 0 | KV11: 93.979 | KW11: 0 | KX11: 93.979 | KY11: 0 | KZ11: 93.979 | LA11: 0 | LB11: 93.979 | LC11: 0 | LD11: 93.979 | LE11: 0 | LF11: 93.979 | LG11: 0 | LH11: 93.979 | LI11: 0 | LJ11: 93.979 | LK11: 0 | LL11: 93.979 | LM11: 0 | LN11: 93.979 | LO11: 0 | LP11: 93.979 | LQ11: 0 | LR11: 93.979 | LS11: 0 | LT11: 93.979 | LU11: 0 | LV11: 93.979 | LW11: 0 | LX11: 93.979 | LY11: 0 | LZ11: 93.979 | MA11: 0 | MB11: 93.979 | MC11: 0 | MD11: 93.979 | ME11: 0 | MF11: 93.979 | MG11: 0 | MH11: 93.979 | MI11: 0 | MJ11: 93.979 | MK11: 0 | ML11: 93.979 | MM11: 0 | MN11: 93.979 | MO11: 0 | MP11: 93.979 | MQ11: 0 | MR11: 93.979 | MS11: 0 | MT11: 93.979 | MU11: 0 | MV11: 93.979 | MW11: 80 | MX11: 83.354 | MY11: 80 | MZ11: 83.338 | NA11: 80 | NB11: 83.353 | NC11: 80 | ND11: 83.31 | NE11: 80 | NF11: 83.362 | NG11: 80 | NH11: 83.314 | NI11: 80 | NJ11: 83.327 | NK11: 80 | NL11: 83.36 | NM11: 80 | NN11: 83.393 | NO11: 80 | NP11: 83.357 | NQ11: 80 | NR11: 81.333 | NS11: 80 | NT11: 81.344 | NU11: 80 | NV11: 81.335 | NW11: 80 | NX11: 81.322 | NY11: 80 | NZ11: 81.35 | OA11: 80 | OB11: 81.318 | OC11: 80 | OD11: 81.335 | OE11: 80 | OF11: 81.322 | OG11: 80 | OH11: 81.383 | OI11: 80 | OJ11: 81.338 | OK11: 80 | OL11: 83.857 | OM11: 80 | ON11: 83.835 | OO11: 80 | OP11: 83.863 | OQ11: 80 | OR11: 83.816 | OS11: 80 | OT11: 83.869 | OU11: 80 | OV11: 83.819 | OW11: 80 | OX11: 83.834 | OY11: 80 | OZ11: 83.872 | PA11: 80 | PB11: 83.899 | PC11: 80 | PD11: 83.865 | PE11: 80 | PF11: 81.922 | PG11: 80 | PH11: 81.924 | PI11: 80 | PJ11: 81.93 | PK11: 80 | PL11: 81.906 | PM11: 80 | PN11: 81.937 | PO11: 80 | PP11: 81.902 | PQ11: 80 | PR11: 81.92 | PS11: 80 | PT11: 81.919 | PU11: 80 | PV11: 81.964 | PW11: 80 | PX11: 81.93
A12: 85 | B12: -0.169 | C12: 85 | D12: -0.19 | E12: 0 | F12: 0 | G12: 0 | H12: 0 | I12: 0 | J12: 0 | K12: 0 | L12: 0 | M12: 85 | N12: 0.033 | O12: 85 | P12: 0.093 | Q12: 85 | R12: -0.207 | S12: 85 | T12: 0.015 | U12: 85 | V12: 92.658 | W12: 85 | X12: 95.424 | Y12: 0 | Z12: 93.979 | AA12: 0 | AB12: 93.979 | AC12: 0 | AD12: 93.979 | AE12: 0 | AF12: 93.979 | AG12: 85 | AH12: 83.733 | AI12: 85 | AJ12: 81.768 | AK12: 85 | AL12: 84.218 | AM12: 85 | AN12: 82.312 | AO12: 85 | AP12: 92.492 | AQ12: 85 | AR12: 92.494 | AS12: 85 | AT12: 92.494 | AU12: 85 | AV12: 92.503 | AW12: 85 | AX12: 92.51 | AY12: 85 | AZ12: 92.476 | BA12: 85 | BB12: 92.5 | BC12: 85 | BD12: 92.485 | BE12: 85 | BF12: 92.476 | BG12: 85 | BH12: 92.459 | BI12: 85 | BJ12: 95.25 | BK12: 85 | BL12: 95.25 | BM12: 85 | BN12: 95.223 | BO12: 85 | BP12: 95.249 | BQ12: 85 | BR12: 95.256 | BS12: 85 | BT12: 95.23 | BU12: 85 | BV12: 95.268 | BW12: 85 | BX12: 95.231 | BY12: 85 | BZ12: 95.209 | CA12: 85 | CB12: 95.172 | CC12: 0 | CD12: 93.979 | CE12: 0 | CF12: 93.979 | CG12: 0 | CH12: 93.979 | CI12: 0 | CJ12: 93.979 | CK12: 0 | CL12: 93.979 | CM12: 0 | CN12: 93.979 | CO12: 0 | CP12: 93.979 | CQ12: 0 | CR12: 93.979 | CS12: 0 | CT12: 93.979 | CU12: 0 | CV12: 93.979 | CW12: 0 | CX12: 93.979 | CY12: 0 | CZ12: 93.979 | DA12: 0 | DB12: 93.979 | DC12: 0 | DD12: 93.979 | DE12: 0 | DF12: 93.979 | DG12: 0 | DH12: 93.979 | DI12: 0 | DJ12: 93.979 | DK12: 0 | DL12: 93.979 | DM12: 0 | DN12: 93.979 | DO12: 0 | DP12: 93.979 | DQ12: 0 | DR12: 93.979 | DS12: 0 | DT12: 93.979 | DU12: 0 | DV12: 93.979 | DW12: 0 | DX12: 93.979 | DY12: 0 | DZ12: 93.979 | EA12: 0 | EB12: 93.979 | EC12: 0 | ED12: 93.979 | EE12: 0 | EF12: 93.979 | EG12: 0 | EH12: 93.979 | EI12: 0 | EJ12: 93.979 | EK12: 0 | EL12: 93.979 | EM12: 0 | EN12: 93.979 | EO12: 0 | EP12: 93.979 | EQ12: 0 | ER12: 93.979 | ES12: 0 | ET12: 93.979 | EU12: 0 | EV12: 93.979 | EW12: 0 | EX12: 93.979 | EY12: 0 | EZ12: 93.979 | FA12: 0 | FB12: 93.979 | FC12: 0 | FD12: 93.979 | FE12: 85 | FF12: 83.819 | FG12: 85 | FH12: 83.791 | FI12: 85 | FJ12: 83.753 | FK12: 85 | FL12: 83.756 | FM12: 85 | FN12: 83.801 | FO12: 85 | FP12: 83.755 | FQ12: 85 | FR12: 83.788 | FS12: 85 | FT12: 83.741 | FU12: 85 | FV12: 83.737 | FW12: 85 | FX12: 83.723 | FY12: 85 | FZ12: 81.893 | GA12: 85 | GB12: 81.895 | GC12: 85 | GD12: 81.855 | GE12: 85 | GF12: 81.86 | GG12: 85 | GH12: 81.902 | GI12: 85 | GJ12: 81.852 | GK12: 85 | GL12: 81.899 | GM12: 85 | GN12: 81.836 | GO12: 85 | GP12: 81.828 | GQ12: 85 | GR12: 81.788 | GS12: 85 | GT12: 84.056 | GU12: 85 | GV12: 84.031 | GW12: 85 | GX12: 84.006 | GY12: 85 | GZ12: 84.001 | HA12: 85 | HB12: 84.041 | HC12: 85 | HD12: 84 | HE12: 85 | HF12: 84.037 | HG12: 85 | HH12: 83.984 | HI12: 85 | HJ12: 83.982 | HK12: 85 | HL12: 83.971 | HM12: 85 | HN12: 82.36 | HO12: 85 | HP12: 82.362 | HQ12: 85 | HR12: 82.333 | HS12: 85 | HT12: 82.33 | HU12: 85 | HV12: 82.365 | HW12: 85 | HX12: 82.319 | HY12: 85 | HZ12: 82.36 | IA12: 85 | IB12: 82.301 | IC12: 85 | ID12: 82.29 | IE12: 85 | IF12: 82.246 | IG12: 85 | IH12: 92.635 | II12: 85 | IJ12: 92.65 | IK12: 85 | IL12: 92.66 | IM12: 85 | IN12: 92.669 | IO12: 85 | IP12: 92.662 | IQ12: 85 | IR12: 92.652 | IS12: 85 | IT12: 92.666 | IU12: 85 | IV12: 92.65 | IW12: 85 | IX12: 92.675 | IY12: 85 | IZ12: 92.659 | JA12: 85 | JB12: 95.419 | JC12: 85 | JD12: 95.432 | JE12: 85 | JF12: 95.417 | JG12: 85 | JH12: 95.431 | JI12: 85 | JJ12: 95.428 | JK12: 85 | JL12: 95.413 | JM12: 85 | JN12: 95.445 | JO12: 85 | JP12: 95.413 | JQ12: 85 | JR12: 95.43 | JS12: 85 | JT12: 95.413 | JU12: 0 | JV12: 93.979 | JW12: 0 | JX12: 93.979 | JY12: 0 | JZ12: 93.979 | KA12: 0 | KB12: 93.979 | KC12: 0 | KD12: 93.979 | KE12: 0 | KF12: 93.979 | KG12: 0 | KH12: 93.979 | KI12: 0 | KJ12: 93.979 | KK12: 0 | KL12: 93.979 | KM12: 0 | KN12: 93.979 | KO12: 0 | KP12: 93.979 | KQ12: 0 | KR12: 93.979 | KS12: 0 | KT12: 93.979 | KU12: 0 | KV12: 93.979 | KW12: 0 | KX12: 93.979 | KY12: 0 | KZ12: 93.979 | LA12: 0 | LB12: 93.979 | LC12: 0 | LD12: 93.979 | LE12: 0 | LF12: 93.979 | LG12: 0 | LH12: 93.979 | LI12: 0 | LJ12: 93.979 | LK12: 0 | LL12: 93.979 | LM12: 0 | LN12: 93.979 | LO12: 0 | LP12: 93.979 | LQ12: 0 | LR12: 93.979 | LS12: 0 | LT12: 93.979 | LU12: 0 | LV12: 93.979 | LW12: 0 | LX12: 93.979 | LY12: 0 | LZ12: 93.979 | MA12: 0 | MB12: 93.979 | MC12: 0 | MD12: 93.979 | ME12: 0 | MF12: 93.979 | MG12: 0 | MH12: 93.979 | MI12: 0 | MJ12: 93.979 | MK12: 0 | ML12: 93.979 | MM12: 0 | MN12: 93.979 | MO12: 0 | MP12: 93.979 | MQ12: 0 | MR12: 93.979 | MS12: 0 | MT12: 93.979 | MU12: 0 | MV12: 93.979 | MW12: 85 | MX12: 83.736 | MY12: 85 | MZ12: 83.731 | NA12: 85 | NB12: 83.742 | NC12: 85 | ND12: 83.692 | NE12: 85 | NF12: 83.75 | NG12: 85 | NH12: 83.695 | NI12: 85 | NJ12: 83.704 | NK12: 85 | NL12: 83.751 | NM12: 85 | NN12: 83.79 | NO12: 85 | NP12: 83.742 | NQ12: 85 | NR12: 81.75 | NS12: 85 | NT12: 81.793 | NU12: 85 | NV12: 81.767 | NW12: 85 | NX12: 81.751 | NY12: 85 | NZ12: 81.783 | OA12: 85 | OB12: 81.742 | OC12: 85 | OD12: 81.757 | OE12: 85 | OF12: 81.75 | OG12: 85 | OH12: 81.827 | OI12: 85 | OJ12: 81.761 | OK12: 85 | OL12: 84.217 | OM12: 85 | ON12: 84.206 | OO12: 85 | OP12: 84.233 | OQ12: 85 | OR12: 84.175 | OS12: 85 | OT12: 84.236 | OU12: 85 | OV12: 84.177 | OW12: 85 | OX12: 84.19 | OY12: 85 | OZ12: 84.241 | PA12: 85 | PB12: 84.276 | PC12: 85 | PD12: 84.227 | PE12: 85 | PF12: 82.295 | PG12: 85 | PH12: 82.326 | PI12: 85 | PJ12: 82.32 | PK12: 85 | PL12: 82.289 | PM12: 85 | PN12: 82.326 | PO12: 85 | PP12: 82.281 | PQ12: 85 | PR12: 82.3 | PS12: 85 | PT12: 82.303 | PU12: 85 | PV12: 82.367 | PW12: 85 | PX12: 82.31
A13: 90 | B13: -0.172 | C13: 90 | D13: -0.178 | E13: 0 | F13: 0 | G13: 0 | H13: 0 | I13: 0 | J13: 0 | K13: 0 | L13: 0 | M13: 90 | N13: 0.021 | O13: 90 | P13: 0.102 | Q13: 90 | R13: -0.208 | S13: 90 | T13: 0.018 | U13: 90 | V13: 92.691 | W13: 90 | X13: 95.43 | Y13: 0 | Z13: 93.979 | AA13: 0 | AB13: 93.979 | AC13: 0 | AD13: 93.979 | AE13: 0 | AF13: 93.979 | AG13: 90 | AH13: 83.853 | AI13: 90 | AJ13: 81.908 | AK13: 90 | AL13: 84.331 | AM13: 90 | AN13: 82.432 | AO13: 90 | AP13: 92.522 | AQ13: 90 | AR13: 92.535 | AS13: 90 | AT13: 92.529 | AU13: 90 | AV13: 92.51 | AW13: 90 | AX13: 92.553 | AY13: 90 | AZ13: 92.509 | BA13: 90 | BB13: 92.537 | BC13: 90 | BD13: 92.5 | BE13: 90 | BF13: 92.511 | BG13: 90 | BH13: 92.483 | BI13: 90 | BJ13: 95.26 | BK13: 90 | BL13: 95.281 | BM13: 90 | BN13: 95.251 | BO13: 90 | BP13: 95.252 | BQ13: 90 | BR13: 95.285 | BS13: 90 | BT13: 95.254 | BU13: 90 | BV13: 95.299 | BW13: 90 | BX13: 95.233 | BY13: 90 | BZ13: 95.228 | CA13: 90 | CB13: 95.176 | CC13: 0 | CD13: 93.979 | CE13: 0 | CF13: 93.979 | CG13: 0 | CH13: 93.979 | CI13: 0 | CJ13: 93.979 | CK13: 0 | CL13: 93.979 | CM13: 0 | CN13: 93.979 | CO13: 0 | CP13: 93.979 | CQ13: 0 | CR13: 93.979 | CS13: 0 | CT13: 93.979 | CU13: 0 | CV13: 93.979 | CW13: 0 | CX13: 93.979 | CY13: 0 | CZ13: 93.979 | DA13: 0 | DB13: 93.979 | DC13: 0 | DD13: 93.979 | DE13: 0 | DF13: 93.979 | DG13: 0 | DH13: 93.979 | DI13: 0 | DJ13: 93.979 | DK13: 0 | DL13: 93.979 | DM13: 0 | DN13: 93.979 | DO13: 0 | DP13: 93.979 | DQ13: 0 | DR13: 93.979 | DS13: 0 | DT13: 93.979 | DU13: 0 | DV13: 93.979 | DW13: 0 | DX13: 93.979 | DY13: 0 | DZ13: 93.979 | EA13: 0 | EB13: 93.979 | EC13: 0 | ED13: 93.979 | EE13: 0 | EF13: 93.979 | EG13: 0 | EH13: 93.979 | EI13: 0 | EJ13: 93.979 | EK13: 0 | EL13: 93.979 | EM13: 0 | EN13: 93.979 | EO13: 0 | EP13: 93.979 | EQ13: 0 | ER13: 93.979 | ES13: 0 | ET13: 93.979 | EU13: 0 | EV13: 93.979 | EW13: 0 | EX13: 93.979 | EY13: 0 | EZ13: 93.979 | FA13: 0 | FB13: 93.979 | FC13: 0 | FD13: 93.979 | FE13: 90 | FF13: 83.93 | FG13: 90 | FH13: 83.899 | FI13: 90 | FJ13: 83.862 | FK13: 90 | FL13: 83.852 | FM13: 90 | FN13: 83.907 | FO13: 90 | FP13: 83.863 | FQ13: 90 | FR13: 83.894 | FS13: 90 | FT13: 83.843 | FU13: 90 | FV13: 83.847 | FW13: 90 | FX13: 83.839 | FY13: 90 | FZ13: 82.036 | GA13: 90 | GB13: 82.049 | GC13: 90 | GD13: 82.012 | GE13: 90 | GF13: 81.995 | GG13: 90 | GH13: 82.052 | GI13: 90 | GJ13: 82.006 | GK13: 90 | GL13: 82.052 | GM13: 90 | GN13: 81.978 | GO13: 90 | GP13: 81.984 | GQ13: 90 | GR13: 81.94 | GS13: 90 | GT13: 84.169 | GU13: 90 | GV13: 84.145 | GW13: 90 | GX13: 84.12 | GY13: 90 | GZ13: 84.102 | HA13: 90 | HB13: 84.152 | HC13: 90 | HD13: 84.112 | HE13: 90 | HF13: 84.15 | HG13: 90 | HH13: 84.09 | HI13: 90 | HJ13: 84.097 | HK13: 90 | HL13: 84.09 | HM13: 90 | HN13: 82.477 | HO13: 90 | HP13: 82.489 | HQ13: 90 | HR13: 82.465 | HS13: 90 | HT13: 82.441 | HU13: 90 | HV13: 82.49 | HW13: 90 | HX13: 82.446 | HY13: 90 | HZ13: 82.488 | IA13: 90 | IB13: 82.416 | IC13: 90 | ID13: 82.416 | IE13: 90 | IF13: 82.37 | IG13: 90 | IH13: 92.654 | II13: 90 | IJ13: 92.685 | IK13: 90 | IL13: 92.693 | IM13: 90 | IN13: 92.695 | IO13: 90 | IP13: 92.711 | IQ13: 90 | IR13: 92.68 | IS13: 90 | IT13: 92.667 | IU13: 90 | IV13: 92.702 | IW13: 90 | IX13: 92.731 | IY13: 90 | IZ13: 92.696 | JA13: 90 | JB13: 95.405 | JC13: 90 | JD13: 95.448 | JE13: 90 | JF13: 95.423 | JG13: 90 | JH13: 95.435 | JI13: 90 | JJ13: 95.445 | JK13: 90 | JL13: 95.414 | JM13: 90 | JN13: 95.428 | JO13: 90 | JP13: 95.423 | JQ13: 90 | JR13: 95.461 | JS13: 90 | JT13: 95.417 | JU13: 0 | JV13: 93.979 | JW13: 0 | JX13: 93.979 | JY13: 0 | JZ13: 93.979 | KA13: 0 | KB13: 93.979 | KC13: 0 | KD13: 93.979 | KE13: 0 | KF13: 93.979 | KG13: 0 | KH13: 93.979 | KI13: 0 | KJ13: 93.979 | KK13: 0 | KL13: 93.979 | KM13: 0 | KN13: 93.979 | KO13: 0 | KP13: 93.979 | KQ13: 0 | KR13: 93.979 | KS13: 0 | KT13: 93.979 | KU13: 0 | KV13: 93.979 | KW13: 0 | KX13: 93.979 | KY13: 0 | KZ13: 93.979 | LA13: 0 | LB13: 93.979 | LC13: 0 | LD13: 93.979 | LE13: 0 | LF13: 93.979 | LG13: 0 | LH13: 93.979 | LI13: 0 | LJ13: 93.979 | LK13: 0 | LL13: 93.979 | LM13: 0 | LN13: 93.979 | LO13: 0 | LP13: 93.979 | LQ13: 0 | LR13: 93.979 | LS13: 0 | LT13: 93.979 | LU13: 0 | LV13: 93.979 | LW13: 0 | LX13: 93.979 | LY13: 0 | LZ13: 93.979 | MA13: 0 | MB13: 93.979 | MC13: 0 | MD13: 93.979 | ME13: 0 | MF13: 93.979 | MG13: 0 | MH13: 93.979 | MI13: 0 | MJ13: 93.979 | MK13: 0 | ML13: 93.979 | MM13: 0 | MN13: 93.979 | MO13: 0 | MP13: 93.979 | MQ13: 0 | MR13: 93.979 | MS13: 0 | MT13: 93.979 | MU13: 0 | MV13: 93.979 | MW13: 90 | MX13: 83.851 | MY13: 90 | MZ13: 83.853 | NA13: 90 | NB13: 83.863 | NC13: 90 | ND13: 83.808 | NE13: 90 | NF13: 83.873 | NG13: 90 | NH13: 83.806 | NI13: 90 | NJ13: 83.804 | NK13: 90 | NL13: 83.885 | NM13: 90 | NN13: 83.921 | NO13: 90 | NP13: 83.866 | NQ13: 90 | NR13: 81.874 | NS13: 90 | NT13: 81.95 | NU13: 90 | NV13: 81.903 | NW13: 90 | NX13: 81.896 | NY13: 90 | NZ13: 81.929 | OA13: 90 | OB13: 81.876 | OC13: 90 | OD13: 81.875 | OE13: 90 | OF13: 81.897 | OG13: 90 | OH13: 81.981 | OI13: 90 | OJ13: 81.901 | OK13: 90 | OL13: 84.325 | OM13: 90 | ON13: 84.32 | OO13: 90 | OP13: 84.349 | OQ13: 90 | OR13: 84.284 | OS13: 90 | OT13: 84.354 | OU13: 90 | OV13: 84.28 | OW13: 90 | OX13: 84.283 | OY13: 90 | OZ13: 84.368 | PA13: 90 | PB13: 84.404 | PC13: 90 | PD13: 84.344 | PE13: 90 | PF13: 82.398 | PG13: 90 | PH13: 82.46 | PI13: 90 | PJ13: 82.438 | PK13: 90 | PL13: 82.412 | PM13: 90 | PN13: 82.452 | PO13: 90 | PP13: 82.394 | PQ13: 90 | PR13: 82.4 | PS13: 90 | PT13: 82.43 | PU13: 90 | PV13: 82.504 | PW13: 90 | PX13: 82.429
A14: 95 | B14: -0.195 | C14: 95 | D14: -0.185 | E14: 0 | F14: 0 | G14: 0 | H14: 0 | I14: 0 | J14: 0 | K14: 0 | L14: 0 | M14: 95 | N14: -0.013 | O14: 95 | P14: 0.092 | Q14: 95 | R14: -0.235 | S14: 95 | T14: 0.003 | U14: 95 | V14: 92.544 | W14: 95 | X14: 95.288 | Y14: 0 | Z14: 93.979 | AA14: 0 | AB14: 93.979 | AC14: 0 | AD14: 93.979 | AE14: 0 | AF14: 93.979 | AG14: 95 | AH14: 83.778 | AI14: 95 | AJ14: 81.802 | AK14: 95 | AL14: 84.262 | AM14: 95 | AN14: 82.33 | AO14: 95 | AP14: 92.364 | AQ14: 95 | AR14: 92.362 | AS14: 95 | AT14: 92.349 | AU14: 95 | AV14: 92.324 | AW14: 95 | AX14: 92.377 | AY14: 95 | AZ14: 92.341 | BA14: 95 | BB14: 92.361 | BC14: 95 | BD14: 92.331 | BE14: 95 | BF14: 92.343 | BG14: 95 | BH14: 92.336 | BI14: 95 | BJ14: 95.105 | BK14: 95 | BL14: 95.133 | BM14: 95 | BN14: 95.102 | BO14: 95 | BP14: 95.088 | BQ14: 95 | BR14: 95.131 | BS14: 95 | BT14: 95.106 | BU14: 95 | BV14: 95.148 | BW14: 95 | BX14: 95.089 | BY14: 95 | BZ14: 95.08 | CA14: 95 | CB14: 95.05 | CC14: 0 | CD14: 93.979 | CE14: 0 | CF14: 93.979 | CG14: 0 | CH14: 93.979 | CI14: 0 | CJ14: 93.979 | CK14: 0 | CL14: 93.979 | CM14: 0 | CN14: 93.979 | CO14: 0 | CP14: 93.979 | CQ14: 0 | CR14: 93.979 | CS14: 0 | CT14: 93.979 | CU14: 0 | CV14: 93.979 | CW14: 0 | CX14: 93.979 | CY14: 0 | CZ14: 93.979 | DA14: 0 | DB14: 93.979 | DC14: 0 | DD14: 93.979 | DE14: 0 | DF14: 93.979 | DG14: 0 | DH14: 93.979 | DI14: 0 | DJ14: 93.979 | DK14: 0 | DL14: 93.979 | DM14: 0 | DN14: 93.979 | DO14: 0 | DP14: 93.979 | DQ14: 0 | DR14: 93.979 | DS14: 0 | DT14: 93.979 | DU14: 0 | DV14: 93.979 | DW14: 0 | DX14: 93.979 | DY14: 0 | DZ14: 93.979 | EA14: 0 | EB14: 93.979 | EC14: 0 | ED14: 93.979 | EE14: 0 | EF14: 93.979 | EG14: 0 | EH14: 93.979 | EI14: 0 | EJ14: 93.979 | EK14: 0 | EL14: 93.979 | EM14: 0 | EN14: 93.979 | EO14: 0 | EP14: 93.979 | EQ14: 0 | ER14: 93.979 | ES14: 0 | ET14: 93.979 | EU14: 0 | EV14: 93.979 | EW14: 0 | EX14: 93.979 | EY14: 0 | EZ14: 93.979 | FA14: 0 | FB14: 93.979 | FC14: 0 | FD14: 93.979 | FE14: 95 | FF14: 83.826 | FG14: 95 | FH14: 83.779 | FI14: 95 | FJ14: 83.746 | FK14: 95 | FL14: 83.733 | FM14: 95 | FN14: 83.782 | FO14: 95 | FP14: 83.752 | FQ14: 95 | FR14: 83.769 | FS14: 95 | FT14: 83.745 | FU14: 95 | FV14: 83.747 | FW14: 95 | FX14: 83.768 | FY14: 95 | FZ14: 81.911 | GA14: 95 | GB14: 81.921 | GC14: 95 | GD14: 81.895 | GE14: 95 | GF14: 81.865 | GG14: 95 | GH14: 81.916 | GI14: 95 | GJ14: 81.893 | GK14: 95 | GL14: 81.92 | GM14: 95 | GN14: 81.878 | GO14: 95 | GP14: 81.88 | GQ14: 95 | GR14: 81.865 | GS14: 95 | GT14: 84.074 | GU14: 95 | GV14: 84.039 | GW14: 95 | GX14: 84.02 | GY14: 95 | GZ14: 83.997 | HA14: 95 | HB14: 84.041 | HC14: 95 | HD14: 84.015 | HE14: 95 | HF14: 84.04 | HG14: 95 | HH14: 84.005 | HI14: 95 | HJ14: 84.01 | HK14: 95 | HL14: 84.033 | HM14: 95 | HN14: 82.349 | HO14: 95 | HP14: 82.361 | HQ14: 95 | HR14: 82.349 | HS14: 95 | HT14: 82.311 | HU14: 95 | HV14: 82.355 | HW14: 95 | HX14: 82.332 | HY14: 95 | HZ14: 82.358 | IA14: 95 | IB14: 82.311 | IC14: 95 | ID14: 82.31 | IE14: 95 | IF14: 82.293 | IG14: 95 | IH14: 92.523 | II14: 95 | IJ14: 92.521 | IK14: 95 | IL14: 92.549 | IM14: 95 | IN14: 92.523 | IO14: 95 | IP14: 92.574 | IQ14: 95 | IR14: 92.51 | IS14: 95 | IT14: 92.489 | IU14: 95 | IV14: 92.583 | IW14: 95 | IX14: 92.604 | IY14: 95 | IZ14: 92.564 | JA14: 95 | JB14: 95.276 | JC14: 95 | JD14: 95.303 | JE14: 95 | JF14: 95.283 | JG14: 95 | JH14: 95.281 | JI14: 95 | JJ14: 95.308 | JK14: 95 | JL14: 95.252 | JM14: 95 | JN14: 95.262 | JO14: 95 | JP14: 95.3 | JQ14: 95 | JR14: 95.335 | JS14: 95 | JT14: 95.284 | JU14: 0 | JV14: 93.979 | JW14: 0 | JX14: 93.979 | JY14: 0 | JZ14: 93.979 | KA14: 0 | KB14: 93.979 | KC14: 0 | KD14: 93.979 | KE14: 0 | KF14: 93.979 | KG14: 0 | KH14: 93.979 | KI14: 0 | KJ14: 93.979 | KK14: 0 | KL14: 93.979 | KM14: 0 | KN14: 93.979 | KO14: 0 | KP14: 93.979 | KQ14: 0 | KR14: 93.979 | KS14: 0 | KT14: 93.979 | KU14: 0 | KV14: 93.979 | KW14: 0 | KX14: 93.979 | KY14: 0 | KZ14: 93.979 | LA14: 0 | LB14: 93.979 | LC14: 0 | LD14: 93.979 | LE14: 0 | LF14: 93.979 | LG14: 0 | LH14: 93.979 | LI14: 0 | LJ14: 93.979 | LK14: 0 | LL14: 93.979 | LM14: 0 | LN14: 93.979 | LO14: 0 | LP14: 93.979 | LQ14: 0 | LR14: 93.979 | LS14: 0 | LT14: 93.979 | LU14: 0 | LV14: 93.979 | LW14: 0 | LX14: 93.979 | LY14: 0 | LZ14: 93.979 | MA14: 0 | MB14: 93.979 | MC14: 0 | MD14: 93.979 | ME14: 0 | MF14: 93.979 | MG14: 0 | MH14: 93.979 | MI14: 0 | MJ14: 93.979 | MK14: 0 | ML14: 93.979 | MM14: 0 | MN14: 93.979 | MO14: 0 | MP14: 93.979 | MQ14: 0 | MR14: 93.979 | MS14: 0 | MT14: 93.979 | MU14: 0 | MV14: 93.979 | MW14: 95 | MX14: 83.794 | MY14: 95 | MZ14: 83.763 | NA14: 95 | NB14: 83.79 | NC14: 95 | ND14: 83.721 | NE14: 95 | NF14: 83.798 | NG14: 95 | NH14: 83.713 | NI14: 95 | NJ14: 83.708 | NK14: 95 | NL14: 83.838 | NM14: 95 | NN14: 83.849 | NO14: 95 | NP14: 83.806 | NQ14: 95 | NR14: 81.784 | NS14: 95 | NT14: 81.844 | NU14: 95 | NV14: 81.791 | NW14: 95 | NX14: 81.79 | NY14: 95 | NZ14: 81.822 | OA14: 95 | OB14: 81.754 | OC14: 95 | OD14: 81.745 | OE14: 95 | OF14: 81.81 | OG14: 95 | OH14: 81.875 | OI14: 95 | OJ14: 81.806 | OK14: 95 | OL14: 84.271 | OM14: 95 | ON14: 84.236 | OO14: 95 | OP14: 84.285 | OQ14: 95 | OR14: 84.201 | OS14: 95 | OT14: 84.287 | OU14: 95 | OV14: 84.191 | OW14: 95 | OX14: 84.189 | OY14: 95 | OZ14: 84.328 | PA14: 95 | PB14: 84.343 | PC14: 95 | PD14: 84.29 | PE14: 95 | PF14: 82.308 | PG14: 95 | PH14: 82.355 | PI14: 95 | PJ14: 82.333 | PK14: 95 | PL14: 82.307 | PM14: 95 | PN14: 82.351 | PO14: 95 | PP14: 82.274 | PQ14: 95 | PR14: 82.272 | PS14: 95 | PT14: 82.348 | PU14: 95 | PV14: 82.408 | PW14: 95 | PX14: 82.34
A15: 100 | B15: -0.27 | C15: 100 | D15: -0.245 | E15: 0 | F15: 0 | G15: 0 | H15: 0 | I15: 0 | J15: 0 | K15: 0 | L15: 0 | M15: 100 | N15: -0.101 | O15: 100 | P15: 0.017 | Q15: 100 | R15: -0.32 | S15: 100 | T15: -0.078 | U15: 100 | V15: 92.278 | W15: 100 | X15: 95.083 | Y15: 0 | Z15: 93.979 | AA15: 0 | AB15: 93.979 | AC15: 0 | AD15: 93.979 | AE15: 0 | AF15: 93.979 | AG15: 100 | AH15: 83.597 | AI15: 100 | AJ15: 81.517 | AK15: 100 | AL15: 84.091 | AM15: 100 | AN15: 82.064 | AO15: 100 | AP15: 92.064 | AQ15: 100 | AR15: 92.008 | AS15: 100 | AT15: 91.987 | AU15: 100 | AV15: 91.986 | AW15: 100 | AX15: 92.022 | AY15: 100 | AZ15: 91.986 | BA15: 100 | BB15: 92 | BC15: 100 | BD15: 91.983 | BE15: 100 | BF15: 92.002 | BG15: 100 | BH15: 92.038 | BI15: 100 | BJ15: 94.857 | BK15: 100 | BL15: 94.856 | BM15: 100 | BN15: 94.827 | BO15: 100 | BP15: 94.82 | BQ15: 100 | BR15: 94.849 | BS15: 100 | BT15: 94.829 | BU15: 100 | BV15: 94.86 | BW15: 100 | BX15: 94.83 | BY15: 100 | BZ15: 94.816 | CA15: 100 | CB15: 94.832 | CC15: 0 | CD15: 93.979 | CE15: 0 | CF15: 93.979 | CG15: 0 | CH15: 93.979 | CI15: 0 | CJ15: 93.979 | CK15: 0 | CL15: 93.979 | CM15: 0 | CN15: 93.979 | CO15: 0 | CP15: 93.979 | CQ15: 0 | CR15: 93.979 | CS15: 0 | CT15: 93.979 | CU15: 0 | CV15: 93.979 | CW15: 0 | CX15: 93.979 | CY15: 0 | CZ15: 93.979 | DA15: 0 | DB15: 93.979 | DC15: 0 | DD15: 93.979 | DE15: 0 | DF15: 93.979 | DG15: 0 | DH15: 93.979 | DI15: 0 | DJ15: 93.979 | DK15: 0 | DL15: 93.979 | DM15: 0 | DN15: 93.979 | DO15: 0 | DP15: 93.979 | DQ15: 0 | DR15: 93.979 | DS15: 0 | DT15: 93.979 | DU15: 0 | DV15: 93.979 | DW15: 0 | DX15: 93.979 | DY15: 0 | DZ15: 93.979 | EA15: 0 | EB15: 93.979 | EC15: 0 | ED15: 93.979 | EE15: 0 | EF15: 93.979 | EG15: 0 | EH15: 93.979 | EI15: 0 | EJ15: 93.979 | EK15: 0 | EL15: 93.979 | EM15: 0 | EN15: 93.979 | EO15: 0 | EP15: 93.979 | EQ15: 0 | ER15: 93.979 | ES15: 0 | ET15: 93.979 | EU15: 0 | EV15: 93.979 | EW15: 0 | EX15: 93.979 | EY15: 0 | EZ15: 93.979 | FA15: 0 | FB15: 93.979 | FC15: 0 | FD15: 93.979 | FE15: 100 | FF15: 83.581 | FG15: 100 | FH15: 83.484 | FI15: 100 | FJ15: 83.455 | FK15: 100 | FL15: 83.468 | FM15: 100 | FN15: 83.482 | FO15: 100 | FP15: 83.47 | FQ15: 100 | FR15: 83.464 | FS15: 100 | FT15: 83.494 | FU15: 100 | FV15: 83.49 | FW15: 100 | FX15: 83.569 | FY15: 100 | FZ15: 81.568 | GA15: 100 | GB15: 81.522 | GC15: 100 | GD15: 81.512 | GE15: 100 | GF15: 81.515 | GG15: 100 | GH15: 81.508 | GI15: 100 | GJ15: 81.522 | GK15: 100 | GL15: 81.511 | GM15: 100 | GN15: 81.552 | GO15: 100 | GP15: 81.534 | GQ15: 100 | GR15: 81.593 | GS15: 100 | GT15: 83.836 | GU15: 100 | GV15: 83.756 | GW15: 100 | GX15: 83.745 | GY15: 100 | GZ15: 83.744 | HA15: 100 | HB15: 83.752 | HC15: 100 | HD15: 83.747 | HE15: 100 | HF15: 83.747 | HG15: 100 | HH15: 83.767 | HI15: 100 | HJ15: 83.767 | HK15: 100 | HL15: 83.853 | HM15: 100 | HN15: 82.012 | HO15: 100 | HP15: 81.977 | HQ15: 100 | HR15: 81.983 | HS15: 100 | HT15: 81.973 | HU15: 100 | HV15: 81.961 | HW15: 100 | HX15: 81.974 | HY15: 100 | HZ15: 81.963 | IA15: 100 | IB15: 81.997 | IC15: 100 | ID15: 81.979 | IE15: 100 | IF15: 82.038 | IG15: 100 | IH15: 92.282 | II15: 100 | IJ15: 92.208 | IK15: 100 | IL15: 92.304 | IM15: 100 | IN15: 92.203 | IO15: 100 | IP15: 92.315 | IQ15: 100 | IR15: 92.205 | IS15: 100 | IT15: 92.191 | IU15: 100 | IV15: 92.377 | IW15: 100 | IX15: 92.365 | IY15: 100 | IZ15: 92.327 | JA15: 100 | JB15: 95.094 | JC15: 100 | JD15: 95.066 | JE15: 100 | JF15: 95.093 | JG15: 100 | JH15: 95.041 | JI15: 100 | JJ15: 95.102 | JK15: 100 | JL15: 95.013 | JM15: 100 | JN15: 95.03 | JO15: 100 | JP15: 95.14 | JQ15: 100 | JR15: 95.147 | JS15: 100 | JT15: 95.099 | JU15: 0 | JV15: 93.979 | JW15: 0 | JX15: 93.979 | JY15: 0 | JZ15: 93.979 | KA15: 0 | KB15: 93.979 | KC15: 0 | KD15: 93.979 | KE15: 0 | KF15: 93.979 | KG15: 0 | KH15: 93.979 | KI15: 0 | KJ15: 93.979 | KK15: 0 | KL15: 93.979 | KM15: 0 | KN15: 93.979 | KO15: 0 | KP15: 93.979 | KQ15: 0 | KR15: 93.979 | KS15: 0 | KT15: 93.979 | KU15: 0 | KV15: 93.979 | KW15: 0 | KX15: 93.979 | KY15: 0 | KZ15: 93.979 | LA15: 0 | LB15: 93.979 | LC15: 0 | LD15: 93.979 | LE15: 0 | LF15: 93.979 | LG15: 0 | LH15: 93.979 | LI15: 0 | LJ15: 93.979 | LK15: 0 | LL15: 93.979 | LM15: 0 | LN15: 93.979 | LO15: 0 | LP15: 93.979 | LQ15: 0 | LR15: 93.979 | LS15: 0 | LT15: 93.979 | LU15: 0 | LV15: 93.979 | LW15: 0 | LX15: 93.979 | LY15: 0 | LZ15: 93.979 | MA15: 0 | MB15: 93.979 | MC15: 0 | MD15: 93.979 | ME15: 0 | MF15: 93.979 | MG15: 0 | MH15: 93.979 | MI15: 0 | MJ15: 93.979 | MK15: 0 | ML15: 93.979 | MM15: 0 | MN15: 93.979 | MO15: 0 | MP15: 93.979 | MQ15: 0 | MR15: 93.979 | MS15: 0 | MT15: 93.979 | MU15: 0 | MV15: 93.979 | MW15: 100 | MX15: 83.654 | MY15: 100 | MZ15: 83.541 | NA15: 100 | NB15: 83.625 | NC15: 100 | ND15: 83.506 | NE15: 100 | NF15: 83.609 | NG15: 100 | NH15: 83.503 | NI15: 100 | NJ15: 83.508 | NK15: 100 | NL15: 83.708 | NM15: 100 | NN15: 83.66 | NO15: 100 | NP15: 83.654 | NQ15: 100 | NR15: 81.554 | NS15: 100 | NT15: 81.526 | NU15: 100 | NV15: 81.518 | NW15: 100 | NX15: 81.477 | NY15: 100 | NZ15: 81.521 | OA15: 100 | OB15: 81.436 | OC15: 100 | OD15: 81.451 | OE15: 100 | OF15: 81.571 | OG15: 100 | OH15: 81.565 | OI15: 100 | OJ15: 81.551 | OK15: 100 | OL15: 84.142 | OM15: 100 | ON15: 84.019 | OO15: 100 | OP15: 84.133 | OQ15: 100 | OR15: 83.994 | OS15: 100 | OT15: 84.112 | OU15: 100 | OV15: 83.988 | OW15: 100 | OX15: 83.993 | OY15: 100 | OZ15: 84.213 | PA15: 100 | PB15: 84.169 | PC15: 100 | PD15: 84.15 | PE15: 100 | PF15: 82.094 | PG15: 100 | PH15: 82.051 | PI15: 100 | PJ15: 82.082 | PK15: 100 | PL15: 82.009 | PM15: 100 | PN15: 82.073 | PO15: 100 | PP15: 81.972 | PQ15: 100 | PR15: 81.989 | PS15: 100 | PT15: 82.133 | PU15: 100 | PV15: 82.127 | PW15: 100 | PX15: 82.106
A16: 106 | B16: -0.381 | C16: 106 | D16: -0.347 | E16: 0 | F16: 0 | G16: 0 | H16: 0 | I16: 0 | J16: 0 | K16: 0 | L16: 0 | M16: 106 | N16: -0.243 | O16: 106 | P16: -0.153 | Q16: 106 | R16: -0.466 | S16: 106 | T16: -0.257 | U16: 106 | V16: 92.055 | W16: 106 | X16: 94.923 | Y16: 0 | Z16: 93.979 | AA16: 0 | AB16: 93.979 | AC16: 0 | AD16: 93.979 | AE16: 0 | AF16: 93.979 | AG16: 106 | AH16: 83.455 | AI16: 106 | AJ16: 81.237 | AK16: 106 | AL16: 83.954 | AM16: 106 | AN16: 81.801 | AO16: 106 | AP16: 91.779 | AQ16: 106 | AR16: 91.666 | AS16: 106 | AT16: 91.625 | AU16: 106 | AV16: 91.636 | AW16: 106 | AX16: 91.681 | AY16: 106 | AZ16: 91.631 | BA16: 106 | BB16: 91.643 | BC16: 106 | BD16: 91.63 | BE16: 106 | BF16: 91.675 | BG16: 106 | BH16: 91.775 | BI16: 106 | BJ16: 94.627 | BK16: 106 | BL16: 94.581 | BM16: 106 | BN16: 94.546 | BO16: 106 | BP16: 94.544 | BQ16: 106 | BR16: 94.571 | BS16: 106 | BT16: 94.551 | BU16: 106 | BV16: 94.566 | BW16: 106 | BX16: 94.568 | BY16: 106 | BZ16: 94.566 | CA16: 106 | CB16: 94.638 | CC16: 0 | CD16: 93.979 | CE16: 0 | CF16: 93.979 | CG16: 0 | CH16: 93.979 | CI16: 0 | CJ16: 93.979 | CK16: 0 | CL16: 93.979 | CM16: 0 | CN16: 93.979 | CO16: 0 | CP16: 93.979 | CQ16: 0 | CR16: 93.979 | CS16: 0 | CT16: 93.979 | CU16: 0 | CV16: 93.979 | CW16: 0 | CX16: 93.979 | CY16: 0 | CZ16: 93.979 | DA16: 0 | DB16: 93.979 | DC16: 0 | DD16: 93.979 | DE16: 0 | DF16: 93.979 | DG16: 0 | DH16: 93.979 | DI16: 0 | DJ16: 93.979 | DK16: 0 | DL16: 93.979 | DM16: 0 | DN16: 93.979 | DO16: 0 | DP16: 93.979 | DQ16: 0 | DR16: 93.979 | DS16: 0 | DT16: 93.979 | DU16: 0 | DV16: 93.979 | DW16: 0 | DX16: 93.979 | DY16: 0 | DZ16: 93.979 | EA16: 0 | EB16: 93.979 | EC16: 0 | ED16: 93.979 | EE16: 0 | EF16: 93.979 | EG16: 0 | EH16: 93.979 | EI16: 0 | EJ16: 93.979 | EK16: 0 | EL16: 93.979 | EM16: 0 | EN16: 93.979 | EO16: 0 | EP16: 93.979 | EQ16: 0 | ER16: 93.979 | ES16: 0 | ET16: 93.979 | EU16: 0 | EV16: 93.979 | EW16: 0 | EX16: 93.979 | EY16: 0 | EZ16: 93.979 | FA16: 0 | FB16: 93.979 | FC16: 0 | FD16: 93.979 | FE16: 106 | FF16: 83.34 | FG16: 106 | FH16: 83.175 | FI16: 106 | FJ16: 83.137 | FK16: 106 | FL16: 83.184 | FM16: 106 | FN16: 83.177 | FO16: 106 | FP16: 83.165 | FQ16: 106 | FR16: 83.143 | FS16: 106 | FT16: 83.208 | FU16: 106 | FV16: 83.225 | FW16: 106 | FX16: 83.362 | FY16: 106 | FZ16: 81.172 | GA16: 106 | GB16: 81.026 | GC16: 106 | GD16: 81.019 | GE16: 106 | GF16: 81.085 | GG16: 106 | GH16: 81.012 | GI16: 106 | GJ16: 81.045 | GK16: 106 | GL16: 80.998 | GM16: 106 | GN16: 81.117 | GO16: 106 | GP16: 81.112 | GQ16: 106 | GR16: 81.258 | GS16: 106 | GT16: 83.591 | GU16: 106 | GV16: 83.445 | GW16: 106 | GX16: 83.431 | GY16: 106 | GZ16: 83.462 | HA16: 106 | HB16: 83.443 | HC16: 106 | HD16: 83.443 | HE16: 106 | HF16: 83.422 | HG16: 106 | HH16: 83.484 | HI16: 106 | HJ16: 83.506 | HK16: 106 | HL16: 83.655 | HM16: 106 | HN16: 81.616 | HO16: 106 | HP16: 81.488 | HQ16: 106 | HR16: 81.502 | HS16: 106 | HT16: 81.549 | HU16: 106 | HV16: 81.47 | HW16: 106 | HX16: 81.506 | HY16: 106 | HZ16: 81.456 | IA16: 106 | IB16: 81.569 | IC16: 106 | ID16: 81.566 | IE16: 106 | IF16: 81.719 | IG16: 106 | IH16: 92.094 | II16: 106 | IJ16: 91.918 | IK16: 106 | IL16: 92.116 | IM16: 106 | IN16: 91.919 | IO16: 106 | IP16: 92.102 | IQ16: 106 | IR16: 91.95 | IS16: 106 | IT16: 91.922 | IU16: 106 | IV16: 92.219 | IW16: 106 | IX16: 92.173 | IY16: 106 | IZ16: 92.136 | JA16: 106 | JB16: 94.959 | JC16: 106 | JD16: 94.858 | JE16: 106 | JF16: 94.956 | JG16: 106 | JH16: 94.846 | JI16: 106 | JJ16: 94.947 | JK16: 106 | JL16: 94.828 | JM16: 106 | JN16: 94.831 | JO16: 106 | JP16: 95.038 | JQ16: 106 | JR16: 95.001 | JS16: 106 | JT16: 94.966 | JU16: 0 | JV16: 93.979 | JW16: 0 | JX16: 93.979 | JY16: 0 | JZ16: 93.979 | KA16: 0 | KB16: 93.979 | KC16: 0 | KD16: 93.979 | KE16: 0 | KF16: 93.979 | KG16: 0 | KH16: 93.979 | KI16: 0 | KJ16: 93.979 | KK16: 0 | KL16: 93.979 | KM16: 0 | KN16: 93.979 | KO16: 0 | KP16: 93.979 | KQ16: 0 | KR16: 93.979 | KS16: 0 | KT16: 93.979 | KU16: 0 | KV16: 93.979 | KW16: 0 | KX16: 93.979 | KY16: 0 | KZ16: 93.979 | LA16: 0 | LB16: 93.979 | LC16: 0 | LD16: 93.979 | LE16: 0 | LF16: 93.979 | LG16: 0 | LH16: 93.979 | LI16: 0 | LJ16: 93.979 | LK16: 0 | LL16: 93.979 | LM16: 0 | LN16: 93.979 | LO16: 0 | LP16: 93.979 | LQ16: 0 | LR16: 93.979 | LS16: 0 | LT16: 93.979 | LU16: 0 | LV16: 93.979 | LW16: 0 | LX16: 93.979 | LY16: 0 | LZ16: 93.979 | MA16: 0 | MB16: 93.979 | MC16: 0 | MD16: 93.979 | ME16: 0 | MF16: 93.979 | MG16: 0 | MH16: 93.979 | MI16: 0 | MJ16: 93.979 | MK16: 0 | ML16: 93.979 | MM16: 0 | MN16: 93.979 | MO16: 0 | MP16: 93.979 | MQ16: 0 | MR16: 93.979 | MS16: 0 | MT16: 93.979 | MU16: 0 | MV16: 93.979 | MW16: 106 | MX16: 83.551 | MY16: 106 | MZ16: 83.334 | NA16: 106 | NB16: 83.51 | NC16: 106 | ND16: 83.316 | NE16: 106 | NF16: 83.462 | NG16: 106 | NH16: 83.342 | NI16: 106 | NJ16: 83.339 | NK16: 106 | NL16: 83.632 | NM16: 106 | NN16: 83.507 | NO16: 106 | NP16: 83.552 | NQ16: 106 | NR16: 81.331 | NS16: 106 | NT16: 81.168 | NU16: 106 | NV16: 81.277 | NW16: 106 | NX16: 81.137 | NY16: 106 | NZ16: 81.22 | OA16: 106 | OB16: 81.126 | OC16: 106 | OD16: 81.154 | OE16: 106 | OF16: 81.379 | OG16: 106 | OH16: 81.255 | OI16: 106 | OJ16: 81.327 | OK16: 106 | OL16: 84.046 | OM16: 106 | ON16: 83.81 | OO16: 106 | OP16: 84.027 | OQ16: 106 | OR16: 83.805 | OS16: 106 | OT16: 83.971 | OU16: 106 | OV16: 83.827 | OW16: 106 | OX16: 83.824 | OY16: 106 | OZ16: 84.148 | PA16: 106 | PB16: 84.027 | PC16: 106 | PD16: 84.053 | PE16: 106 | PF16: 81.887 | PG16: 106 | PH16: 81.704 | PI16: 106 | PJ16: 81.86 | PK16: 106 | PL16: 81.681 | PM16: 106 | PN16: 81.792 | PO16: 106 | PP16: 81.674 | PQ16: 106 | PR16: 81.701 | PS16: 106 | PT16: 81.964 | PU16: 106 | PV16: 81.843 | PW16: 106 | PX16: 81.902
A17: 112 | B17: -0.476 | C17: 112 | D17: -0.447 | E17: 0 | F17: 0 | G17: 0 | H17: 0 | I17: 0 | J17: 0 | K17: 0 | L17: 0 | M17: 112 | N17: -0.368 | O17: 112 | P17: -0.345 | Q17: 112 | R17: -0.598 | S17: 112 | T17: -0.462 | U17: 112 | V17: 91.846 | W17: 112 | X17: 94.768 | Y17: 0 | Z17: 93.979 | AA17: 0 | AB17: 93.979 | AC17: 0 | AD17: 93.979 | AE17: 0 | AF17: 93.979 | AG17: 112 | AH17: 83.421 | AI17: 112 | AJ17: 81.14 | AK17: 112 | AL17: 83.914 | AM17: 112 | AN17: 81.697 | AO17: 112 | AP17: 91.512 | AQ17: 112 | AR17: 91.357 | AS17: 112 | AT17: 91.294 | AU17: 112 | AV17: 91.315 | AW17: 112 | AX17: 91.366 | AY17: 112 | AZ17: 91.31 | BA17: 112 | BB17: 91.32 | BC17: 112 | BD17: 91.326 | BE17: 112 | BF17: 91.381 | BG17: 112 | BH17: 91.521 | BI17: 112 | BJ17: 94.413 | BK17: 112 | BL17: 94.313 | BM17: 112 | BN17: 94.27 | BO17: 112 | BP17: 94.281 | BQ17: 112 | BR17: 94.3 | BS17: 112 | BT17: 94.285 | BU17: 112 | BV17: 94.283 | BW17: 112 | BX17: 94.317 | BY17: 112 | BZ17: 94.327 | CA17: 112 | CB17: 94.424 | CC17: 0 | CD17: 93.979 | CE17: 0 | CF17: 93.979 | CG17: 0 | CH17: 93.979 | CI17: 0 | CJ17: 93.979 | CK17: 0 | CL17: 93.979 | CM17: 0 | CN17: 93.979 | CO17: 0 | CP17: 93.979 | CQ17: 0 | CR17: 93.979 | CS17: 0 | CT17: 93.979 | CU17: 0 | CV17: 93.979 | CW17: 0 | CX17: 93.979 | CY17: 0 | CZ17: 93.979 | DA17: 0 | DB17: 93.979 | DC17: 0 | DD17: 93.979 | DE17: 0 | DF17: 93.979 | DG17: 0 | DH17: 93.979 | DI17: 0 | DJ17: 93.979 | DK17: 0 | DL17: 93.979 | DM17: 0 | DN17: 93.979 | DO17: 0 | DP17: 93.979 | DQ17: 0 | DR17: 93.979 | DS17: 0 | DT17: 93.979 | DU17: 0 | DV17: 93.979 | DW17: 0 | DX17: 93.979 | DY17: 0 | DZ17: 93.979 | EA17: 0 | EB17: 93.979 | EC17: 0 | ED17: 93.979 | EE17: 0 | EF17: 93.979 | EG17: 0 | EH17: 93.979 | EI17: 0 | EJ17: 93.979 | EK17: 0 | EL17: 93.979 | EM17: 0 | EN17: 93.979 | EO17: 0 | EP17: 93.979 | EQ17: 0 | ER17: 93.979 | ES17: 0 | ET17: 93.979 | EU17: 0 | EV17: 93.979 | EW17: 0 | EX17: 93.979 | EY17: 0 | EZ17: 93.979 | FA17: 0 | FB17: 93.979 | FC17: 0 | FD17: 93.979 | FE17: 112 | FF17: 83.213 | FG17: 112 | FH17: 83.019 | FI17: 112 | FJ17: 82.95 | FK17: 112 | FL17: 82.997 | FM17: 112 | FN17: 83.03 | FO17: 112 | FP17: 82.993 | FQ17: 112 | FR17: 82.981 | FS17: 112 | FT17: 83.027 | FU17: 112 | FV17: 83.09 | FW17: 112 | FX17: 83.235 | FY17: 112 | FZ17: 80.927 | GA17: 112 | GB17: 80.725 | GC17: 112 | GD17: 80.681 | GE17: 112 | GF17: 80.767 | GG17: 112 | GH17: 80.723 | GI17: 112 | GJ17: 80.728 | GK17: 112 | GL17: 80.684 | GM17: 112 | GN17: 80.8 | GO17: 112 | GP17: 80.865 | GQ17: 112 | GR17: 81.046 | GS17: 112 | GT17: 83.45 | GU17: 112 | GV17: 83.272 | GW17: 112 | GX17: 83.232 | GY17: 112 | GZ17: 83.265 | HA17: 112 | HB17: 83.276 | HC17: 112 | HD17: 83.257 | HE17: 112 | HF17: 83.237 | HG17: 112 | HH17: 83.288 | HI17: 112 | HJ17: 83.36 | HK17: 112 | HL17: 83.522 | HM17: 112 | HN17: 81.349 | HO17: 112 | HP17: 81.164 | HQ17: 112 | HR17: 81.152 | HS17: 112 | HT17: 81.218 | HU17: 112 | HV17: 81.154 | HW17: 112 | HX17: 81.172 | HY17: 112 | HZ17: 81.115 | IA17: 112 | IB17: 81.234 | IC17: 112 | ID17: 81.302 | IE17: 112 | IF17: 81.496 | IG17: 112 | IH17: 91.912 | II17: 112 | IJ17: 91.677 | IK17: 112 | IL17: 91.922 | IM17: 112 | IN17: 91.682 | IO17: 112 | IP17: 91.895 | IQ17: 112 | IR17: 91.737 | IS17: 112 | IT17: 91.704 | IU17: 112 | IV17: 92.031 | IW17: 112 | IX17: 91.961 | IY17: 112 | IZ17: 91.94 | JA17: 112 | JB17: 94.813 | JC17: 112 | JD17: 94.683 | JE17: 112 | JF17: 94.809 | JG17: 112 | JH17: 94.681 | JI17: 112 | JJ17: 94.791 | JK17: 112 | JL17: 94.679 | JM17: 112 | JN17: 94.665 | JO17: 112 | JP17: 94.905 | JQ17: 112 | JR17: 94.83 | JS17: 112 | JT17: 94.822 | JU17: 0 | JV17: 93.979 | JW17: 0 | JX17: 93.979 | JY17: 0 | JZ17: 93.979 | KA17: 0 | KB17: 93.979 | KC17: 0 | KD17: 93.979 | KE17: 0 | KF17: 93.979 | KG17: 0 | KH17: 93.979 | KI17: 0 | KJ17: 93.979 | KK17: 0 | KL17: 93.979 | KM17: 0 | KN17: 93.979 | KO17: 0 | KP17: 93.979 | KQ17: 0 | KR17: 93.979 | KS17: 0 | KT17: 93.979 | KU17: 0 | KV17: 93.979 | KW17: 0 | KX17: 93.979 | KY17: 0 | KZ17: 93.979 | LA17: 0 | LB17: 93.979 | LC17: 0 | LD17: 93.979 | LE17: 0 | LF17: 93.979 | LG17: 0 | LH17: 93.979 | LI17: 0 | LJ17: 93.979 | LK17: 0 | LL17: 93.979 | LM17: 0 | LN17: 93.979 | LO17: 0 | LP17: 93.979 | LQ17: 0 | LR17: 93.979 | LS17: 0 | LT17: 93.979 | LU17: 0 | LV17: 93.979 | LW17: 0 | LX17: 93.979 | LY17: 0 | LZ17: 93.979 | MA17: 0 | MB17: 93.979 | MC17: 0 | MD17: 93.979 | ME17: 0 | MF17: 93.979 | MG17: 0 | MH17: 93.979 | MI17: 0 | MJ17: 93.979 | MK17: 0 | ML17: 93.979 | MM17: 0 | MN17: 93.979 | MO17: 0 | MP17: 93.979 | MQ17: 0 | MR17: 93.979 | MS17: 0 | MT17: 93.979 | MU17: 0 | MV17: 93.979 | MW17: 112 | MX17: 83.526 | MY17: 112 | MZ17: 83.256 | NA17: 112 | NB17: 83.484 | NC17: 112 | ND17: 83.267 | NE17: 112 | NF17: 83.435 | NG17: 112 | NH17: 83.327 | NI17: 112 | NJ17: 83.284 | NK17: 112 | NL17: 83.63 | NM17: 112 | NN17: 83.466 | NO17: 112 | NP17: 83.539 | NQ17: 112 | NR17: 81.255 | NS17: 112 | NT17: 80.981 | NU17: 112 | NV17: 81.2 | NW17: 112 | NX17: 80.999 | NY17: 112 | NZ17: 81.121 | OA17: 112 | OB17: 81.043 | OC17: 112 | OD17: 81.019 | OE17: 112 | OF17: 81.357 | OG17: 112 | OH17: 81.143 | OI17: 112 | OJ17: 81.279 | OK17: 112 | OL17: 84.014 | OM17: 112 | ON17: 83.718 | OO17: 112 | OP17: 83.998 | OQ17: 112 | OR17: 83.745 | OS17: 112 | OT17: 83.941 | OU17: 112 | OV17: 83.801 | OW17: 112 | OX17: 83.756 | OY17: 112 | OZ17: 84.147 | PA17: 112 | PB17: 83.983 | PC17: 112 | PD17: 84.036 | PE17: 112 | PF17: 81.801 | PG17: 112 | PH17: 81.508 | PI17: 112 | PJ17: 81.783 | PK17: 112 | PL17: 81.53 | PM17: 112 | PN17: 81.691 | PO17: 112 | PP17: 81.579 | PQ17: 112 | PR17: 81.555 | PS17: 112 | PT17: 81.945 | PU17: 112 | PV17: 81.733 | PW17: 112 | PX17: 81.849
A18: 118 | B18: -0.504 | C18: 118 | D18: -0.492 | E18: 0 | F18: 0 | G18: 0 | H18: 0 | I18: 0 | J18: 0 | K18: 0 | L18: 0 | M18: 118 | N18: -0.401 | O18: 118 | P18: -0.43 | Q18: 118 | R18: -0.641 | S18: 118 | T18: -0.569 | U18: 118 | V18: 91.509 | W18: 118 | X18: 94.516 | Y18: 0 | Z18: 93.979 | AA18: 0 | AB18: 93.979 | AC18: 0 | AD18: 93.979 | AE18: 0 | AF18: 93.979 | AG18: 118 | AH18: 83.373 | AI18: 118 | AJ18: 81.13 | AK18: 118 | AL18: 83.854 | AM18: 118 | AN18: 81.665 | AO18: 118 | AP18: 91.153 | AQ18: 118 | AR18: 91 | AS18: 118 | AT18: 90.931 | AU18: 118 | AV18: 90.947 | AW18: 118 | AX18: 91.01 | AY18: 118 | AZ18: 90.95 | BA18: 118 | BB18: 90.957 | BC18: 118 | BD18: 90.947 | BE18: 118 | BF18: 91.024 | BG18: 118 | BH18: 91.13 | BI18: 118 | BJ18: 94.137 | BK18: 118 | BL18: 94.019 | BM18: 118 | BN18: 93.974 | BO18: 118 | BP18: 93.986 | BQ18: 118 | BR18: 94.01 | BS18: 118 | BT18: 93.994 | BU18: 118 | BV18: 93.979 | BW18: 118 | BX18: 93.999 | BY18: 118 | BZ18: 94.042 | CA18: 118 | CB18: 94.104 | CC18: 0 | CD18: 93.979 | CE18: 0 | CF18: 93.979 | CG18: 0 | CH18: 93.979 | CI18: 0 | CJ18: 93.979 | CK18: 0 | CL18: 93.979 | CM18: 0 | CN18: 93.979 | CO18: 0 | CP18: 93.979 | CQ18: 0 | CR18: 93.979 | CS18: 0 | CT18: 93.979 | CU18: 0 | CV18: 93.979 | CW18: 0 | CX18: 93.979 | CY18: 0 | CZ18: 93.979 | DA18: 0 | DB18: 93.979 | DC18: 0 | DD18: 93.979 | DE18: 0 | DF18: 93.979 | DG18: 0 | DH18: 93.979 | DI18: 0 | DJ18: 93.979 | DK18: 0 | DL18: 93.979 | DM18: 0 | DN18: 93.979 | DO18: 0 | DP18: 93.979 | DQ18: 0 | DR18: 93.979 | DS18: 0 | DT18: 93.979 | DU18: 0 | DV18: 93.979 | DW18: 0 | DX18: 93.979 | DY18: 0 | DZ18: 93.979 | EA18: 0 | EB18: 93.979 | EC18: 0 | ED18: 93.979 | EE18: 0 | EF18: 93.979 | EG18: 0 | EH18: 93.979 | EI18: 0 | EJ18: 93.979 | EK18: 0 | EL18: 93.979 | EM18: 0 | EN18: 93.979 | EO18: 0 | EP18: 93.979 | EQ18: 0 | ER18: 93.979 | ES18: 0 | ET18: 93.979 | EU18: 0 | EV18: 93.979 | EW18: 0 | EX18: 93.979 | EY18: 0 | EZ18: 93.979 | FA18: 0 | FB18: 93.979 | FC18: 0 | FD18: 93.979 | FE18: 118 | FF18: 83.134 | FG18: 118 | FH18: 82.964 | FI18: 118 | FJ18: 82.867 | FK18: 118 | FL18: 82.877 | FM18: 118 | FN18: 82.98 | FO18: 118 | FP18: 82.92 | FQ18: 118 | FR18: 82.928 | FS18: 118 | FT18: 82.926 | FU18: 118 | FV18: 83.015 | FW18: 118 | FX18: 83.109 | FY18: 118 | FZ18: 80.83 | GA18: 118 | GB18: 80.663 | GC18: 118 | GD18: 80.569 | GE18: 118 | GF18: 80.603 | GG18: 118 | GH18: 80.669 | GI18: 118 | GJ18: 80.634 | GK18: 118 | GL18: 80.622 | GM18: 118 | GN18: 80.675 | GO18: 118 | GP18: 80.797 | GQ18: 118 | GR18: 80.931 | GS18: 118 | GT18: 83.35 | GU18: 118 | GV18: 83.193 | GW18: 118 | GX18: 83.127 | GY18: 118 | GZ18: 83.126 | HA18: 118 | HB18: 83.2 | HC18: 118 | HD18: 83.16 | HE18: 118 | HF18: 83.156 | HG18: 118 | HH18: 83.163 | HI18: 118 | HJ18: 83.268 | HK18: 118 | HL18: 83.381 | HM18: 118 | HN18: 81.209 | HO18: 118 | HP18: 81.053 | HQ18: 118 | HR18: 81.001 | HS18: 118 | HT18: 81.017 | HU18: 118 | HV18: 81.047 | HW18: 118 | HX18: 81.035 | HY18: 118 | HZ18: 80.999 | IA18: 118 | IB18: 81.061 | IC18: 118 | ID18: 81.195 | IE18: 118 | IF18: 81.344 | IG18: 118 | IH18: 91.552 | II18: 118 | IJ18: 91.38 | IK18: 118 | IL18: 91.569 | IM18: 118 | IN18: 91.368 | IO18: 118 | IP18: 91.555 | IQ18: 118 | IR18: 91.441 | IS18: 118 | IT18: 91.392 | IU18: 118 | IV18: 91.655 | IW18: 118 | IX18: 91.59 | IY18: 118 | IZ18: 91.586 | JA18: 118 | JB18: 94.528 | JC18: 118 | JD18: 94.467 | JE18: 118 | JF18: 94.547 | JG18: 118 | JH18: 94.451 | JI18: 118 | JJ18: 94.536 | JK18: 118 | JL18: 94.472 | JM18: 118 | JN18: 94.428 | JO18: 118 | JP18: 94.627 | JQ18: 118 | JR18: 94.545 | JS18: 118 | JT18: 94.56 | JU18: 0 | JV18: 93.979 | JW18: 0 | JX18: 93.979 | JY18: 0 | JZ18: 93.979 | KA18: 0 | KB18: 93.979 | KC18: 0 | KD18: 93.979 | KE18: 0 | KF18: 93.979 | KG18: 0 | KH18: 93.979 | KI18: 0 | KJ18: 93.979 | KK18: 0 | KL18: 93.979 | KM18: 0 | KN18: 93.979 | KO18: 0 | KP18: 93.979 | KQ18: 0 | KR18: 93.979 | KS18: 0 | KT18: 93.979 | KU18: 0 | KV18: 93.979 | KW18: 0 | KX18: 93.979 | KY18: 0 | KZ18: 93.979 | LA18: 0 | LB18: 93.979 | LC18: 0 | LD18: 93.979 | LE18: 0 | LF18: 93.979 | LG18: 0 | LH18: 93.979 | LI18: 0 | LJ18: 93.979 | LK18: 0 | LL18: 93.979 | LM18: 0 | LN18: 93.979 | LO18: 0 | LP18: 93.979 | LQ18: 0 | LR18: 93.979 | LS18: 0 | LT18: 93.979 | LU18: 0 | LV18: 93.979 | LW18: 0 | LX18: 93.979 | LY18: 0 | LZ18: 93.979 | MA18: 0 | MB18: 93.979 | MC18: 0 | MD18: 93.979 | ME18: 0 | MF18: 93.979 | MG18: 0 | MH18: 93.979 | MI18: 0 | MJ18: 93.979 | MK18: 0 | ML18: 93.979 | MM18: 0 | MN18: 93.979 | MO18: 0 | MP18: 93.979 | MQ18: 0 | MR18: 93.979 | MS18: 0 | MT18: 93.979 | MU18: 0 | MV18: 93.979 | MW18: 118 | MX18: 83.462 | MY18: 118 | MZ18: 83.227 | NA18: 118 | NB18: 83.403 | NC18: 118 | ND18: 83.254 | NE18: 118 | NF18: 83.4 | NG18: 118 | NH18: 83.331 | NI18: 118 | NJ18: 83.241 | NK18: 118 | NL18: 83.545 | NM18: 118 | NN18: 83.397 | NO18: 118 | NP18: 83.469 | NQ18: 118 | NR18: 81.243 | NS18: 118 | NT18: 80.95 | NU18: 118 | NV18: 81.152 | NW18: 118 | NX18: 81.017 | NY18: 118 | NZ18: 81.133 | OA18: 118 | OB18: 81.095 | OC18: 118 | OD18: 80.99 | OE18: 118 | OF18: 81.339 | OG18: 118 | OH18: 81.116 | OI18: 118 | OJ18: 81.263 | OK18: 118 | OL18: 83.929 | OM18: 118 | ON18: 83.669 | OO18: 118 | OP18: 83.914 | OQ18: 118 | OR18: 83.714 | OS18: 118 | OT18: 83.899 | OU18: 118 | OV18: 83.79 | OW18: 118 | OX18: 83.695 | OY18: 118 | OZ18: 84.061 | PA18: 118 | PB18: 83.908 | PC18: 118 | PD18: 83.959 | PE18: 118 | PF18: 81.758 | PG18: 118 | PH18: 81.446 | PI18: 118 | PJ18: 81.725 | PK18: 118 | PL18: 81.515 | PM18: 118 | PN18: 81.686 | PO18: 118 | PP18: 81.603 | PQ18: 118 | PR18: 81.494 | PS18: 118 | PT18: 81.921 | PU18: 118 | PV18: 81.693 | PW18: 118 | PX18: 81.814
A19: 125 | B19: -0.434 | C19: 125 | D19: -0.457 | E19: 0 | F19: 0 | G19: 0 | H19: 0 | I19: 0 | J19: 0 | K19: 0 | L19: 0 | M19: 125 | N19: -0.346 | O19: 125 | P19: -0.38 | Q19: 125 | R19: -0.604 | S19: 125 | T19: -0.558 | U19: 125 | V19: 90.944 | W19: 125 | X19: 94.103 | Y19: 0 | Z19: 93.979 | AA19: 0 | AB19: 93.979 | AC19: 0 | AD19: 93.979 | AE19: 0 | AF19: 93.979 | AG19: 125 | AH19: 83.141 | AI19: 125 | AJ19: 80.939 | AK19: 125 | AL19: 83.618 | AM19: 125 | AN19: 81.464 | AO19: 125 | AP19: 90.589 | AQ19: 125 | AR19: 90.529 | AS19: 125 | AT19: 90.467 | AU19: 125 | AV19: 90.447 | AW19: 125 | AX19: 90.54 | AY19: 125 | AZ19: 90.483 | BA19: 125 | BB19: 90.487 | BC19: 125 | BD19: 90.453 | BE19: 125 | BF19: 90.535 | BG19: 125 | BH19: 90.574 | BI19: 125 | BJ19: 93.719 | BK19: 125 | BL19: 93.652 | BM19: 125 | BN19: 93.619 | BO19: 125 | BP19: 93.603 | BQ19: 125 | BR19: 93.655 | BS19: 125 | BT19: 93.638 | BU19: 125 | BV19: 93.62 | BW19: 125 | BX19: 93.605 | BY19: 125 | BZ19: 93.667 | CA19: 125 | CB19: 93.676 | CC19: 0 | CD19: 93.979 | CE19: 0 | CF19: 93.979 | CG19: 0 | CH19: 93.979 | CI19: 0 | CJ19: 93.979 | CK19: 0 | CL19: 93.979 | CM19: 0 | CN19: 93.979 | CO19: 0 | CP19: 93.979 | CQ19: 0 | CR19: 93.979 | CS19: 0 | CT19: 93.979 | CU19: 0 | CV19: 93.979 | CW19: 0 | CX19: 93.979 | CY19: 0 | CZ19: 93.979 | DA19: 0 | DB19: 93.979 | DC19: 0 | DD19: 93.979 | DE19: 0 | DF19: 93.979 | DG19: 0 | DH19: 93.979 | DI19: 0 | DJ19: 93.979 | DK19: 0 | DL19: 93.979 | DM19: 0 | DN19: 93.979 | DO19: 0 | DP19: 93.979 | DQ19: 0 | DR19: 93.979 | DS19: 0 | DT19: 93.979 | DU19: 0 | DV19: 93.979 | DW19: 0 | DX19: 93.979 | DY19: 0 | DZ19: 93.979 | EA19: 0 | EB19: 93.979 | EC19: 0 | ED19: 93.979 | EE19: 0 | EF19: 93.979 | EG19: 0 | EH19: 93.979 | EI19: 0 | EJ19: 93.979 | EK19: 0 | EL19: 93.979 | EM19: 0 | EN19: 93.979 | EO19: 0 | EP19: 93.979 | EQ19: 0 | ER19: 93.979 | ES19: 0 | ET19: 93.979 | EU19: 0 | EV19: 93.979 | EW19: 0 | EX19: 93.979 | EY19: 0 | EZ19: 93.979 | FA19: 0 | FB19: 93.979 | FC19: 0 | FD19: 93.979 | FE19: 125 | FF19: 82.947 | FG19: 125 | FH19: 82.816 | FI19: 125 | FJ19: 82.716 | FK19: 125 | FL19: 82.695 | FM19: 125 | FN19: 82.832 | FO19: 125 | FP19: 82.765 | FQ19: 125 | FR19: 82.786 | FS19: 125 | FT19: 82.746 | FU19: 125 | FV19: 82.817 | FW19: 125 | FX19: 82.835 | FY19: 125 | FZ19: 80.671 | GA19: 125 | GB19: 80.566 | GC19: 125 | GD19: 80.455 | GE19: 125 | GF19: 80.429 | GG19: 125 | GH19: 80.567 | GI19: 125 | GJ19: 80.521 | GK19: 125 | GL19: 80.531 | GM19: 125 | GN19: 80.53 | GO19: 125 | GP19: 80.643 | GQ19: 125 | GR19: 80.678 | GS19: 125 | GT19: 83.14 | GU19: 125 | GV19: 83.021 | GW19: 125 | GX19: 82.953 | GY19: 125 | GZ19: 82.919 | HA19: 125 | HB19: 83.025 | HC19: 125 | HD19: 82.982 | HE19: 125 | HF19: 82.985 | HG19: 125 | HH19: 82.962 | HI19: 125 | HJ19: 83.053 | HK19: 125 | HL19: 83.098 | HM19: 125 | HN19: 80.998 | HO19: 125 | HP19: 80.904 | HQ19: 125 | HR19: 80.839 | HS19: 125 | HT19: 80.795 | HU19: 125 | HV19: 80.887 | HW19: 125 | HX19: 80.871 | HY19: 125 | HZ19: 80.85 | IA19: 125 | IB19: 80.865 | IC19: 125 | ID19: 81 | IE19: 125 | IF19: 81.06 | IG19: 125 | IH19: 90.954 | II19: 125 | IJ19: 90.91 | IK19: 125 | IL19: 90.959 | IM19: 125 | IN19: 90.881 | IO19: 125 | IP19: 90.981 | IQ19: 125 | IR19: 90.95 | IS19: 125 | IT19: 90.88 | IU19: 125 | IV19: 90.987 | IW19: 125 | IX19: 90.964 | IY19: 125 | IZ19: 90.978 | JA19: 125 | JB19: 94.075 | JC19: 125 | JD19: 94.122 | JE19: 125 | JF19: 94.106 | JG19: 125 | JH19: 94.086 | JI19: 125 | JJ19: 94.115 | JK19: 125 | JL19: 94.122 | JM19: 125 | JN19: 94.052 | JO19: 125 | JP19: 94.141 | JQ19: 125 | JR19: 94.088 | JS19: 125 | JT19: 94.12 | JU19: 0 | JV19: 93.979 | JW19: 0 | JX19: 93.979 | JY19: 0 | JZ19: 93.979 | KA19: 0 | KB19: 93.979 | KC19: 0 | KD19: 93.979 | KE19: 0 | KF19: 93.979 | KG19: 0 | KH19: 93.979 | KI19: 0 | KJ19: 93.979 | KK19: 0 | KL19: 93.979 | KM19: 0 | KN19: 93.979 | KO19: 0 | KP19: 93.979 | KQ19: 0 | KR19: 93.979 | KS19: 0 | KT19: 93.979 | KU19: 0 | KV19: 93.979 | KW19: 0 | KX19: 93.979 | KY19: 0 | KZ19: 93.979 | LA19: 0 | LB19: 93.979 | LC19: 0 | LD19: 93.979 | LE19: 0 | LF19: 93.979 | LG19: 0 | LH19: 93.979 | LI19: 0 | LJ19: 93.979 | LK19: 0 | LL19: 93.979 | LM19: 0 | LN19: 93.979 | LO19: 0 | LP19: 93.979 | LQ19: 0 | LR19: 93.979 | LS19: 0 | LT19: 93.979 | LU19: 0 | LV19: 93.979 | LW19: 0 | LX19: 93.979 | LY19: 0 | LZ19: 93.979 | MA19: 0 | MB19: 93.979 | MC19: 0 | MD19: 93.979 | ME19: 0 | MF19: 93.979 | MG19: 0 | MH19: 93.979 | MI19: 0 | MJ19: 93.979 | MK19: 0 | ML19: 93.979 | MM19: 0 | MN19: 93.979 | MO19: 0 | MP19: 93.979 | MQ19: 0 | MR19: 93.979 | MS19: 0 | MT19: 93.979 | MU19: 0 | MV19: 93.979 | MW19: 125 | MX19: 83.216 | MY19: 125 | MZ19: 83.081 | NA19: 125 | NB19: 83.124 | NC19: 125 | ND19: 83.072 | NE19: 125 | NF19: 83.173 | NG19: 125 | NH19: 83.154 | NI19: 125 | NJ19: 83.056 | NK19: 125 | NL19: 83.225 | NM19: 125 | NN19: 83.127 | NO19: 125 | NP19: 83.184 | NQ19: 125 | NR19: 81.056 | NS19: 125 | NT19: 80.843 | NU19: 125 | NV19: 80.885 | NW19: 125 | NX19: 80.897 | NY19: 125 | NZ19: 80.957 | OA19: 125 | OB19: 80.98 | OC19: 125 | OD19: 80.839 | OE19: 125 | OF19: 81.05 | OG19: 125 | OH19: 80.875 | OI19: 125 | OJ19: 81.005 | OK19: 125 | OL19: 83.665 | OM19: 125 | ON19: 83.501 | OO19: 125 | OP19: 83.644 | OQ19: 125 | OR19: 83.519 | OS19: 125 | OT19: 83.676 | OU19: 125 | OV19: 83.603 | OW19: 125 | OX19: 83.496 | OY19: 125 | OZ19: 83.752 | PA19: 125 | PB19: 83.648 | PC19: 125 | PD19: 83.678 | PE19: 125 | PF19: 81.545 | PG19: 125 | PH19: 81.302 | PI19: 125 | PJ19: 81.471 | PK19: 125 | PL19: 81.366 | PM19: 125 | PN19: 81.514 | PO19: 125 | PP19: 81.464 | PQ19: 125 | PR19: 81.315 | PS19: 125 | PT19: 81.648 | PU19: 125 | PV19: 81.463 | PW19: 125 | PX19: 81.556
A20: 132 | B20: -0.294 | C20: 132 | D20: -0.377 | E20: 0 | F20: 0 | G20: 0 | H20: 0 | I20: 0 | J20: 0 | K20: 0 | L20: 0 | M20: 132 | N20: -0.243 | O20: 132 | P20: -0.241 | Q20: 132 | R20: -0.532 | S20: 132 | T20: -0.477 | U20: 132 | V20: 90.024 | W20: 132 | X20: 93.462 | Y20: 0 | Z20: 93.979 | AA20: 0 | AB20: 93.979 | AC20: 0 | AD20: 93.979 | AE20: 0 | AF20: 93.979 | AG20: 132 | AH20: 82.717 | AI20: 132 | AJ20: 80.449 | AK20: 132 | AL20: 83.203 | AM20: 132 | AN20: 80.994 | AO20: 132 | AP20: 89.671 | AQ20: 132 | AR20: 89.76 | AS20: 132 | AT20: 89.741 | AU20: 132 | AV20: 89.713 | AW20: 132 | AX20: 89.751 | AY20: 132 | AZ20: 89.749 | BA20: 132 | BB20: 89.727 | BC20: 132 | BD20: 89.728 | BE20: 132 | BF20: 89.754 | BG20: 132 | BH20: 89.71 | BI20: 132 | BJ20: 93.063 | BK20: 132 | BL20: 93.096 | BM20: 132 | BN20: 93.096 | BO20: 132 | BP20: 93.068 | BQ20: 132 | BR20: 93.1 | BS20: 132 | BT20: 93.109 | BU20: 132 | BV20: 93.086 | BW20: 132 | BX20: 93.072 | BY20: 132 | BZ20: 93.097 | CA20: 132 | CB20: 93.061 | CC20: 0 | CD20: 93.979 | CE20: 0 | CF20: 93.979 | CG20: 0 | CH20: 93.979 | CI20: 0 | CJ20: 93.979 | CK20: 0 | CL20: 93.979 | CM20: 0 | CN20: 93.979 | CO20: 0 | CP20: 93.979 | CQ20: 0 | CR20: 93.979 | CS20: 0 | CT20: 93.979 | CU20: 0 | CV20: 93.979 | CW20: 0 | CX20: 93.979 | CY20: 0 | CZ20: 93.979 | DA20: 0 | DB20: 93.979 | DC20: 0 | DD20: 93.979 | DE20: 0 | DF20: 93.979 | DG20: 0 | DH20: 93.979 | DI20: 0 | DJ20: 93.979 | DK20: 0 | DL20: 93.979 | DM20: 0 | DN20: 93.979 | DO20: 0 | DP20: 93.979 | DQ20: 0 | DR20: 93.979 | DS20: 0 | DT20: 93.979 | DU20: 0 | DV20: 93.979 | DW20: 0 | DX20: 93.979 | DY20: 0 | DZ20: 93.979 | EA20: 0 | EB20: 93.979 | EC20: 0 | ED20: 93.979 | EE20: 0 | EF20: 93.979 | EG20: 0 | EH20: 93.979 | EI20: 0 | EJ20: 93.979 | EK20: 0 | EL20: 93.979 | EM20: 0 | EN20: 93.979 | EO20: 0 | EP20: 93.979 | EQ20: 0 | ER20: 93.979 | ES20: 0 | ET20: 93.979 | EU20: 0 | EV20: 93.979 | EW20: 0 | EX20: 93.979 | EY20: 0 | EZ20: 93.979 | FA20: 0 | FB20: 93.979 | FC20: 0 | FD20: 93.979 | FE20: 132 | FF20: 82.591 | FG20: 132 | FH20: 82.514 | FI20: 132 | FJ20: 82.439 | FK20: 132 | FL20: 82.413 | FM20: 132 | FN20: 82.532 | FO20: 132 | FP20: 82.467 | FQ20: 132 | FR20: 82.493 | FS20: 132 | FT20: 82.426 | FU20: 132 | FV20: 82.452 | FW20: 132 | FX20: 82.404 | FY20: 132 | FZ20: 80.291 | GA20: 132 | GB20: 80.246 | GC20: 132 | GD20: 80.17 | GE20: 132 | GF20: 80.122 | GG20: 132 | GH20: 80.241 | GI20: 132 | GJ20: 80.208 | GK20: 132 | GL20: 80.218 | GM20: 132 | GN20: 80.181 | GO20: 132 | GP20: 80.239 | GQ20: 132 | GR20: 80.158 | GS20: 132 | GT20: 82.766 | GU20: 132 | GV20: 82.696 | GW20: 132 | GX20: 82.648 | GY20: 132 | GZ20: 82.613 | HA20: 132 | HB20: 82.697 | HC20: 132 | HD20: 82.658 | HE20: 132 | HF20: 82.661 | HG20: 132 | HH20: 82.623 | HI20: 132 | HJ20: 82.675 | HK20: 132 | HL20: 82.668 | HM20: 132 | HN20: 80.577 | HO20: 132 | HP20: 80.544 | HQ20: 132 | HR20: 80.507 | HS20: 132 | HT20: 80.445 | HU20: 132 | HV20: 80.512 | HW20: 132 | HX20: 80.512 | HY20: 132 | HZ20: 80.483 | IA20: 132 | IB20: 80.482 | IC20: 132 | ID20: 80.572 | IE20: 132 | IF20: 80.534 | IG20: 132 | IH20: 90.005 | II20: 132 | IJ20: 90.125 | IK20: 132 | IL20: 89.96 | IM20: 132 | IN20: 90.093 | IO20: 132 | IP20: 90.03 | IQ20: 132 | IR20: 90.109 | IS20: 132 | IT20: 90.074 | IU20: 132 | IV20: 89.916 | IW20: 132 | IX20: 89.949 | IY20: 132 | IZ20: 89.982 | JA20: 132 | JB20: 93.424 | JC20: 132 | JD20: 93.56 | JE20: 132 | JF20: 93.424 | JG20: 132 | JH20: 93.511 | JI20: 132 | JJ20: 93.45 | JK20: 132 | JL20: 93.535 | JM20: 132 | JN20: 93.489 | JO20: 132 | JP20: 93.401 | JQ20: 132 | JR20: 93.39 | JS20: 132 | JT20: 93.437 | JU20: 0 | JV20: 93.979 | JW20: 0 | JX20: 93.979 | JY20: 0 | JZ20: 93.979 | KA20: 0 | KB20: 93.979 | KC20: 0 | KD20: 93.979 | KE20: 0 | KF20: 93.979 | KG20: 0 | KH20: 93.979 | KI20: 0 | KJ20: 93.979 | KK20: 0 | KL20: 93.979 | KM20: 0 | KN20: 93.979 | KO20: 0 | KP20: 93.979 | KQ20: 0 | KR20: 93.979 | KS20: 0 | KT20: 93.979 | KU20: 0 | KV20: 93.979 | KW20: 0 | KX20: 93.979 | KY20: 0 | KZ20: 93.979 | LA20: 0 | LB20: 93.979 | LC20: 0 | LD20: 93.979 | LE20: 0 | LF20: 93.979 | LG20: 0 | LH20: 93.979 | LI20: 0 | LJ20: 93.979 | LK20: 0 | LL20: 93.979 | LM20: 0 | LN20: 93.979 | LO20: 0 | LP20: 93.979 | LQ20: 0 | LR20: 93.979 | LS20: 0 | LT20: 93.979 | LU20: 0 | LV20: 93.979 | LW20: 0 | LX20: 93.979 | LY20: 0 | LZ20: 93.979 | MA20: 0 | MB20: 93.979 | MC20: 0 | MD20: 93.979 | ME20: 0 | MF20: 93.979 | MG20: 0 | MH20: 93.979 | MI20: 0 | MJ20: 93.979 | MK20: 0 | ML20: 93.979 | MM20: 0 | MN20: 93.979 | MO20: 0 | MP20: 93.979 | MQ20: 0 | MR20: 93.979 | MS20: 0 | MT20: 93.979 | MU20: 0 | MV20: 93.979 | MW20: 132 | MX20: 82.782 | MY20: 132 | MZ20: 82.77 | NA20: 132 | NB20: 82.668 | NC20: 132 | ND20: 82.684 | NE20: 132 | NF20: 82.731 | NG20: 132 | NH20: 82.768 | NI20: 132 | NJ20: 82.71 | NK20: 132 | NL20: 82.694 | NM20: 132 | NN20: 82.659 | NO20: 132 | NP20: 82.7 | NQ20: 132 | NR20: 80.554 | NS20: 132 | NT20: 80.512 | NU20: 132 | NV20: 80.333 | NW20: 132 | NX20: 80.485 | NY20: 132 | NZ20: 80.451 | OA20: 132 | OB20: 80.551 | OC20: 132 | OD20: 80.445 | OE20: 132 | OF20: 80.418 | OG20: 132 | OH20: 80.315 | OI20: 132 | OJ20: 80.421 | OK20: 132 | OL20: 83.228 | OM20: 132 | ON20: 83.17 | OO20: 132 | OP20: 83.212 | OQ20: 132 | OR20: 83.127 | OS20: 132 | OT20: 83.26 | OU20: 132 | OV20: 83.218 | OW20: 132 | OX20: 83.15 | OY20: 132 | OZ20: 83.244 | PA20: 132 | PB20: 83.202 | PC20: 132 | PD20: 83.214 | PE20: 132 | PF20: 81.054 | PG20: 132 | PH20: 80.943 | PI20: 132 | PJ20: 80.967 | PK20: 132 | PL20: 80.95 | PM20: 132 | PN20: 81.053 | PO20: 132 | PP20: 81.036 | PQ20: 132 | PR20: 80.92 | PS20: 132 | PT20: 81.064 | PU20: 132 | PV20: 80.948 | PW20: 132 | PX20: 81.007
A21: 140 | B21: -0.191 | C21: 140 | D21: -0.329 | E21: 0 | F21: 0 | G21: 0 | H21: 0 | I21: 0 | J21: 0 | K21: 0 | L21: 0 | M21: 140 | N21: -0.146 | O21: 140 | P21: -0.097 | Q21: 140 | R21: -0.449 | S21: 140 | T21: -0.378 | U21: 140 | V21: 88.831 | W21: 140 | X21: 92.636 | Y21: 0 | Z21: 93.979 | AA21: 0 | AB21: 93.979 | AC21: 0 | AD21: 93.979 | AE21: 0 | AF21: 93.979 | AG21: 140 | AH21: 82.261 | AI21: 140 | AJ21: 79.828 | AK21: 140 | AL21: 82.74 | AM21: 140 | AN21: 80.389 | AO21: 140 | AP21: 88.45 | AQ21: 140 | AR21: 88.662 | AS21: 140 | AT21: 88.717 | AU21: 140 | AV21: 88.705 | AW21: 140 | AX21: 88.629 | AY21: 140 | AZ21: 88.698 | BA21: 140 | BB21: 88.64 | BC21: 140 | BD21: 88.692 | BE21: 140 | BF21: 88.661 | BG21: 140 | BH21: 88.545 | BI21: 140 | BJ21: 92.177 | BK21: 140 | BL21: 92.313 | BM21: 140 | BN21: 92.362 | BO21: 140 | BP21: 92.344 | BQ21: 140 | BR21: 92.307 | BS21: 140 | BT21: 92.358 | BU21: 140 | BV21: 92.321 | BW21: 140 | BX21: 92.337 | BY21: 140 | BZ21: 92.312 | CA21: 140 | CB21: 92.247 | CC21: 0 | CD21: 93.979 | CE21: 0 | CF21: 93.979 | CG21: 0 | CH21: 93.979 | CI21: 0 | CJ21: 93.979 | CK21: 0 | CL21: 93.979 | CM21: 0 | CN21: 93.979 | CO21: 0 | CP21: 93.979 | CQ21: 0 | CR21: 93.979 | CS21: 0 | CT21: 93.979 | CU21: 0 | CV21: 93.979 | CW21: 0 | CX21: 93.979 | CY21: 0 | CZ21: 93.979 | DA21: 0 | DB21: 93.979 | DC21: 0 | DD21: 93.979 | DE21: 0 | DF21: 93.979 | DG21: 0 | DH21: 93.979 | DI21: 0 | DJ21: 93.979 | DK21: 0 | DL21: 93.979 | DM21: 0 | DN21: 93.979 | DO21: 0 | DP21: 93.979 | DQ21: 0 | DR21: 93.979 | DS21: 0 | DT21: 93.979 | DU21: 0 | DV21: 93.979 | DW21: 0 | DX21: 93.979 | DY21: 0 | DZ21: 93.979 | EA21: 0 | EB21: 93.979 | EC21: 0 | ED21: 93.979 | EE21: 0 | EF21: 93.979 | EG21: 0 | EH21: 93.979 | EI21: 0 | EJ21: 93.979 | EK21: 0 | EL21: 93.979 | EM21: 0 | EN21: 93.979 | EO21: 0 | EP21: 93.979 | EQ21: 0 | ER21: 93.979 | ES21: 0 | ET21: 93.979 | EU21: 0 | EV21: 93.979 | EW21: 0 | EX21: 93.979 | EY21: 0 | EZ21: 93.979 | FA21: 0 | FB21: 93.979 | FC21: 0 | FD21: 93.979 | FE21: 140 | FF21: 82.136 | FG21: 140 | FH21: 82.168 | FI21: 140 | FJ21: 82.133 | FK21: 140 | FL21: 82.118 | FM21: 140 | FN21: 82.185 | FO21: 140 | FP21: 82.131 | FQ21: 140 | FR21: 82.16 | FS21: 140 | FT21: 82.087 | FU21: 140 | FV21: 82.063 | FW21: 140 | FX21: 81.975 | FY21: 140 | FZ21: 79.728 | GA21: 140 | GB21: 79.786 | GC21: 140 | GD21: 79.778 | GE21: 140 | GF21: 79.735 | GG21: 140 | GH21: 79.784 | GI21: 140 | GJ21: 79.77 | GK21: 140 | GL21: 79.773 | GM21: 140 | GN21: 79.715 | GO21: 140 | GP21: 79.71 | GQ21: 140 | GR21: 79.535 | GS21: 140 | GT21: 82.301 | GU21: 140 | GV21: 82.324 | GW21: 140 | GX21: 82.31 | GY21: 140 | GZ21: 82.291 | HA21: 140 | HB21: 82.322 | HC21: 140 | HD21: 82.292 | HE21: 140 | HF21: 82.292 | HG21: 140 | HH21: 82.262 | HI21: 140 | HJ21: 82.272 | HK21: 140 | HL21: 82.242 | HM21: 140 | HN21: 79.992 | HO21: 140 | HP21: 80.053 | HQ21: 140 | HR21: 80.071 | HS21: 140 | HT21: 80.022 | HU21: 140 | HV21: 80.012 | HW21: 140 | HX21: 80.033 | HY21: 140 | HZ21: 79.988 | IA21: 140 | IB21: 79.992 | IC21: 140 | ID21: 80.028 | IE21: 140 | IF21: 79.921 | IG21: 140 | IH21: 88.788 | II21: 140 | IJ21: 89.028 | IK21: 140 | IL21: 88.711 | IM21: 140 | IN21: 89.014 | IO21: 140 | IP21: 88.796 | IQ21: 140 | IR21: 88.954 | IS21: 140 | IT21: 88.983 | IU21: 140 | IV21: 88.622 | IW21: 140 | IX21: 88.684 | IY21: 140 | IZ21: 88.729 | JA21: 140 | JB21: 92.613 | JC21: 140 | JD21: 92.778 | JE21: 140 | JF21: 92.573 | JG21: 140 | JH21: 92.741 | JI21: 140 | JJ21: 92.592 | JK21: 140 | JL21: 92.722 | JM21: 140 | JN21: 92.74 | JO21: 140 | JP21: 92.507 | JQ21: 140 | JR21: 92.521 | JS21: 140 | JT21: 92.577 | JU21: 0 | JV21: 93.979 | JW21: 0 | JX21: 93.979 | JY21: 0 | JZ21: 93.979 | KA21: 0 | KB21: 93.979 | KC21: 0 | KD21: 93.979 | KE21: 0 | KF21: 93.979 | KG21: 0 | KH21: 93.979 | KI21: 0 | KJ21: 93.979 | KK21: 0 | KL21: 93.979 | KM21: 0 | KN21: 93.979 | KO21: 0 | KP21: 93.979 | KQ21: 0 | KR21: 93.979 | KS21: 0 | KT21: 93.979 | KU21: 0 | KV21: 93.979 | KW21: 0 | KX21: 93.979 | KY21: 0 | KZ21: 93.979 | LA21: 0 | LB21: 93.979 | LC21: 0 | LD21: 93.979 | LE21: 0 | LF21: 93.979 | LG21: 0 | LH21: 93.979 | LI21: 0 | LJ21: 93.979 | LK21: 0 | LL21: 93.979 | LM21: 0 | LN21: 93.979 | LO21: 0 | LP21: 93.979 | LQ21: 0 | LR21: 93.979 | LS21: 0 | LT21: 93.979 | LU21: 0 | LV21: 93.979 | LW21: 0 | LX21: 93.979 | LY21: 0 | LZ21: 93.979 | MA21: 0 | MB21: 93.979 | MC21: 0 | MD21: 93.979 | ME21: 0 | MF21: 93.979 | MG21: 0 | MH21: 93.979 | MI21: 0 | MJ21: 93.979 | MK21: 0 | ML21: 93.979 | MM21: 0 | MN21: 93.979 | MO21: 0 | MP21: 93.979 | MQ21: 0 | MR21: 93.979 | MS21: 0 | MT21: 93.979 | MU21: 0 | MV21: 93.979 | MW21: 140 | MX21: 82.316 | MY21: 140 | MZ21: 82.398 | NA21: 140 | NB21: 82.204 | NC21: 140 | ND21: 82.26 | NE21: 140 | NF21: 82.24 | NG21: 140 | NH21: 82.326 | NI21: 140 | NJ21: 82.342 | NK21: 140 | NL21: 82.151 | NM21: 140 | NN21: 82.176 | NO21: 140 | NP21: 82.202 | NQ21: 140 | NR21: 79.892 | NS21: 140 | NT21: 80.021 | NU21: 140 | NV21: 79.707 | NW21: 140 | NX21: 79.922 | NY21: 140 | NZ21: 79.784 | OA21: 140 | OB21: 79.944 | OC21: 140 | OD21: 79.927 | OE21: 140 | OF21: 79.69 | OG21: 140 | OH21: 79.668 | OI21: 140 | OJ21: 79.73 | OK21: 140 | OL21: 82.761 | OM21: 140 | ON21: 82.779 | OO21: 140 | OP21: 82.736 | OQ21: 140 | OR21: 82.704 | OS21: 140 | OT21: 82.776 | OU21: 140 | OV21: 82.78 | OW21: 140 | OX21: 82.785 | OY21: 140 | OZ21: 82.673 | PA21: 140 | PB21: 82.693 | PC21: 140 | PD21: 82.709 | PE21: 140 | PF21: 80.416 | PG21: 140 | PH21: 80.436 | PI21: 140 | PJ21: 80.358 | PK21: 140 | PL21: 80.41 | PM21: 140 | PN21: 80.428 | PO21: 140 | PP21: 80.452 | PQ21: 140 | PR21: 80.424 | PS21: 140 | PT21: 80.335 | PU21: 140 | PV21: 80.298 | PW21: 140 | PX21: 80.335
A22: 150 | B22: -0.232 | C22: 150 | D22: -0.357 | E22: 0 | F22: 0 | G22: 0 | H22: 0 | I22: 0 | J22: 0 | K22: 0 | L22: 0 | M22: 150 | N22: -0.108 | O22: 150 | P22: -0.053 | Q22: 150 | R22: -0.367 | S22: 150 | T22: -0.297 | U22: 150 | V22: 87.802 | W22: 150 | X22: 91.805 | Y22: 0 | Z22: 93.979 | AA22: 0 | AB22: 93.979 | AC22: 0 | AD22: 93.979 | AE22: 0 | AF22: 93.979 | AG22: 150 | AH22: 81.912 | AI22: 150 | AJ22: 79.345 | AK22: 150 | AL22: 82.312 | AM22: 150 | AN22: 79.825 | AO22: 150 | AP22: 87.339 | AQ22: 150 | AR22: 87.574 | AS22: 150 | AT22: 87.672 | AU22: 150 | AV22: 87.67 | AW22: 150 | AX22: 87.53 | AY22: 150 | AZ22: 87.623 | BA22: 150 | BB22: 87.565 | BC22: 150 | BD22: 87.644 | BE22: 150 | BF22: 87.592 | BG22: 150 | BH22: 87.489 | BI22: 150 | BJ22: 91.264 | BK22: 150 | BL22: 91.439 | BM22: 150 | BN22: 91.518 | BO22: 150 | BP22: 91.524 | BQ22: 150 | BR22: 91.424 | BS22: 150 | BT22: 91.497 | BU22: 150 | BV22: 91.461 | BW22: 150 | BX22: 91.512 | BY22: 150 | BZ22: 91.454 | CA22: 150 | CB22: 91.393 | CC22: 0 | CD22: 93.979 | CE22: 0 | CF22: 93.979 | CG22: 0 | CH22: 93.979 | CI22: 0 | CJ22: 93.979 | CK22: 0 | CL22: 93.979 | CM22: 0 | CN22: 93.979 | CO22: 0 | CP22: 93.979 | CQ22: 0 | CR22: 93.979 | CS22: 0 | CT22: 93.979 | CU22: 0 | CV22: 93.979 | CW22: 0 | CX22: 93.979 | CY22: 0 | CZ22: 93.979 | DA22: 0 | DB22: 93.979 | DC22: 0 | DD22: 93.979 | DE22: 0 | DF22: 93.979 | DG22: 0 | DH22: 93.979 | DI22: 0 | DJ22: 93.979 | DK22: 0 | DL22: 93.979 | DM22: 0 | DN22: 93.979 | DO22: 0 | DP22: 93.979 | DQ22: 0 | DR22: 93.979 | DS22: 0 | DT22: 93.979 | DU22: 0 | DV22: 93.979 | DW22: 0 | DX22: 93.979 | DY22: 0 | DZ22: 93.979 | EA22: 0 | EB22: 93.979 | EC22: 0 | ED22: 93.979 | EE22: 0 | EF22: 93.979 | EG22: 0 | EH22: 93.979 | EI22: 0 | EJ22: 93.979 | EK22: 0 | EL22: 93.979 | EM22: 0 | EN22: 93.979 | EO22: 0 | EP22: 93.979 | EQ22: 0 | ER22: 93.979 | ES22: 0 | ET22: 93.979 | EU22: 0 | EV22: 93.979 | EW22: 0 | EX22: 93.979 | EY22: 0 | EZ22: 93.979 | FA22: 0 | FB22: 93.979 | FC22: 0 | FD22: 93.979 | FE22: 150 | FF22: 81.678 | FG22: 150 | FH22: 81.856 | FI22: 150 | FJ22: 81.867 | FK22: 150 | FL22: 81.861 | FM22: 150 | FN22: 81.854 | FO22: 150 | FP22: 81.839 | FQ22: 150 | FR22: 81.862 | FS22: 150 | FT22: 81.823 | FU22: 150 | FV22: 81.755 | FW22: 150 | FX22: 81.65 | FY22: 150 | FZ22: 79.152 | GA22: 150 | GB22: 79.342 | GC22: 150 | GD22: 79.395 | GE22: 150 | GF22: 79.371 | GG22: 150 | GH22: 79.337 | GI22: 150 | GJ22: 79.35 | GK22: 150 | GL22: 79.355 | GM22: 150 | GN22: 79.32 | GO22: 150 | GP22: 79.246 | GQ22: 150 | GR22: 79.054 | GS22: 150 | GT22: 81.834 | GU22: 150 | GV22: 81.976 | GW22: 150 | GX22: 81.999 | GY22: 150 | GZ22: 81.997 | HA22: 150 | HB22: 81.958 | HC22: 150 | HD22: 81.957 | HE22: 150 | HF22: 81.954 | HG22: 150 | HH22: 81.96 | HI22: 150 | HJ22: 81.93 | HK22: 150 | HL22: 81.885 | HM22: 150 | HN22: 79.394 | HO22: 150 | HP22: 79.564 | HQ22: 150 | HR22: 79.632 | HS22: 150 | HT22: 79.612 | HU22: 150 | HV22: 79.516 | HW22: 150 | HX22: 79.56 | HY22: 150 | HZ22: 79.51 | IA22: 150 | IB22: 79.555 | IC22: 150 | ID22: 79.529 | IE22: 150 | IF22: 79.404 | IG22: 150 | IH22: 87.762 | II22: 150 | IJ22: 87.946 | IK22: 150 | IL22: 87.71 | IM22: 150 | IN22: 87.988 | IO22: 150 | IP22: 87.754 | IQ22: 150 | IR22: 87.88 | IS22: 150 | IT22: 87.949 | IU22: 150 | IV22: 87.631 | IW22: 150 | IX22: 87.685 | IY22: 150 | IZ22: 87.716 | JA22: 150 | JB22: 91.802 | JC22: 150 | JD22: 91.914 | JE22: 150 | JF22: 91.757 | JG22: 150 | JH22: 91.923 | JI22: 150 | JJ22: 91.743 | JK22: 150 | JL22: 91.857 | JM22: 150 | JN22: 91.935 | JO22: 150 | JP22: 91.676 | JQ22: 150 | JR22: 91.699 | JS22: 150 | JT22: 91.748 | JU22: 0 | JV22: 93.979 | JW22: 0 | JX22: 93.979 | JY22: 0 | JZ22: 93.979 | KA22: 0 | KB22: 93.979 | KC22: 0 | KD22: 93.979 | KE22: 0 | KF22: 93.979 | KG22: 0 | KH22: 93.979 | KI22: 0 | KJ22: 93.979 | KK22: 0 | KL22: 93.979 | KM22: 0 | KN22: 93.979 | KO22: 0 | KP22: 93.979 | KQ22: 0 | KR22: 93.979 | KS22: 0 | KT22: 93.979 | KU22: 0 | KV22: 93.979 | KW22: 0 | KX22: 93.979 | KY22: 0 | KZ22: 93.979 | LA22: 0 | LB22: 93.979 | LC22: 0 | LD22: 93.979 | LE22: 0 | LF22: 93.979 | LG22: 0 | LH22: 93.979 | LI22: 0 | LJ22: 93.979 | LK22: 0 | LL22: 93.979 | LM22: 0 | LN22: 93.979 | LO22: 0 | LP22: 93.979 | LQ22: 0 | LR22: 93.979 | LS22: 0 | LT22: 93.979 | LU22: 0 | LV22: 93.979 | LW22: 0 | LX22: 93.979 | LY22: 0 | LZ22: 93.979 | MA22: 0 | MB22: 93.979 | MC22: 0 | MD22: 93.979 | ME22: 0 | MF22: 93.979 | MG22: 0 | MH22: 93.979 | MI22: 0 | MJ22: 93.979 | MK22: 0 | ML22: 93.979 | MM22: 0 | MN22: 93.979 | MO22: 0 | MP22: 93.979 | MQ22: 0 | MR22: 93.979 | MS22: 0 | MT22: 93.979 | MU22: 0 | MV22: 93.979 | MW22: 150 | MX22: 81.94 | MY22: 150 | MZ22: 82.068 | NA22: 150 | NB22: 81.855 | NC22: 150 | ND22: 81.96 | NE22: 150 | NF22: 81.86 | NG22: 150 | NH22: 81.963 | NI22: 150 | NJ22: 82.051 | NK22: 150 | NL22: 81.762 | NM22: 150 | NN22: 81.829 | NO22: 150 | NP22: 81.833 | NQ22: 150 | NR22: 79.355 | NS22: 150 | NT22: 79.524 | NU22: 150 | NV22: 79.276 | NW22: 150 | NX22: 79.45 | NY22: 150 | NZ22: 79.268 | OA22: 150 | OB22: 79.401 | OC22: 150 | OD22: 79.491 | OE22: 150 | OF22: 79.198 | OG22: 150 | OH22: 79.248 | OI22: 150 | OJ22: 79.241 | OK22: 150 | OL22: 82.336 | OM22: 150 | ON22: 82.415 | OO22: 150 | OP22: 82.263 | OQ22: 150 | OR22: 82.383 | OS22: 150 | OT22: 82.302 | OU22: 150 | OV22: 82.391 | OW22: 150 | OX22: 82.468 | OY22: 150 | OZ22: 82.128 | PA22: 150 | PB22: 82.193 | PC22: 150 | PD22: 82.238 | PE22: 150 | PF22: 79.834 | PG22: 150 | PH22: 79.907 | PI22: 150 | PJ22: 79.785 | PK22: 150 | PL22: 79.945 | PM22: 150 | PN22: 79.817 | PO22: 150 | PP22: 79.895 | PQ22: 150 | PR22: 79.977 | PS22: 150 | PT22: 79.657 | PU22: 150 | PV22: 79.695 | PW22: 150 | PX22: 79.734
A23: 160 | B23: -0.4 | C23: 160 | D23: -0.447 | E23: 0 | F23: 0 | G23: 0 | H23: 0 | I23: 0 | J23: 0 | K23: 0 | L23: 0 | M23: 160 | N23: -0.158 | O23: 160 | P23: -0.149 | Q23: 160 | R23: -0.304 | S23: 160 | T23: -0.256 | U23: 160 | V23: 87.321 | W23: 160 | X23: 91.147 | Y23: 0 | Z23: 93.979 | AA23: 0 | AB23: 93.979 | AC23: 0 | AD23: 93.979 | AE23: 0 | AF23: 93.979 | AG23: 160 | AH23: 81.692 | AI23: 160 | AJ23: 79.088 | AK23: 160 | AL23: 81.93 | AM23: 160 | AN23: 79.355 | AO23: 160 | AP23: 86.805 | AQ23: 160 | AR23: 86.914 | AS23: 160 | AT23: 86.985 | AU23: 160 | AV23: 86.977 | AW23: 160 | AX23: 86.874 | AY23: 160 | AZ23: 86.938 | BA23: 160 | BB23: 86.91 | BC23: 160 | BD23: 86.969 | BE23: 160 | BF23: 86.941 | BG23: 160 | BH23: 86.899 | BI23: 160 | BJ23: 90.571 | BK23: 160 | BL23: 90.688 | BM23: 160 | BN23: 90.747 | BO23: 160 | BP23: 90.766 | BQ23: 160 | BR23: 90.666 | BS23: 160 | BT23: 90.731 | BU23: 160 | BV23: 90.706 | BW23: 160 | BX23: 90.758 | BY23: 160 | BZ23: 90.708 | CA23: 160 | CB23: 90.661 | CC23: 0 | CD23: 93.979 | CE23: 0 | CF23: 93.979 | CG23: 0 | CH23: 93.979 | CI23: 0 | CJ23: 93.979 | CK23: 0 | CL23: 93.979 | CM23: 0 | CN23: 93.979 | CO23: 0 | CP23: 93.979 | CQ23: 0 | CR23: 93.979 | CS23: 0 | CT23: 93.979 | CU23: 0 | CV23: 93.979 | CW23: 0 | CX23: 93.979 | CY23: 0 | CZ23: 93.979 | DA23: 0 | DB23: 93.979 | DC23: 0 | DD23: 93.979 | DE23: 0 | DF23: 93.979 | DG23: 0 | DH23: 93.979 | DI23: 0 | DJ23: 93.979 | DK23: 0 | DL23: 93.979 | DM23: 0 | DN23: 93.979 | DO23: 0 | DP23: 93.979 | DQ23: 0 | DR23: 93.979 | DS23: 0 | DT23: 93.979 | DU23: 0 | DV23: 93.979 | DW23: 0 | DX23: 93.979 | DY23: 0 | DZ23: 93.979 | EA23: 0 | EB23: 93.979 | EC23: 0 | ED23: 93.979 | EE23: 0 | EF23: 93.979 | EG23: 0 | EH23: 93.979 | EI23: 0 | EJ23: 93.979 | EK23: 0 | EL23: 93.979 | EM23: 0 | EN23: 93.979 | EO23: 0 | EP23: 93.979 | EQ23: 0 | ER23: 93.979 | ES23: 0 | ET23: 93.979 | EU23: 0 | EV23: 93.979 | EW23: 0 | EX23: 93.979 | EY23: 0 | EZ23: 93.979 | FA23: 0 | FB23: 93.979 | FC23: 0 | FD23: 93.979 | FE23: 160 | FF23: 81.309 | FG23: 160 | FH23: 81.574 | FI23: 160 | FJ23: 81.625 | FK23: 160 | FL23: 81.623 | FM23: 160 | FN23: 81.539 | FO23: 160 | FP23: 81.581 | FQ23: 160 | FR23: 81.581 | FS23: 160 | FT23: 81.594 | FU23: 160 | FV23: 81.509 | FW23: 160 | FX23: 81.406 | FY23: 160 | FZ23: 78.74 | GA23: 160 | GB23: 78.966 | GC23: 160 | GD23: 79.04 | GE23: 160 | GF23: 79.048 | GG23: 160 | GH23: 78.949 | GI23: 160 | GJ23: 78.986 | GK23: 160 | GL23: 78.998 | GM23: 160 | GN23: 79.013 | GO23: 160 | GP23: 78.892 | GQ23: 160 | GR23: 78.76 | GS23: 160 | GT23: 81.445 | GU23: 160 | GV23: 81.648 | GW23: 160 | GX23: 81.702 | GY23: 160 | GZ23: 81.708 | HA23: 160 | HB23: 81.616 | HC23: 160 | HD23: 81.648 | HE23: 160 | HF23: 81.642 | HG23: 160 | HH23: 81.679 | HI23: 160 | HJ23: 81.624 | HK23: 160 | HL23: 81.546 | HM23: 160 | HN23: 78.932 | HO23: 160 | HP23: 79.117 | HQ23: 160 | HR23: 79.198 | HS23: 160 | HT23: 79.216 | HU23: 160 | HV23: 79.073 | HW23: 160 | HX23: 79.118 | HY23: 160 | HZ23: 79.092 | IA23: 160 | IB23: 79.172 | IC23: 160 | ID23: 79.095 | IE23: 160 | IF23: 78.975 | IG23: 160 | IH23: 87.289 | II23: 160 | IJ23: 87.325 | IK23: 160 | IL23: 87.296 | IM23: 160 | IN23: 87.413 | IO23: 160 | IP23: 87.311 | IQ23: 160 | IR23: 87.316 | IS23: 160 | IT23: 87.351 | IU23: 160 | IV23: 87.297 | IW23: 160 | IX23: 87.321 | IY23: 160 | IZ23: 87.293 | JA23: 160 | JB23: 91.147 | JC23: 160 | JD23: 91.197 | JE23: 160 | JF23: 91.12 | JG23: 160 | JH23: 91.241 | JI23: 160 | JJ23: 91.099 | JK23: 160 | JL23: 91.158 | JM23: 160 | JN23: 91.223 | JO23: 160 | JP23: 91.082 | JQ23: 160 | JR23: 91.096 | JS23: 160 | JT23: 91.109 | JU23: 0 | JV23: 93.979 | JW23: 0 | JX23: 93.979 | JY23: 0 | JZ23: 93.979 | KA23: 0 | KB23: 93.979 | KC23: 0 | KD23: 93.979 | KE23: 0 | KF23: 93.979 | KG23: 0 | KH23: 93.979 | KI23: 0 | KJ23: 93.979 | KK23: 0 | KL23: 93.979 | KM23: 0 | KN23: 93.979 | KO23: 0 | KP23: 93.979 | KQ23: 0 | KR23: 93.979 | KS23: 0 | KT23: 93.979 | KU23: 0 | KV23: 93.979 | KW23: 0 | KX23: 93.979 | KY23: 0 | KZ23: 93.979 | LA23: 0 | LB23: 93.979 | LC23: 0 | LD23: 93.979 | LE23: 0 | LF23: 93.979 | LG23: 0 | LH23: 93.979 | LI23: 0 | LJ23: 93.979 | LK23: 0 | LL23: 93.979 | LM23: 0 | LN23: 93.979 | LO23: 0 | LP23: 93.979 | LQ23: 0 | LR23: 93.979 | LS23: 0 | LT23: 93.979 | LU23: 0 | LV23: 93.979 | LW23: 0 | LX23: 93.979 | LY23: 0 | LZ23: 93.979 | MA23: 0 | MB23: 93.979 | MC23: 0 | MD23: 93.979 | ME23: 0 | MF23: 93.979 | MG23: 0 | MH23: 93.979 | MI23: 0 | MJ23: 93.979 | MK23: 0 | ML23: 93.979 | MM23: 0 | MN23: 93.979 | MO23: 0 | MP23: 93.979 | MQ23: 0 | MR23: 93.979 | MS23: 0 | MT23: 93.979 | MU23: 0 | MV23: 93.979 | MW23: 160 | MX23: 81.676 | MY23: 160 | MZ23: 81.816 | NA23: 160 | NB23: 81.649 | NC23: 160 | ND23: 81.78 | NE23: 160 | NF23: 81.641 | NG23: 160 | NH23: 81.711 | NI23: 160 | NJ23: 81.826 | NK23: 160 | NL23: 81.559 | NM23: 160 | NN23: 81.638 | NO23: 160 | NP23: 81.621 | NQ23: 160 | NR23: 79.062 | NS23: 160 | NT23: 79.131 | NU23: 160 | NV23: 79.098 | NW23: 160 | NX23: 79.143 | NY23: 160 | NZ23: 79.038 | OA23: 160 | OB23: 79.045 | OC23: 160 | OD23: 79.198 | OE23: 160 | OF23: 79.02 | OG23: 160 | OH23: 79.109 | OI23: 160 | OJ23: 79.038 | OK23: 160 | OL23: 81.943 | OM23: 160 | ON23: 82.106 | OO23: 160 | OP23: 81.818 | OQ23: 160 | OR23: 82.133 | OS23: 160 | OT23: 81.861 | OU23: 160 | OV23: 82.048 | OW23: 160 | OX23: 82.161 | OY23: 160 | OZ23: 81.664 | PA23: 160 | PB23: 81.746 | PC23: 160 | PD23: 81.819 | PE23: 160 | PF23: 79.363 | PG23: 160 | PH23: 79.439 | PI23: 160 | PJ23: 79.29 | PK23: 160 | PL23: 79.571 | PM23: 160 | PN23: 79.297 | PO23: 160 | PP23: 79.427 | PQ23: 160 | PR23: 79.585 | PS23: 160 | PT23: 79.12 | PU23: 160 | PV23: 79.206 | PW23: 160 | PX23: 79.254
A24: 170 | B24: -0.575 | C24: 170 | D24: -0.55 | E24: 0 | F24: 0 | G24: 0 | H24: 0 | I24: 0 | J24: 0 | K24: 0 | L24: 0 | M24: 170 | N24: -0.262 | O24: 170 | P24: -0.309 | Q24: 170 | R24: -0.28 | S24: 170 | T24: -0.251 | U24: 170 | V24: 87.356 | W24: 170 | X24: 90.672 | Y24: 0 | Z24: 93.979 | AA24: 0 | AB24: 93.979 | AC24: 0 | AD24: 93.979 | AE24: 0 | AF24: 93.979 | AG24: 170 | AH24: 81.638 | AI24: 170 | AJ24: 79.064 | AK24: 170 | AL24: 81.691 | AM24: 170 | AN24: 79.064 | AO24: 170 | AP24: 86.869 | AQ24: 170 | AR24: 86.777 | AS24: 170 | AT24: 86.777 | AU24: 170 | AV24: 86.746 | AW24: 170 | AX24: 86.776 | AY24: 170 | AZ24: 86.756 | BA24: 170 | BB24: 86.761 | BC24: 170 | BD24: 86.752 | BE24: 170 | BF24: 86.78 | BG24: 170 | BH24: 86.813 | BI24: 170 | BJ24: 90.13 | BK24: 170 | BL24: 90.123 | BM24: 170 | BN24: 90.133 | BO24: 170 | BP24: 90.134 | BQ24: 170 | BR24: 90.107 | BS24: 170 | BT24: 90.133 | BU24: 170 | BV24: 90.116 | BW24: 170 | BX24: 90.126 | BY24: 170 | BZ24: 90.123 | CA24: 170 | CB24: 90.095 | CC24: 0 | CD24: 93.979 | CE24: 0 | CF24: 93.979 | CG24: 0 | CH24: 93.979 | CI24: 0 | CJ24: 93.979 | CK24: 0 | CL24: 93.979 | CM24: 0 | CN24: 93.979 | CO24: 0 | CP24: 93.979 | CQ24: 0 | CR24: 93.979 | CS24: 0 | CT24: 93.979 | CU24: 0 | CV24: 93.979 | CW24: 0 | CX24: 93.979 | CY24: 0 | CZ24: 93.979 | DA24: 0 | DB24: 93.979 | DC24: 0 | DD24: 93.979 | DE24: 0 | DF24: 93.979 | DG24: 0 | DH24: 93.979 | DI24: 0 | DJ24: 93.979 | DK24: 0 | DL24: 93.979 | DM24: 0 | DN24: 93.979 | DO24: 0 | DP24: 93.979 | DQ24: 0 | DR24: 93.979 | DS24: 0 | DT24: 93.979 | DU24: 0 | DV24: 93.979 | DW24: 0 | DX24: 93.979 | DY24: 0 | DZ24: 93.979 | EA24: 0 | EB24: 93.979 | EC24: 0 | ED24: 93.979 | EE24: 0 | EF24: 93.979 | EG24: 0 | EH24: 93.979 | EI24: 0 | EJ24: 93.979 | EK24: 0 | EL24: 93.979 | EM24: 0 | EN24: 93.979 | EO24: 0 | EP24: 93.979 | EQ24: 0 | ER24: 93.979 | ES24: 0 | ET24: 93.979 | EU24: 0 | EV24: 93.979 | EW24: 0 | EX24: 93.979 | EY24: 0 | EZ24: 93.979 | FA24: 0 | FB24: 93.979 | FC24: 0 | FD24: 93.979 | FE24: 170 | FF24: 81.157 | FG24: 170 | FH24: 81.401 | FI24: 170 | FJ24: 81.47 | FK24: 170 | FL24: 81.461 | FM24: 170 | FN24: 81.347 | FO24: 170 | FP24: 81.422 | FQ24: 170 | FR24: 81.394 | FS24: 170 | FT24: 81.434 | FU24: 170 | FV24: 81.372 | FW24: 170 | FX24: 81.3 | FY24: 170 | FZ24: 78.655 | GA24: 170 | GB24: 78.765 | GC24: 170 | GD24: 78.805 | GE24: 170 | GF24: 78.83 | GG24: 170 | GH24: 78.744 | GI24: 170 | GJ24: 78.764 | GK24: 170 | GL24: 78.784 | GM24: 170 | GN24: 78.811 | GO24: 170 | GP24: 78.709 | GQ24: 170 | GR24: 78.684 | GS24: 170 | GT24: 81.254 | GU24: 170 | GV24: 81.432 | GW24: 170 | GX24: 81.493 | GY24: 170 | GZ24: 81.489 | HA24: 170 | HB24: 81.407 | HC24: 170 | HD24: 81.445 | HE24: 170 | HF24: 81.445 | HG24: 170 | HH24: 81.461 | HI24: 170 | HJ24: 81.404 | HK24: 170 | HL24: 81.283 | HM24: 170 | HN24: 78.765 | HO24: 170 | HP24: 78.829 | HQ24: 170 | HR24: 78.865 | HS24: 170 | HT24: 78.897 | HU24: 170 | HV24: 78.814 | HW24: 170 | HX24: 78.81 | HY24: 170 | HZ24: 78.832 | IA24: 170 | IB24: 78.87 | IC24: 170 | ID24: 78.779 | IE24: 170 | IF24: 78.665 | IG24: 170 | IH24: 87.357 | II24: 170 | IJ24: 87.264 | IK24: 170 | IL24: 87.405 | IM24: 170 | IN24: 87.307 | IO24: 170 | IP24: 87.397 | IQ24: 170 | IR24: 87.29 | IS24: 170 | IT24: 87.251 | IU24: 170 | IV24: 87.451 | IW24: 170 | IX24: 87.452 | IY24: 170 | IZ24: 87.382 | JA24: 170 | JB24: 90.673 | JC24: 170 | JD24: 90.694 | JE24: 170 | JF24: 90.667 | JG24: 170 | JH24: 90.711 | JI24: 170 | JJ24: 90.654 | JK24: 170 | JL24: 90.653 | JM24: 170 | JN24: 90.648 | JO24: 170 | JP24: 90.682 | JQ24: 170 | JR24: 90.676 | JS24: 170 | JT24: 90.659 | JU24: 0 | JV24: 93.979 | JW24: 0 | JX24: 93.979 | JY24: 0 | JZ24: 93.979 | KA24: 0 | KB24: 93.979 | KC24: 0 | KD24: 93.979 | KE24: 0 | KF24: 93.979 | KG24: 0 | KH24: 93.979 | KI24: 0 | KJ24: 93.979 | KK24: 0 | KL24: 93.979 | KM24: 0 | KN24: 93.979 | KO24: 0 | KP24: 93.979 | KQ24: 0 | KR24: 93.979 | KS24: 0 | KT24: 93.979 | KU24: 0 | KV24: 93.979 | KW24: 0 | KX24: 93.979 | KY24: 0 | KZ24: 93.979 | LA24: 0 | LB24: 93.979 | LC24: 0 | LD24: 93.979 | LE24: 0 | LF24: 93.979 | LG24: 0 | LH24: 93.979 | LI24: 0 | LJ24: 93.979 | LK24: 0 | LL24: 93.979 | LM24: 0 | LN24: 93.979 | LO24: 0 | LP24: 93.979 | LQ24: 0 | LR24: 93.979 | LS24: 0 | LT24: 93.979 | LU24: 0 | LV24: 93.979 | LW24: 0 | LX24: 93.979 | LY24: 0 | LZ24: 93.979 | MA24: 0 | MB24: 93.979 | MC24: 0 | MD24: 93.979 | ME24: 0 | MF24: 93.979 | MG24: 0 | MH24: 93.979 | MI24: 0 | MJ24: 93.979 | MK24: 0 | ML24: 93.979 | MM24: 0 | MN24: 93.979 | MO24: 0 | MP24: 93.979 | MQ24: 0 | MR24: 93.979 | MS24: 0 | MT24: 93.979 | MU24: 0 | MV24: 93.979 | MW24: 170 | MX24: 81.591 | MY24: 170 | MZ24: 81.715 | NA24: 170 | NB24: 81.624 | NC24: 170 | ND24: 81.723 | NE24: 170 | NF24: 81.621 | NG24: 170 | NH24: 81.628 | NI24: 170 | NJ24: 81.711 | NK24: 170 | NL24: 81.551 | NM24: 170 | NN24: 81.622 | NO24: 170 | NP24: 81.595 | NQ24: 170 | NR24: 79.036 | NS24: 170 | NT24: 78.975 | NU24: 170 | NV24: 79.138 | NW24: 170 | NX24: 79.025 | NY24: 170 | NZ24: 79.088 | OA24: 170 | OB24: 78.957 | OC24: 170 | OD24: 79.077 | OE24: 170 | OF24: 79.087 | OG24: 170 | OH24: 79.178 | OI24: 170 | OJ24: 79.081 | OK24: 170 | OL24: 81.682 | OM24: 170 | ON24: 81.931 | OO24: 170 | OP24: 81.546 | OQ24: 170 | OR24: 81.951 | OS24: 170 | OT24: 81.582 | OU24: 170 | OV24: 81.812 | OW24: 170 | OX24: 81.906 | OY24: 170 | OZ24: 81.428 | PA24: 170 | PB24: 81.502 | PC24: 170 | PD24: 81.569 | PE24: 170 | PF24: 79.075 | PG24: 170 | PH24: 79.164 | PI24: 170 | PJ24: 78.979 | PK24: 170 | PL24: 79.284 | PM24: 170 | PN24: 78.977 | PO24: 170 | PP24: 79.121 | PQ24: 170 | PR24: 79.267 | PS24: 170 | PT24: 78.85 | PU24: 170 | PV24: 78.947 | PW24: 170 | PX24: 78.976
A25: 180 | B25: -0.63 | C25: 180 | D25: -0.6 | E25: 0 | F25: 0 | G25: 0 | H25: 0 | I25: 0 | J25: 0 | K25: 0 | L25: 0 | M25: 180 | N25: -0.346 | O25: 180 | P25: -0.415 | Q25: 180 | R25: -0.289 | S25: 180 | T25: -0.265 | U25: 180 | V25: 87.663 | W25: 180 | X25: 90.349 | Y25: 0 | Z25: 93.979 | AA25: 0 | AB25: 93.979 | AC25: 0 | AD25: 93.979 | AE25: 0 | AF25: 93.979 | AG25: 180 | AH25: 81.771 | AI25: 180 | AJ25: 79.285 | AK25: 180 | AL25: 81.698 | AM25: 180 | AN25: 79.09 | AO25: 180 | AP25: 87.191 | AQ25: 180 | AR25: 87.035 | AS25: 180 | AT25: 86.988 | AU25: 180 | AV25: 86.963 | AW25: 180 | AX25: 87.066 | AY25: 180 | AZ25: 86.989 | BA25: 180 | BB25: 87.015 | BC25: 180 | BD25: 86.968 | BE25: 180 | BF25: 87.021 | BG25: 180 | BH25: 87.098 | BI25: 180 | BJ25: 89.86 | BK25: 180 | BL25: 89.761 | BM25: 180 | BN25: 89.723 | BO25: 180 | BP25: 89.713 | BQ25: 180 | BR25: 89.77 | BS25: 180 | BT25: 89.74 | BU25: 180 | BV25: 89.748 | BW25: 180 | BX25: 89.705 | BY25: 180 | BZ25: 89.732 | CA25: 180 | CB25: 89.733 | CC25: 0 | CD25: 93.979 | CE25: 0 | CF25: 93.979 | CG25: 0 | CH25: 93.979 | CI25: 0 | CJ25: 93.979 | CK25: 0 | CL25: 93.979 | CM25: 0 | CN25: 93.979 | CO25: 0 | CP25: 93.979 | CQ25: 0 | CR25: 93.979 | CS25: 0 | CT25: 93.979 | CU25: 0 | CV25: 93.979 | CW25: 0 | CX25: 93.979 | CY25: 0 | CZ25: 93.979 | DA25: 0 | DB25: 93.979 | DC25: 0 | DD25: 93.979 | DE25: 0 | DF25: 93.979 | DG25: 0 | DH25: 93.979 | DI25: 0 | DJ25: 93.979 | DK25: 0 | DL25: 93.979 | DM25: 0 | DN25: 93.979 | DO25: 0 | DP25: 93.979 | DQ25: 0 | DR25: 93.979 | DS25: 0 | DT25: 93.979 | DU25: 0 | DV25: 93.979 | DW25: 0 | DX25: 93.979 | DY25: 0 | DZ25: 93.979 | EA25: 0 | EB25: 93.979 | EC25: 0 | ED25: 93.979 | EE25: 0 | EF25: 93.979 | EG25: 0 | EH25: 93.979 | EI25: 0 | EJ25: 93.979 | EK25: 0 | EL25: 93.979 | EM25: 0 | EN25: 93.979 | EO25: 0 | EP25: 93.979 | EQ25: 0 | ER25: 93.979 | ES25: 0 | ET25: 93.979 | EU25: 0 | EV25: 93.979 | EW25: 0 | EX25: 93.979 | EY25: 0 | EZ25: 93.979 | FA25: 0 | FB25: 93.979 | FC25: 0 | FD25: 93.979 | FE25: 180 | FF25: 81.245 | FG25: 180 | FH25: 81.442 | FI25: 180 | FJ25: 81.52 | FK25: 180 | FL25: 81.491 | FM25: 180 | FN25: 81.383 | FO25: 180 | FP25: 81.471 | FQ25: 180 | FR25: 81.412 | FS25: 180 | FT25: 81.459 | FU25: 180 | FV25: 81.439 | FW25: 180 | FX25: 81.395 | FY25: 180 | FZ25: 78.901 | GA25: 180 | GB25: 78.886 | GC25: 180 | GD25: 78.877 | GE25: 180 | GF25: 78.88 | GG25: 180 | GH25: 78.87 | GI25: 180 | GJ25: 78.853 | GK25: 180 | GL25: 78.862 | GM25: 180 | GN25: 78.861 | GO25: 180 | GP25: 78.829 | GQ25: 180 | GR25: 78.884 | GS25: 180 | GT25: 81.29 | GU25: 180 | GV25: 81.44 | GW25: 180 | GX25: 81.493 | GY25: 180 | GZ25: 81.462 | HA25: 180 | HB25: 81.429 | HC25: 180 | HD25: 81.465 | HE25: 180 | HF25: 81.469 | HG25: 180 | HH25: 81.432 | HI25: 180 | HJ25: 81.381 | HK25: 180 | HL25: 81.224 | HM25: 180 | HN25: 78.917 | HO25: 180 | HP25: 78.869 | HQ25: 180 | HR25: 78.835 | HS25: 180 | HT25: 78.839 | HU25: 180 | HV25: 78.892 | HW25: 180 | HX25: 78.827 | HY25: 180 | HZ25: 78.886 | IA25: 180 | IB25: 78.816 | IC25: 180 | ID25: 78.746 | IE25: 180 | IF25: 78.628 | IG25: 180 | IH25: 87.699 | II25: 180 | IJ25: 87.566 | IK25: 180 | IL25: 87.75 | IM25: 180 | IN25: 87.551 | IO25: 180 | IP25: 87.719 | IQ25: 180 | IR25: 87.595 | IS25: 180 | IT25: 87.531 | IU25: 180 | IV25: 87.759 | IW25: 180 | IX25: 87.762 | IY25: 180 | IZ25: 87.702 | JA25: 180 | JB25: 90.368 | JC25: 180 | JD25: 90.367 | JE25: 180 | JF25: 90.368 | JG25: 180 | JH25: 90.32 | JI25: 180 | JJ25: 90.352 | JK25: 180 | JL25: 90.321 | JM25: 180 | JN25: 90.271 | JO25: 180 | JP25: 90.391 | JQ25: 180 | JR25: 90.376 | JS25: 180 | JT25: 90.353 | JU25: 0 | JV25: 93.979 | JW25: 0 | JX25: 93.979 | JY25: 0 | JZ25: 93.979 | KA25: 0 | KB25: 93.979 | KC25: 0 | KD25: 93.979 | KE25: 0 | KF25: 93.979 | KG25: 0 | KH25: 93.979 | KI25: 0 | KJ25: 93.979 | KK25: 0 | KL25: 93.979 | KM25: 0 | KN25: 93.979 | KO25: 0 | KP25: 93.979 | KQ25: 0 | KR25: 93.979 | KS25: 0 | KT25: 93.979 | KU25: 0 | KV25: 93.979 | KW25: 0 | KX25: 93.979 | KY25: 0 | KZ25: 93.979 | LA25: 0 | LB25: 93.979 | LC25: 0 | LD25: 93.979 | LE25: 0 | LF25: 93.979 | LG25: 0 | LH25: 93.979 | LI25: 0 | LJ25: 93.979 | LK25: 0 | LL25: 93.979 | LM25: 0 | LN25: 93.979 | LO25: 0 | LP25: 93.979 | LQ25: 0 | LR25: 93.979 | LS25: 0 | LT25: 93.979 | LU25: 0 | LV25: 93.979 | LW25: 0 | LX25: 93.979 | LY25: 0 | LZ25: 93.979 | MA25: 0 | MB25: 93.979 | MC25: 0 | MD25: 93.979 | ME25: 0 | MF25: 93.979 | MG25: 0 | MH25: 93.979 | MI25: 0 | MJ25: 93.979 | MK25: 0 | ML25: 93.979 | MM25: 0 | MN25: 93.979 | MO25: 0 | MP25: 93.979 | MQ25: 0 | MR25: 93.979 | MS25: 0 | MT25: 93.979 | MU25: 0 | MV25: 93.979 | MW25: 180 | MX25: 81.71 | MY25: 180 | MZ25: 81.822 | NA25: 180 | NB25: 81.772 | NC25: 180 | ND25: 81.859 | NE25: 180 | NF25: 81.79 | NG25: 180 | NH25: 81.762 | NI25: 180 | NJ25: 81.79 | NK25: 180 | NL25: 81.704 | NM25: 180 | NN25: 81.761 | NO25: 180 | NP25: 81.744 | NQ25: 180 | NR25: 79.263 | NS25: 180 | NT25: 79.165 | NU25: 180 | NV25: 79.373 | NW25: 180 | NX25: 79.198 | NY25: 180 | NZ25: 79.363 | OA25: 180 | OB25: 79.19 | OC25: 180 | OD25: 79.216 | OE25: 180 | OF25: 79.34 | OG25: 180 | OH25: 79.418 | OI25: 180 | OJ25: 79.328 | OK25: 180 | OL25: 81.672 | OM25: 180 | ON25: 81.962 | OO25: 180 | OP25: 81.565 | OQ25: 180 | OR25: 81.927 | OS25: 180 | OT25: 81.592 | OU25: 180 | OV25: 81.79 | OW25: 180 | OX25: 81.831 | OY25: 180 | OZ25: 81.497 | PA25: 180 | PB25: 81.553 | PC25: 180 | PD25: 81.59 | PE25: 180 | PF25: 79.1 | PG25: 180 | PH25: 79.227 | PI25: 180 | PJ25: 79.011 | PK25: 180 | PL25: 79.222 | PM25: 180 | PN25: 79.014 | PO25: 180 | PP25: 79.122 | PQ25: 180 | PR25: 79.179 | PS25: 180 | PT25: 78.959 | PU25: 180 | PV25: 79.043 | PW25: 180 | PX25: 79.027
A26: 190 | B26: -0.6 | C26: 190 | D26: -0.594 | E26: 0 | F26: 0 | G26: 0 | H26: 0 | I26: 0 | J26: 0 | K26: 0 | L26: 0 | M26: 190 | N26: -0.381 | O26: 190 | P26: -0.444 | Q26: 190 | R26: -0.325 | S26: 190 | T26: -0.297 | U26: 190 | V26: 87.989 | W26: 190 | X26: 90.11 | Y26: 0 | Z26: 93.979 | AA26: 0 | AB26: 93.979 | AC26: 0 | AD26: 93.979 | AE26: 0 | AF26: 93.979 | AG26: 190 | AH26: 81.964 | AI26: 190 | AJ26: 79.606 | AK26: 190 | AL26: 81.85 | AM26: 190 | AN26: 79.342 | AO26: 190 | AP26: 87.484 | AQ26: 190 | AR26: 87.392 | AS26: 190 | AT26: 87.357 | AU26: 190 | AV26: 87.335 | AW26: 190 | AX26: 87.418 | AY26: 190 | AZ26: 87.358 | BA26: 190 | BB26: 87.372 | BC26: 190 | BD26: 87.339 | BE26: 190 | BF26: 87.38 | BG26: 190 | BH26: 87.447 | BI26: 190 | BJ26: 89.632 | BK26: 190 | BL26: 89.536 | BM26: 190 | BN26: 89.479 | BO26: 190 | BP26: 89.464 | BQ26: 190 | BR26: 89.557 | BS26: 190 | BT26: 89.504 | BU26: 190 | BV26: 89.53 | BW26: 190 | BX26: 89.464 | BY26: 190 | BZ26: 89.489 | CA26: 190 | CB26: 89.501 | CC26: 0 | CD26: 93.979 | CE26: 0 | CF26: 93.979 | CG26: 0 | CH26: 93.979 | CI26: 0 | CJ26: 93.979 | CK26: 0 | CL26: 93.979 | CM26: 0 | CN26: 93.979 | CO26: 0 | CP26: 93.979 | CQ26: 0 | CR26: 93.979 | CS26: 0 | CT26: 93.979 | CU26: 0 | CV26: 93.979 | CW26: 0 | CX26: 93.979 | CY26: 0 | CZ26: 93.979 | DA26: 0 | DB26: 93.979 | DC26: 0 | DD26: 93.979 | DE26: 0 | DF26: 93.979 | DG26: 0 | DH26: 93.979 | DI26: 0 | DJ26: 93.979 | DK26: 0 | DL26: 93.979 | DM26: 0 | DN26: 93.979 | DO26: 0 | DP26: 93.979 | DQ26: 0 | DR26: 93.979 | DS26: 0 | DT26: 93.979 | DU26: 0 | DV26: 93.979 | DW26: 0 | DX26: 93.979 | DY26: 0 | DZ26: 93.979 | EA26: 0 | EB26: 93.979 | EC26: 0 | ED26: 93.979 | EE26: 0 | EF26: 93.979 | EG26: 0 | EH26: 93.979 | EI26: 0 | EJ26: 93.979 | EK26: 0 | EL26: 93.979 | EM26: 0 | EN26: 93.979 | EO26: 0 | EP26: 93.979 | EQ26: 0 | ER26: 93.979 | ES26: 0 | ET26: 93.979 | EU26: 0 | EV26: 93.979 | EW26: 0 | EX26: 93.979 | EY26: 0 | EZ26: 93.979 | FA26: 0 | FB26: 93.979 | FC26: 0 | FD26: 93.979 | FE26: 190 | FF26: 81.399 | FG26: 190 | FH26: 81.59 | FI26: 190 | FJ26: 81.696 | FK26: 190 | FL26: 81.644 | FM26: 190 | FN26: 81.524 | FO26: 190 | FP26: 81.637 | FQ26: 190 | FR26: 81.547 | FS26: 190 | FT26: 81.614 | FU26: 190 | FV26: 81.617 | FW26: 190 | FX26: 81.566 | FY26: 190 | FZ26: 79.223 | GA26: 190 | GB26: 79.185 | GC26: 190 | GD26: 79.173 | GE26: 190 | GF26: 79.137 | GG26: 190 | GH26: 79.168 | GI26: 190 | GJ26: 79.149 | GK26: 190 | GL26: 79.128 | GM26: 190 | GN26: 79.117 | GO26: 190 | GP26: 79.139 | GQ26: 190 | GR26: 79.203 | GS26: 190 | GT26: 81.393 | GU26: 190 | GV26: 81.557 | GW26: 190 | GX26: 81.626 | GY26: 190 | GZ26: 81.569 | HA26: 190 | HB26: 81.545 | HC26: 190 | HD26: 81.607 | HE26: 190 | HF26: 81.598 | HG26: 190 | HH26: 81.545 | HI26: 190 | HJ26: 81.491 | HK26: 190 | HL26: 81.32 | HM26: 190 | HN26: 79.164 | HO26: 190 | HP26: 79.108 | HQ26: 190 | HR26: 79.052 | HS26: 190 | HT26: 79.014 | HU26: 190 | HV26: 79.142 | HW26: 190 | HX26: 79.07 | HY26: 190 | HZ26: 79.128 | IA26: 190 | IB26: 78.996 | IC26: 190 | ID26: 78.944 | IE26: 190 | IF26: 78.827 | IG26: 190 | IH26: 88.018 | II26: 190 | IJ26: 87.937 | IK26: 190 | IL26: 88.056 | IM26: 190 | IN26: 87.924 | IO26: 190 | IP26: 88.026 | IQ26: 190 | IR26: 87.952 | IS26: 190 | IT26: 87.902 | IU26: 190 | IV26: 88.03 | IW26: 190 | IX26: 88.04 | IY26: 190 | IZ26: 88 | JA26: 190 | JB26: 90.142 | JC26: 190 | JD26: 90.139 | JE26: 190 | JF26: 90.13 | JG26: 190 | JH26: 90.059 | JI26: 190 | JJ26: 90.117 | JK26: 190 | JL26: 90.092 | JM26: 190 | JN26: 90.037 | JO26: 190 | JP26: 90.146 | JQ26: 190 | JR26: 90.128 | JS26: 190 | JT26: 90.106 | JU26: 0 | JV26: 93.979 | JW26: 0 | JX26: 93.979 | JY26: 0 | JZ26: 93.979 | KA26: 0 | KB26: 93.979 | KC26: 0 | KD26: 93.979 | KE26: 0 | KF26: 93.979 | KG26: 0 | KH26: 93.979 | KI26: 0 | KJ26: 93.979 | KK26: 0 | KL26: 93.979 | KM26: 0 | KN26: 93.979 | KO26: 0 | KP26: 93.979 | KQ26: 0 | KR26: 93.979 | KS26: 0 | KT26: 93.979 | KU26: 0 | KV26: 93.979 | KW26: 0 | KX26: 93.979 | KY26: 0 | KZ26: 93.979 | LA26: 0 | LB26: 93.979 | LC26: 0 | LD26: 93.979 | LE26: 0 | LF26: 93.979 | LG26: 0 | LH26: 93.979 | LI26: 0 | LJ26: 93.979 | LK26: 0 | LL26: 93.979 | LM26: 0 | LN26: 93.979 | LO26: 0 | LP26: 93.979 | LQ26: 0 | LR26: 93.979 | LS26: 0 | LT26: 93.979 | LU26: 0 | LV26: 93.979 | LW26: 0 | LX26: 93.979 | LY26: 0 | LZ26: 93.979 | MA26: 0 | MB26: 93.979 | MC26: 0 | MD26: 93.979 | ME26: 0 | MF26: 93.979 | MG26: 0 | MH26: 93.979 | MI26: 0 | MJ26: 93.979 | MK26: 0 | ML26: 93.979 | MM26: 0 | MN26: 93.979 | MO26: 0 | MP26: 93.979 | MQ26: 0 | MR26: 93.979 | MS26: 0 | MT26: 93.979 | MU26: 0 | MV26: 93.979 | MW26: 190 | MX26: 81.891 | MY26: 190 | MZ26: 82.009 | NA26: 190 | NB26: 81.954 | NC26: 190 | ND26: 82.112 | NE26: 190 | NF26: 81.991 | NG26: 190 | NH26: 81.981 | NI26: 190 | NJ26: 81.978 | NK26: 190 | NL26: 81.877 | NM26: 190 | NN26: 81.922 | NO26: 190 | NP26: 81.925 | NQ26: 190 | NR26: 79.576 | NS26: 190 | NT26: 79.516 | NU26: 190 | NV26: 79.672 | NW26: 190 | NX26: 79.564 | NY26: 190 | NZ26: 79.69 | OA26: 190 | OB26: 79.559 | OC26: 190 | OD26: 79.524 | OE26: 190 | OF26: 79.631 | OG26: 190 | OH26: 79.698 | OI26: 190 | OJ26: 79.632 | OK26: 190 | OL26: 81.815 | OM26: 190 | ON26: 82.087 | OO26: 190 | OP26: 81.748 | OQ26: 190 | OR26: 82.044 | OS26: 190 | OT26: 81.771 | OU26: 190 | OV26: 81.914 | OW26: 190 | OX26: 81.919 | OY26: 190 | OZ26: 81.7 | PA26: 190 | PB26: 81.74 | PC26: 190 | PD26: 81.76 | PE26: 190 | PF26: 79.349 | PG26: 190 | PH26: 79.484 | PI26: 190 | PJ26: 79.292 | PK26: 190 | PL26: 79.391 | PM26: 190 | PN26: 79.293 | PO26: 190 | PP26: 79.354 | PQ26: 190 | PR26: 79.338 | PS26: 190 | PT26: 79.275 | PU26: 190 | PV26: 79.342 | PW26: 190 | PX26: 79.3
A27: 200 | B27: -0.569 | C27: 200 | D27: -0.573 | E27: 0 | F27: 0 | G27: 0 | H27: 0 | I27: 0 | J27: 0 | K27: 0 | L27: 0 | M27: 200 | N27: -0.402 | O27: 200 | P27: -0.441 | Q27: 200 | R27: -0.388 | S27: 200 | T27: -0.354 | U27: 200 | V27: 88.279 | W27: 200 | X27: 89.818 | Y27: 0 | Z27: 93.979 | AA27: 0 | AB27: 93.979 | AC27: 0 | AD27: 93.979 | AE27: 0 | AF27: 93.979 | AG27: 200 | AH27: 82.075 | AI27: 200 | AJ27: 79.841 | AK27: 200 | AL27: 81.974 | AM27: 200 | AN27: 79.59 | AO27: 200 | AP27: 87.738 | AQ27: 200 | AR27: 87.709 | AS27: 200 | AT27: 87.709 | AU27: 200 | AV27: 87.68 | AW27: 200 | AX27: 87.728 | AY27: 200 | AZ27: 87.696 | BA27: 200 | BB27: 87.696 | BC27: 200 | BD27: 87.684 | BE27: 200 | BF27: 87.704 | BG27: 200 | BH27: 87.754 | BI27: 200 | BJ27: 89.301 | BK27: 200 | BL27: 89.263 | BM27: 200 | BN27: 89.226 | BO27: 200 | BP27: 89.21 | BQ27: 200 | BR27: 89.277 | BS27: 200 | BT27: 89.242 | BU27: 200 | BV27: 89.264 | BW27: 200 | BX27: 89.215 | BY27: 200 | BZ27: 89.224 | CA27: 200 | CB27: 89.226 | CC27: 0 | CD27: 93.979 | CE27: 0 | CF27: 93.979 | CG27: 0 | CH27: 93.979 | CI27: 0 | CJ27: 93.979 | CK27: 0 | CL27: 93.979 | CM27: 0 | CN27: 93.979 | CO27: 0 | CP27: 93.979 | CQ27: 0 | CR27: 93.979 | CS27: 0 | CT27: 93.979 | CU27: 0 | CV27: 93.979 | CW27: 0 | CX27: 93.979 | CY27: 0 | CZ27: 93.979 | DA27: 0 | DB27: 93.979 | DC27: 0 | DD27: 93.979 | DE27: 0 | DF27: 93.979 | DG27: 0 | DH27: 93.979 | DI27: 0 | DJ27: 93.979 | DK27: 0 | DL27: 93.979 | DM27: 0 | DN27: 93.979 | DO27: 0 | DP27: 93.979 | DQ27: 0 | DR27: 93.979 | DS27: 0 | DT27: 93.979 | DU27: 0 | DV27: 93.979 | DW27: 0 | DX27: 93.979 | DY27: 0 | DZ27: 93.979 | EA27: 0 | EB27: 93.979 | EC27: 0 | ED27: 93.979 | EE27: 0 | EF27: 93.979 | EG27: 0 | EH27: 93.979 | EI27: 0 | EJ27: 93.979 | EK27: 0 | EL27: 93.979 | EM27: 0 | EN27: 93.979 | EO27: 0 | EP27: 93.979 | EQ27: 0 | ER27: 93.979 | ES27: 0 | ET27: 93.979 | EU27: 0 | EV27: 93.979 | EW27: 0 | EX27: 93.979 | EY27: 0 | EZ27: 93.979 | FA27: 0 | FB27: 93.979 | FC27: 0 | FD27: 93.979 | FE27: 200 | FF27: 81.483 | FG27: 200 | FH27: 81.667 | FI27: 200 | FJ27: 81.806 | FK27: 200 | FL27: 81.735 | FM27: 200 | FN27: 81.596 | FO27: 200 | FP27: 81.731 | FQ27: 200 | FR27: 81.623 | FS27: 200 | FT27: 81.718 | FU27: 200 | FV27: 81.723 | FW27: 200 | FX27: 81.649 | FY27: 200 | FZ27: 79.435 | GA27: 200 | GB27: 79.419 | GC27: 200 | GD27: 79.434 | GE27: 200 | GF27: 79.374 | GG27: 200 | GH27: 79.399 | GI27: 200 | GJ27: 79.396 | GK27: 200 | GL27: 79.357 | GM27: 200 | GN27: 79.362 | GO27: 200 | GP27: 79.392 | GQ27: 200 | GR27: 79.431 | GS27: 200 | GT27: 81.434 | GU27: 200 | GV27: 81.604 | GW27: 200 | GX27: 81.7 | GY27: 200 | GZ27: 81.632 | HA27: 200 | HB27: 81.578 | HC27: 200 | HD27: 81.673 | HE27: 200 | HF27: 81.644 | HG27: 200 | HH27: 81.624 | HI27: 200 | HJ27: 81.565 | HK27: 200 | HL27: 81.409 | HM27: 200 | HN27: 79.321 | HO27: 200 | HP27: 79.293 | HQ27: 200 | HR27: 79.257 | HS27: 200 | HT27: 79.201 | HU27: 200 | HV27: 79.317 | HW27: 200 | HX27: 79.27 | HY27: 200 | HZ27: 79.311 | IA27: 200 | IB27: 79.195 | IC27: 200 | ID27: 79.143 | IE27: 200 | IF27: 79.054 | IG27: 200 | IH27: 88.299 | II27: 200 | IJ27: 88.255 | IK27: 200 | IL27: 88.328 | IM27: 200 | IN27: 88.262 | IO27: 200 | IP27: 88.3 | IQ27: 200 | IR27: 88.26 | IS27: 200 | IT27: 88.235 | IU27: 200 | IV27: 88.282 | IW27: 200 | IX27: 88.295 | IY27: 200 | IZ27: 88.273 | JA27: 200 | JB27: 89.852 | JC27: 200 | JD27: 89.858 | JE27: 200 | JF27: 89.837 | JG27: 200 | JH27: 89.792 | JI27: 200 | JJ27: 89.818 | JK27: 200 | JL27: 89.808 | JM27: 200 | JN27: 89.778 | JO27: 200 | JP27: 89.831 | JQ27: 200 | JR27: 89.811 | JS27: 200 | JT27: 89.796 | JU27: 0 | JV27: 93.979 | JW27: 0 | JX27: 93.979 | JY27: 0 | JZ27: 93.979 | KA27: 0 | KB27: 93.979 | KC27: 0 | KD27: 93.979 | KE27: 0 | KF27: 93.979 | KG27: 0 | KH27: 93.979 | KI27: 0 | KJ27: 93.979 | KK27: 0 | KL27: 93.979 | KM27: 0 | KN27: 93.979 | KO27: 0 | KP27: 93.979 | KQ27: 0 | KR27: 93.979 | KS27: 0 | KT27: 93.979 | KU27: 0 | KV27: 93.979 | KW27: 0 | KX27: 93.979 | KY27: 0 | KZ27: 93.979 | LA27: 0 | LB27: 93.979 | LC27: 0 | LD27: 93.979 | LE27: 0 | LF27: 93.979 | LG27: 0 | LH27: 93.979 | LI27: 0 | LJ27: 93.979 | LK27: 0 | LL27: 93.979 | LM27: 0 | LN27: 93.979 | LO27: 0 | LP27: 93.979 | LQ27: 0 | LR27: 93.979 | LS27: 0 | LT27: 93.979 | LU27: 0 | LV27: 93.979 | LW27: 0 | LX27: 93.979 | LY27: 0 | LZ27: 93.979 | MA27: 0 | MB27: 93.979 | MC27: 0 | MD27: 93.979 | ME27: 0 | MF27: 93.979 | MG27: 0 | MH27: 93.979 | MI27: 0 | MJ27: 93.979 | MK27: 0 | ML27: 93.979 | MM27: 0 | MN27: 93.979 | MO27: 0 | MP27: 93.979 | MQ27: 0 | MR27: 93.979 | MS27: 0 | MT27: 93.979 | MU27: 0 | MV27: 93.979 | MW27: 200 | MX27: 81.996 | MY27: 200 | MZ27: 82.107 | NA27: 200 | NB27: 82.051 | NC27: 200 | ND27: 82.291 | NE27: 200 | NF27: 82.09 | NG27: 200 | NH27: 82.11 | NI27: 200 | NJ27: 82.11 | NK27: 200 | NL27: 81.968 | NM27: 200 | NN27: 82.002 | NO27: 200 | NP27: 82.023 | NQ27: 200 | NR27: 79.803 | NS27: 200 | NT27: 79.772 | NU27: 200 | NV27: 79.887 | NW27: 200 | NX27: 79.865 | NY27: 200 | NZ27: 79.905 | OA27: 200 | OB27: 79.825 | OC27: 200 | OD27: 79.794 | OE27: 200 | OF27: 79.826 | OG27: 200 | OH27: 79.887 | OI27: 200 | OJ27: 79.845 | OK27: 200 | OL27: 81.938 | OM27: 200 | ON27: 82.141 | OO27: 200 | OP27: 81.907 | OQ27: 200 | OR27: 82.153 | OS27: 200 | OT27: 81.921 | OU27: 200 | OV27: 82.016 | OW27: 200 | OX27: 82.022 | OY27: 200 | OZ27: 81.855 | PA27: 200 | PB27: 81.881 | PC27: 200 | PD27: 81.904 | PE27: 200 | PF27: 79.596 | PG27: 200 | PH27: 79.683 | PI27: 200 | PJ27: 79.582 | PK27: 200 | PL27: 79.594 | PM27: 200 | PN27: 79.568 | PO27: 200 | PP27: 79.584 | PQ27: 200 | PR27: 79.566 | PS27: 200 | PT27: 79.55 | PU27: 200 | PV27: 79.606 | PW27: 200 | PX27: 79.569
A28: 212 | B28: -0.549 | C28: 212 | D28: -0.556 | E28: 0 | F28: 0 | G28: 0 | H28: 0 | I28: 0 | J28: 0 | K28: 0 | L28: 0 | M28: 212 | N28: -0.431 | O28: 212 | P28: -0.429 | Q28: 212 | R28: -0.468 | S28: 212 | T28: -0.413 | U28: 212 | V28: 88.662 | W28: 212 | X28: 89.502 | Y28: 0 | Z28: 93.979 | AA28: 0 | AB28: 93.979 | AC28: 0 | AD28: 93.979 | AE28: 0 | AF28: 93.979 | AG28: 212 | AH28: 82.143 | AI28: 212 | AJ28: 80.025 | AK28: 212 | AL28: 82.073 | AM28: 212 | AN28: 79.812 | AO28: 212 | AP28: 88.109 | AQ28: 212 | AR28: 88.11 | AS28: 212 | AT28: 88.131 | AU28: 212 | AV28: 88.101 | AW28: 212 | AX28: 88.116 | AY28: 212 | AZ28: 88.109 | BA28: 212 | BB28: 88.103 | BC28: 212 | BD28: 88.102 | BE28: 212 | BF28: 88.104 | BG28: 212 | BH28: 88.144 | BI28: 212 | BJ28: 88.944 | BK28: 212 | BL28: 88.954 | BM28: 212 | BN28: 88.946 | BO28: 212 | BP28: 88.943 | BQ28: 212 | BR28: 88.955 | BS28: 212 | BT28: 88.945 | BU28: 212 | BV28: 88.965 | BW28: 212 | BX28: 88.945 | BY28: 212 | BZ28: 88.932 | CA28: 212 | CB28: 88.927 | CC28: 0 | CD28: 93.979 | CE28: 0 | CF28: 93.979 | CG28: 0 | CH28: 93.979 | CI28: 0 | CJ28: 93.979 | CK28: 0 | CL28: 93.979 | CM28: 0 | CN28: 93.979 | CO28: 0 | CP28: 93.979 | CQ28: 0 | CR28: 93.979 | CS28: 0 | CT28: 93.979 | CU28: 0 | CV28: 93.979 | CW28: 0 | CX28: 93.979 | CY28: 0 | CZ28: 93.979 | DA28: 0 | DB28: 93.979 | DC28: 0 | DD28: 93.979 | DE28: 0 | DF28: 93.979 | DG28: 0 | DH28: 93.979 | DI28: 0 | DJ28: 93.979 | DK28: 0 | DL28: 93.979 | DM28: 0 | DN28: 93.979 | DO28: 0 | DP28: 93.979 | DQ28: 0 | DR28: 93.979 | DS28: 0 | DT28: 93.979 | DU28: 0 | DV28: 93.979 | DW28: 0 | DX28: 93.979 | DY28: 0 | DZ28: 93.979 | EA28: 0 | EB28: 93.979 | EC28: 0 | ED28: 93.979 | EE28: 0 | EF28: 93.979 | EG28: 0 | EH28: 93.979 | EI28: 0 | EJ28: 93.979 | EK28: 0 | EL28: 93.979 | EM28: 0 | EN28: 93.979 | EO28: 0 | EP28: 93.979 | EQ28: 0 | ER28: 93.979 | ES28: 0 | ET28: 93.979 | EU28: 0 | EV28: 93.979 | EW28: 0 | EX28: 93.979 | EY28: 0 | EZ28: 93.979 | FA28: 0 | FB28: 93.979 | FC28: 0 | FD28: 93.979 | FE28: 212 | FF28: 81.571 | FG28: 212 | FH28: 81.7 | FI28: 212 | FJ28: 81.831 | FK28: 212 | FL28: 81.761 | FM28: 212 | FN28: 81.639 | FO28: 212 | FP28: 81.755 | FQ28: 212 | FR28: 81.661 | FS28: 212 | FT28: 81.759 | FU28: 212 | FV28: 81.759 | FW28: 212 | FX28: 81.685 | FY28: 212 | FZ28: 79.633 | GA28: 212 | GB28: 79.611 | GC28: 212 | GD28: 79.632 | GE28: 212 | GF28: 79.572 | GG28: 212 | GH28: 79.595 | GI28: 212 | GJ28: 79.587 | GK28: 212 | GL28: 79.563 | GM28: 212 | GN28: 79.566 | GO28: 212 | GP28: 79.584 | GQ28: 212 | GR28: 79.614 | GS28: 212 | GT28: 81.486 | GU28: 212 | GV28: 81.61 | GW28: 212 | GX28: 81.703 | GY28: 212 | GZ28: 81.642 | HA28: 212 | HB28: 81.577 | HC28: 212 | HD28: 81.669 | HE28: 212 | HF28: 81.634 | HG28: 212 | HH28: 81.648 | HI28: 212 | HJ28: 81.6 | HK28: 212 | HL28: 81.487 | HM28: 212 | HN28: 79.47 | HO28: 212 | HP28: 79.442 | HQ28: 212 | HR28: 79.419 | HS28: 212 | HT28: 79.367 | HU28: 212 | HV28: 79.451 | HW28: 212 | HX28: 79.416 | HY28: 212 | HZ28: 79.448 | IA28: 212 | IB28: 79.369 | IC28: 212 | ID28: 79.322 | IE28: 212 | IF28: 79.283 | IG28: 212 | IH28: 88.681 | II28: 212 | IJ28: 88.637 | IK28: 212 | IL28: 88.704 | IM28: 212 | IN28: 88.661 | IO28: 212 | IP28: 88.678 | IQ28: 212 | IR28: 88.647 | IS28: 212 | IT28: 88.641 | IU28: 212 | IV28: 88.649 | IW28: 212 | IX28: 88.666 | IY28: 212 | IZ28: 88.657 | JA28: 212 | JB28: 89.533 | JC28: 212 | JD28: 89.537 | JE28: 212 | JF28: 89.524 | JG28: 212 | JH28: 89.504 | JI28: 212 | JJ28: 89.494 | JK28: 212 | JL28: 89.493 | JM28: 212 | JN28: 89.501 | JO28: 212 | JP28: 89.487 | JQ28: 212 | JR28: 89.473 | JS28: 212 | JT28: 89.47 | JU28: 0 | JV28: 93.979 | JW28: 0 | JX28: 93.979 | JY28: 0 | JZ28: 93.979 | KA28: 0 | KB28: 93.979 | KC28: 0 | KD28: 93.979 | KE28: 0 | KF28: 93.979 | KG28: 0 | KH28: 93.979 | KI28: 0 | KJ28: 93.979 | KK28: 0 | KL28: 93.979 | KM28: 0 | KN28: 93.979 | KO28: 0 | KP28: 93.979 | KQ28: 0 | KR28: 93.979 | KS28: 0 | KT28: 93.979 | KU28: 0 | KV28: 93.979 | KW28: 0 | KX28: 93.979 | KY28: 0 | KZ28: 93.979 | LA28: 0 | LB28: 93.979 | LC28: 0 | LD28: 93.979 | LE28: 0 | LF28: 93.979 | LG28: 0 | LH28: 93.979 | LI28: 0 | LJ28: 93.979 | LK28: 0 | LL28: 93.979 | LM28: 0 | LN28: 93.979 | LO28: 0 | LP28: 93.979 | LQ28: 0 | LR28: 93.979 | LS28: 0 | LT28: 93.979 | LU28: 0 | LV28: 93.979 | LW28: 0 | LX28: 93.979 | LY28: 0 | LZ28: 93.979 | MA28: 0 | MB28: 93.979 | MC28: 0 | MD28: 93.979 | ME28: 0 | MF28: 93.979 | MG28: 0 | MH28: 93.979 | MI28: 0 | MJ28: 93.979 | MK28: 0 | ML28: 93.979 | MM28: 0 | MN28: 93.979 | MO28: 0 | MP28: 93.979 | MQ28: 0 | MR28: 93.979 | MS28: 0 | MT28: 93.979 | MU28: 0 | MV28: 93.979 | MW28: 212 | MX28: 82.087 | MY28: 212 | MZ28: 82.146 | NA28: 212 | NB28: 82.127 | NC28: 212 | ND28: 82.355 | NE28: 212 | NF28: 82.142 | NG28: 212 | NH28: 82.165 | NI28: 212 | NJ28: 82.183 | NK28: 212 | NL28: 82.052 | NM28: 212 | NN28: 82.073 | NO28: 212 | NP28: 82.1 | NQ28: 212 | NR28: 80.005 | NS28: 212 | NT28: 79.955 | NU28: 212 | NV28: 80.076 | NW28: 212 | NX28: 80.048 | NY28: 212 | NZ28: 80.071 | OA28: 212 | OB28: 80 | OC28: 212 | OD28: 80.008 | OE28: 212 | OF28: 80.004 | OG28: 212 | OH28: 80.054 | OI28: 212 | OJ28: 80.029 | OK28: 212 | OL28: 82.055 | OM28: 212 | ON28: 82.154 | OO28: 212 | OP28: 82.046 | OQ28: 212 | OR28: 82.215 | OS28: 212 | OT28: 82.039 | OU28: 212 | OV28: 82.087 | OW28: 212 | OX28: 82.11 | OY28: 212 | OZ28: 81.99 | PA28: 212 | PB28: 82.006 | PC28: 212 | PD28: 82.03 | PE28: 212 | PF28: 79.832 | PG28: 212 | PH28: 79.835 | PI28: 212 | PJ28: 79.848 | PK28: 212 | PL28: 79.769 | PM28: 212 | PN28: 79.812 | PO28: 212 | PP28: 79.778 | PQ28: 212 | PR28: 79.796 | PS28: 212 | PT28: 79.793 | PU28: 212 | PV28: 79.839 | PW28: 212 | PX28: 79.814
A29: 224 | B29: -0.543 | C29: 224 | D29: -0.551 | E29: 0 | F29: 0 | G29: 0 | H29: 0 | I29: 0 | J29: 0 | K29: 0 | L29: 0 | M29: 224 | N29: -0.461 | O29: 224 | P29: -0.414 | Q29: 224 | R29: -0.535 | S29: 224 | T29: -0.45 | U29: 224 | V29: 89.2 | W29: 224 | X29: 89.3 | Y29: 0 | Z29: 93.979 | AA29: 0 | AB29: 93.979 | AC29: 0 | AD29: 93.979 | AE29: 0 | AF29: 93.979 | AG29: 224 | AH29: 82.315 | AI29: 224 | AJ29: 80.354 | AK29: 224 | AL29: 82.261 | AM29: 224 | AN29: 80.158 | AO29: 224 | AP29: 88.655 | AQ29: 224 | AR29: 88.658 | AS29: 224 | AT29: 88.684 | AU29: 224 | AV29: 88.648 | AW29: 224 | AX29: 88.651 | AY29: 224 | AZ29: 88.659 | BA29: 224 | BB29: 88.642 | BC29: 224 | BD29: 88.646 | BE29: 224 | BF29: 88.648 | BG29: 224 | BH29: 88.672 | BI29: 224 | BJ29: 88.74 | BK29: 224 | BL29: 88.757 | BM29: 224 | BN29: 88.759 | BO29: 224 | BP29: 88.763 | BQ29: 224 | BR29: 88.749 | BS29: 224 | BT29: 88.748 | BU29: 224 | BV29: 88.765 | BW29: 224 | BX29: 88.758 | BY29: 224 | BZ29: 88.731 | CA29: 224 | CB29: 88.724 | CC29: 0 | CD29: 93.979 | CE29: 0 | CF29: 93.979 | CG29: 0 | CH29: 93.979 | CI29: 0 | CJ29: 93.979 | CK29: 0 | CL29: 93.979 | CM29: 0 | CN29: 93.979 | CO29: 0 | CP29: 93.979 | CQ29: 0 | CR29: 93.979 | CS29: 0 | CT29: 93.979 | CU29: 0 | CV29: 93.979 | CW29: 0 | CX29: 93.979 | CY29: 0 | CZ29: 93.979 | DA29: 0 | DB29: 93.979 | DC29: 0 | DD29: 93.979 | DE29: 0 | DF29: 93.979 | DG29: 0 | DH29: 93.979 | DI29: 0 | DJ29: 93.979 | DK29: 0 | DL29: 93.979 | DM29: 0 | DN29: 93.979 | DO29: 0 | DP29: 93.979 | DQ29: 0 | DR29: 93.979 | DS29: 0 | DT29: 93.979 | DU29: 0 | DV29: 93.979 | DW29: 0 | DX29: 93.979 | DY29: 0 | DZ29: 93.979 | EA29: 0 | EB29: 93.979 | EC29: 0 | ED29: 93.979 | EE29: 0 | EF29: 93.979 | EG29: 0 | EH29: 93.979 | EI29: 0 | EJ29: 93.979 | EK29: 0 | EL29: 93.979 | EM29: 0 | EN29: 93.979 | EO29: 0 | EP29: 93.979 | EQ29: 0 | ER29: 93.979 | ES29: 0 | ET29: 93.979 | EU29: 0 | EV29: 93.979 | EW29: 0 | EX29: 93.979 | EY29: 0 | EZ29: 93.979 | FA29: 0 | FB29: 93.979 | FC29: 0 | FD29: 93.979 | FE29: 224 | FF29: 81.798 | FG29: 224 | FH29: 81.849 | FI29: 224 | FJ29: 81.926 | FK29: 224 | FL29: 81.875 | FM29: 224 | FN29: 81.807 | FO29: 224 | FP29: 81.873 | FQ29: 224 | FR29: 81.812 | FS29: 224 | FT29: 81.878 | FU29: 224 | FV29: 81.882 | FW29: 224 | FX29: 81.837 | FY29: 224 | FZ29: 80 | GA29: 224 | GB29: 79.961 | GC29: 224 | GD29: 79.957 | GE29: 224 | GF29: 79.915 | GG29: 224 | GH29: 79.948 | GI29: 224 | GJ29: 79.922 | GK29: 224 | GL29: 79.922 | GM29: 224 | GN29: 79.905 | GO29: 224 | GP29: 79.919 | GQ29: 224 | GR29: 79.958 | GS29: 224 | GT29: 81.676 | GU29: 224 | GV29: 81.73 | GW29: 224 | GX29: 81.784 | GY29: 224 | GZ29: 81.742 | HA29: 224 | HB29: 81.701 | HC29: 224 | HD29: 81.757 | HE29: 224 | HF29: 81.731 | HG29: 224 | HH29: 81.75 | HI29: 224 | HJ29: 81.726 | HK29: 224 | HL29: 81.663 | HM29: 224 | HN29: 79.791 | HO29: 224 | HP29: 79.75 | HQ29: 224 | HR29: 79.713 | HS29: 224 | HT29: 79.68 | HU29: 224 | HV29: 79.744 | HW29: 224 | HX29: 79.704 | HY29: 224 | HZ29: 79.734 | IA29: 224 | IB29: 79.675 | IC29: 224 | ID29: 79.647 | IE29: 224 | IF29: 79.65 | IG29: 224 | IH29: 89.218 | II29: 224 | IJ29: 89.174 | IK29: 224 | IL29: 89.235 | IM29: 224 | IN29: 89.202 | IO29: 224 | IP29: 89.215 | IQ29: 224 | IR29: 89.186 | IS29: 224 | IT29: 89.184 | IU29: 224 | IV29: 89.184 | IW29: 224 | IX29: 89.205 | IY29: 224 | IZ29: 89.193 | JA29: 224 | JB29: 89.327 | JC29: 224 | JD29: 89.333 | JE29: 224 | JF29: 89.318 | JG29: 224 | JH29: 89.317 | JI29: 224 | JJ29: 89.289 | JK29: 224 | JL29: 89.292 | JM29: 224 | JN29: 89.317 | JO29: 224 | JP29: 89.274 | JQ29: 224 | JR29: 89.27 | JS29: 224 | JT29: 89.263 | JU29: 0 | JV29: 93.979 | JW29: 0 | JX29: 93.979 | JY29: 0 | JZ29: 93.979 | KA29: 0 | KB29: 93.979 | KC29: 0 | KD29: 93.979 | KE29: 0 | KF29: 93.979 | KG29: 0 | KH29: 93.979 | KI29: 0 | KJ29: 93.979 | KK29: 0 | KL29: 93.979 | KM29: 0 | KN29: 93.979 | KO29: 0 | KP29: 93.979 | KQ29: 0 | KR29: 93.979 | KS29: 0 | KT29: 93.979 | KU29: 0 | KV29: 93.979 | KW29: 0 | KX29: 93.979 | KY29: 0 | KZ29: 93.979 | LA29: 0 | LB29: 93.979 | LC29: 0 | LD29: 93.979 | LE29: 0 | LF29: 93.979 | LG29: 0 | LH29: 93.979 | LI29: 0 | LJ29: 93.979 | LK29: 0 | LL29: 93.979 | LM29: 0 | LN29: 93.979 | LO29: 0 | LP29: 93.979 | LQ29: 0 | LR29: 93.979 | LS29: 0 | LT29: 93.979 | LU29: 0 | LV29: 93.979 | LW29: 0 | LX29: 93.979 | LY29: 0 | LZ29: 93.979 | MA29: 0 | MB29: 93.979 | MC29: 0 | MD29: 93.979 | ME29: 0 | MF29: 93.979 | MG29: 0 | MH29: 93.979 | MI29: 0 | MJ29: 93.979 | MK29: 0 | ML29: 93.979 | MM29: 0 | MN29: 93.979 | MO29: 0 | MP29: 93.979 | MQ29: 0 | MR29: 93.979 | MS29: 0 | MT29: 93.979 | MU29: 0 | MV29: 93.979 | MW29: 224 | MX29: 82.302 | MY29: 224 | MZ29: 82.297 | NA29: 224 | NB29: 82.321 | NC29: 224 | ND29: 82.445 | NE29: 224 | NF29: 82.308 | NG29: 224 | NH29: 82.308 | NI29: 224 | NJ29: 82.332 | NK29: 224 | NL29: 82.265 | NM29: 224 | NN29: 82.276 | NO29: 224 | NP29: 82.295 | NQ29: 224 | NR29: 80.371 | NS29: 224 | NT29: 80.292 | NU29: 224 | NV29: 80.418 | NW29: 224 | NX29: 80.322 | NY29: 224 | NZ29: 80.389 | OA29: 224 | OB29: 80.305 | OC29: 224 | OD29: 80.337 | OE29: 224 | OF29: 80.354 | OG29: 224 | OH29: 80.388 | OI29: 224 | OJ29: 80.368 | OK29: 224 | OL29: 82.273 | OM29: 224 | ON29: 82.286 | OO29: 224 | OP29: 82.267 | OQ29: 224 | OR29: 82.338 | OS29: 224 | OT29: 82.24 | OU29: 224 | OV29: 82.247 | OW29: 224 | OX29: 82.275 | OY29: 224 | OZ29: 82.219 | PA29: 224 | PB29: 82.227 | PC29: 224 | PD29: 82.242 | PE29: 224 | PF29: 80.202 | PG29: 224 | PH29: 80.148 | PI29: 224 | PJ29: 80.221 | PK29: 224 | PL29: 80.073 | PM29: 224 | PN29: 80.17 | PO29: 224 | PP29: 80.1 | PQ29: 224 | PR29: 80.141 | PS29: 224 | PT29: 80.162 | PU29: 224 | PV29: 80.193 | PW29: 224 | PX29: 80.174
A30: 236 | B30: -0.545 | C30: 236 | D30: -0.548 | E30: 0 | F30: 0 | G30: 0 | H30: 0 | I30: 0 | J30: 0 | K30: 0 | L30: 0 | M30: 236 | N30: -0.481 | O30: 236 | P30: -0.403 | Q30: 236 | R30: -0.574 | S30: 236 | T30: -0.465 | U30: 236 | V30: 89.855 | W30: 236 | X30: 89.313 | Y30: 0 | Z30: 93.979 | AA30: 0 | AB30: 93.979 | AC30: 0 | AD30: 93.979 | AE30: 0 | AF30: 93.979 | AG30: 236 | AH30: 82.598 | AI30: 236 | AJ30: 80.833 | AK30: 236 | AL30: 82.535 | AM30: 236 | AN30: 80.624 | AO30: 236 | AP30: 89.312 | AQ30: 236 | AR30: 89.316 | AS30: 236 | AT30: 89.342 | AU30: 236 | AV30: 89.303 | AW30: 236 | AX30: 89.301 | AY30: 236 | AZ30: 89.313 | BA30: 236 | BB30: 89.286 | BC30: 236 | BD30: 89.301 | BE30: 236 | BF30: 89.307 | BG30: 236 | BH30: 89.322 | BI30: 236 | BJ30: 88.766 | BK30: 236 | BL30: 88.778 | BM30: 236 | BN30: 88.778 | BO30: 236 | BP30: 88.775 | BQ30: 236 | BR30: 88.767 | BS30: 236 | BT30: 88.766 | BU30: 236 | BV30: 88.776 | BW30: 236 | BX30: 88.769 | BY30: 236 | BZ30: 88.739 | CA30: 236 | CB30: 88.73 | CC30: 0 | CD30: 93.979 | CE30: 0 | CF30: 93.979 | CG30: 0 | CH30: 93.979 | CI30: 0 | CJ30: 93.979 | CK30: 0 | CL30: 93.979 | CM30: 0 | CN30: 93.979 | CO30: 0 | CP30: 93.979 | CQ30: 0 | CR30: 93.979 | CS30: 0 | CT30: 93.979 | CU30: 0 | CV30: 93.979 | CW30: 0 | CX30: 93.979 | CY30: 0 | CZ30: 93.979 | DA30: 0 | DB30: 93.979 | DC30: 0 | DD30: 93.979 | DE30: 0 | DF30: 93.979 | DG30: 0 | DH30: 93.979 | DI30: 0 | DJ30: 93.979 | DK30: 0 | DL30: 93.979 | DM30: 0 | DN30: 93.979 | DO30: 0 | DP30: 93.979 | DQ30: 0 | DR30: 93.979 | DS30: 0 | DT30: 93.979 | DU30: 0 | DV30: 93.979 | DW30: 0 | DX30: 93.979 | DY30: 0 | DZ30: 93.979 | EA30: 0 | EB30: 93.979 | EC30: 0 | ED30: 93.979 | EE30: 0 | EF30: 93.979 | EG30: 0 | EH30: 93.979 | EI30: 0 | EJ30: 93.979 | EK30: 0 | EL30: 93.979 | EM30: 0 | EN30: 93.979 | EO30: 0 | EP30: 93.979 | EQ30: 0 | ER30: 93.979 | ES30: 0 | ET30: 93.979 | EU30: 0 | EV30: 93.979 | EW30: 0 | EX30: 93.979 | EY30: 0 | EZ30: 93.979 | FA30: 0 | FB30: 93.979 | FC30: 0 | FD30: 93.979 | FE30: 236 | FF30: 82.114 | FG30: 236 | FH30: 82.122 | FI30: 236 | FJ30: 82.151 | FK30: 236 | FL30: 82.121 | FM30: 236 | FN30: 82.094 | FO30: 236 | FP30: 82.123 | FQ30: 236 | FR30: 82.083 | FS30: 236 | FT30: 82.121 | FU30: 236 | FV30: 82.13 | FW30: 236 | FX30: 82.114 | FY30: 236 | FZ30: 80.48 | GA30: 236 | GB30: 80.453 | GC30: 236 | GD30: 80.436 | GE30: 236 | GF30: 80.412 | GG30: 236 | GH30: 80.434 | GI30: 236 | GJ30: 80.413 | GK30: 236 | GL30: 80.412 | GM30: 236 | GN30: 80.395 | GO30: 236 | GP30: 80.412 | GQ30: 236 | GR30: 80.45 | GS30: 236 | GT30: 81.957 | GU30: 236 | GV30: 81.972 | GW30: 236 | GX30: 81.986 | GY30: 236 | GZ30: 81.963 | HA30: 236 | HB30: 81.947 | HC30: 236 | HD30: 81.974 | HE30: 236 | HF30: 81.955 | HG30: 236 | HH30: 81.968 | HI30: 236 | HJ30: 81.96 | HK30: 236 | HL30: 81.924 | HM30: 236 | HN30: 80.228 | HO30: 236 | HP30: 80.201 | HQ30: 236 | HR30: 80.158 | HS30: 236 | HT30: 80.141 | HU30: 236 | HV30: 80.181 | HW30: 236 | HX30: 80.152 | HY30: 236 | HZ30: 80.167 | IA30: 236 | IB30: 80.128 | IC30: 236 | ID30: 80.115 | IE30: 236 | IF30: 80.119 | IG30: 236 | IH30: 89.876 | II30: 236 | IJ30: 89.835 | IK30: 236 | IL30: 89.89 | IM30: 236 | IN30: 89.857 | IO30: 236 | IP30: 89.872 | IQ30: 236 | IR30: 89.84 | IS30: 236 | IT30: 89.837 | IU30: 236 | IV30: 89.837 | IW30: 236 | IX30: 89.864 | IY30: 236 | IZ30: 89.846 | JA30: 236 | JB30: 89.345 | JC30: 236 | JD30: 89.352 | JE30: 236 | JF30: 89.324 | JG30: 236 | JH30: 89.331 | JI30: 236 | JJ30: 89.301 | JK30: 236 | JL30: 89.306 | JM30: 236 | JN30: 89.32 | JO30: 236 | JP30: 89.286 | JQ30: 236 | JR30: 89.286 | JS30: 236 | JT30: 89.276 | JU30: 0 | JV30: 93.979 | JW30: 0 | JX30: 93.979 | JY30: 0 | JZ30: 93.979 | KA30: 0 | KB30: 93.979 | KC30: 0 | KD30: 93.979 | KE30: 0 | KF30: 93.979 | KG30: 0 | KH30: 93.979 | KI30: 0 | KJ30: 93.979 | KK30: 0 | KL30: 93.979 | KM30: 0 | KN30: 93.979 | KO30: 0 | KP30: 93.979 | KQ30: 0 | KR30: 93.979 | KS30: 0 | KT30: 93.979 | KU30: 0 | KV30: 93.979 | KW30: 0 | KX30: 93.979 | KY30: 0 | KZ30: 93.979 | LA30: 0 | LB30: 93.979 | LC30: 0 | LD30: 93.979 | LE30: 0 | LF30: 93.979 | LG30: 0 | LH30: 93.979 | LI30: 0 | LJ30: 93.979 | LK30: 0 | LL30: 93.979 | LM30: 0 | LN30: 93.979 | LO30: 0 | LP30: 93.979 | LQ30: 0 | LR30: 93.979 | LS30: 0 | LT30: 93.979 | LU30: 0 | LV30: 93.979 | LW30: 0 | LX30: 93.979 | LY30: 0 | LZ30: 93.979 | MA30: 0 | MB30: 93.979 | MC30: 0 | MD30: 93.979 | ME30: 0 | MF30: 93.979 | MG30: 0 | MH30: 93.979 | MI30: 0 | MJ30: 93.979 | MK30: 0 | ML30: 93.979 | MM30: 0 | MN30: 93.979 | MO30: 0 | MP30: 93.979 | MQ30: 0 | MR30: 93.979 | MS30: 0 | MT30: 93.979 | MU30: 0 | MV30: 93.979 | MW30: 236 | MX30: 82.613 | MY30: 236 | MZ30: 82.588 | NA30: 236 | NB30: 82.621 | NC30: 236 | ND30: 82.65 | NE30: 236 | NF30: 82.592 | NG30: 236 | NH30: 82.578 | NI30: 236 | NJ30: 82.591 | NK30: 236 | NL30: 82.576 | NM30: 236 | NN30: 82.584 | NO30: 236 | NP30: 82.591 | NQ30: 236 | NR30: 80.867 | NS30: 236 | NT30: 80.807 | NU30: 236 | NV30: 80.896 | NW30: 236 | NX30: 80.776 | NY30: 236 | NZ30: 80.857 | OA30: 236 | OB30: 80.781 | OC30: 236 | OD30: 80.805 | OE30: 236 | OF30: 80.839 | OG30: 236 | OH30: 80.86 | OI30: 236 | OJ30: 80.843 | OK30: 236 | OL30: 82.567 | OM30: 236 | ON30: 82.552 | OO30: 236 | OP30: 82.554 | OQ30: 236 | OR30: 82.565 | OS30: 236 | OT30: 82.519 | OU30: 236 | OV30: 82.511 | OW30: 236 | OX30: 82.529 | OY30: 236 | OZ30: 82.514 | PA30: 236 | PB30: 82.518 | PC30: 236 | PD30: 82.521 | PE30: 236 | PF30: 80.679 | PG30: 236 | PH30: 80.635 | PI30: 236 | PJ30: 80.681 | PK30: 236 | PL30: 80.546 | PM30: 236 | PN30: 80.629 | PO30: 236 | PP30: 80.567 | PQ30: 236 | PR30: 80.601 | PS30: 236 | PT30: 80.627 | PU30: 236 | PV30: 80.644 | PW30: 236 | PX30: 80.629
A31: 250 | B31: -0.551 | C31: 250 | D31: -0.546 | E31: 0 | F31: 0 | G31: 0 | H31: 0 | I31: 0 | J31: 0 | K31: 0 | L31: 0 | M31: 250 | N31: -0.498 | O31: 250 | P31: -0.41 | Q31: 250 | R31: -0.594 | S31: 250 | T31: -0.474 | U31: 250 | V31: 90.507 | W31: 250 | X31: 89.456 | Y31: 0 | Z31: 93.979 | AA31: 0 | AB31: 93.979 | AC31: 0 | AD31: 93.979 | AE31: 0 | AF31: 93.979 | AG31: 250 | AH31: 82.835 | AI31: 250 | AJ31: 81.225 | AK31: 250 | AL31: 82.747 | AM31: 250 | AN31: 80.989 | AO31: 250 | AP31: 89.952 | AQ31: 250 | AR31: 89.958 | AS31: 250 | AT31: 89.99 | AU31: 250 | AV31: 89.956 | AW31: 250 | AX31: 89.937 | AY31: 250 | AZ31: 89.957 | BA31: 250 | BB31: 89.919 | BC31: 250 | BD31: 89.95 | BE31: 250 | BF31: 89.961 | BG31: 250 | BH31: 89.977 | BI31: 250 | BJ31: 88.915 | BK31: 250 | BL31: 88.926 | BM31: 250 | BN31: 88.925 | BO31: 250 | BP31: 88.915 | BQ31: 250 | BR31: 88.914 | BS31: 250 | BT31: 88.915 | BU31: 250 | BV31: 88.918 | BW31: 250 | BX31: 88.914 | BY31: 250 | BZ31: 88.882 | CA31: 250 | CB31: 88.867 | CC31: 0 | CD31: 93.979 | CE31: 0 | CF31: 93.979 | CG31: 0 | CH31: 93.979 | CI31: 0 | CJ31: 93.979 | CK31: 0 | CL31: 93.979 | CM31: 0 | CN31: 93.979 | CO31: 0 | CP31: 93.979 | CQ31: 0 | CR31: 93.979 | CS31: 0 | CT31: 93.979 | CU31: 0 | CV31: 93.979 | CW31: 0 | CX31: 93.979 | CY31: 0 | CZ31: 93.979 | DA31: 0 | DB31: 93.979 | DC31: 0 | DD31: 93.979 | DE31: 0 | DF31: 93.979 | DG31: 0 | DH31: 93.979 | DI31: 0 | DJ31: 93.979 | DK31: 0 | DL31: 93.979 | DM31: 0 | DN31: 93.979 | DO31: 0 | DP31: 93.979 | DQ31: 0 | DR31: 93.979 | DS31: 0 | DT31: 93.979 | DU31: 0 | DV31: 93.979 | DW31: 0 | DX31: 93.979 | DY31: 0 | DZ31: 93.979 | EA31: 0 | EB31: 93.979 | EC31: 0 | ED31: 93.979 | EE31: 0 | EF31: 93.979 | EG31: 0 | EH31: 93.979 | EI31: 0 | EJ31: 93.979 | EK31: 0 | EL31: 93.979 | EM31: 0 | EN31: 93.979 | EO31: 0 | EP31: 93.979 | EQ31: 0 | ER31: 93.979 | ES31: 0 | ET31: 93.979 | EU31: 0 | EV31: 93.979 | EW31: 0 | EX31: 93.979 | EY31: 0 | EZ31: 93.979 | FA31: 0 | FB31: 93.979 | FC31: 0 | FD31: 93.979 | FE31: 250 | FF31: 82.345 | FG31: 250 | FH31: 82.343 | FI31: 250 | FJ31: 82.357 | FK31: 250 | FL31: 82.342 | FM31: 250 | FN31: 82.319 | FO31: 250 | FP31: 82.338 | FQ31: 250 | FR31: 82.303 | FS31: 250 | FT31: 82.336 | FU31: 250 | FV31: 82.343 | FW31: 250 | FX31: 82.348 | FY31: 250 | FZ31: 80.831 | GA31: 250 | GB31: 80.83 | GC31: 250 | GD31: 80.83 | GE31: 250 | GF31: 80.816 | GG31: 250 | GH31: 80.803 | GI31: 250 | GJ31: 80.806 | GK31: 250 | GL31: 80.786 | GM31: 250 | GN31: 80.797 | GO31: 250 | GP31: 80.811 | GQ31: 250 | GR31: 80.843 | GS31: 250 | GT31: 82.163 | GU31: 250 | GV31: 82.167 | GW31: 250 | GX31: 82.164 | GY31: 250 | GZ31: 82.156 | HA31: 250 | HB31: 82.147 | HC31: 250 | HD31: 82.161 | HE31: 250 | HF31: 82.148 | HG31: 250 | HH31: 82.158 | HI31: 250 | HJ31: 82.146 | HK31: 250 | HL31: 82.119 | HM31: 250 | HN31: 80.554 | HO31: 250 | HP31: 80.551 | HQ31: 250 | HR31: 80.52 | HS31: 250 | HT31: 80.516 | HU31: 250 | HV31: 80.525 | HW31: 250 | HX31: 80.517 | HY31: 250 | HZ31: 80.517 | IA31: 250 | IB31: 80.503 | IC31: 250 | ID31: 80.483 | IE31: 250 | IF31: 80.465 | IG31: 250 | IH31: 90.522 | II31: 250 | IJ31: 90.491 | IK31: 250 | IL31: 90.544 | IM31: 250 | IN31: 90.511 | IO31: 250 | IP31: 90.523 | IQ31: 250 | IR31: 90.492 | IS31: 250 | IT31: 90.489 | IU31: 250 | IV31: 90.485 | IW31: 250 | IX31: 90.517 | IY31: 250 | IZ31: 90.492 | JA31: 250 | JB31: 89.493 | JC31: 250 | JD31: 89.503 | JE31: 250 | JF31: 89.462 | JG31: 250 | JH31: 89.475 | JI31: 250 | JJ31: 89.44 | JK31: 250 | JL31: 89.451 | JM31: 250 | JN31: 89.457 | JO31: 250 | JP31: 89.428 | JQ31: 250 | JR31: 89.425 | JS31: 250 | JT31: 89.421 | JU31: 0 | JV31: 93.979 | JW31: 0 | JX31: 93.979 | JY31: 0 | JZ31: 93.979 | KA31: 0 | KB31: 93.979 | KC31: 0 | KD31: 93.979 | KE31: 0 | KF31: 93.979 | KG31: 0 | KH31: 93.979 | KI31: 0 | KJ31: 93.979 | KK31: 0 | KL31: 93.979 | KM31: 0 | KN31: 93.979 | KO31: 0 | KP31: 93.979 | KQ31: 0 | KR31: 93.979 | KS31: 0 | KT31: 93.979 | KU31: 0 | KV31: 93.979 | KW31: 0 | KX31: 93.979 | KY31: 0 | KZ31: 93.979 | LA31: 0 | LB31: 93.979 | LC31: 0 | LD31: 93.979 | LE31: 0 | LF31: 93.979 | LG31: 0 | LH31: 93.979 | LI31: 0 | LJ31: 93.979 | LK31: 0 | LL31: 93.979 | LM31: 0 | LN31: 93.979 | LO31: 0 | LP31: 93.979 | LQ31: 0 | LR31: 93.979 | LS31: 0 | LT31: 93.979 | LU31: 0 | LV31: 93.979 | LW31: 0 | LX31: 93.979 | LY31: 0 | LZ31: 93.979 | MA31: 0 | MB31: 93.979 | MC31: 0 | MD31: 93.979 | ME31: 0 | MF31: 93.979 | MG31: 0 | MH31: 93.979 | MI31: 0 | MJ31: 93.979 | MK31: 0 | ML31: 93.979 | MM31: 0 | MN31: 93.979 | MO31: 0 | MP31: 93.979 | MQ31: 0 | MR31: 93.979 | MS31: 0 | MT31: 93.979 | MU31: 0 | MV31: 93.979 | MW31: 250 | MX31: 82.855 | MY31: 250 | MZ31: 82.839 | NA31: 250 | NB31: 82.865 | NC31: 250 | ND31: 82.85 | NE31: 250 | NF31: 82.831 | NG31: 250 | NH31: 82.817 | NI31: 250 | NJ31: 82.821 | NK31: 250 | NL31: 82.819 | NM31: 250 | NN31: 82.829 | NO31: 250 | NP31: 82.827 | NQ31: 250 | NR31: 81.25 | NS31: 250 | NT31: 81.235 | NU31: 250 | NV31: 81.276 | NW31: 250 | NX31: 81.192 | NY31: 250 | NZ31: 81.238 | OA31: 250 | OB31: 81.19 | OC31: 250 | OD31: 81.202 | OE31: 250 | OF31: 81.217 | OG31: 250 | OH31: 81.233 | OI31: 250 | OJ31: 81.22 | OK31: 250 | OL31: 82.786 | OM31: 250 | ON31: 82.778 | OO31: 250 | OP31: 82.766 | OQ31: 250 | OR31: 82.764 | OS31: 250 | OT31: 82.728 | OU31: 250 | OV31: 82.728 | OW31: 250 | OX31: 82.74 | OY31: 250 | OZ31: 82.725 | PA31: 250 | PB31: 82.728 | PC31: 250 | PD31: 82.726 | PE31: 250 | PF31: 81.041 | PG31: 250 | PH31: 81.039 | PI31: 250 | PJ31: 81.025 | PK31: 250 | PL31: 80.961 | PM31: 250 | PN31: 80.976 | PO31: 250 | PP31: 80.954 | PQ31: 250 | PR31: 80.978 | PS31: 250 | PT31: 80.97 | PU31: 250 | PV31: 80.978 | PW31: 250 | PX31: 80.972
A32: 265 | B32: -0.558 | C32: 265 | D32: -0.549 | E32: 0 | F32: 0 | G32: 0 | H32: 0 | I32: 0 | J32: 0 | K32: 0 | L32: 0 | M32: 265 | N32: -0.517 | O32: 265 | P32: -0.429 | Q32: 265 | R32: -0.606 | S32: 265 | T32: -0.483 | U32: 265 | V32: 91.052 | W32: 265 | X32: 89.589 | Y32: 0 | Z32: 93.979 | AA32: 0 | AB32: 93.979 | AC32: 0 | AD32: 93.979 | AE32: 0 | AF32: 93.979 | AG32: 265 | AH32: 82.921 | AI32: 265 | AJ32: 81.386 | AK32: 265 | AL32: 82.804 | AM32: 265 | AN32: 81.121 | AO32: 265 | AP32: 90.488 | AQ32: 265 | AR32: 90.494 | AS32: 265 | AT32: 90.53 | AU32: 265 | AV32: 90.5 | AW32: 265 | AX32: 90.472 | AY32: 265 | AZ32: 90.492 | BA32: 265 | BB32: 90.454 | BC32: 265 | BD32: 90.489 | BE32: 265 | BF32: 90.503 | BG32: 265 | BH32: 90.522 | BI32: 265 | BJ32: 89.049 | BK32: 265 | BL32: 89.056 | BM32: 265 | BN32: 89.054 | BO32: 265 | BP32: 89.044 | BQ32: 265 | BR32: 89.046 | BS32: 265 | BT32: 89.049 | BU32: 265 | BV32: 89.049 | BW32: 265 | BX32: 89.047 | BY32: 265 | BZ32: 89.014 | CA32: 265 | CB32: 88.994 | CC32: 0 | CD32: 93.979 | CE32: 0 | CF32: 93.979 | CG32: 0 | CH32: 93.979 | CI32: 0 | CJ32: 93.979 | CK32: 0 | CL32: 93.979 | CM32: 0 | CN32: 93.979 | CO32: 0 | CP32: 93.979 | CQ32: 0 | CR32: 93.979 | CS32: 0 | CT32: 93.979 | CU32: 0 | CV32: 93.979 | CW32: 0 | CX32: 93.979 | CY32: 0 | CZ32: 93.979 | DA32: 0 | DB32: 93.979 | DC32: 0 | DD32: 93.979 | DE32: 0 | DF32: 93.979 | DG32: 0 | DH32: 93.979 | DI32: 0 | DJ32: 93.979 | DK32: 0 | DL32: 93.979 | DM32: 0 | DN32: 93.979 | DO32: 0 | DP32: 93.979 | DQ32: 0 | DR32: 93.979 | DS32: 0 | DT32: 93.979 | DU32: 0 | DV32: 93.979 | DW32: 0 | DX32: 93.979 | DY32: 0 | DZ32: 93.979 | EA32: 0 | EB32: 93.979 | EC32: 0 | ED32: 93.979 | EE32: 0 | EF32: 93.979 | EG32: 0 | EH32: 93.979 | EI32: 0 | EJ32: 93.979 | EK32: 0 | EL32: 93.979 | EM32: 0 | EN32: 93.979 | EO32: 0 | EP32: 93.979 | EQ32: 0 | ER32: 93.979 | ES32: 0 | ET32: 93.979 | EU32: 0 | EV32: 93.979 | EW32: 0 | EX32: 93.979 | EY32: 0 | EZ32: 93.979 | FA32: 0 | FB32: 93.979 | FC32: 0 | FD32: 93.979 | FE32: 265 | FF32: 82.415 | FG32: 265 | FH32: 82.406 | FI32: 265 | FJ32: 82.421 | FK32: 265 | FL32: 82.411 | FM32: 265 | FN32: 82.387 | FO32: 265 | FP32: 82.4 | FQ32: 265 | FR32: 82.369 | FS32: 265 | FT32: 82.399 | FU32: 265 | FV32: 82.403 | FW32: 265 | FX32: 82.427 | FY32: 265 | FZ32: 80.953 | GA32: 265 | GB32: 80.959 | GC32: 265 | GD32: 80.979 | GE32: 265 | GF32: 80.971 | GG32: 265 | GH32: 80.933 | GI32: 265 | GJ32: 80.949 | GK32: 265 | GL32: 80.918 | GM32: 265 | GN32: 80.949 | GO32: 265 | GP32: 80.959 | GQ32: 265 | GR32: 80.994 | GS32: 265 | GT32: 82.217 | GU32: 265 | GV32: 82.214 | GW32: 265 | GX32: 82.203 | GY32: 265 | GZ32: 82.203 | HA32: 265 | HB32: 82.202 | HC32: 265 | HD32: 82.205 | HE32: 265 | HF32: 82.203 | HG32: 265 | HH32: 82.203 | HI32: 265 | HJ32: 82.179 | HK32: 265 | HL32: 82.154 | HM32: 265 | HN32: 80.663 | HO32: 265 | HP32: 80.669 | HQ32: 265 | HR32: 80.647 | HS32: 265 | HT32: 80.652 | HU32: 265 | HV32: 80.647 | HW32: 265 | HX32: 80.647 | HY32: 265 | HZ32: 80.647 | IA32: 265 | IB32: 80.64 | IC32: 265 | ID32: 80.604 | IE32: 265 | IF32: 80.563 | IG32: 265 | IH32: 91.059 | II32: 265 | IJ32: 91.039 | IK32: 265 | IL32: 91.092 | IM32: 265 | IN32: 91.061 | IO32: 265 | IP32: 91.067 | IQ32: 265 | IR32: 91.041 | IS32: 265 | IT32: 91.036 | IU32: 265 | IV32: 91.031 | IW32: 265 | IX32: 91.063 | IY32: 265 | IZ32: 91.033 | JA32: 265 | JB32: 89.625 | JC32: 265 | JD32: 89.64 | JE32: 265 | JF32: 89.595 | JG32: 265 | JH32: 89.607 | JI32: 265 | JJ32: 89.572 | JK32: 265 | JL32: 89.584 | JM32: 265 | JN32: 89.591 | JO32: 265 | JP32: 89.563 | JQ32: 265 | JR32: 89.556 | JS32: 265 | JT32: 89.555 | JU32: 0 | JV32: 93.979 | JW32: 0 | JX32: 93.979 | JY32: 0 | JZ32: 93.979 | KA32: 0 | KB32: 93.979 | KC32: 0 | KD32: 93.979 | KE32: 0 | KF32: 93.979 | KG32: 0 | KH32: 93.979 | KI32: 0 | KJ32: 93.979 | KK32: 0 | KL32: 93.979 | KM32: 0 | KN32: 93.979 | KO32: 0 | KP32: 93.979 | KQ32: 0 | KR32: 93.979 | KS32: 0 | KT32: 93.979 | KU32: 0 | KV32: 93.979 | KW32: 0 | KX32: 93.979 | KY32: 0 | KZ32: 93.979 | LA32: 0 | LB32: 93.979 | LC32: 0 | LD32: 93.979 | LE32: 0 | LF32: 93.979 | LG32: 0 | LH32: 93.979 | LI32: 0 | LJ32: 93.979 | LK32: 0 | LL32: 93.979 | LM32: 0 | LN32: 93.979 | LO32: 0 | LP32: 93.979 | LQ32: 0 | LR32: 93.979 | LS32: 0 | LT32: 93.979 | LU32: 0 | LV32: 93.979 | LW32: 0 | LX32: 93.979 | LY32: 0 | LZ32: 93.979 | MA32: 0 | MB32: 93.979 | MC32: 0 | MD32: 93.979 | ME32: 0 | MF32: 93.979 | MG32: 0 | MH32: 93.979 | MI32: 0 | MJ32: 93.979 | MK32: 0 | ML32: 93.979 | MM32: 0 | MN32: 93.979 | MO32: 0 | MP32: 93.979 | MQ32: 0 | MR32: 93.979 | MS32: 0 | MT32: 93.979 | MU32: 0 | MV32: 93.979 | MW32: 265 | MX32: 82.938 | MY32: 265 | MZ32: 82.927 | NA32: 265 | NB32: 82.955 | NC32: 265 | ND32: 82.917 | NE32: 265 | NF32: 82.921 | NG32: 265 | NH32: 82.907 | NI32: 265 | NJ32: 82.907 | NK32: 265 | NL32: 82.907 | NM32: 265 | NN32: 82.92 | NO32: 265 | NP32: 82.909 | NQ32: 265 | NR32: 81.396 | NS32: 265 | NT32: 81.407 | NU32: 265 | NV32: 81.429 | NW32: 265 | NX32: 81.374 | NY32: 265 | NZ32: 81.393 | OA32: 265 | OB32: 81.365 | OC32: 265 | OD32: 81.372 | OE32: 265 | OF32: 81.366 | OG32: 265 | OH32: 81.385 | OI32: 265 | OJ32: 81.37 | OK32: 265 | OL32: 82.848 | OM32: 265 | ON32: 82.846 | OO32: 265 | OP32: 82.818 | OQ32: 265 | OR32: 82.819 | OS32: 265 | OT32: 82.781 | OU32: 265 | OV32: 82.792 | OW32: 265 | OX32: 82.803 | OY32: 265 | OZ32: 82.779 | PA32: 265 | PB32: 82.781 | PC32: 265 | PD32: 82.776 | PE32: 265 | PF32: 81.169 | PG32: 265 | PH32: 81.195 | PI32: 265 | PJ32: 81.134 | PK32: 265 | PL32: 81.134 | PM32: 265 | PN32: 81.09 | PO32: 265 | PP32: 81.105 | PQ32: 265 | PR32: 81.128 | PS32: 265 | PT32: 81.081 | PU32: 265 | PV32: 81.086 | PW32: 265 | PX32: 81.087
A33: 280 | B33: -0.561 | C33: 280 | D33: -0.555 | E33: 0 | F33: 0 | G33: 0 | H33: 0 | I33: 0 | J33: 0 | K33: 0 | L33: 0 | M33: 280 | N33: -0.534 | O33: 280 | P33: -0.448 | Q33: 280 | R33: -0.617 | S33: 280 | T33: -0.492 | U33: 280 | V33: 91.476 | W33: 280 | X33: 89.663 | Y33: 0 | Z33: 93.979 | AA33: 0 | AB33: 93.979 | AC33: 0 | AD33: 93.979 | AE33: 0 | AF33: 93.979 | AG33: 280 | AH33: 82.891 | AI33: 280 | AJ33: 81.368 | AK33: 280 | AL33: 82.751 | AM33: 280 | AN33: 81.076 | AO33: 280 | AP33: 90.916 | AQ33: 280 | AR33: 90.916 | AS33: 280 | AT33: 90.947 | AU33: 280 | AV33: 90.919 | AW33: 280 | AX33: 90.899 | AY33: 280 | AZ33: 90.91 | BA33: 280 | BB33: 90.881 | BC33: 280 | BD33: 90.91 | BE33: 280 | BF33: 90.917 | BG33: 280 | BH33: 90.941 | BI33: 280 | BJ33: 89.122 | BK33: 280 | BL33: 89.126 | BM33: 280 | BN33: 89.118 | BO33: 280 | BP33: 89.107 | BQ33: 280 | BR33: 89.119 | BS33: 280 | BT33: 89.116 | BU33: 280 | BV33: 89.119 | BW33: 280 | BX33: 89.113 | BY33: 280 | BZ33: 89.081 | CA33: 280 | CB33: 89.062 | CC33: 0 | CD33: 93.979 | CE33: 0 | CF33: 93.979 | CG33: 0 | CH33: 93.979 | CI33: 0 | CJ33: 93.979 | CK33: 0 | CL33: 93.979 | CM33: 0 | CN33: 93.979 | CO33: 0 | CP33: 93.979 | CQ33: 0 | CR33: 93.979 | CS33: 0 | CT33: 93.979 | CU33: 0 | CV33: 93.979 | CW33: 0 | CX33: 93.979 | CY33: 0 | CZ33: 93.979 | DA33: 0 | DB33: 93.979 | DC33: 0 | DD33: 93.979 | DE33: 0 | DF33: 93.979 | DG33: 0 | DH33: 93.979 | DI33: 0 | DJ33: 93.979 | DK33: 0 | DL33: 93.979 | DM33: 0 | DN33: 93.979 | DO33: 0 | DP33: 93.979 | DQ33: 0 | DR33: 93.979 | DS33: 0 | DT33: 93.979 | DU33: 0 | DV33: 93.979 | DW33: 0 | DX33: 93.979 | DY33: 0 | DZ33: 93.979 | EA33: 0 | EB33: 93.979 | EC33: 0 | ED33: 93.979 | EE33: 0 | EF33: 93.979 | EG33: 0 | EH33: 93.979 | EI33: 0 | EJ33: 93.979 | EK33: 0 | EL33: 93.979 | EM33: 0 | EN33: 93.979 | EO33: 0 | EP33: 93.979 | EQ33: 0 | ER33: 93.979 | ES33: 0 | ET33: 93.979 | EU33: 0 | EV33: 93.979 | EW33: 0 | EX33: 93.979 | EY33: 0 | EZ33: 93.979 | FA33: 0 | FB33: 93.979 | FC33: 0 | FD33: 93.979 | FE33: 280 | FF33: 82.38 | FG33: 280 | FH33: 82.361 | FI33: 280 | FJ33: 82.372 | FK33: 280 | FL33: 82.361 | FM33: 280 | FN33: 82.349 | FO33: 280 | FP33: 82.349 | FQ33: 280 | FR33: 82.328 | FS33: 280 | FT33: 82.344 | FU33: 280 | FV33: 82.349 | FW33: 280 | FX33: 82.381 | FY33: 280 | FZ33: 80.924 | GA33: 280 | GB33: 80.919 | GC33: 280 | GD33: 80.943 | GE33: 280 | GF33: 80.932 | GG33: 280 | GH33: 80.902 | GI33: 280 | GJ33: 80.909 | GK33: 280 | GL33: 80.884 | GM33: 280 | GN33: 80.908 | GO33: 280 | GP33: 80.919 | GQ33: 280 | GR33: 80.958 | GS33: 280 | GT33: 82.165 | GU33: 280 | GV33: 82.155 | GW33: 280 | GX33: 82.133 | GY33: 280 | GZ33: 82.135 | HA33: 280 | HB33: 82.151 | HC33: 280 | HD33: 82.14 | HE33: 280 | HF33: 82.151 | HG33: 280 | HH33: 82.131 | HI33: 280 | HJ33: 82.101 | HK33: 280 | HL33: 82.074 | HM33: 280 | HN33: 80.619 | HO33: 280 | HP33: 80.618 | HQ33: 280 | HR33: 80.59 | HS33: 280 | HT33: 80.597 | HU33: 280 | HV33: 80.606 | HW33: 280 | HX33: 80.596 | HY33: 280 | HZ33: 80.608 | IA33: 280 | IB33: 80.585 | IC33: 280 | ID33: 80.538 | IE33: 280 | IF33: 80.483 | IG33: 280 | IH33: 91.486 | II33: 280 | IJ33: 91.462 | IK33: 280 | IL33: 91.514 | IM33: 280 | IN33: 91.482 | IO33: 280 | IP33: 91.49 | IQ33: 280 | IR33: 91.466 | IS33: 280 | IT33: 91.462 | IU33: 280 | IV33: 91.459 | IW33: 280 | IX33: 91.488 | IY33: 280 | IZ33: 91.453 | JA33: 280 | JB33: 89.699 | JC33: 280 | JD33: 89.711 | JE33: 280 | JF33: 89.674 | JG33: 280 | JH33: 89.673 | JI33: 280 | JJ33: 89.649 | JK33: 280 | JL33: 89.653 | JM33: 280 | JN33: 89.662 | JO33: 280 | JP33: 89.644 | JQ33: 280 | JR33: 89.636 | JS33: 280 | JT33: 89.632 | JU33: 0 | JV33: 93.979 | JW33: 0 | JX33: 93.979 | JY33: 0 | JZ33: 93.979 | KA33: 0 | KB33: 93.979 | KC33: 0 | KD33: 93.979 | KE33: 0 | KF33: 93.979 | KG33: 0 | KH33: 93.979 | KI33: 0 | KJ33: 93.979 | KK33: 0 | KL33: 93.979 | KM33: 0 | KN33: 93.979 | KO33: 0 | KP33: 93.979 | KQ33: 0 | KR33: 93.979 | KS33: 0 | KT33: 93.979 | KU33: 0 | KV33: 93.979 | KW33: 0 | KX33: 93.979 | KY33: 0 | KZ33: 93.979 | LA33: 0 | LB33: 93.979 | LC33: 0 | LD33: 93.979 | LE33: 0 | LF33: 93.979 | LG33: 0 | LH33: 93.979 | LI33: 0 | LJ33: 93.979 | LK33: 0 | LL33: 93.979 | LM33: 0 | LN33: 93.979 | LO33: 0 | LP33: 93.979 | LQ33: 0 | LR33: 93.979 | LS33: 0 | LT33: 93.979 | LU33: 0 | LV33: 93.979 | LW33: 0 | LX33: 93.979 | LY33: 0 | LZ33: 93.979 | MA33: 0 | MB33: 93.979 | MC33: 0 | MD33: 93.979 | ME33: 0 | MF33: 93.979 | MG33: 0 | MH33: 93.979 | MI33: 0 | MJ33: 93.979 | MK33: 0 | ML33: 93.979 | MM33: 0 | MN33: 93.979 | MO33: 0 | MP33: 93.979 | MQ33: 0 | MR33: 93.979 | MS33: 0 | MT33: 93.979 | MU33: 0 | MV33: 93.979 | MW33: 280 | MX33: 82.911 | MY33: 280 | MZ33: 82.89 | NA33: 280 | NB33: 82.928 | NC33: 280 | ND33: 82.871 | NE33: 280 | NF33: 82.896 | NG33: 280 | NH33: 82.879 | NI33: 280 | NJ33: 82.874 | NK33: 280 | NL33: 82.887 | NM33: 280 | NN33: 82.897 | NO33: 280 | NP33: 82.879 | NQ33: 280 | NR33: 81.373 | NS33: 280 | NT33: 81.381 | NU33: 280 | NV33: 81.409 | NW33: 280 | NX33: 81.355 | NY33: 280 | NZ33: 81.378 | OA33: 280 | OB33: 81.354 | OC33: 280 | OD33: 81.355 | OE33: 280 | OF33: 81.354 | OG33: 280 | OH33: 81.37 | OI33: 280 | OJ33: 81.353 | OK33: 280 | OL33: 82.804 | OM33: 280 | ON33: 82.793 | OO33: 280 | OP33: 82.762 | OQ33: 280 | OR33: 82.755 | OS33: 280 | OT33: 82.727 | OU33: 280 | OV33: 82.739 | OW33: 280 | OX33: 82.747 | OY33: 280 | OZ33: 82.73 | PA33: 280 | PB33: 82.729 | PC33: 280 | PD33: 82.719 | PE33: 280 | PF33: 81.129 | PG33: 280 | PH33: 81.158 | PI33: 280 | PJ33: 81.076 | PK33: 280 | PL33: 81.101 | PM33: 280 | PN33: 81.037 | PO33: 280 | PP33: 81.067 | PQ33: 280 | PR33: 81.088 | PS33: 280 | PT33: 81.034 | PU33: 280 | PV33: 81.036 | PW33: 280 | PX33: 81.037
A34: 300 | B34: -0.561 | C34: 300 | D34: -0.563 | E34: 0 | F34: 0 | G34: 0 | H34: 0 | I34: 0 | J34: 0 | K34: 0 | L34: 0 | M34: 300 | N34: -0.547 | O34: 300 | P34: -0.461 | Q34: 300 | R34: -0.636 | S34: 300 | T34: -0.514 | U34: 300 | V34: 91.783 | W34: 300 | X34: 89.678 | Y34: 0 | Z34: 93.979 | AA34: 0 | AB34: 93.979 | AC34: 0 | AD34: 93.979 | AE34: 0 | AF34: 93.979 | AG34: 300 | AH34: 82.833 | AI34: 300 | AJ34: 81.297 | AK34: 300 | AL34: 82.678 | AM34: 300 | AN34: 80.989 | AO34: 300 | AP34: 91.231 | AQ34: 300 | AR34: 91.227 | AS34: 300 | AT34: 91.249 | AU34: 300 | AV34: 91.22 | AW34: 300 | AX34: 91.217 | AY34: 300 | AZ34: 91.214 | BA34: 300 | BB34: 91.195 | BC34: 300 | BD34: 91.216 | BE34: 300 | BF34: 91.214 | BG34: 300 | BH34: 91.24 | BI34: 300 | BJ34: 89.133 | BK34: 300 | BL34: 89.138 | BM34: 300 | BN34: 89.123 | BO34: 300 | BP34: 89.112 | BQ34: 300 | BR34: 89.128 | BS34: 300 | BT34: 89.122 | BU34: 300 | BV34: 89.127 | BW34: 300 | BX34: 89.111 | BY34: 300 | BZ34: 89.09 | CA34: 300 | CB34: 89.069 | CC34: 0 | CD34: 93.979 | CE34: 0 | CF34: 93.979 | CG34: 0 | CH34: 93.979 | CI34: 0 | CJ34: 93.979 | CK34: 0 | CL34: 93.979 | CM34: 0 | CN34: 93.979 | CO34: 0 | CP34: 93.979 | CQ34: 0 | CR34: 93.979 | CS34: 0 | CT34: 93.979 | CU34: 0 | CV34: 93.979 | CW34: 0 | CX34: 93.979 | CY34: 0 | CZ34: 93.979 | DA34: 0 | DB34: 93.979 | DC34: 0 | DD34: 93.979 | DE34: 0 | DF34: 93.979 | DG34: 0 | DH34: 93.979 | DI34: 0 | DJ34: 93.979 | DK34: 0 | DL34: 93.979 | DM34: 0 | DN34: 93.979 | DO34: 0 | DP34: 93.979 | DQ34: 0 | DR34: 93.979 | DS34: 0 | DT34: 93.979 | DU34: 0 | DV34: 93.979 | DW34: 0 | DX34: 93.979 | DY34: 0 | DZ34: 93.979 | EA34: 0 | EB34: 93.979 | EC34: 0 | ED34: 93.979 | EE34: 0 | EF34: 93.979 | EG34: 0 | EH34: 93.979 | EI34: 0 | EJ34: 93.979 | EK34: 0 | EL34: 93.979 | EM34: 0 | EN34: 93.979 | EO34: 0 | EP34: 93.979 | EQ34: 0 | ER34: 93.979 | ES34: 0 | ET34: 93.979 | EU34: 0 | EV34: 93.979 | EW34: 0 | EX34: 93.979 | EY34: 0 | EZ34: 93.979 | FA34: 0 | FB34: 93.979 | FC34: 0 | FD34: 93.979 | FE34: 300 | FF34: 82.321 | FG34: 300 | FH34: 82.298 | FI34: 300 | FJ34: 82.299 | FK34: 300 | FL34: 82.283 | FM34: 300 | FN34: 82.29 | FO34: 300 | FP34: 82.278 | FQ34: 300 | FR34: 82.269 | FS34: 300 | FT34: 82.266 | FU34: 300 | FV34: 82.269 | FW34: 300 | FX34: 82.292 | FY34: 300 | FZ34: 80.855 | GA34: 300 | GB34: 80.842 | GC34: 300 | GD34: 80.856 | GE34: 300 | GF34: 80.838 | GG34: 300 | GH34: 80.833 | GI34: 300 | GJ34: 80.826 | GK34: 300 | GL34: 80.813 | GM34: 300 | GN34: 80.817 | GO34: 300 | GP34: 80.826 | GQ34: 300 | GR34: 80.853 | GS34: 300 | GT34: 82.083 | GU34: 300 | GV34: 82.07 | GW34: 300 | GX34: 82.041 | GY34: 300 | GZ34: 82.038 | HA34: 300 | HB34: 82.067 | HC34: 300 | HD34: 82.048 | HE34: 300 | HF34: 82.064 | HG34: 300 | HH34: 82.032 | HI34: 300 | HJ34: 82.002 | HK34: 300 | HL34: 81.974 | HM34: 300 | HN34: 80.521 | HO34: 300 | HP34: 80.516 | HQ34: 300 | HR34: 80.479 | HS34: 300 | HT34: 80.481 | HU34: 300 | HV34: 80.508 | HW34: 300 | HX34: 80.489 | HY34: 300 | HZ34: 80.507 | IA34: 300 | IB34: 80.47 | IC34: 300 | ID34: 80.421 | IE34: 300 | IF34: 80.359 | IG34: 300 | IH34: 91.803 | II34: 300 | IJ34: 91.768 | IK34: 300 | IL34: 91.818 | IM34: 300 | IN34: 91.782 | IO34: 300 | IP34: 91.796 | IQ34: 300 | IR34: 91.774 | IS34: 300 | IT34: 91.771 | IU34: 300 | IV34: 91.77 | IW34: 300 | IX34: 91.795 | IY34: 300 | IZ34: 91.756 | JA34: 300 | JB34: 89.712 | JC34: 300 | JD34: 89.722 | JE34: 300 | JF34: 89.693 | JG34: 300 | JH34: 89.68 | JI34: 300 | JJ34: 89.668 | JK34: 300 | JL34: 89.665 | JM34: 300 | JN34: 89.671 | JO34: 300 | JP34: 89.663 | JQ34: 300 | JR34: 89.657 | JS34: 300 | JT34: 89.649 | JU34: 0 | JV34: 93.979 | JW34: 0 | JX34: 93.979 | JY34: 0 | JZ34: 93.979 | KA34: 0 | KB34: 93.979 | KC34: 0 | KD34: 93.979 | KE34: 0 | KF34: 93.979 | KG34: 0 | KH34: 93.979 | KI34: 0 | KJ34: 93.979 | KK34: 0 | KL34: 93.979 | KM34: 0 | KN34: 93.979 | KO34: 0 | KP34: 93.979 | KQ34: 0 | KR34: 93.979 | KS34: 0 | KT34: 93.979 | KU34: 0 | KV34: 93.979 | KW34: 0 | KX34: 93.979 | KY34: 0 | KZ34: 93.979 | LA34: 0 | LB34: 93.979 | LC34: 0 | LD34: 93.979 | LE34: 0 | LF34: 93.979 | LG34: 0 | LH34: 93.979 | LI34: 0 | LJ34: 93.979 | LK34: 0 | LL34: 93.979 | LM34: 0 | LN34: 93.979 | LO34: 0 | LP34: 93.979 | LQ34: 0 | LR34: 93.979 | LS34: 0 | LT34: 93.979 | LU34: 0 | LV34: 93.979 | LW34: 0 | LX34: 93.979 | LY34: 0 | LZ34: 93.979 | MA34: 0 | MB34: 93.979 | MC34: 0 | MD34: 93.979 | ME34: 0 | MF34: 93.979 | MG34: 0 | MH34: 93.979 | MI34: 0 | MJ34: 93.979 | MK34: 0 | ML34: 93.979 | MM34: 0 | MN34: 93.979 | MO34: 0 | MP34: 93.979 | MQ34: 0 | MR34: 93.979 | MS34: 0 | MT34: 93.979 | MU34: 0 | MV34: 93.979 | MW34: 300 | MX34: 82.866 | MY34: 300 | MZ34: 82.828 | NA34: 300 | NB34: 82.865 | NC34: 300 | ND34: 82.807 | NE34: 300 | NF34: 82.836 | NG34: 300 | NH34: 82.824 | NI34: 300 | NJ34: 82.816 | NK34: 300 | NL34: 82.836 | NM34: 300 | NN34: 82.835 | NO34: 300 | NP34: 82.819 | NQ34: 300 | NR34: 81.311 | NS34: 300 | NT34: 81.301 | NU34: 300 | NV34: 81.331 | NW34: 300 | NX34: 81.281 | NY34: 300 | NZ34: 81.305 | OA34: 300 | OB34: 81.288 | OC34: 300 | OD34: 81.283 | OE34: 300 | OF34: 81.291 | OG34: 300 | OH34: 81.297 | OI34: 300 | OJ34: 81.285 | OK34: 300 | OL34: 82.742 | OM34: 300 | ON34: 82.717 | OO34: 300 | OP34: 82.693 | OQ34: 300 | OR34: 82.67 | OS34: 300 | OT34: 82.66 | OU34: 300 | OV34: 82.662 | OW34: 300 | OX34: 82.667 | OY34: 300 | OZ34: 82.666 | PA34: 300 | PB34: 82.663 | PC34: 300 | PD34: 82.643 | PE34: 300 | PF34: 81.05 | PG34: 300 | PH34: 81.065 | PI34: 300 | PJ34: 80.989 | PK34: 300 | PL34: 81.005 | PM34: 300 | PN34: 80.954 | PO34: 300 | PP34: 80.974 | PQ34: 300 | PR34: 80.992 | PS34: 300 | PT34: 80.954 | PU34: 300 | PV34: 80.957 | PW34: 300 | PX34: 80.948
